Workbook

Sheet Sheet2 (hidden)
A1: Formats | B1: 0
B2: 0
A3: Y | B3: 0
A4: N
A6: Platinum
A7: Gold
A8: Silver
A10: 1
A11: 0

Sheet User Guide
B2: Introduction
B3: The Actuarial Value Calculator (AV Calculator) is designed to give an estimate of network liability for a given plan design. This version of the AV Calculator uses data from a large national commercial database to build continuance tables by metal tier.
B5: Data Properties
B6: The AV Calculator uses 2010 claims and enrollment data from a national commercial database to provide information on utilization and cost-sharing for a standard population of enrollees. Because the database does not include plan benefit design information, the AV Calculator imputes cost-sharing parameters. To ensure that the imputation procedure can be applied effectively, plans with utilization data that are likely incomplete are excluded. Specifically, to be included, plans with more than 50 members must be Preferred Provider Organization (PPO)/Point of Service (POS) plans with positive drug enrollment in at least 1 month of a 12-month period, and plans with over 1,000 members must also have at least 1 claim with a maternity Diagnosis-Related Group (DRG). Moreover, all plans must have at least 1 member with over $5,000 in spending.
B7: After imputing cost-sharing parameters, the Calculator applies additional logic to exclude the following implausible plan designs:
B8: • Plans with zero spending for all enrollees
B9: • Plans with imputed coinsurance rates that fall outside the range of 0-100%
B10: • Plan-demographic group combinations with negative realized actuarial value
B11: • Enrollees with unspecified sex
B12: Ultimately, only utilization data from enrollees with at least 12 months of enrollment or newborns are used in the continuance tables to represent a consumer’s view of the cost-sharing to expect in a full 12 months of eligibility.
B13: The estimated actuarial value of individual plans is used to determine the metal tier continuance table in which the plans appear. The estimated Per Member Per Year (PMPY) cost of the following enrollee populations and services have been added to the continuance tables: Pre-Existing Condition Insurance Plan (PCIP), High Risk Pool (HRP), Pediatric Vision, and Pediatric Dental. This data is then projected forward to 2014 values at a growth rate of 6.5% per year.
B14: For additional details on the methodology used to construct the Calculator, please refer to the accompanying methodology document.
B16: Usage
B17: The AV Calculator enables users to select various plan design features and, based on those selections, estimate the network liability for the given design. Please note that any data entered into greyed-out boxes will not be included in the final calculation.
B19: User Inputs for Plan Parameters
B21: Use Integrated Medical and Drug Deductible
B22: Select this option if the plan for which you are estimating AV has an integrated deductible for medical and drug spending.
B24: Apply Inpatient Copay per Day and Apply Skilled Nursing Facility Copay per Day
B25: Select these options if you would like copays to be applied per day for either inpatient or skilled nursing facility services.
B27: Use Separate OOP Maximum for Medical and Drug Spending
B28: Select this option to designate separate out-of-pocket (OOP) maximums for medical and drug spending. This option is only available if you do not select an integrated medical and drug deductible.
B30: Indicate if Plan Meets CSR Standard
B31: Select this option to determine whether the plan design satisfies the Affordable Care Act cost-sharing reduction (CSR) requirements. Below we provide guidance on which metal tier should be chosen to align with the expected utilization for each plan variation. Please note that the metal tier continuance tables below should be used regardless of any error message prompting the use of a different continuance table.
B32: • Household Income of 100-150% FPL: Plan Variation AV of 94% using Platinum Continuance Table
B33: • Household Income of 150-200% FPL: Plan Variation AV of 87% using Gold Continuance Table
B34: • Household Income of 200-250% FPL: Plan Variation AV of 73% using Silver Continuance Table
B36: Desired Metal Tier
B37: Select the desired metal tier for the plan. If your plan design produces an estimate between metal tiers, please specify an alternative plan design.
B39: HSA/HRA Options
B40: The AV Calculator uses the continuance table for combined expenses to identify the average cost per enrollee at the annual HSA or HRA contribution amount. If the annual contribution amount falls between two spending thresholds in the continuance table, this amount is pro-rated and is included in the numerator. Next, the calculator identifies any plan-covered benefits obtained in the deductible stage and subtracts them from the numerator, to avoid double-counting when these benefits are included in the numerator during the regular benefit calculation steps. At the conclusion of these steps, plan-covered expenses in the numerator include average costs at the annual HSA or HRA contribution amount less any plan-covered expenses in the deductible stage below the HSA or HRA contribution amount.
B42: Narrow Network Options
B43: Narrow network plans have multiple tiers of service whereby the course of care is steered towards coordinated resource use and treatment. Patients typically pay more cost-sharing in the non-preferred tier. To calculate the AV of a plan with “narrow” network utilization or point of service cost-sharing structure, enable the blended network option. This requires you to populate two cost-sharing designs for the general benefit portion (deductible, co-insurance and MOOP) and for service-level cost-sharing for each tier. In both cases, you must input the proportion of claims cost that is anticipated to be utilized in each tier. These proportions should add up to 100%. Note that when calculating CSR plan variations, these percentages cannot vary from the percentages used for the base silver plan.
B45: Tier 1 Plan Design and Tier 2 Plan Design
B46: Select the deductible, general coinsurance rate (for services that will not be “carved out”), and MOOP limit. Note that the MOOP should be greater than or equal to the deductible amount, but no greater than the annual MOOP limit. If you selected the OOP maximum separate option, include separate OOP maximums for drug expenses and medical expenses. Fill in these values for Tier 1 only, unless the plan is a blended network plan. In that case, fill out specifications for Tier 1 and Tier 2.
B48: Options for Specific Benefit Types
B50: Subject to Deductible and Copay, if separate
B51: You can generate a variety of plan designs based on whether or not a service is "Subject to Deductible” and on the value entered into the “Copay, if Separate” field.
B52: • If “Subject to Deductible” is selected, and no copay is entered, the cost of the service is covered by the enrollee
B53: and applied to the deductible at 100%.
B54: • If “Subject to Deductible” is selected and a copay is entered, the enrollee pays both the copay and the remainder
B55: of the cost, with the latter counting towards the deductible.
B56: • If “Subject to Deductible” is not selected, and a $0 copay is entered, the service is assumed to be covered at 100%
B57: by the plan in the deductible range.
B58: • If “Subject to Deductible” is not selected and a copay is entered, the cost of the service is covered by the plan
B59: except for the copay amount, which is covered by the enrollee.
B61: Subject to Coinsurance and Coinsurance, if Different
B62: If you designate a service as "Subject to Coinsurance" but do not enter a custom rate, the general coinsurance rate will be applied. Otherwise, the custom rate will be used. If “Subject to Coinsurance” is not selected, then the copay rate will determine the cost of that service in the coinsurance range.
B64: Benefit Type Details
B66: Primary Care and Specialist Office Visits
B67: If special cost-sharing provisions are indicated for Primary Care and/or Specialist Office Visits, certain office visits will be split into their component parts only if those office visits include services that do not have special cost-sharing provisions (not having special cost-sharing provisions is defined as being Subject to Deductible and Subject to Coinsurance, with no special coinsurance rate and no copay). This is applicable to X-rays, and the component parts are Primary Care Office Visit and Specialist Office Visit. For example, if Primary Care office visits are not subject to the deductible and have a $20 copay, but X-rays are subject to the deductible and general coinsurance, a Primary Care office visit that includes an X-ray will be split into two services: a Primary Care office visit and an X-ray.
B69: Outpatient - Facility and Outpatient – Professional Visits
B70: If special cost-sharing provisions are indicated for Outpatient - Facility and/or Outpatient - Professional claims, certain services including both an Outpatient-Facility and Outpatient-Professional component will be split into their component parts if these services do not have special cost-sharing provisions. The services subject to this potential splitting into component parts are Mental/Behavioral Health and Substance Abuse Disorder Outpatient Services; Imaging; Rehabilitative Speech Therapy; Occupational Therapy and Physical Therapy; and Laboratory Outpatient and Professional Services. The component parts are Outpatient – Facility and Outpatient - Professional.
B72: Drug Benefits
B73: The AV Calculator includes four tiers of drug utilization. Below follows a brief description of each of the four tiers.
B74: • Generic drugs indicate drugs marketed under their official non-proprietary or chemical name.
B75: • Preferred brand drugs indicate formulary drugs or drugs with preferential pricing marketed under a brand name.
B76: • Non-preferred brand drugs indicate formulary drugs or drugs with non-preferential pricing marketed under a brand
B77: name.
B78: • Specialty drugs indicate drugs used to treat complex or rare conditions, and often have unit costs above $500 per
B79: script.
B81: Other Benefit Type Notes
B82: • Prescription benefits cannot be subjected to a different co-insurance rate and a separate copay.
B83: • Preventive care visits are defined as those services covered at 100%, per section 2713 of the Affordable Care Act.
B84: • Well-baby preventive care visits are included in preventive care, per section 2713 of the Affordable Care Act.
B85: • Well-baby non-preventive care visits are included in Primary Care.
B86: • Emergency room services and all inpatient hospital services are aggregated at the stay level.
B87: • Emergency room services and all inpatient hospital services include both physician and facility components.
B89: Options for Additional Benefit Design Limits
B91: Set a Maximum on Specialty Rx Coinsurance Payments
B92: Select this option to limit the amount of coinsurance on specialty prescription drugs by capping the maximum coinsurance payment on specialty drugs at a set amount. Enter the maximum coinsurance payments for specialty prescription drugs.
B94: Set a Maximum Number of Days for Charging an IP Copay
B95: Select this option to limit the number of days that a patient can be charged a copay for an inpatient stay, if the option to charge inpatient stays by day is selected. Enter the maximum number of days.
B97: Begin Primary Care Cost-Sharing After a Set Number of Visits
B98: Select this option to begin primary care cost sharing after a certain number of (fully covered) visits have occurred. Enter the maximum number of visits.
B100: Begin Primary Care Deductible/Coinsurance After a Set Number of Copays
B101: Select this option to begin subjecting primary care visits to the deductible or coinsurance rates only after a certain number of primary care visits with copay have occurred. Enter the maximum number of visits.
B103: Final Step: Pressing the Calculate Button
B104: Once all parameters are entered, pressing the calculate button will begin the calculation. If the metal tier that was indicated as the desired metal tier does not match the calculated actuarial value, you will be prompted to recalculate using the appropriate continuance tables. Note that it is possible to cycle back and forth “between” metal tiers.
B106: Frequently Asked Questions
B108: Q: How do I enter a typical drug benefit design, e.g. copays for the first three tiers and coinsurance for the specialty drug? (e.g. $10/$20/$50/75%)
B109: A: Deselect "Use Integrated Medical and Drug Deductible," set the drug deductible to a desired amount (often $0), and set the specialty coinsurance rate (75%) under the general drug coinsurance rate. Next, enter the copays ($10/$20/$50) in the appropriate fields in the Drug Benefit section, deselecting "Subject to Deductible" and "Subject to Coinsurance." Finally, select "Subject to Deductible" and "Subject to Coinsurance" for Specialty Drugs.
B111: Q: How do I specify a copay during the deductible range and a coinsurance rate during the coinsurance range for drug benefits?
B112: A: To prevent a misinterpretation of the results for drug benefits, a separate copay and coinsurance for prescription fields is not directly supported. However, a design with both a copay in the deductible range and a coinsurance in the coinsurance range is possible by following the typical benefit drug instructions, with the exception of selecting "Subject to Coinsurance" to apply the general coinsurance with copays.
B114: Q: How do I specify a copay in the deductible range and a coinsurance rate in the coinsurance range for medical benefits?
B115: A: Input a copay into the "Copay, if separate" field (and uncheck "Subject to Deductible" if appropriate; for descriptions of these options please refer to cell B50 of the User Guide ) and ensure that the "Subject to Coinsurance" option is selected.
B117: Q: How do I specify copays that should be paid in conjunction with coinsurance in the cost-sharing range?
B118: A: This feature is not supported at this time.
B120: Q: Changing copay and MOOP structure does not seem to affect AV by more than 0.1.
B121: A: Ensure that all appropriate "Subject to Deductible" and "Subject to Coinsurance" check boxes are selected.
B123: Q: What if my plan design has unique features that do not fit the parameters of the AV calculator and there is a material difference?
B124: A: Please refer to 45 CFR § 156.135(b). While it is anticipated that the vast majority of plans will be able to use the AV Calculator, the exceptions process under § 156.135(b) should only be used in cases where the unique plan features would result in a material difference in the AV of the plan design.
B126: Q: How do I remove beneficiary cost-sharing from a given service?
B127: A: Deselect "Subject to Deductible" and "Subject to Coinsurance" and input a $0 copay for the service desired to have 0% beneficiary cost-sharing. For primary care and specialist office visit services, input 0 into the "Copays, if separate" cell in order to subject both the office visit and any X-ray or Diagnostic Imaging services performed in the office setting to 0% beneficiary cost-sharing. Leave this cell blank if the visit is to be exempt from beneficiary cost-sharing, but not the X-ray and Diagnostic Imaging services performed in it.
B129: Q: How do I remove coverage from a given service below MOOP?
B130: A: Select both "Subject to Deductible" and "Subject to Coinsurance,” then input 0 in the "Coinsurance, if different" cell for the service desired to have 0% insurer cost-sharing.
B132: Q: Can cross-accumulation of deductibles between tiers work?
B133: A: The Calculator determines the single AVs associated with each individual tier plan benefit design and averages those AVs according to the input utilization weights. Though there is no specific cross-accumulation of deductibles algorithm between tiers, this weighted average can be interpreted as a cross-accumulation of deductibles.
B135: Q: How do I split service categories exclusively between two different tiers?
B136: A: The Calculator does not have this functionality explicitly built-in. An approximation may be arrived at by referring to the continuance tables and determining what percentage of the total PMPY benefit the exclusive categories constitute. This percentage can then be used to weight the two tiers of plan designs based on the split service when you input the other cost-sharing into the second tier.
B138: Notes to Users
B140: Effect of changing copays for inpatient hospital services, rehabilitative speech therapy, and SNF stays
B141: Changing copays for services such as inpatient hospital services typically does not have a substantial effect on calculated actuarial value. There is relatively little use of these services below the MOOP in the underlying utilization data, so plan-covered spending is not greatly affected by changes in the amount of beneficiary cost-sharing.
B143: Effect of service unit cost if less than copay
B144: The AV Calculator compares average service cost at the specified level of spending to the copay when implementing this logic. Therefore, this operation affects the calculation only if the average service cost is less than the copay, even if the copay exceeds service cost for some individuals. For example, while most generic prescription costs are low and would therefore be less than the typical generic copay, average generic costs include some high-cost generics and may not exceed the copay.
B146: Lack of copay option for outpatient
B147: The national claims database does not include data on outpatient professional and facilities services at the stay level. Because copays are applied per stay, the Calculator cannot support the option to enter a copay for these services. Users may convert their copays into coinsurance amounts to input their plan design into the Calculator. Please note that this is not a substitute for copay benefits during the deductible phase and that this consideration should be taken into account when choosing a coinsurance amount for outpatient services.
B149: Do not specify 100% general coinsurance unless specifying a copay plan
B150: Please specify 100% general coinsurance only for copay based plans. Specifying 100% general coinsurance for non-copay based plans may lead to inappropriate results due to the calculation of the point at which maximum out of pocket spending is hit. Specifying a 99.99% general coinsurance rate in the AV Calculator allows the calculation of plan designs where services in the coinsurance range are covered at 100%.
B152: Copays are not allowed to exceed service unit costs
B153: For the purposes of the AV calculation, all copays are capped at the value of the service unit cost for the corresponding benefit.
B155: Effects of the drug deductible on AV
B156: Increasing the drug deductible under certain circumstances can result in increases in the AV due to the calculated level at which MOOP is hit and the interactions with copays and medical benefits. Although efforts have been made to evaluate plans with similar deductibles on equal footing with regards to the point at which MOOP is hit, the interaction of the drug deductible with medical benefits can result in counter-intuitive AV movements that may be accurate based on the impact of higher deductible on the calculated level of the MOOP limit of the plan design.
B158: Usage of separate drug and medical deductibles can increase service utilization in the deductible range
B159: Evaluating a plan with a combined deductible compared to the same value being repeated twice as both the drug and medical deductibles will often result in an increase of services evaluated during the deductible range. Since the amount of PMPY spending in the drug continuance tables is drawn from a distribution independent of medical spending, the rate of drug spending faces a steeper slope than that encountered in the combined continuance tables. This can lead to large variances in the point at which MOOP is hit when comparing combined deductible plans with plans using separate deductibles. For plan designs where it is possible to use either separate drug and medical deductibles or a combined deductible, AV should be calculated using the combined tables.

Sheet Enrollment Restrictions (hidden)
B2: Enrollment Restrictions Applied to Small Group Rx PPO/PoS Plans before Building Continuance Tables
B3: Not including 12 month or newborn enrollment restriction
B4: All Small Group PPO/PoS plans with over 50 members in the Small Group Market with Positive Rx Enrollment:
D5: Enrollment Composition
D6: Ages 0 to 6 | F6: Ages 7 to 18 | H6: Ages 19 to 25 | J6: Ages 26 to 40 | L6: Ages 41 to 54 | N6: Ages 55 to 64
B7: # PCCs | C7: # Members | D7: Male | E7: Female | F7: Male | G7: Female | H7: Male | I7: Female | J7: Male | K7: Female | L7: Male | M7: Female | N7: Male | O7: Female
B8: 25740 | C8: 2333641 | D8: 0.0414292515 | E8: 0.039603778 | F8: 0.08468012 | G8: 0.0807407823 | H8: 0.052754901 | I8: 0.0507524508 | J8: 0.1301442681 | K8: 0.126952689 | L8: 0.1332240049 | M8: 0.1314066731 | N8: 0.0647104675 | O8: 0.063534194
B10: # PCCs with 100% Zero Spending: 299
B11: # PCCs with Negative Empirical AV overall: 1
B12: # Members Excluded due to Restriction: 28,312
B14: Enrollment Composition After Excluding Plans with Zero Spending
D15: Enrollment Composition
D16: Ages 0 to 6 | F16: Ages 7 to 18 | H16: Ages 19 to 25 | J16: Ages 26 to 40 | L16: Ages 41 to 54 | N16: Ages 55 to 64
B17: # PCCs | C17: # Members | D17: Male | E17: Female | F17: Male | G17: Female | H17: Male | I17: Female | J17: Male | K17: Female | L17: Male | M17: Female | N17: Male | O17: Female
B18: =25740-299 -> 25441 | C18: =2333641-28312 -> 2305329 | D18: 0.0410067358 | E18: 0.0391799767 | F18: 0.0835938347 | G18: 0.0796853501 | H18: 0.0521468384 | I18: 0.0501538154 | J18: 0.1288128722 | K18: 0.125517164 | L18: 0.1315999333 | M18: 0.1296471908 | N18: 0.0638234416 | O18: 0.0626343126
B20: # PCCs with Imputed Actual Coinsurance Not Bounded between 0 and 100%: 20
B21: # Members Excluded due to Restriction: 1,616
B22: # Members Excluded due to Gender="U" : 155
B24: Final Count for Sample:
B25: All Members | C25: 2333641
B26: Minus Zero Spending and Negative AV | C26: -28312
B27: Minus Imputed Coinsurance Restriction | C27: -1616
B28: Minus Gender="U" | C28: -155
B29: Final Count | C29: =SUM(C25:C28) -> 2303558

Sheet AV Calculator
A1: User Inputs for Plan Parameters
A2: Use Integrated Medical and Drug Deductible? | C2: HSA/HRA Options | F2: Narrow Network Options
A3: Apply Inpatient Copay per Day? | D3: HSA/HRA Employer Contribution? | G3: Blended Network/POS Plan?
A4: Apply Skilled Nursing Facility Copay per Day? | C4: Annual Contribution Amount: | F4: 1st Tier Utilization:
A5: Use Separate OOP Maximum for Medical and Drug Spending? | F5: 2nd Tier Utilization:
A6: Indicate if Plan Meets CSR Standard?
A7: Desired Metal Tier | J7: Platinum
B8: Tier 1 Plan Benefit Design | F8: Tier 2 Plan Benefit Design | J8: Gold
B9: Medical | C9: Drug | D9: Combined | F9: Medical | G9: Drug | H9: Combined | J9: Silver
A10: Deductible ($) | J10: Bronze
A11: Coinsurance (%, Insurer's Cost Share) | J11: 1
A12: OOP Maximum ($)
A13: OOP Maximum if Separate ($)
A15: Click Here for Important Instructions | B15: Tier 1 | F15: Tier 2
A16: Type of Benefit | B16: Subject to Deductible? | C16: Subject to Coinsurance? | D16: Coinsurance, if different | E16: Copay, if separate | F16: Subject to Deductible? | G16: Subject to Coinsurance? | H16: Coinsurance, if different | I16: Copay, if separate
A17: Medical
A18: Emergency Room Services
A19: All Inpatient Hospital Services (inc. MHSA)
A20: Primary Care Visit to Treat an Injury or Illness (exc. Preventive, and X-rays)
A21: Specialist Visit
A22: Mental/Behavioral Health and Substance Abuse Disorder Outpatient Services
A24: Imaging (CT/PET Scans, MRIs)
A27: Rehabilitative Speech Therapy
A28: Rehabilitative Occupational and Rehabilitative Physical Therapy
A29: Rehabilitative Occupational and Rehabilitative Physical Therapy
A30: Non-Preventive Well Baby Visits and Care
A31: Preventive Care/Screening/Immunization | D31: 1 | E31: 0 | H31: 1 | I31: 0
A32: Laboratory Outpatient and Professional Services
A33: X-rays and Diagnostic Imaging
A34: Skilled Nursing Facility
A35: Outpatient Facility Fee (e.g., Ambulatory Surgery Center)
A36: Outpatient Surgery Physician/Surgical Services
A37: Drugs
A38: Generics
A39: Preferred Brand Drugs
A40: Non-Preferred Brand Drugs
A41: Specialty Drugs (i.e. high-cost)
A42: Chronic Maintenance Drugs
A43: Options for Additional Benefit Design Limits:
A44: Do Not Allow Copays to Exceed Service Unit Cost?
A45: Set a Maximum on Specialty Rx Coinsurance Payments?
A46: Specialty Rx Coinsurance Maximum:
A47: Set a Maximum Number of Days for Charging an IP Copay?
A48: # Days (1-10):
A49: Begin Primary Care Cost-Sharing After a Set Number of Visits?
A50: # Visits (1-10):
A51: Begin Primary Care Deductible/Coinsurance After a Set Number of Copays?
A52: # Copays (1-10):
A53: Output
A55: Status/Error Messages:
A56: Actuarial Value:
A57: Metal Tier:

Sheet Variation Results (hidden)
B1: Plan Design (Coins and MOOP Variance) | F1: Plan Design (Deduct and MOOP Variance)
B2: Integrated?: | F2: Integrated?:
B3: Rx Deductible: | F3: Rx Deductible:
B4: Med. Deductible: | F4: Med. Deductible:
B5: Rx Coinsurance: | F5: Rx Coinsurance:
B6: Med. Coinsurance: | F6: Med. Coinsurance:
B7: MOOP: | F7: MOOP:
B9: MOOP | C9: Coinsurance | D9: AV | F9: MOOP | G9: Deductible | H9: AV

Sheet Platinum Cont. Table - Medical
A1: Platinum Plans, Medical Only
A2: Continuance Table
A4: Up To | B4: Number of Enrollees | C4: Avg. Cost per Enrollee (Max'd) | D4: Avg. Cost per Enrollee (Bucket) | E4: ER | F4: Avg. ER Freq | G4: IP | H4: Avg. IP Freq | I4: Primary Care | J4: Avg. Primary Care Freq | K4: Specialist | L4: Avg. Specialist Freq | M4: Mental Health and Sub. Abuse | N4: Mental Health and Sub. Abuse Freq. | O4: - | P4: - | Q4: Imaging | R4: Avg. Imaging Freq | S4: - | T4: - | U4: - | V4: - | W4: Speech Therapy | X4: Avg. Speech Therapy Freq | Y4: Occ. + Physical Therapy | Z4: Occ. + Physical Therapy Freq | AA4: - | AB4: - | AC4: Well Baby (Combined) | AD4: Avg. Well Baby Freq (Combined) | AE4: - | AF4: - | AG4: - | AH4: - | AI4: Well Baby (Unclass.) | AJ4: Avg. Well Baby Freq (Unclass.) | AK4: Preventive (Combined) | AL4: Avg. Prev. Freq (Combined) | AM4: - | AN4: - | AO4: - | AP4: - | AQ4: - | AR4: - | AS4: Laboratory | AT4: Avg. Laboratory Freq | AU4: X-rays (Combined) | AV4: Avg. X-ray Freq (Combined) | AW4: X-rays (Specialist) | AX4: Avg. X-rays Freq (Specialist) | AY4: X-rays (Primary) | AZ4: Avg. X-rays Freq (Primary) | BA4: X-rays (Unclass.) | BB4: Avg. X-rays Freq (Unclass.) | BC4: SNF | BD4: Avg. SNF Freq. | BE4: Unclassified | BF4: Avg. Unclassified Freq | BG4: Avg. IP Days | BH4: Avg. SNF Days | BI4: Mental Health - OP Facility | BJ4: Avg. Mental Health - OP Facility Freq | BK4: Mental Health - OP Prof. | BL4: Avg. Mental Health - OP Prof. Freq | BM4: Sub. Abuse - OP Facility | BN4: Avg. Sub. Abuse - OP Facility Freq | BO4: Sub. Abuse - OP Prof. | BP4: Avg. Sub. Abuse - OP Prof. Freq | BQ4: Imaging - OP Facility | BR4: Avg. Imaging - OP Facility Freq | BS4: Imaging - OP Prof. | BT4: Avg. Imaging - OP Prof. Freq | BU4: - | BV4: - | BW4: - | BX4: - | BY4: - | BZ4: - | CA4: - | CB4: - | CC4: Speech Therapy - OP Facility | CD4: Avg. Speech Therapy - OP Facility Freq | CE4: Speech Therapy - OP Prof. | CF4: Avg. Speech Therapy - OP Prof. Freq | CG4: Occupational Therapy - OP Facility | CH4: Avg. Occ. Therapy - OP Facility Freq | CI4: Occupational Therapy - OP Prof. | CJ4: Avg. Occ. Therapy - OP Prof. Freq | CK4: - | CL4: - | CM4: - | CN4: - | CO4: Laboratory - OP Facility | CP4: Avg. Lab - OP Facility Freq | CQ4: Laboratory - OP Prof. | CR4: Avg. Lab - OP Prof. Freq | CS4: Unclassified - OP Facility | CT4: Avg. Unclass. - OP Facility Freq | CU4: Unclassified - OP Prof | CV4: Avg. Unclass. - OP Prof Freq | CW4: IP Max Days - 1 | CX4: IP Max Days - 2 | CY4: IP Max Days - 3 | CZ4: IP Max Days - 4 | DA4: IP Max Days - 5 | DB4: IP Max Days - 6 | DC4: IP Max Days - 7 | DD4: IP Max Days - 8 | DE4: IP Max Days - 9 | DF4: IP Max Days - 10 | DG4: Primary Care >1 Visit | DH4: Primary Care >1 Visit Freq. | DI4: Primary Care >2 Visits | DJ4: Primary Care >2 Visits Freq. | DK4: Primary Care >3 Visits | DL4: Primary Care >3 Visits Freq. | DM4: Primary Care >4 Visits | DN4: Primary Care >4 Visits Freq. | DO4: Primary Care >5 Visits | DP4: Primary Care >5 Visits Freq. | DQ4: Primary Care >6 Visits | DR4: Primary Care >6 Visits Freq. | DS4: Primary Care >7 Visits | DT4: Primary Care >7 Visits Freq. | DU4: Primary Care >8 Visits | DV4: Primary Care >8 Visits Freq. | DW4: Primary Care >9 Visits | DX4: Primary Care >9 Visits Freq. | DY4: Primary Care >10 Visits | DZ4: Primary Care >10 Visits Freq.
A5: 0 | B5: 157235 | C5: 0 | D5: 0 | E5: 0 | F5: 3.48885e-05 | G5: 0 | H5: 2.89903e-05 | I5: 0 | J5: 0.0001066556 | K5: 0 | L5: 9.61066e-05 | M5: 0 | N5: 3.16271e-05 | O5: . | P5: 0 | Q5: 0 | R5: 5.79807e-05 | S5: . | T5: 0 | U5: . | V5: 0 | W5: 0 | X5: 0 | Y5: 0 | Z5: 1.46691e-05 | AA5: . | AB5: 0 | AC5: 0 | AD5: 0 | AE5: . | AF5: 0 | AG5: . | AH5: 0 | AI5: 0 | AJ5: 0 | AK5: 0 | AL5: 0.0001510203 | AM5: . | AN5: 0 | AO5: . | AP5: 0 | AQ5: . | AR5: 0 | AS5: 0 | AT5: 0.0005276883 | AU5: 0 | AV5: 0.0002378287 | AW5: 0 | AX5: 0.0001075959 | AY5: 0 | AZ5: 3.35983e-05 | BA5: =AU5-(AW5+AY5) -> 0 | BB5: =AV5-(AX5+AZ5) -> 9.66345e-05 | BC5: 0 | BD5: 0 | BE5: 0 | BF5: 0.0009616367 | BG5: 0.0004928357 | BH5: 0 | BI5: 0 | BJ5: 0 | BK5: 0 | BL5: 3.16271e-05 | BM5: . | BN5: 0 | BO5: . | BP5: 0 | BQ5: 0 | BR5: 4.83172e-05 | BS5: 0 | BT5: 9.6634455e-06 | BU5: . | BV5: 0 | BW5: . | BX5: 0 | BY5: . | BZ5: 0 | CA5: . | CB5: 0 | CC5: 0 | CD5: 0 | CE5: 0 | CF5: 0 | CG5: 0 | CH5: 1.10019e-05 | CI5: 0 | CJ5: 3.6672867e-06 | CK5: . | CL5: 0 | CM5: . | CN5: 0 | CO5: 0 | CP5: 0.0001075078 | CQ5: 0 | CR5: 0.0004201805 | CS5: 0 | CT5: 0.0003567103 | CU5: 0 | CV5: 0.0006049263 | CW5: 9.6634455e-06 | CX5: 1.93269e-05 | CY5: 2.89903e-05 | CZ5: 3.86538e-05 | DA5: 4.83172e-05 | DB5: 5.79807e-05 | DC5: 6.76441e-05 | DD5: 7.73076e-05 | DE5: 8.6971e-05 | DF5: 9.66345e-05 | DG5: 0 | DH5: 3.5632e-05 | DI5: 0 | DJ5: 1.7816e-05 | DK5: 0 | DL5: 0 | DM5: 0 | DN5: 0 | DO5: 0 | DP5: 0 | DQ5: 0 | DR5: 0 | DS5: 0 | DT5: 0 | DU5: 0 | DV5: 0 | DW5: 0 | DX5: 0 | DY5: 0 | DZ5: 0
A6: 100 | B6: 30589 | C6: 86.24417406 | D6: 70.55785419 | E6: 0.0176769024 | F6: 0.0003029562 | G6: 0.0004990891 | H6: 2.92218e-05 | I6: 4.45539625 | J6: 0.0540877847 | K6: 1.338528374 | L6: 0.0164006938 | M6: 0.2640853615 | N6: 0.0034832587 | O6: . | P6: 0 | Q6: 0.0048871521 | R6: 0.000198439 | S6: . | T6: 0 | U6: . | V6: 0 | W6: 0 | X6: 0 | Y6: 0.1071688824 | Z6: 0.0043915371 | AA6: . | AB6: 0 | AC6: 0 | AD6: 0 | AE6: . | AF6: 0 | AG6: . | AH6: 0 | AI6: 0 | AJ6: 0 | AK6: 2.275304546 | AL6: 0.0523806604 | AM6: . | AN6: 0 | AO6: . | AP6: 0 | AQ6: . | AR6: 0 | AS6: 0.5276718071 | AT6: 0.041455114 | AU6: 0.1507566552 | AV6: 0.0043523901 | AW6: 0.0972983298 | AX6: 0.0031956499 | AY6: 0.0052953298 | AZ6: 0.0001281038 | BA6: =AU6-(AW6+AY6) -> 0.0481629956 | BB6: 0.0010286364 | BC6: 0 | BD6: 0 | BE6: 2.451547828 | BF6: 0.0873514958 | BG6: 0.0004023172 | BH6: 0 | BI6: 0.0040176844 | BJ6: 0.0001057796 | BK6: 0.2600676771 | BL6: 0.0033774791 | BM6: . | BN6: 0 | BO6: . | BP6: 0 | BQ6: 0.0004444099 | BR6: 0.0001064011 | BS6: 0.0044427423 | BT6: 9.20379e-05 | BU6: . | BV6: 0 | BW6: . | BX6: 0 | BY6: . | BZ6: 0 | CA6: . | CB6: 0 | CC6: 0 | CD6: 0 | CE6: 0 | CF6: 0 | CG6: 0.0003069509 | CH6: 1.55703e-05 | CI6: 0.1068619315 | CJ6: 0.0043759667 | CK6: . | CL6: 0 | CM6: . | CN6: 0 | CO6: 0.1793904271 | CP6: 0.0105968357 | CQ6: 0.3482813801 | CR6: 0.0308582783 | CS6: 0.0715029915 | CT6: 0.0187839164 | CU6: 2.380044836 | CV6: 0.0685675794 | CW6: 1.39386e-05 | CX6: 2.78771e-05 | CY6: 3.55187e-05 | CZ6: 4.31604e-05 | DA6: 5.0802e-05 | DB6: 5.84437e-05 | DC6: 6.60853e-05 | DD6: 7.37269e-05 | DE6: 8.13686e-05 | DF6: 8.90102e-05 | DG6: 0.0221312203 | DH6: 0.0013851306 | DI6: 0.006476872 | DJ6: 0.0004629434 | DK6: 0.0012147123 | DL6: 9.15385e-05 | DM6: 4.38988e-05 | DN6: 6.8247126e-06 | DO6: 0 | DP6: 0 | DQ6: 0 | DR6: 0 | DS6: 0 | DT6: 0 | DU6: 0 | DV6: 0 | DW6: 0 | DX6: 0 | DY6: 0 | DZ6: 0
A7: 200 | B7: 60884 | C7: 168.420199 | D7: 151.7872974 | E7: 0.193826582 | F7: 0.0014046835 | G7: 0.0009354047 | H7: 2.20836e-05 | I7: 19.06289918 | J7: 0.175258117 | K7: 6.344607767 | L7: 0.0569210584 | M7: 1.074893588 | N7: 0.0118110556 | O7: . | P7: 0 | Q7: 0.0272075392 | R7: 0.0003815745 | S7: . | T7: 0 | U7: . | V7: 0 | W7: 0 | X7: 0 | Y7: 0.4816719009 | Z7: 0.0159558443 | AA7: . | AB7: 0 | AC7: 0 | AD7: 0 | AE7: . | AF7: 0 | AG7: . | AH7: 0 | AI7: 0 | AJ7: 0 | AK7: 6.83909481 | AL7: 0.1477736928 | AM7: . | AN7: 0 | AO7: . | AP7: 0 | AQ7: . | AR7: 0 | AS7: 2.348147346 | AT7: 0.1642583344 | AU7: 0.7993181865 | AV7: 0.0177183182 | AW7: 0.4378362452 | AX7: 0.0113491135 | AY7: 0.1927925456 | AZ7: 0.0035809495 | BA7: 0.1686893957 | BB7: 0.0027882552 | BC7: 0 | BD7: 0 | BE7: 9.052777962 | BF7: 0.2031694701 | BG7: 0.0002611647 | BH7: 0 | BI7: 0.0170126316 | BJ7: 0.0003768354 | BK7: 1.057880957 | BL7: 0.0114342202 | BM7: . | BN7: 0 | BO7: . | BP7: 0 | BQ7: 0.0003427206 | BR7: 9.09356e-05 | BS7: 0.0268648186 | BT7: 0.000290639 | BU7: . | BV7: 0 | BW7: . | BX7: 0 | BY7: . | BZ7: 0 | CA7: . | CB7: 0 | CC7: 0 | CD7: 0 | CE7: 0 | CF7: 0 | CG7: 0.0042992544 | CH7: 0.0002728844 | CI7: 0.4773726465 | CJ7: 0.0156829599 | CK7: . | CL7: 0 | CM7: . | CN7: 0 | CO7: 0.6271253846 | CP7: 0.032197224 | CQ7: 1.721021961 | CR7: 0.1320611104 | CS7: 0.2798211111 | CT7: 0.048759925 | CU7: 8.772956851 | CV7: 0.1544095451 | CW7: 1.22913e-05 | CX7: 2.12525e-05 | CY7: 2.61486e-05 | CZ7: 3.10448e-05 | DA7: 3.5941e-05 | DB7: 4.08371e-05 | DC7: 4.57333e-05 | DD7: 5.06295e-05 | DE7: 5.55256e-05 | DF7: 6.04218e-05 | DG7: 1.097919956 | DH7: 0.0141590978 | DI7: 0.0198063866 | DJ7: 0.0008791946 | DK7: 0.0048967958 | DL7: 0.0002558385 | DM7: 0.0015510491 | DN7: 8.15444e-05 | DO7: 0.0008880812 | DP7: 4.51926e-05 | DQ7: 0.0004962462 | DR7: 2.48259e-05 | DS7: 0.0003388292 | DT7: 1.7408e-05 | DU7: 0.0001814121 | DV7: 9.9901736e-06 | DW7: 0.0001209414 | DX7: 6.6601157e-06 | DY7: 6.04707e-05 | DZ7: 3.3300579e-06
A8: 300 | B8: 60599 | C8: 245.9686009 | D8: 249.5029873 | E8: 0.7627735717 | F8: 0.0037384892 | G8: 0.0010913649 | H8: 1.86597e-05 | I8: 34.43525 | J8: 0.2918810145 | K8: 11.58384613 | L8: 0.0951126591 | M8: 2.035306733 | N8: 0.0218313033 | O8: . | P8: 0 | Q8: 0.0494910787 | R8: 0.0006022544 | S8: . | T8: 0 | U8: . | V8: 0 | W8: 0.0002980872 | X8: 3.3101436e-06 | Y8: 1.05648876 | Z8: 0.0325579856 | AA8: . | AB8: 0 | AC8: 0 | AD8: 0 | AE8: . | AF8: 0 | AG8: . | AH8: 0 | AI8: 0 | AJ8: 0 | AK8: 12.82708488 | AL8: 0.2804209909 | AM8: . | AN8: 0 | AO8: . | AP8: 0 | AQ8: . | AR8: 0 | AS8: 5.154048877 | AT8: 0.3353887497 | AU8: 1.97856645 | AV8: 0.038239872 | AW8: 1.022548734 | AX8: 0.0237289849 | AY8: 0.4803838872 | AZ8: 0.008178614 | BA8: 0.4756338294 | BB8: 0.0063322731 | BC8: 0 | BD8: 0 | BE8: 16.02442348 | BF8: 0.3421979502 | BG8: 0.0001881524 | BH8: 0 | BI8: 0.0364597188 | BJ8: 0.0007478765 | BK8: 1.998847014 | BL8: 0.0210834268 | BM8: . | BN8: 0 | BO8: . | BP8: 0 | BQ8: 0.00116562 | BR8: 0.0001124338 | BS8: 0.0483254587 | BT8: 0.0004898206 | BU8: . | BV8: 0 | BW8: . | BX8: 0 | BY8: . | BZ8: 0 | CA8: . | CB8: 0 | CC8: 0 | CD8: 0 | CE8: 0.0002980872 | CF8: 3.3101436e-06 | CG8: 0.0115897568 | CH8: 0.0004234595 | CI8: 1.044899003 | CJ8: 0.0321345261 | CK8: . | CL8: 0 | CM8: . | CN8: 0 | CO8: 1.499467271 | CP8: 0.0691640533 | CQ8: 3.654581606 | CR8: 0.2662246964 | CS8: 0.608892179 | CT8: 0.0979260551 | CU8: 15.4155313 | CV8: 0.2442718951 | CW8: 1.18354e-05 | CX8: 2.09562e-05 | CY8: 2.43684e-05 | CZ8: 2.77806e-05 | DA8: 3.11927e-05 | DB8: 3.46049e-05 | DC8: 3.80171e-05 | DD8: 4.14292e-05 | DE8: 4.48414e-05 | DF8: 4.82536e-05 | DG8: 4.998967167 | DH8: 0.0516379215 | DI8: 0.3624678245 | DJ8: 0.0050320143 | DK8: 0.015423387 | DL8: 0.0004827283 | DM8: 0.0030910465 | DN8: 0.0001466772 | DO8: 0.0012943374 | DP8: 6.88084e-05 | DQ8: 0.000514755 | DR8: 3.04777e-05 | DS8: 0.0002990536 | DT8: 1.59496e-05 | DU8: 0.0001478843 | DV8: 8.1438298e-06 | DW8: 9.85895e-05 | DX8: 5.4292199e-06 | DY8: 4.92948e-05 | DZ8: 2.7146099e-06
A9: 400 | B9: 57982 | C9: 319.3810891 | D9: 349.6342628 | E9: 1.839704576 | F9: 0.007138936 | G9: 0.0008734255 | H9: 1.43883e-05 | I9: 48.90035037 | J9: 0.3971745896 | K9: 16.83879273 | L9: 0.132941416 | M9: 3.076101107 | N9: 0.0323571909 | O9: . | P9: 0 | Q9: 0.0799864751 | R9: 0.0008112911 | S9: . | T9: 0 | U9: . | V9: 0 | W9: 0.0010698454 | X9: 1.02154e-05 | Y9: 1.73871479 | Z9: 0.0513032782 | AA9: . | AB9: 0 | AC9: 0 | AD9: 0 | AE9: . | AF9: 0 | AG9: . | AH9: 0 | AI9: 0 | AJ9: 0 | AK9: 19.45071303 | AL9: 0.4240122105 | AM9: . | AN9: 0 | AO9: . | AP9: 0 | AQ9: . | AR9: 0 | AS9: 8.723668525 | AT9: 0.5285367066 | AU9: 3.378722218 | AV9: 0.0596330139 | AW9: 1.680371803 | AX9: 0.0363952791 | AY9: 0.7855513739 | AZ9: 0.0127742259 | BA9: 0.9127990417 | BB9: 0.0104635089 | BC9: 0 | BD9: 0 | BE9: 22.9842227 | BF9: 0.4816080445 | BG9: 0.0001424459 | BH9: 0 | BI9: 0.0645521521 | BJ9: 0.0012446589 | BK9: 3.011548955 | BL9: 0.0311125319 | BM9: . | BN9: 0 | BO9: . | BP9: 0 | BQ9: 0.0047581263 | BR9: 0.0001219897 | BS9: 0.0752283487 | BT9: 0.0006893014 | BU9: . | BV9: 0 | BW9: . | BX9: 0 | BY9: . | BZ9: 0 | CA9: . | CB9: 0 | CC9: 0 | CD9: 0 | CE9: 0.0010698454 | CF9: 1.02154e-05 | CG9: 0.0331417336 | CH9: 0.0007730819 | CI9: 1.705573056 | CJ9: 0.0505301963 | CK9: . | CL9: 0 | CM9: . | CN9: 0 | CO9: 2.753661634 | CP9: 0.1166319049 | CQ9: 5.970006891 | CR9: 0.4119048016 | CS9: 0.9729802491 | CT9: 0.1513992633 | CU9: 22.01124246 | CV9: 0.3302087813 | CW9: 9.235002e-06 | CX9: 1.6191e-05 | CY9: 1.87676e-05 | CZ9: 2.13442e-05 | DA9: 2.39208e-05 | DB9: 2.64975e-05 | DC9: 2.90741e-05 | DD9: 3.16507e-05 | DE9: 3.42274e-05 | DF9: 3.6804e-05 | DG9: 10.41744206 | DH9: 0.0983226646 | DI9: 1.48106128 | DJ9: 0.0164706326 | DK9: 0.1366390812 | DL9: 0.0020281325 | DM9: 0.0122482767 | DN9: 0.0003479917 | DO9: 0.0045017918 | DP9: 0.0001667279 | DQ9: 0.0023514102 | DR9: 9.64329e-05 | DS9: 0.0016834621 | DT9: 6.72546e-05 | DU9: 0.0010669129 | DV9: 4.336e-05 | DW9: 0.0006686982 | DX9: 2.79302e-05 | DY9: 0.0003144625 | DZ9: 1.47795e-05
A10: 500 | B10: 53979 | C10: 388.7899018 | D10: 449.3393388 | E10: 3.161643645 | F10: 0.010666436 | G10: 0.0012720915 | H10: 1.33513e-05 | I10: 62.03868049 | J10: 0.4912672774 | K10: 21.74147108 | L10: 0.1674626548 | M10: 4.137074672 | N10: 0.043096356 | O10: . | P10: 0 | Q10: 0.1290531193 | R10: 0.0010816573 | S10: . | T10: 0 | U10: . | V10: 0 | W10: 0.003136446 | X10: 2.7955e-05 | Y10: 2.545326917 | Z10: 0.0737400084 | AA10: . | AB10: 0 | AC10: 0 | AD10: 0 | AE10: . | AF10: 0 | AG10: . | AH10: 0 | AI10: 0 | AJ10: 0 | AK10: 26.35814149 | AL10: 0.5651882843 | AM10: . | AN10: 0 | AO10: . | AP10: 0 | AQ10: . | AR10: 0 | AS10: 12.43632656 | AT10: 0.7154156141 | AU10: 5.023576876 | AV10: 0.0827095698 | AW10: 2.42331661 | AX10: 0.0499497101 | AY10: 1.103699393 | AZ10: 0.0171176067 | BA10: 1.496560873 | BB10: 0.015642253 | BC10: 0 | BD10: 0 | BE10: 29.69911793 | BF10: 0.6170462308 | BG10: 0.0001173264 | BH10: 0 | BI10: 0.0852727971 | BJ10: 0.0017287088 | BK10: 4.051801875 | BL10: 0.0413676473 | BM10: . | BN10: 0 | BO10: . | BP10: 0 | BQ10: 0.007342655 | BR10: 0.0001278428 | BS10: 0.1217104643 | BT10: 0.0009538144 | BU10: . | BV10: 0 | BW10: . | BX10: 0 | BY10: . | BZ10: 0 | CA10: . | CB10: 0 | CC10: 0.0007655771 | CD10: 4.1146425e-06 | CE10: 0.002370869 | CF10: 2.38404e-05 | CG10: 0.0637761305 | CH10: 0.0014113669 | CI10: 2.481550786 | CJ10: 0.0723286415 | CK10: . | CL10: 0 | CM10: . | CN10: 0 | CO10: 4.190087622 | CP10: 0.1659255114 | CQ10: 8.246238939 | CR10: 0.5494901028 | CS10: 1.364817305 | CT10: 0.2060685653 | CU10: 28.33430063 | CV10: 0.4109776655 | CW10: 9.2366943e-06 | CX10: 1.65177e-05 | CY10: 1.8575e-05 | CZ10: 2.06323e-05 | DA10: 2.26897e-05 | DB10: 2.4747e-05 | DC10: 2.68043e-05 | DD10: 2.88616e-05 | DE10: 3.09189e-05 | DF10: 3.29763e-05 | DG10: 16.56895636 | DH10: 0.1487649131 | DI10: 3.427024231 | DJ10: 0.0346421457 | DK10: 0.5382661736 | DL10: 0.0063333653 | DM10: 0.0619842218 | DN10: 0.0010031802 | DO10: 0.0095006563 | DP10: 0.0002708517 | DQ10: 0.0036542272 | DR10: 0.0001380114 | DS10: 0.0027011811 | DT10: 0.0001025362 | DU10: 0.0018965182 | DV10: 7.35562e-05 | DW10: 0.0012817158 | DX10: 5.19288e-05 | DY10: 0.0007818832 | DZ10: 3.38344e-05
A11: 600 | B11: 50822 | C11: 454.79086 | D11: 549.4231395 | E11: 4.943033709 | F11: 0.0149061111 | G11: 0.0053391269 | H11: 2.18033e-05 | I11: 73.79625828 | J11: 0.5748021002 | K11: 26.47674909 | L11: 0.2004369228 | M11: 5.152053961 | N11: 0.0530977525 | O11: . | P11: 0 | Q11: 0.1984846993 | R11: 0.0014338905 | S11: . | T11: 0 | U11: . | V11: 0 | W11: 0.0045737415 | X11: 4.42593e-05 | Y11: 3.449076544 | Z11: 0.0995658802 | AA11: . | AB11: 0 | AC11: 0 | AD11: 0 | AE11: . | AF11: 0 | AG11: . | AH11: 0 | AI11: 0 | AJ11: 0 | AK11: 33.45167926 | AL11: 0.7004893701 | AM11: . | AN11: 0 | AO11: . | AP11: 0 | AQ11: . | AR11: 0 | AS11: 16.22088342 | AT11: 0.8893462282 | AU11: 6.969348203 | AV11: 0.1080385738 | AW11: 3.305878999 | AX11: 0.0649307402 | AY11: 1.436068048 | AZ11: 0.0214213485 | BA11: 2.227401156 | BB11: 0.0216864851 | BC11: 0 | BD11: 0 | BE11: 36.57060536 | BF11: 0.7538673988 | BG11: 0.0001188405 | BH11: 0 | BI11: 0.1104239499 | BJ11: 0.0022067769 | BK11: 5.041630011 | BL11: 0.0508909756 | BM11: . | BN11: 0 | BO11: . | BP11: 0 | BQ11: 0.0269830923 | BR11: 0.0002140536 | BS11: 0.171501607 | BT11: 0.0012198369 | BU11: . | BV11: 0 | BW11: . | BX11: 0 | BY11: . | BZ11: 0 | CA11: . | CB11: 0 | CC11: 0.0010661669 | CD11: 7.7340754e-06 | CE11: 0.0035075746 | CF11: 3.65253e-05 | CG11: 0.0918361279 | CH11: 0.0018861394 | CI11: 3.357240416 | CJ11: 0.0976797408 | CK11: . | CL11: 0 | CM11: . | CN11: 0 | CO11: 5.75925371 | CP11: 0.2153086225 | CQ11: 10.46162971 | CR11: 0.6740376058 | CS11: 1.780277391 | CT11: 0.2614423559 | CU11: 34.79032797 | CV11: 0.4924250429 | CW11: 1.8395e-05 | CX11: 3.21887e-05 | CY11: 3.70399e-05 | CZ11: 3.87441e-05 | DA11: 4.04483e-05 | DB11: 4.21525e-05 | DC11: 4.38566e-05 | DD11: 4.55608e-05 | DE11: 4.7265e-05 | DF11: 4.89692e-05 | DG11: 22.86630578 | DH11: 0.1985526455 | DI11: 5.886945709 | DJ11: 0.0562977518 | DK11: 1.246884756 | DL11: 0.0133535671 | DM11: 0.2173509661 | DN11: 0.0028315964 | DO11: 0.0401507668 | DP11: 0.0007585855 | DQ11: 0.0099687957 | DR11: 0.0003108784 | DS11: 0.0050597972 | DT11: 0.0002063781 | DU11: 0.0037219611 | DV11: 0.0001549219 | DW11: 0.002679203 | DX11: 0.0001135758 | DY11: 0.0017978898 | DZ11: 7.9156e-05
A12: 700 | B12: 46069 | C12: 517.5650642 | D12: 649.4483892 | E12: 6.973012332 | F12: 0.0192457076 | G12: 0.0082813672 | H12: 3.05312e-05 | I12: 83.9804684 | J12: 0.647835388 | K12: 30.87008364 | L12: 0.2306472206 | M12: 6.259883458 | N12: 0.0636614081 | O12: . | P12: 0 | Q12: 0.3070220898 | R12: 0.001846083 | S12: . | T12: 0 | U12: . | V12: 0 | W12: 0.006116734 | X12: 6.23102e-05 | Y12: 4.443718006 | Z12: 0.1265718181 | AA12: . | AB12: 0 | AC12: 0 | AD12: 0 | AE12: . | AF12: 0 | AG12: . | AH12: 0 | AI12: 0 | AJ12: 0 | AK12: 40.2660324 | AL12: 0.8249149616 | AM12: . | AN12: 0 | AO12: . | AP12: 0 | AQ12: . | AR12: 0 | AS12: 19.89951258 | AT12: 1.04836904 | AU12: 8.996869898 | AV12: 0.1327866315 | AW12: 4.23741615 | AX12: 0.0797772096 | AY12: 1.779119306 | AZ12: 0.025458507 | BA12: 2.980334442 | BB12: 0.0275509149 | BC12: 0 | BD12: 0 | BE12: 43.15451472 | BF12: 0.8827007541 | BG12: 0.0001167214 | BH12: 0 | BI12: 0.1270442528 | BJ12: 0.0025391343 | BK12: 6.132839205 | BL12: 0.0611222737 | BM12: . | BN12: 0 | BO12: . | BP12: 0 | BQ12: 0.0611344675 | BR12: 0.0003195302 | BS12: 0.2458876223 | BT12: 0.0015265528 | BU12: . | BV12: 0 | BW12: . | BX12: 0 | BY12: . | BZ12: 0 | CA12: . | CB12: 0 | CC12: 0.00110842 | CD12: 9.9248055e-06 | CE12: 0.005008314 | CF12: 5.23854e-05 | CG12: 0.1307767792 | CH12: 0.0024179924 | CI12: 4.312941226 | CJ12: 0.1241538257 | CK12: . | CL12: 0 | CM12: . | CN12: 0 | CO12: 7.372383657 | CP12: 0.2629444923 | CQ12: 12.52712893 | CR12: 0.7854245478 | CS12: 2.223310535 | CT12: 0.3145945303 | CU12: 40.93120418 | CV12: 0.5681062238 | CW12: 2.76002e-05 | CX12: 4.21066e-05 | CY12: 4.63793e-05 | CZ12: 4.78447e-05 | DA12: 4.93102e-05 | DB12: 5.07757e-05 | DC12: 5.22411e-05 | DD12: 5.37066e-05 | DE12: 5.51721e-05 | DF12: 5.66375e-05 | DG12: 28.84639719 | DH12: 0.2451147733 | DI12: 8.602315545 | DJ12: 0.0793666838 | DK12: 2.22539232 | DL12: 0.0224547313 | DM12: 0.4849221761 | DN12: 0.0056403836 | DO12: 0.0988755692 | DP12: 0.0015200011 | DQ12: 0.0227086622 | DR12: 0.0005573154 | DS12: 0.0083533825 | DT12: 0.0003207036 | DU12: 0.0054949508 | DV12: 0.000233571 | DW12: 0.0039924501 | DX12: 0.0001739526 | DY12: 0.0026540389 | DZ12: 0.0001218943
A13: 800 | B13: 41710 | C13: 577.498872 | D13: 749.1116344 | E13: 9.276253531 | F13: 0.0237221843 | G13: 0.0156301544 | H13: 4.368e-05 | I13: 92.67771086 | J13: 0.7100550257 | K13: 35.03317843 | L13: 0.2589176676 | M13: 7.390876187 | N13: 0.0741905861 | O13: . | P13: 0 | Q13: 0.5074143834 | R13: 0.0024692357 | S13: . | T13: 0 | U13: . | V13: 0 | W13: 0.0075937399 | X13: 8.79859e-05 | Y13: 5.531340315 | Z13: 0.1564214678 | AA13: . | AB13: 0 | AC13: 0 | AD13: 0 | AE13: . | AF13: 0 | AG13: . | AH13: 0 | AI13: 0 | AJ13: 0 | AK13: 46.42226136 | AL13: 0.9358994358 | AM13: . | AN13: 0 | AO13: . | AP13: 0 | AQ13: . | AR13: 0 | AS13: 23.47059539 | AT13: 1.194621187 | AU13: 11.14381033 | AV13: 0.156998354 | AW13: 5.230700128 | AX13: 0.094370275 | AY13: 2.111495207 | AZ13: 0.0291816026 | BA13: 3.801614991 | BB13: 0.0334464764 | BC13: 0 | BD13: 0 | BE13: 49.65346999 | BF13: 1.002999511 | BG13: 0.0001254865 | BH13: 0 | BI13: 0.1506589444 | BJ13: 0.0029215914 | BK13: 7.240217243 | BL13: 0.0712689947 | BM13: . | BN13: 0 | BO13: . | BP13: 0 | BQ13: 0.1121558366 | BR13: 0.0004475525 | BS13: 0.3952585468 | BT13: 0.0020216832 | BU13: . | BV13: 0 | BW13: . | BX13: 0 | BY13: . | BZ13: 0 | CA13: . | CB13: 0 | CC13: 0.0019266054 | CD13: 2.60833e-05 | CE13: 0.0056671345 | CF13: 6.19026e-05 | CG13: 0.1735931025 | CH13: 0.0030272823 | CI13: 5.357747213 | CJ13: 0.1533941855 | CK13: . | CL13: 0 | CM13: . | CN13: 0 | CO13: 8.928916244 | CP13: 0.3078069987 | CQ13: 14.54167915 | CR13: 0.8868141883 | CS13: 2.665294448 | CT13: 0.3630090971 | CU13: 46.98817554 | CV13: 0.6399904136 | CW13: 4.10603e-05 | CX13: 5.76139e-05 | CY13: 6.26138e-05 | CZ13: 6.39237e-05 | DA13: 6.52335e-05 | DB13: 6.65434e-05 | DC13: 6.78532e-05 | DD13: 6.91631e-05 | DE13: 7.04729e-05 | DF13: 7.17828e-05 | DG13: 34.24339633 | DH13: 0.2865362866 | DI13: 11.26519276 | DJ13: 0.1013176723 | DK13: 3.300848325 | DL13: 0.0320527819 | DM13: 0.8498630603 | DN13: 0.0092005244 | DO13: 0.2053739633 | DP13: 0.0027003501 | DQ13: 0.0502725129 | DR13: 0.0009432809 | DS13: 0.0159635104 | DT13: 0.0004784813 | DU13: 0.0092433044 | DV13: 0.0003303602 | DW13: 0.0059546059 | DX13: 0.0002351915 | DY13: 0.0039133278 | DZ13: 0.0001635263
A14: 900 | B14: 38258 | C14: 634.8948259 | D14: 849.1300309 | E14: 11.83765931 | F14: 0.0283798412 | G14: 0.0170931656 | H14: 4.46881e-05 | I14: 100.3830406 | J14: 0.7653708907 | K14: 39.11117211 | L14: 0.2871020039 | M14: 8.496835443 | N14: 0.0846120164 | O14: . | P14: 0 | Q14: 0.7921080384 | R14: 0.0033057114 | S14: . | T14: 0 | U14: . | V14: 0 | W14: 0.0106263581 | X14: 0.0001233981 | Y14: 6.78552245 | Z14: 0.1916502705 | AA14: . | AB14: 0 | AC14: 0 | AD14: 0 | AE14: . | AF14: 0 | AG14: . | AH14: 0 | AI14: 0 | AJ14: 0 | AK14: 52.04172013 | AL14: 1.035187741 | AM14: . | AN14: 0 | AO14: . | AP14: 0 | AQ14: . | AR14: 0 | AS14: 26.91167019 | AT14: 1.328702408 | AU14: 13.51406166 | AV14: 0.1822980059 | AW14: 6.322462141 | AX14: 0.1097271446 | AY14: 2.48506804 | AZ14: 0.0328860354 | BA14: 4.706531481 | BB14: 0.0396848259 | BC14: 0 | BD14: 0 | BE14: 56.06750131 | BF14: 1.118805431 | BG14: 0.0001248331 | BH14: 0 | BI14: 0.1864732824 | BJ14: 0.0035269268 | BK14: 8.31036216 | BL14: 0.0810850896 | BM14: . | BN14: 0 | BO14: . | BP14: 0 | BQ14: 0.1890169858 | BR14: 0.0006398036 | BS14: 0.6030910526 | BT14: 0.0026659078 | BU14: . | BV14: 0 | BW14: . | BX14: 0 | BY14: . | BZ14: 0 | CA14: . | CB14: 0 | CC14: 0.002823068 | CD14: 3.91725e-05 | CE14: 0.00780329 | CF14: 8.42256e-05 | CG14: 0.2349653554 | CH14: 0.0038568811 | CI14: 6.550557094 | CJ14: 0.1877933894 | CK14: . | CL14: 0 | CM14: . | CN14: 0 | CO14: 10.55208692 | CP14: 0.3518877184 | CQ14: 16.35958327 | CR14: 0.9768146895 | CS14: 3.109875632 | CT14: 0.4090716504 | CU14: 52.95762568 | CV14: 0.7097337802 | CW14: 4.22997e-05 | CX14: 6.0688e-05 | CY14: 6.75114e-05 | CZ14: 6.87056e-05 | DA14: 6.98998e-05 | DB14: 7.1094e-05 | DC14: 7.22882e-05 | DD14: 7.34824e-05 | DE14: 7.46766e-05 | DF14: 7.58708e-05 | DG14: 39.26025259 | DH14: 0.3247788934 | DI14: 13.93586955 | DJ14: 0.1229564095 | DK14: 4.498464868 | DL14: 0.0424702356 | DM14: 1.305025138 | DN14: 0.0135570348 | DO14: 0.3546021818 | DP14: 0.0043501412 | DQ14: 0.0957392256 | DR14: 0.0015906231 | DS14: 0.0333939076 | DT14: 0.0008080536 | DU14: 0.0180854995 | DV14: 0.0005384102 | DW14: 0.0113724277 | DX14: 0.0003790575 | DY14: 0.0073840914 | DZ14: 0.0002636186
A15: 1000 | B15: 34656 | C15: 689.8270064 | D15: 949.0000933 | E15: 14.44129884 | F15: 0.0328318268 | G15: 0.0229891514 | H15: 5.39974e-05 | I15: 107.1573251 | J15: 0.8140885882 | K15: 42.99789896 | L15: 0.3136395327 | M15: 9.584035447 | N15: 0.0948348259 | O15: . | P15: 0 | Q15: 1.200706182 | R15: 0.004372715 | S15: . | T15: 0 | U15: . | V15: 0 | W15: 0.0157022983 | X15: 0.0001931635 | Y15: 8.152512331 | Z15: 0.2288600596 | AA15: . | AB15: 0 | AC15: 0 | AD15: 0 | AE15: . | AF15: 0 | AG15: . | AH15: 0 | AI15: 0 | AJ15: 0 | AK15: 57.01536458 | AL15: 1.121629477 | AM15: . | AN15: 0 | AO15: . | AP15: 0 | AQ15: . | AR15: 0 | AS15: 30.2296766 | AT15: 1.450591146 | AU15: 15.9461847 | AV15: 0.2070425323 | AW15: 7.422436359 | AX15: 0.1246074667 | AY15: 2.841327584 | AZ15: 0.0364337837 | BA15: 5.682420754 | BB15: 0.0460012819 | BC15: 0 | BD15: 0 | BE15: 62.15747501 | BF15: 1.224285623 | BG15: 0.000145667 | BH15: 0 | BI15: 0.2159834246 | BJ15: 0.0041995098 | BK15: 9.368052023 | BL15: 0.0906353161 | BM15: . | BN15: 0 | BO15: . | BP15: 0 | BQ15: 0.2959817497 | BR15: 0.0008509248 | BS15: 0.9047244327 | BT15: 0.0035217902 | BU15: . | BV15: 0 | BW15: . | BX15: 0 | BY15: . | BZ15: 0 | CA15: . | CB15: 0 | CC15: 0.0053802526 | CD15: 8.77749e-05 | CE15: 0.0103220457 | CF15: 0.0001053886 | CG15: 0.2963356029 | CH15: 0.0045863196 | CI15: 7.856176728 | CJ15: 0.2242737401 | CK15: . | CL15: 0 | CM15: . | CN15: 0 | CO15: 12.12915083 | CP15: 0.3930151802 | CQ15: 18.10052577 | CR15: 1.057575966 | CS15: 3.552054492 | CT15: 0.4508066216 | CU15: 58.60542052 | CV15: 0.7734790017 | CW15: 4.97219e-05 | CX15: 7.2994e-05 | CY15: 8.23695e-05 | CZ15: 8.55418e-05 | DA15: 8.87141e-05 | DB15: 9.18864e-05 | DC15: 9.50587e-05 | DD15: 9.82309e-05 | DE15: 9.93341e-05 | DF15: 0.0001004373 | DG15: 43.83717896 | DH15: 0.3596033141 | DI15: 16.49245783 | DJ15: 0.1436671363 | DK15: 5.729560527 | DL15: 0.0531308312 | DM15: 1.830332113 | DN15: 0.0184952636 | DO15: 0.5696688875 | DP15: 0.0066019743 | DQ15: 0.1793374261 | DR15: 0.0026155502 | DS15: 0.0667141518 | DT15: 0.0013135842 | DU15: 0.0340652335 | DV15: 0.0008379098 | DW15: 0.0201796188 | DX15: 0.0005783861 | DY15: 0.012759484 | DZ15: 0.0004044172
A16: 1100 | B16: 31553 | C16: 742.5705425 | D16: 1049.113465 | E16: 17.10503183 | F16: 0.0370780848 | G16: 0.0326287955 | H16: 6.89615e-05 | I16: 113.1973624 | J16: 0.8582539789 | K16: 46.70053912 | L16: 0.3393270151 | M16: 10.75984016 | N16: 0.1053691754 | O16: . | P16: 0 | Q16: 1.677189565 | R16: 0.0055962929 | S16: . | T16: 0 | U16: . | V16: 0 | W16: 0.0172632793 | X16: 0.0002085246 | Y16: 9.466593803 | Z16: 0.2656252163 | AA16: . | AB16: 0 | AC16: 0 | AD16: 0 | AE16: . | AF16: 0 | AG16: . | AH16: 0 | AI16: 0 | AJ16: 0 | AK16: 61.54152304 | AL16: 1.198865207 | AM16: . | AN16: 0 | AO16: . | AP16: 0 | AQ16: . | AR16: 0 | AS16: 33.37757252 | AT16: 1.561578743 | AU16: 18.40855091 | AV16: 0.2315682373 | AW16: 8.542998718 | AX16: 0.1395509183 | AY16: 3.196750945 | AZ16: 0.039775347 | BA16: 6.668801247 | BB16: 0.052241972 | BC16: 0 | BD16: 0 | BE16: 68.21165766 | BF16: 1.325618809 | BG16: 0.0001699838 | BH16: 0 | BI16: 0.2563789308 | BJ16: 0.0047695714 | BK16: 10.50346123 | BL16: 0.1005996039 | BM16: . | BN16: 0 | BO16: . | BP16: 0 | BQ16: 0.4628916107 | BR16: 0.001178003 | BS16: 1.214297954 | BT16: 0.0044182899 | BU16: . | BV16: 0 | BW16: . | BX16: 0 | BY16: . | BZ16: 0 | CA16: . | CB16: 0 | CC16: 0.0054456906 | CD16: 8.87719e-05 | CE16: 0.0118175887 | CF16: 0.0001197527 | CG16: 0.36432519 | CH16: 0.0054025504 | CI16: 9.102268613 | CJ16: 0.2602226658 | CK16: . | CL16: 0 | CM16: . | CN16: 0 | CO16: 13.66771546 | CP16: 0.4316363434 | CQ16: 19.70985707 | CR16: 1.1299424 | CS16: 4.016802638 | CT16: 0.4908215457 | CU16: 64.19485502 | CV16: 0.8347972629 | CW16: 6.36346e-05 | CX16: 9.79952e-05 | CY16: 0.0001103052 | CZ16: 0.000113344 | DA16: 0.0001163827 | DB16: 0.0001194214 | DC16: 0.0001224602 | DD16: 0.0001254989 | DE16: 0.0001265335 | DF16: 0.000127568 | DG16: 48.08555423 | DH16: 0.3921900277 | DI16: 18.9916992 | DJ16: 0.1638995537 | DK16: 7.019480544 | DL16: 0.064248173 | DM16: 2.437094516 | DN16: 0.0241592859 | DO16: 0.8363682829 | DP16: 0.0093806345 | DQ16: 0.289648669 | DR16: 0.003974725 | DS16: 0.1146972696 | DT16: 0.0020562328 | DU16: 0.0583650565 | DV16: 0.0013138723 | DW16: 0.0347759802 | DX16: 0.0009224559 | DY16: 0.0220332805 | DZ16: 0.0006618575
A17: 1200 | B17: 29258 | C17: 793.3918254 | D17: 1149.277036 | E17: 19.91008264 | F17: 0.0413604137 | G17: 0.0433987473 | H17: 8.0734e-05 | I17: 118.7010118 | J17: 0.8984277021 | K17: 50.20753013 | L17: 0.3635216447 | M17: 11.89096597 | N17: 0.1155754169 | O17: . | P17: 0 | Q17: 2.30263668 | R17: 0.0070527559 | S17: . | T17: 0 | U17: . | V17: 0 | W17: 0.0249677324 | X17: 0.000333332 | Y17: 10.8432948 | Z17: 0.3031544921 | AA17: . | AB17: 0 | AC17: 0 | AD17: 0 | AE17: . | AF17: 0 | AG17: . | AH17: 0 | AI17: 0 | AJ17: 0 | AK17: 65.77529807 | AL17: 1.269522153 | AM17: . | AN17: 0 | AO17: . | AP17: 0 | AQ17: . | AR17: 0 | AS17: 36.42199384 | AT17: 1.66655776 | AU17: 20.82921331 | AV17: 0.2546482263 | AW17: 9.660495561 | AX17: 0.1538203896 | AY17: 3.51536581 | AZ17: 0.042750814 | BA17: 7.653351938 | BB17: 0.0580770227 | BC17: 0 | BD17: 0 | BE17: 74.16231248 | BF17: 1.422932196 | BG17: 0.0001898498 | BH17: 0 | BI17: 0.2885053757 | BJ17: 0.0053353743 | BK17: 11.6024606 | BL17: 0.1102400426 | BM17: . | BN17: 0 | BO17: . | BP17: 0 | BQ17: 0.6716687262 | BR17: 0.001521753 | BS17: 1.630967954 | BT17: 0.0055310029 | BU17: . | BV17: 0 | BW17: . | BX17: 0 | BY17: . | BZ17: 0 | CA17: . | CB17: 0 | CC17: 0.0082152269 | CD17: 0.000160126 | CE17: 0.0167525055 | CF17: 0.000173206 | CG17: 0.4483530594 | CH17: 0.0065570804 | CI17: 10.39494175 | CJ17: 0.2965974117 | CK17: . | CL17: 0 | CM17: . | CN17: 0 | CO17: 15.17164539 | CP17: 0.4681455668 | CQ17: 21.25034845 | CR17: 1.198412193 | CS17: 4.489067104 | CT17: 0.5277110295 | CU17: 69.67324537 | CV17: 0.895221167 | CW17: 7.56305e-05 | CX17: 0.0001167308 | CY17: 0.0001322735 | CZ17: 0.0001360529 | DA17: 0.0001389825 | DB17: 0.0001419121 | DC17: 0.0001448416 | DD17: 0.0001477712 | DE17: 0.0001487498 | DF17: 0.0001497284 | DG17: 52.03347757 | DH17: 0.4223198005 | DI17: 21.39159017 | DJ17: 0.1831906174 | DK17: 8.320672924 | DL17: 0.0753147103 | DM17: 3.08028826 | DN17: 0.0300272246 | DO17: 1.13375011 | DP17: 0.0123627814 | DQ17: 0.4255280877 | DR17: 0.0055301973 | DS17: 0.1794806026 | DT17: 0.0029364631 | DU17: 0.0903723064 | DV17: 0.0018532875 | DW17: 0.0527759846 | DX17: 0.0012915228 | DY17: 0.0336844005 | DZ17: 0.000937743
A18: 1300 | B18: 27105 | C18: 842.3183393 | D18: 1249.417563 | E18: 22.70847749 | F18: 0.0454614573 | G18: 0.0615903669 | H18: 9.87062e-05 | I18: 123.6394457 | J18: 0.9347091976 | K18: 53.51819797 | L18: 0.3867840195 | M18: 12.99111593 | N18: 0.1252764421 | O18: . | P18: 0 | Q18: 3.038343557 | R18: 0.0087206757 | S18: . | T18: 0 | U18: . | V18: 0 | W18: 0.032188011 | X18: 0.0004122255 | Y18: 12.28763132 | Z18: 0.3418677034 | AA18: . | AB18: 0 | AC18: 0 | AD18: 0 | AE18: . | AF18: 0 | AG18: . | AH18: 0 | AI18: 0 | AJ18: 0 | AK18: 69.705778 | AL18: 1.333426107 | AM18: . | AN18: 0 | AO18: . | AP18: 0 | AQ18: . | AR18: 0 | AS18: 39.29501456 | AT18: 1.761767168 | AU18: 23.2474828 | AV18: 0.2769360154 | AW18: 10.77101892 | AX18: 0.1675185147 | AY18: 3.847296894 | AZ18: 0.0455671945 | BA18: 8.629166987 | BB18: 0.0638503062 | BC18: 0 | BD18: 0 | BE18: 80.2186492 | BF18: 1.518524932 | BG18: 0.0002203272 | BH18: 0 | BI18: 0.3180501224 | BJ18: 0.0058166401 | BK18: 12.6730658 | BL18: 0.119459802 | BM18: . | BN18: 0 | BO18: . | BP18: 0 | BQ18: 0.9710327173 | BR18: 0.0019984438 | BS18: 2.067310839 | BT18: 0.0067222319 | BU18: . | BV18: 0 | BW18: . | BX18: 0 | BY18: . | BZ18: 0 | CA18: . | CB18: 0 | CC18: 0.0111115798 | CD18: 0.0001997424 | CE18: 0.0210764312 | CF18: 0.0002124831 | CG18: 0.5361481049 | CH18: 0.0077919115 | CI18: 11.75148321 | CJ18: 0.3340757919 | CK18: . | CL18: 0 | CM18: . | CN18: 0 | CO18: 16.62110701 | CP18: 0.5030952614 | CQ18: 22.67390755 | CR18: 1.258671906 | CS18: 5.017082971 | CT18: 0.5631017574 | CU18: 75.20156623 | CV18: 0.9554231742 | CW18: 9.37912e-05 | CX18: 0.0001476935 | CY18: 0.0001652618 | CZ18: 0.0001689105 | DA18: 0.000171748 | DB18: 0.0001745854 | DC18: 0.0001774229 | DD18: 0.0001802604 | DE18: 0.0001811922 | DF18: 0.000182124 | DG18: 55.65282087 | DH18: 0.4500195228 | DI18: 23.66502503 | DJ18: 0.2015101562 | DK18: 9.594839422 | DL18: 0.0862394628 | DM18: 3.741826878 | DN18: 0.036143094 | DO18: 1.460758917 | DP18: 0.0157309289 | DQ18: 0.5863141747 | DR18: 0.0074515638 | DS18: 0.2598789783 | DT18: 0.0041051932 | DU18: 0.1348060968 | DV18: 0.0026473575 | DW18: 0.0797323483 | DX18: 0.0018763116 | DY18: 0.051900303 | DZ18: 0.001397829
A19: 1400 | B19: 25015 | C19: 889.4522904 | D19: 1349.260895 | E19: 25.45527832 | F19: 0.0492309705 | G19: 0.090585038 | H19: 0.0001290243 | I19: 128.0480514 | J19: 0.9670259608 | K19: 56.72537861 | L19: 0.4088970195 | M19: 14.14789525 | N19: 0.135484706 | O19: . | P19: 0 | Q19: 3.851979785 | R19: 0.0105966242 | S19: . | T19: 0 | U19: . | V19: 0 | W19: 0.0474343484 | X19: 0.0005664248 | Y19: 13.83766928 | Z19: 0.3829651511 | AA19: . | AB19: 0 | AC19: 0 | AD19: 0 | AE19: . | AF19: 0 | AG19: . | AH19: 0 | AI19: 0 | AJ19: 0 | AK19: 73.31109324 | AL19: 1.390668242 | AM19: . | AN19: 0 | AO19: . | AP19: 0 | AQ19: . | AR19: 0 | AS19: 42.02344185 | AT19: 1.851368279 | AU19: 25.80683012 | AV19: 0.2994668268 | AW19: 11.91721161 | AX19: 0.1812961343 | AY19: 4.19148334 | AZ19: 0.0483864799 | BA19: 9.698135168 | BB19: 0.0697842126 | BC19: 0 | BD19: 0 | BE19: 85.98114325 | BF19: 1.608012157 | BG19: 0.0002768549 | BH19: 0 | BI19: 0.353406671 | BJ19: 0.0063563798 | BK19: 13.79448858 | BL19: 0.1291283262 | BM19: . | BN19: 0 | BO19: . | BP19: 0 | BQ19: 1.286190523 | BR19: 0.0025125823 | BS19: 2.565789262 | BT19: 0.0080840419 | BU19: . | BV19: 0 | BW19: . | BX19: 0 | BY19: . | BZ19: 0 | CA19: . | CB19: 0 | CC19: 0.0146883982 | CD19: 0.0002298556 | CE19: 0.0327459502 | CF19: 0.0003365692 | CG19: 0.6348893943 | CH19: 0.0089861766 | CI19: 13.20277989 | CJ19: 0.3739789744 | CK19: . | CL19: 0 | CM19: . | CN19: 0 | CO19: 17.99076496 | CP19: 0.5359794348 | CQ19: 24.03267689 | CR19: 1.315388844 | CS19: 5.536526937 | CT19: 0.5964527981 | CU19: 80.44461631 | CV19: 1.011559359 | CW19: 0.0001242703 | CX19: 0.0001977657 | CY19: 0.0002212333 | CZ19: 0.0002274172 | DA19: 0.0002301757 | DB19: 0.0002329343 | DC19: 0.0002356929 | DD19: 0.0002384514 | DE19: 0.0002393445 | DF19: 0.0002402376 | DG19: 58.91664887 | DH19: 0.4748798445 | DI19: 25.73193571 | DJ19: 0.2180556075 | DK19: 10.79175932 | DL19: 0.0963652341 | DM19: 4.391452216 | DN19: 0.0420218863 | DO19: 1.804689188 | DP19: 0.0191117797 | DQ19: 0.7640275231 | DR19: 0.0094092127 | DS19: 0.3521215543 | DT19: 0.0052937713 | DU19: 0.1856768112 | DV19: 0.0034295811 | DW19: 0.110692933 | DX19: 0.0024371097 | DY19: 0.0713201289 | DZ19: 0.0018145638
A20: 1500 | B20: 23229 | C20: 935.0585412 | D20: 1449.379067 | E20: 28.28790505 | F20: 0.0530052585 | G20: 0.1283910382 | H20: 0.0001633813 | I20: 132.0737135 | J20: 0.9962032003 | K20: 59.72031958 | L20: 0.4299600696 | M20: 15.25590207 | N20: 0.1453912587 | O20: . | P20: 0 | Q20: 4.751749599 | R20: 0.0126282903 | S20: . | T20: 0 | U20: . | V20: 0 | W20: 0.0624323308 | X20: 0.0007503519 | Y20: 15.46441994 | Z20: 0.4257576282 | AA20: . | AB20: 0 | AC20: 0 | AD20: 0 | AE20: . | AF20: 0 | AG20: . | AH20: 0 | AI20: 0 | AJ20: 0 | AK20: 76.65730654 | AL20: 1.44270628 | AM20: . | AN20: 0 | AO20: . | AP20: 0 | AQ20: . | AR20: 0 | AS20: 44.58521483 | AT20: 1.933181201 | AU20: 28.29242065 | AV20: 0.3212243293 | AW20: 13.06966767 | AX20: 0.1948510467 | AY20: 4.492574433 | AZ20: 0.0509029267 | BA20: 10.73017854 | BB20: 0.0754703559 | BC20: 0 | BD20: 0 | BE20: 91.73050703 | BF20: 1.6931046 | BG20: 0.0003432904 | BH20: 0 | BI20: 0.3936482569 | BJ20: 0.0070515062 | BK20: 14.86225381 | BL20: 0.1383397526 | BM20: . | BN20: 0 | BO20: . | BP20: 0 | BQ20: 1.665046514 | BR20: 0.0031147946 | BS20: 3.086703085 | BT20: 0.0095134957 | BU20: . | BV20: 0 | BW20: . | BX20: 0 | BY20: . | BZ20: 0 | CA20: . | CB20: 0 | CC20: 0.026647366 | CD20: 0.0003784994 | CE20: 0.0357849647 | CF20: 0.0003718526 | CG20: 0.7482497631 | CH20: 0.0104198361 | CI20: 14.71617017 | CJ20: 0.4153377921 | CK20: . | CL20: 0 | CM20: . | CN20: 0 | CO20: 19.28153939 | CP20: 0.5662941381 | CQ20: 25.30367544 | CR20: 1.366887063 | CS20: 6.066111423 | CT20: 0.6269240498 | CU20: 85.6643956 | CV20: 1.066180551 | CW20: 0.0001587645 | CX20: 0.0002552528 | CY20: 0.0002887158 | CZ20: 0.0002955036 | DA20: 0.0002981952 | DB20: 0.0003008867 | DC20: 0.0003035783 | DD20: 0.0003062698 | DE20: 0.0003071308 | DF20: 0.0003079917 | DG20: 61.90953812 | DH20: 0.4974219319 | DI20: 27.65462773 | DJ20: 0.2332185871 | DK20: 11.91214852 | DL20: 0.1056788063 | DM20: 5.004334487 | DN20: 0.0474451196 | DO20: 2.123016717 | DP20: 0.0221805645 | DQ20: 0.9301952117 | DR20: 0.0111959103 | DS20: 0.4377307224 | DT20: 0.006370481 | DU20: 0.2328026984 | DV20: 0.0041469813 | DW20: 0.13847687 | DX20: 0.0029572092 | DY20: 0.0900223002 | DZ20: 0.0022283166
A21: 1600 | B21: 21423 | C21: 979.0112296 | D21: 1549.152481 | E21: 30.93756509 | F21: 0.0564003648 | G21: 0.1784554859 | H21: 0.0002048617 | I21: 135.7119 | J21: 1.023112515 | K21: 62.6202125 | L21: 0.4506671868 | M21: 16.40618047 | N21: 0.1556280113 | O21: . | P21: 0 | Q21: 5.760754299 | R21: 0.0148450307 | S21: . | T21: 0 | U21: . | V21: 0 | W21: 0.0746146672 | X21: 0.0008879133 | Y21: 17.06647553 | Z21: 0.4687747697 | AA21: . | AB21: 0 | AC21: 0 | AD21: 0 | AE21: . | AF21: 0 | AG21: . | AH21: 0 | AI21: 0 | AJ21: 0 | AK21: 79.79610391 | AL21: 1.489861736 | AM21: . | AN21: 0 | AO21: . | AP21: 0 | AQ21: . | AR21: 0 | AS21: 47.00261296 | AT21: 2.010317629 | AU21: 30.73621422 | AV21: 0.3420070519 | AW21: 14.17461444 | AX21: 0.2076336253 | AY21: 4.797723218 | AZ21: 0.0534568519 | BA21: 11.76387656 | BB21: 0.0809165747 | BC21: 0 | BD21: 0 | BE21: 97.41338588 | BF21: 1.77547315 | BG21: 0.0004130755 | BH21: 0 | BI21: 0.4242084782 | BJ21: 0.0075980638 | BK21: 15.98197199 | BL21: 0.1480299476 | BM21: . | BN21: 0 | BO21: . | BP21: 0 | BQ21: 2.126987611 | BR21: 0.0038113475 | BS21: 3.633766689 | BT21: 0.0110336832 | BU21: . | BV21: 0 | BW21: . | BX21: 0 | BY21: . | BZ21: 0 | CA21: . | CB21: 0 | CC21: 0.030939524 | CD21: 0.0004272988 | CE21: 0.0436751431 | CF21: 0.0004606144 | CG21: 0.8714527935 | CH21: 0.0121482957 | CI21: 16.19502273 | CJ21: 0.456626474 | CK21: . | CL21: 0 | CM21: . | CN21: 0 | CO21: 20.51412364 | CP21: 0.5952842628 | CQ21: 26.48848932 | CR21: 1.415033367 | CS21: 6.670005019 | CT21: 0.6570305563 | CU21: 90.74338086 | CV21: 1.118442594 | CW21: 0.0001995045 | CX21: 0.0003209468 | CY21: 0.0003576867 | CZ21: 0.0003659131 | DA21: 0.0003692811 | DB21: 0.0003719152 | DC21: 0.0003745493 | DD21: 0.0003771834 | DE21: 0.0003780181 | DF21: 0.0003788528 | DG21: 64.69111802 | DH21: 0.518748903 | DI21: 29.4995788 | DJ21: 0.2480426831 | DK21: 13.0274333 | DL21: 0.1151452531 | DM21: 5.645685272 | DN21: 0.0532811104 | DO21: 2.481707507 | DP21: 0.0257332976 | DQ21: 1.127372576 | DR21: 0.0133769339 | DS21: 0.5450734195 | DT21: 0.0077551014 | DU21: 0.2940233773 | DV21: 0.0050962042 | DW21: 0.1765476558 | DX21: 0.0036605612 | DY21: 0.1163513843 | DZ21: 0.0027881323
A22: 1700 | B22: 20001 | C22: 1021.741297 | D22: 1649.556216 | E22: 33.74744452 | F22: 0.0598029273 | G22: 0.241430353 | H22: 0.000256679 | I22: 138.9267123 | J22: 1.046697861 | K22: 65.3347086 | L22: 0.4698467856 | M22: 17.44934571 | N22: 0.1645636483 | O22: . | P22: 0 | Q22: 6.84845898 | R22: 0.017196089 | S22: . | T22: 0 | U22: . | V22: 0 | W22: 0.0799087572 | X22: 0.0009346477 | Y22: 18.74380637 | Z22: 0.5131024231 | AA22: . | AB22: 0 | AC22: 0 | AD22: 0 | AE22: . | AF22: 0 | AG22: . | AH22: 0 | AI22: 0 | AJ22: 0 | AK22: 82.79995171 | AL22: 1.531835247 | AM22: . | AN22: 0 | AO22: . | AP22: 0 | AQ22: . | AR22: 0 | AS22: 49.32276533 | AT22: 2.081295083 | AU22: 33.14438652 | AV22: 0.3614726766 | AW22: 15.26753804 | AX22: 0.2197462721 | AY22: 5.103090681 | AZ22: 0.0557799165 | BA22: 12.7737578 | BB22: 0.085946488 | BC22: 0 | BD22: 0 | BE22: 102.8509405 | BF22: 1.852515322 | BG22: 0.0005011603 | BH22: 0 | BI22: 0.45275802 | BJ22: 0.0079532136 | BK22: 16.99658769 | BL22: 0.1566104347 | BM22: . | BN22: 0 | BO22: . | BP22: 0 | BQ22: 2.60732006 | BR22: 0.0045258675 | BS22: 4.241138921 | BT22: 0.0126702215 | BU22: . | BV22: 0 | BW22: . | BX22: 0 | BY22: . | BZ22: 0 | CA22: . | CB22: 0 | CC22: 0.0330222567 | CD22: 0.0004448126 | CE22: 0.0468865005 | CF22: 0.0004898351 | CG22: 0.9860576849 | CH22: 0.0138095506 | CI22: 17.75774869 | CJ22: 0.4992928725 | CK22: . | CL22: 0 | CM22: . | CN22: 0 | CO22: 21.6793743 | CP22: 0.6219279633 | CQ22: 27.64339103 | CR22: 1.45936712 | CS22: 7.252538064 | CT22: 0.6842757879 | CU22: 95.59840244 | CV22: 1.168239534 | CW22: 0.0002506433 | CX22: 0.0004025306 | CY22: 0.0004457561 | CZ22: 0.0004552283 | DA22: 0.0004585254 | DB22: 0.0004611074 | DC22: 0.0004636894 | DD22: 0.0004662714 | DE22: 0.0004670827 | DF22: 0.0004678941 | DG22: 67.13841321 | DH22: 0.5372992853 | DI22: 31.11302062 | DJ22: 0.2608672683 | DK22: 14.00145037 | DL22: 0.123315024 | DM22: 6.204419247 | DN22: 0.0582909972 | DO22: 2.795606742 | DP22: 0.0287997936 | DQ22: 1.301947343 | DR22: 0.0152843845 | DS22: 0.6428583082 | DT22: 0.0089953693 | DU22: 0.3510796357 | DV22: 0.0059538341 | DW22: 0.2125003826 | DX22: 0.0043008677 | DY22: 0.1399717161 | DZ22: 0.0032861759
A23: 1800 | B23: 18841 | C23: 1063.081565 | D23: 1749.248992 | E23: 36.44105198 | F23: 0.0629698605 | G23: 0.3157278413 | H23: 0.000313096 | I23: 141.9560482 | J23: 1.069001467 | K23: 67.96407184 | L23: 0.4883381462 | M23: 18.57003125 | N23: 0.1744280996 | O23: . | P23: 0 | Q23: 8.023604892 | R23: 0.019634093 | S23: . | T23: 0 | U23: . | V23: 0 | W23: 0.0901985004 | X23: 0.0010636414 | Y23: 20.3902478 | Z23: 0.5558716023 | AA23: . | AB23: 0 | AC23: 0 | AD23: 0 | AE23: . | AF23: 0 | AG23: . | AH23: 0 | AI23: 0 | AJ23: 0 | AK23: 85.74440688 | AL23: 1.571268046 | AM23: . | AN23: 0 | AO23: . | AP23: 0 | AQ23: . | AR23: 0 | AS23: 51.55093555 | AT23: 2.149059021 | AU23: 35.48249991 | AV23: 0.3804184714 | AW23: 16.30944817 | AX23: 0.2314167547 | AY23: 5.400529506 | AZ23: 0.058071731 | BA23: 13.77252223 | BB23: 0.0909299857 | BC23: 0 | BD23: 0 | BE23: 108.1762303 | BF23: 1.926583859 | BG23: 0.0006054223 | BH23: 0 | BI23: 0.4873460952 | BJ23: 0.0085618687 | BK23: 18.08268515 | BL23: 0.165866231 | BM23: . | BN23: 0 | BO23: . | BP23: 0 | BQ23: 3.160086473 | BR23: 0.0052784404 | BS23: 4.863518419 | BT23: 0.0143556526 | BU23: . | BV23: 0 | BW23: . | BX23: 0 | BY23: . | BZ23: 0 | CA23: . | CB23: 0 | CC23: 0.036756062 | CD23: 0.0005028251 | CE23: 0.0534424384 | CF23: 0.0005608163 | CG23: 1.128235889 | CH23: 0.0155450121 | CI23: 19.26201191 | CJ23: 0.5403265901 | CK23: . | CL23: 0 | CM23: . | CN23: 0 | CO23: 22.82702252 | CP23: 0.6479215307 | CQ23: 28.72391303 | CR23: 1.50113749 | CS23: 7.894629389 | CT23: 0.7114235737 | CU23: 100.2816009 | CV23: 1.215160285 | CW23: 0.000307196 | CX23: 0.0004984495 | CY23: 0.0005489949 | CZ23: 0.0005597654 | DA23: 0.000563793 | DB23: 0.0005663307 | DC23: 0.0005688684 | DD23: 0.0005714061 | DE23: 0.0005721972 | DF23: 0.0005729883 | DG23: 69.48866175 | DH23: 0.5551890104 | DI23: 32.69413397 | DJ23: 0.273485856 | DK23: 14.98179801 | DL23: 0.1315590206 | DM23: 6.785645103 | DN23: 0.0634964875 | DO23: 3.1303361 | DP23: 0.0320557516 | DQ23: 1.498389759 | DR23: 0.0174065193 | DS23: 0.7615641987 | DT23: 0.0104520806 | DU23: 0.4229980625 | DV23: 0.0069833285 | DW23: 0.261772862 | DX23: 0.0051018531 | DY23: 0.1739724311 | DZ23: 0.0039223924
A24: 1900 | B24: 17859 | C24: 1103.263692 | D24: 1849.671358 | E24: 39.18803455 | F24: 0.0660481451 | G24: 0.4212431672 | H24: 0.0003886308 | I24: 144.7671797 | J24: 1.089754386 | K24: 70.45829723 | L24: 0.50669048 | M24: 19.72053437 | N24: 0.1842369341 | O24: . | P24: 0 | Q24: 9.238729496 | R24: 0.0221061936 | S24: . | T24: 0 | U24: . | V24: 0 | W24: 0.1054401338 | X24: 0.0012182013 | Y24: 22.12363659 | Z24: 0.6002073936 | AA24: . | AB24: 0 | AC24: 0 | AD24: 0 | AE24: . | AF24: 0 | AG24: . | AH24: 0 | AI24: 0 | AJ24: 0 | AK24: 88.67131173 | AL24: 1.607488401 | AM24: . | AN24: 0 | AO24: . | AP24: 0 | AQ24: . | AR24: 0 | AS24: 53.65982553 | AT24: 2.212046412 | AU24: 37.76668636 | AV24: 0.3979347368 | AW24: 17.32772746 | AX24: 0.2422371253 | AY24: 5.673229883 | AZ24: 0.0601733853 | BA24: 14.76572902 | BB24: 0.0955242262 | BC24: 0 | BD24: 0 | BE24: 113.5054444 | BF24: 1.99638927 | BG24: 0.0007465468 | BH24: 0 | BI24: 0.5159450351 | BJ24: 0.0090144082 | BK24: 19.20458934 | BL24: 0.1752225259 | BM24: . | BN24: 0 | BO24: . | BP24: 0 | BQ24: 3.752907688 | BR24: 0.0060760391 | BS24: 5.485821808 | BT24: 0.0160301545 | BU24: . | BV24: 0 | BW24: . | BX24: 0 | BY24: . | BZ24: 0 | CA24: . | CB24: 0 | CC24: 0.0406308945 | CD24: 0.000546623 | CE24: 0.0648092393 | CF24: 0.0006715783 | CG24: 1.2700987 | CH24: 0.017199798 | CI24: 20.85353789 | CJ24: 0.5830075956 | CK24: . | CL24: 0 | CM24: . | CN24: 0 | CO24: 23.90466879 | CP24: 0.6714450255 | CQ24: 29.75515674 | CR24: 1.540601387 | CS24: 8.579027334 | CT24: 0.7368377995 | CU24: 104.9264171 | CV24: 1.25955147 | CW24: 0.0003828577 | CX24: 0.0006243878 | CY24: 0.0006899928 | CZ24: 0.0007019167 | DA24: 0.0007058671 | DB24: 0.0007083617 | DC24: 0.0007108564 | DD24: 0.000713351 | DE24: 0.000714123 | DF24: 0.000714895 | DG24: 71.66948504 | DH24: 0.5718498773 | DI24: 34.16218806 | DJ24: 0.2853109154 | DK24: 15.91851346 | DL24: 0.1395029447 | DM24: 7.354592367 | DN24: 0.0686488881 | DO24: 3.470183946 | DP24: 0.0354056394 | DQ24: 1.699052529 | DR24: 0.0196245158 | DS24: 0.8833812412 | DT24: 0.0119988892 | DU24: 0.4980774456 | DV24: 0.0081133231 | DW24: 0.3097120477 | DX24: 0.0059753436 | DY24: 0.2062240243 | DZ24: 0.0046341275
A25: 2000 | B25: 16700 | C25: 1142.203922 | D25: 1949.193947 | E25: 41.82587471 | F25: 0.0689863084 | G25: 0.5123992757 | H25: 0.0004525625 | I25: 147.4072052 | J25: 1.109495619 | K25: 72.8607415 | L25: 0.5238407655 | M25: 20.83729773 | N25: 0.1938831299 | O25: . | P25: 0 | Q25: 10.54189326 | R25: 0.0246873922 | S25: . | T25: 0 | U25: . | V25: 0 | W25: 0.1300854059 | X25: 0.0014849594 | Y25: 23.77594742 | Z25: 0.6430416928 | AA25: . | AB25: 0 | AC25: 0 | AD25: 0 | AE25: . | AF25: 0 | AG25: . | AH25: 0 | AI25: 0 | AJ25: 0 | AK25: 91.53469599 | AL25: 1.64041566 | AM25: . | AN25: 0 | AO25: . | AP25: 0 | AQ25: . | AR25: 0 | AS25: 55.61737162 | AT25: 2.269432386 | AU25: 40.0096448 | AV25: 0.4150329289 | AW25: 18.34370299 | AX25: 0.2529215825 | AY25: 5.93521434 | AZ25: 0.0620440986 | BA25: 15.73072747 | BB25: 0.1000672478 | BC25: 0 | BD25: 0 | BE25: 118.7775893 | BF25: 2.063444796 | BG25: 0.0008720344 | BH25: 0 | BI25: 0.555748246 | BJ25: 0.0097810632 | BK25: 20.28154948 | BL25: 0.1841020667 | BM25: . | BN25: 0 | BO25: . | BP25: 0 | BQ25: 4.41485795 | BR25: 0.0069247415 | BS25: 6.127035314 | BT25: 0.0177626506 | BU25: . | BV25: 0 | BW25: . | BX25: 0 | BY25: . | BZ25: 0 | CA25: . | CB25: 0 | CC25: 0.051203892 | CD25: 0.0006646765 | CE25: 0.0788815139 | CF25: 0.0008202829 | CG25: 1.414078684 | CH25: 0.0190041873 | CI25: 22.36186874 | CJ25: 0.6240375055 | CK25: . | CL25: 0 | CM25: . | CN25: 0 | CO25: 24.89580387 | CP25: 0.6935638371 | CQ25: 30.72156776 | CR25: 1.575868549 | CS25: 9.348722405 | CT25: 0.7615695336 | CU25: 109.4288669 | CV25: 1.301875263 | CW25: 0.0004468983 | CX25: 0.0007362926 | CY25: 0.0008114458 | CZ25: 0.0008257068 | DA25: 0.0008321429 | DB25: 0.0008346004 | DC25: 0.000837058 | DD25: 0.0008395155 | DE25: 0.0008402718 | DF25: 0.000841028 | DG25: 73.74639382 | DH25: 0.5877681133 | DI25: 35.58791815 | DJ25: 0.2966402623 | DK25: 16.81680491 | DL25: 0.1469604223 | DM25: 7.89169313 | DN25: 0.0733689241 | DO25: 3.781735839 | DP25: 0.0383448785 | DQ25: 1.880374996 | DR25: 0.0215087593 | DS25: 0.989698739 | DT25: 0.0132558989 | DU25: 0.5637395616 | DV25: 0.0090094276 | DW25: 0.3515527378 | DX25: 0.0066464193 | DY25: 0.2344217972 | DZ25: 0.005166241
A26: 2100 | B26: 15839 | C26: 1180.058145 | D26: 2049.71577 | E26: 44.43985947 | F26: 0.0717488988 | G26: 0.6401270645 | H26: 0.0005359776 | I26: 149.8080387 | J26: 1.127653303 | K26: 75.10637196 | L26: 0.539453033 | M26: 21.95616798 | N26: 0.2035560024 | O26: . | P26: 0 | Q26: 11.85124989 | R26: 0.0272780792 | S26: . | T26: 0 | U26: . | V26: 0 | W26: 0.142794764 | X26: 0.0016335866 | Y26: 25.43121455 | Z26: 0.6853996131 | AA26: . | AB26: 0 | AC26: 0.0001272682 | AD26: 7.4159315e-07 | AE26: . | AF26: 0 | AG26: . | AH26: 0 | AI26: 0.0001272682 | AJ26: 7.4159315e-07 | AK26: 94.28821141 | AL26: 1.671277251 | AM26: . | AN26: 0 | AO26: . | AP26: 0 | AQ26: . | AR26: 0 | AS26: 57.5343418 | AT26: 2.323766861 | AU26: 42.15425993 | AV26: 0.4310047024 | AW26: 19.35139193 | AX26: 0.2630180076 | AY26: 6.156500384 | AZ26: 0.0637018553 | BA26: 16.64636762 | BB26: 0.1042848395 | BC26: 0 | BD26: 0 | BE26: 124.1350823 | BF26: 2.128533702 | BG26: 0.0010392189 | BH26: 0 | BI26: 0.5850565936 | BJ26: 0.0102428849 | BK26: 21.37111139 | BL26: 0.1933131175 | BM26: . | BN26: 0 | BO26: . | BP26: 0 | BQ26: 5.082408575 | BR26: 0.0077893228 | BS26: 6.768841318 | BT26: 0.0194887564 | BU26: . | BV26: 0 | BW26: . | BX26: 0 | BY26: . | BZ26: 0 | CA26: . | CB26: 0 | CC26: 0.0559696219 | CD26: 0.0007401829 | CE26: 0.0868251421 | CF26: 0.0008934037 | CG26: 1.582283126 | CH26: 0.0209529885 | CI26: 23.84893143 | CJ26: 0.6644466245 | CK26: . | CL26: 0 | CM26: . | CN26: 0 | CO26: 25.84832533 | CP26: 0.7142280077 | CQ26: 31.68601647 | CR26: 1.609538854 | CS26: 10.11982501 | CT26: 0.7845521322 | CU26: 114.0152573 | CV26: 1.34398157 | CW26: 0.000530413 | CX26: 0.0008828243 | CY26: 0.0009769511 | CZ26: 0.0009937058 | DA26: 0.0010000588 | DB26: 0.0010024826 | DC26: 0.0010049065 | DD26: 0.0010073304 | DE26: 0.001008072 | DF26: 0.0010088136 | DG26: 75.64223155 | DH26: 0.602524636 | DI26: 36.8988928 | DJ26: 0.3073467158 | DK26: 17.65496058 | DL26: 0.1542183556 | DM26: 8.396958847 | DN26: 0.0780929775 | DO26: 4.089066905 | DP26: 0.0414914477 | DQ26: 2.072308029 | DR26: 0.0236920803 | DS26: 1.110110616 | DT26: 0.0148135683 | DU26: 0.6431009805 | DV26: 0.0101831616 | DW26: 0.4064252707 | DX26: 0.0075708341 | DY26: 0.2733266237 | DZ26: 0.0059131443
A27: 2200 | B27: 15290 | C27: 1216.917861 | D27: 2149.776279 | E27: 47.08063868 | F27: 0.074422311 | G27: 0.7708835882 | H27: 0.0006172262 | I27: 152.1094148 | J27: 1.145205503 | K27: 77.26167569 | L27: 0.5551864566 | M27: 22.97456133 | N27: 0.2125111396 | O27: . | P27: 0 | Q27: 13.16076087 | R27: 0.0298218999 | S27: . | T27: 0 | U27: . | V27: 0 | W27: 0.1555590535 | X27: 0.0017858618 | Y27: 27.16411489 | Z27: 0.7308564726 | AA27: . | AB27: 0 | AC27: 0.0003942412 | AD27: 2.9097477e-06 | AE27: . | AF27: 0 | AG27: . | AH27: 0 | AI27: 0.0003942412 | AJ27: 2.9097477e-06 | AK27: 97.1702676 | AL27: 1.701134834 | AM27: . | AN27: 0 | AO27: . | AP27: 0 | AQ27: . | AR27: 0 | AS27: 59.39252643 | AT27: 2.376750725 | AU27: 44.27352091 | AV27: 0.4467258197 | AW27: 20.31247119 | AX27: 0.2728008411 | AY27: 6.374826279 | AZ27: 0.0653385975 | BA27: 17.58622345 | BB27: 0.1085863811 | BC27: 0 | BD27: 0 | BE27: 129.4388051 | BF27: 2.192398471 | BG27: 0.0011911816 | BH27: 0 | BI27: 0.6026839484 | BJ27: 0.0106209084 | BK27: 22.37187738 | BL27: 0.2018902312 | BM27: . | BN27: 0 | BO27: . | BP27: 0 | BQ27: 5.773881477 | BR27: 0.0086463909 | BS27: 7.386879397 | BT27: 0.021175509 | BU27: . | BV27: 0 | BW27: . | BX27: 0 | BY27: . | BZ27: 0 | CA27: . | CB27: 0 | CC27: 0.0571852715 | CD27: 0.0007628833 | CE27: 0.098373782 | CF27: 0.0010229784 | CG27: 1.707929555 | CH27: 0.0225766623 | CI27: 25.45618534 | CJ27: 0.7082798103 | CK27: . | CL27: 0 | CM27: . | CN27: 0 | CO27: 26.76694176 | CP27: 0.7343043164 | CQ27: 32.62558467 | CR27: 1.642446409 | CS27: 10.99043889 | CT27: 0.8078603263 | CU27: 118.4483662 | CV27: 1.384538144 | CW27: 0.0006117562 | CX27: 0.001025183 | CY27: 0.0011292268 | CZ27: 0.0011464498 | DA27: 0.0011527249 | DB27: 0.0011551172 | DC27: 0.0011575095 | DD27: 0.0011599018 | DE27: 0.0011606293 | DF27: 0.0011613567 | DG27: 77.46309086 | DH27: 0.6168749366 | DI27: 38.1816435 | DJ27: 0.3179763209 | DK27: 18.50719643 | DL27: 0.1617061829 | DM27: 8.935495709 | DN27: 0.0831866036 | DO27: 4.424452828 | DP27: 0.0449798721 | DQ27: 2.284930862 | DR27: 0.0261754999 | DS27: 1.248166395 | DT27: 0.0166547811 | DU27: 0.7349569701 | DV27: 0.011594739 | DW27: 0.4714833897 | DX27: 0.0087150095 | DY27: 0.3214886026 | DZ27: 0.0068730712
A28: 2300 | B28: 14777 | C28: 1252.868695 | D28: 2250.075611 | E28: 49.80213774 | F28: 0.0770756023 | G28: 0.9288276141 | H28: 0.0007124787 | I28: 154.3207272 | J28: 1.161820349 | K28: 79.34594542 | L28: 0.5705248269 | M28: 24.1851367 | N28: 0.2226766927 | O28: . | P28: 0 | Q28: 14.51815002 | R28: 0.0324265286 | S28: . | T28: 0 | U28: . | V28: 0 | W28: 0.1778505248 | X28: 0.0020678525 | Y28: 28.88884539 | Z28: 0.7755836266 | AA28: . | AB28: 0 | AC28: 0.0003873905 | AD28: 2.8591851e-06 | AE28: . | AF28: 0 | AG28: . | AH28: 0 | AI28: 0.0003873905 | AJ28: 2.8591851e-06 | AK28: 100.0771101 | AL28: 1.729149722 | AM28: . | AN28: 0 | AO28: . | AP28: 0 | AQ28: . | AR28: 0 | AS28: 61.21799321 | AT28: 2.426859717 | AU28: 46.32689665 | AV28: 0.4620332927 | AW28: 21.24017062 | AX28: 0.2822442766 | AY28: 6.596046721 | AZ28: 0.0669688582 | BA28: 18.49067931 | BB28: 0.1128201579 | BC28: 0 | BD28: 0 | BE28: 134.7516123 | BF28: 2.254930716 | BG28: 0.0013787621 | BH28: 0 | BI28: 0.6237205465 | BJ28: 0.0109979195 | BK28: 23.56141616 | BL28: 0.2116787733 | BM28: . | BN28: 0 | BO28: . | BP28: 0 | BQ28: 6.461557237 | BR28: 0.0095160688 | BS28: 8.056592787 | BT28: 0.0229104598 | BU28: . | BV28: 0 | BW28: . | BX28: 0 | BY28: . | BZ28: 0 | CA28: . | CB28: 0 | CC28: 0.0655326264 | CD28: 0.0009008135 | CE28: 0.1123178984 | CF28: 0.001167039 | CG28: 1.869034553 | CH28: 0.0245571274 | CI28: 27.01981084 | CJ28: 0.7510264992 | CK28: . | CL28: 0 | CM28: . | CN28: 0 | CO28: 27.7009133 | CP28: 0.7537818362 | CQ28: 33.51707991 | CR28: 1.673077881 | CS28: 11.86240332 | CT28: 0.830766216 | CU28: 122.8892089 | CV28: 1.4241645 | CW28: 0.00070646 | CX28: 0.0011916318 | CY28: 0.0013139492 | CZ28: 0.0013341002 | DA28: 0.0013409387 | DB28: 0.0013433011 | DC28: 0.0013456635 | DD28: 0.0013480258 | DE28: 0.0013487406 | DF28: 0.0013494554 | DG28: 79.22671022 | DH28: 0.6304656816 | DI28: 39.42071912 | DJ28: 0.3279520229 | DK28: 19.31775182 | DL28: 0.1685856208 | DM28: 9.450943814 | DN28: 0.0878552251 | DO28: 4.756213917 | DP28: 0.0481995776 | DQ28: 2.497183039 | DR28: 0.0284195208 | DS28: 1.386072359 | DT28: 0.0182670948 | DU28: 0.8264021266 | DV28: 0.0127971262 | DW28: 0.5333899814 | DX28: 0.0096419756 | DY28: 0.3654399192 | DZ28: 0.0076191017
A29: 2400 | B29: 13807 | C29: 1287.814309 | D29: 2349.522745 | E29: 52.44388965 | F29: 0.07958969 | G29: 1.137961699 | H29: 0.0008310432 | I29: 156.2339552 | J29: 1.176014651 | K29: 81.36805613 | L29: 0.5853238664 | M29: 25.37809621 | N29: 0.2327950435 | O29: . | P29: 0 | Q29: 15.92885009 | R29: 0.0351056459 | S29: . | T29: 0 | U29: . | V29: 0 | W29: 0.1894987418 | X29: 0.002199203 | Y29: 30.58003889 | Z29: 0.8185216732 | AA29: . | AB29: 0 | AC29: 0.0003812356 | AD29: 2.8137583e-06 | AE29: . | AF29: 0 | AG29: . | AH29: 0 | AI29: 0.0003812356 | AJ29: 2.8137583e-06 | AK29: 102.9205436 | AL29: 1.755336092 | AM29: . | AN29: 0 | AO29: . | AP29: 0 | AQ29: . | AR29: 0 | AS29: 62.95142449 | AT29: 2.474097775 | AU29: 48.30924726 | AV29: 0.4760054099 | AW29: 22.16147303 | AX29: 0.290966592 | AY29: 6.811594185 | AZ29: 0.0684429648 | BA29: 19.33618004 | BB29: 0.1165958531 | BC29: 0 | BD29: 0 | BE29: 139.7958885 | BF29: 2.312696081 | BG29: 0.0016094401 | BH29: 0 | BI29: 0.6597150896 | BJ29: 0.0114680238 | BK29: 24.71838112 | BL29: 0.2213270196 | BM29: . | BN29: 0 | BO29: . | BP29: 0 | BQ29: 7.268056724 | BR29: 0.0104751138 | BS29: 8.660793367 | BT29: 0.0246305321 | BU29: . | BV29: 0 | BW29: . | BX29: 0 | BY29: . | BZ29: 0 | CA29: . | CB29: 0 | CC29: 0.0683539651 | CD29: 0.0009181939 | CE29: 0.1211447768 | CF29: 0.0012810091 | CG29: 1.994907828 | CH29: 0.0258642614 | CI29: 28.58513106 | CJ29: 0.7926574118 | CK29: . | CL29: 0 | CM29: . | CN29: 0 | CO29: 28.56514086 | CP29: 0.7726538046 | CQ29: 34.38628363 | CR29: 1.70144397 | CS29: 12.73236782 | CT29: 0.8531479084 | CU29: 127.0635207 | CV29: 1.459548173 | CW29: 0.0008244875 | CX29: 0.0013974662 | CY29: 0.0015430452 | CZ29: 0.0015654215 | DA29: 0.0015721864 | DB29: 0.0015745217 | DC29: 0.001576857 | DD29: 0.0015791922 | DE29: 0.0015798956 | DF29: 0.0015805991 | DG29: 80.74478114 | DH29: 0.6420207044 | DI29: 40.49705865 | DJ29: 0.3364548465 | DK29: 20.03661952 | DL29: 0.1744926047 | DM29: 9.90992182 | DN29: 0.0918405165 | DO29: 5.037516539 | DP29: 0.0508382013 | DQ29: 2.672958465 | DR29: 0.0302297676 | DS29: 1.502153189 | DT29: 0.0195794925 | DU29: 0.9032184016 | DV29: 0.013770475 | DW29: 0.5871681338 | DX29: 0.0104004976 | DY29: 0.4050190507 | DZ29: 0.0082356131
A30: 2500 | B30: 12901 | C30: 1321.771653 | D30: 2449.790904 | E30: 54.94673922 | F30: 0.081886489 | G30: 1.341508402 | H30: 0.000944495 | I30: 158.0624222 | J30: 1.189859091 | K30: 83.21970596 | L30: 0.5989695703 | M30: 26.43996777 | N30: 0.2416434665 | O30: . | P30: 0 | Q30: 17.36108165 | R30: 0.0377308783 | S30: . | T30: 0 | U30: . | V30: 0 | W30: 0.1972354994 | X30: 0.0023420443 | Y30: 32.2061721 | Z30: 0.8598601559 | AA30: . | AB30: 0 | AC30: 0.0003760905 | AD30: 2.7757837e-06 | AE30: . | AF30: 0 | AG30: . | AH30: 0 | AI30: 0.0003760905 | AJ30: 2.7757837e-06 | AK30: 105.6087948 | AL30: 1.779652252 | AM30: . | AN30: 0 | AO30: . | AP30: 0 | AQ30: . | AR30: 0 | AS30: 64.58819224 | AT30: 2.518473142 | AU30: 50.24314249 | AV30: 0.4895089718 | AW30: 23.0275904 | AX30: 0.2994457198 | AY30: 7.007136008 | AZ30: 0.0697761051 | BA30: 20.20841608 | BB30: 0.1202871469 | BC30: 0 | BD30: 0 | BE30: 144.8169454 | BF30: 2.368421091 | BG30: 0.0018470041 | BH30: 0 | BI30: 0.6827948574 | BJ30: 0.0117827297 | BK30: 25.75717291 | BL30: 0.2298607369 | BM30: . | BN30: 0 | BO30: . | BP30: 0 | BQ30: 8.046585337 | BR30: 0.0113842434 | BS30: 9.314496309 | BT30: 0.0263466349 | BU30: . | BV30: 0 | BW30: . | BX30: 0 | BY30: . | BZ30: 0 | CA30: . | CB30: 0 | CC30: 0.0718087733 | CD30: 0.0010247363 | CE30: 0.125426726 | CF30: 0.001317308 | CG30: 2.165884928 | CH30: 0.0278789428 | CI30: 30.04028717 | CJ30: 0.831981213 | CK30: . | CL30: 0 | CM30: . | CN30: 0 | CO30: 29.36919982 | CP30: 0.7898129395 | CQ30: 35.21899242 | CR30: 1.728660203 | CS30: 13.6944243 | CT30: 0.874297613 | CU30: 131.1225211 | CV30: 1.494123478 | CW30: 0.0009380239 | CX30: 0.0016040147 | CY30: 0.0017744563 | CZ30: 0.0018010082 | DA30: 0.0018096104 | DB30: 0.0018125394 | DC30: 0.0018148519 | DD30: 0.0018171645 | DE30: 0.0018178584 | DF30: 0.0018185523 | DG30: 82.1968645 | DH30: 0.6533762437 | DI30: 41.52503111 | DJ30: 0.3448760192 | DK30: 20.72357746 | DL30: 0.1804404143 | DM30: 10.35461241 | DN30: 0.0959582408 | DO30: 5.323213135 | DP30: 0.0537078116 | DQ30: 2.862643874 | DR30: 0.0323161437 | DS30: 1.632479035 | DT30: 0.0211634722 | DU30: 0.9946100877 | DV30: 0.0150095364 | DW30: 0.6533330678 | DX30: 0.0114034517 | DY30: 0.4547487981 | DZ30: 0.0090762358
A31: 2600 | B31: 12548 | C31: 1354.974956 | D31: 2549.500562 | E31: 57.53129343 | F31: 0.084294386 | G31: 1.563949776 | H31: 0.001063333 | I31: 159.9281453 | J31: 1.203819197 | K31: 85.10350858 | L31: 0.6132849754 | M31: 27.45474269 | N31: 0.2502421698 | O31: . | P31: 0 | Q31: 18.80215578 | R31: 0.040396868 | S31: . | T31: 0 | U31: . | V31: 0 | W31: 0.2205429187 | X31: 0.0027107704 | Y31: 33.92160073 | Z31: 0.9021193429 | AA31: . | AB31: 0 | AC31: 0.0003709159 | AD31: 2.7375923e-06 | AE31: . | AF31: 0 | AG31: . | AH31: 0 | AI31: 0.0003709159 | AJ31: 2.7375923e-06 | AK31: 108.2096227 | AL31: 1.802732079 | AM31: . | AN31: 0 | AO31: . | AP31: 0 | AQ31: . | AR31: 0 | AS31: 66.21595131 | AT31: 2.56340932 | AU31: 52.16425438 | AV31: 0.5032406649 | AW31: 23.89845303 | AX31: 0.3080358177 | AY31: 7.199660667 | AZ31: 0.0711863412 | BA31: 21.06614069 | BB31: 0.124018506 | BC31: 0 | BD31: 0 | BE31: 149.7807985 | BF31: 2.422510172 | BG31: 0.0020762913 | BH31: 0 | BI31: 0.709595316 | BJ31: 0.0121909155 | BK31: 26.74514737 | BL31: 0.2380512544 | BM31: . | BN31: 0 | BO31: . | BP31: 0 | BQ31: 8.861651382 | BR31: 0.0123529544 | BS31: 9.940504402 | BT31: 0.0280439136 | BU31: . | BV31: 0 | BW31: . | BX31: 0 | BY31: . | BZ31: 0 | CA31: . | CB31: 0 | CC31: 0.0797200873 | CD31: 0.0012253764 | CE31: 0.1408228314 | CF31: 0.001485394 | CG31: 2.332693479 | CH31: 0.0296003246 | CI31: 31.58890725 | CJ31: 0.8725190183 | CK31: . | CL31: 0 | CM31: . | CN31: 0 | CO31: 30.17598014 | CP31: 0.8074369513 | CQ31: 36.03997117 | CR31: 1.755972369 | CS31: 14.70356601 | CT31: 0.895654764 | CU31: 135.0772325 | CV31: 1.526855408 | CW31: 0.0010569434 | CX31: 0.0018124947 | CY31: 0.0020007513 | CZ31: 0.0020308602 | DA31: 0.0020393844 | DB31: 0.002042283 | DC31: 0.0020445726 | DD31: 0.0020468622 | DE31: 0.0020475466 | DF31: 0.002048231 | DG31: 83.67313966 | DH31: 0.6647584363 | DI31: 42.57376475 | DJ31: 0.3533207195 | DK31: 21.42423618 | DL31: 0.1863755446 | DM31: 10.80707487 | DN31: 0.1000276157 | DO31: 5.614476323 | DP31: 0.0565242763 | DQ31: 3.048355329 | DR31: 0.0342902569 | DS31: 1.755561961 | DT31: 0.0226151852 | DU31: 1.07843955 | DV31: 0.0161239381 | DW31: 0.7111188542 | DX31: 0.0122791831 | DY31: 0.4959787465 | DZ31: 0.0097884517
A32: 2700 | B32: 12052 | C32: 1387.339219 | D32: 2649.966986 | E32: 60.0651788 | F32: 0.0864943711 | G32: 1.805164568 | H32: 0.0011886626 | I32: 161.6850892 | J32: 1.217413215 | K32: 86.88335013 | L32: 0.6268180267 | M32: 28.4500201 | N32: 0.2587244138 | O32: . | P32: 0 | Q32: 20.2887732 | R32: 0.0430703145 | S32: . | T32: 0 | U32: . | V32: 0 | W32: 0.2370735045 | X32: 0.0028915701 | Y32: 35.53627507 | Z32: 0.9435719646 | AA32: . | AB32: 0 | AC32: 0.000366479 | AD32: 2.7048454e-06 | AE32: . | AF32: 0 | AG32: . | AH32: 0 | AI32: 0.000366479 | AJ32: 2.7048454e-06 | AK32: 110.9022866 | AL32: 1.825781164 | AM32: . | AN32: 0 | AO32: . | AP32: 0 | AQ32: . | AR32: 0 | AS32: 67.82450195 | AT32: 2.607530709 | AU32: 54.03339219 | AV32: 0.5166705639 | AW32: 24.72276065 | AX32: 0.3163368698 | AY32: 7.399830902 | AZ32: 0.0725707321 | BA32: 21.91080064 | BB32: 0.127762962 | BC32: 0 | BD32: 0 | BE32: 154.8569234 | BF32: 2.476102322 | BG32: 0.0023286975 | BH32: 0 | BI32: 0.7388943777 | BJ32: 0.012682069 | BK32: 27.71112572 | BL32: 0.2460423448 | BM32: . | BN32: 0 | BO32: . | BP32: 0 | BQ32: 9.740419098 | BR32: 0.0133195245 | BS32: 10.5483541 | BT32: 0.02975079 | BU32: . | BV32: 0 | BW32: . | BX32: 0 | BY32: . | BZ32: 0 | CA32: . | CB32: 0 | CC32: 0.0843023312 | CD32: 0.0012931873 | CE32: 0.1527711733 | CF32: 0.0015983827 | CG32: 2.510307029 | CH32: 0.031569802 | CI32: 33.02596804 | CJ32: 0.9120021626 | CK32: . | CL32: 0 | CM32: . | CN32: 0 | CO32: 30.96489565 | CP32: 0.824592426 | CQ32: 36.8596063 | CR32: 1.782938283 | CS32: 15.74833092 | CT32: 0.9165921906 | CU32: 139.1085925 | CV32: 1.559510131 | CW32: 0.0011823456 | CX32: 0.0020363447 | CY32: 0.0022502708 | CZ32: 0.0022825514 | DA32: 0.0022916082 | DB32: 0.0022950818 | DC32: 0.0022973511 | DD32: 0.0022996204 | DE32: 0.0023002966 | DF32: 0.0023009728 | DG32: 85.09115243 | DH32: 0.6760310391 | DI32: 43.59468491 | DJ32: 0.3618127583 | DK32: 22.11155618 | DL32: 0.1924231928 | DM32: 11.26290156 | DN32: 0.104305695 | DO32: 5.915128153 | DP32: 0.0595789118 | DQ32: 3.245057075 | DR32: 0.0365044671 | DS32: 1.887545603 | DT32: 0.0242727876 | DU32: 1.170538055 | DV32: 0.0174215655 | DW32: 0.77739726 | DX32: 0.0133309018 | DY32: 0.5449792517 | DZ32: 0.0106625019
A33: 2800 | B33: 11565 | C33: 1418.837458 | D33: 2749.184012 | E33: 62.49117308 | F33: 0.0885386082 | G33: 2.074554873 | H33: 0.0013245561 | I33: 163.3416184 | J33: 1.229806097 | K33: 88.60184073 | L33: 0.6401486931 | M33: 29.53700221 | N33: 0.267875602 | O33: . | P33: 0 | Q33: 21.75157199 | R33: 0.0457517324 | S33: . | T33: 0 | U33: . | V33: 0 | W33: 0.258429561 | X33: 0.0031664222 | Y33: 37.23870959 | Z33: 0.9862488321 | AA33: . | AB33: 0 | AC33: 0.0003623892 | AD33: 2.6746599e-06 | AE33: . | AF33: 0 | AG33: . | AH33: 0 | AI33: 0.0003623892 | AJ33: 2.6746599e-06 | AK33: 113.5349411 | AL33: 1.847890031 | AM33: . | AN33: 0 | AO33: . | AP33: 0 | AQ33: . | AR33: 0 | AS33: 69.38635939 | AT33: 2.649255321 | AU33: 55.86876798 | AV33: 0.5296473054 | AW33: 25.53717665 | AX33: 0.3243827671 | AY33: 7.588694447 | AZ33: 0.0739087075 | BA33: 22.74289689 | BB33: 0.1313558308 | BC33: 0 | BD33: 0 | BE33: 159.890432 | BF33: 2.528160121 | BG33: 0.0026061417 | BH33: 0 | BI33: 0.7678935455 | BJ33: 0.0131087849 | BK33: 28.76910866 | BL33: 0.2547668171 | BM33: . | BN33: 0 | BO33: . | BP33: 0 | BQ33: 10.57642946 | BR33: 0.0142679789 | BS33: 11.17514253 | BT33: 0.0314837534 | BU33: . | BV33: 0 | BW33: . | BX33: 0 | BY33: . | BZ33: 0 | CA33: . | CB33: 0 | CC33: 0.0899219035 | CD33: 0.0014283361 | CE33: 0.1685076575 | CF33: 0.0017380861 | CG33: 2.666430051 | CH33: 0.0335570786 | CI33: 34.57227954 | CJ33: 0.9526917535 | CK33: . | CL33: 0 | CM33: . | CN33: 0 | CO33: 31.73572523 | CP33: 0.8411917864 | CQ33: 37.65063416 | CR33: 1.808063534 | CS33: 16.84081921 | CT33: 0.9375601311 | CU33: 143.0496127 | CV33: 1.59059999 | CW33: 0.0013183081 | CX33: 0.0022790321 | CY33: 0.002516416 | CZ33: 0.0025524622 | DA33: 0.0025636791 | DB33: 0.0025693527 | DC33: 0.0025738355 | DD33: 0.0025767372 | DE33: 0.0025780578 | DF33: 0.0025787264 | DG33: 86.42669365 | DH33: 0.6862658825 | DI33: 44.55617376 | DJ33: 0.3694361729 | DK33: 22.75771488 | DL33: 0.1977611766 | DM33: 11.6855787 | DN33: 0.1079598784 | DO33: 6.185889393 | DP33: 0.0620521904 | DQ33: 3.419010397 | DR33: 0.0382080889 | DS33: 2.003347693 | DT33: 0.0254928483 | DU33: 1.247900226 | DV33: 0.0183138164 | DW33: 0.8301809329 | DX33: 0.0140049013 | DY33: 0.5825178876 | DZ33: 0.0111899221
A34: 2900 | B34: 11019 | C34: 1449.647545 | D34: 2849.837358 | E34: 64.95670586 | F34: 0.0906290563 | G34: 2.355418543 | H34: 0.0014637615 | I34: 164.886791 | J34: 1.241449157 | K34: 90.28446533 | L34: 0.6528385653 | M34: 30.54258637 | N34: 0.2765137872 | O34: . | P34: 0 | Q34: 23.24710098 | R34: 0.0483308172 | S34: . | T34: 0 | U34: . | V34: 0 | W34: 0.270301895 | X34: 0.0033093607 | Y34: 38.8582768 | Z34: 1.025912309 | AA34: . | AB34: 0 | AC34: 0.0003583733 | AD34: 2.6450201e-06 | AE34: . | AF34: 0 | AG34: . | AH34: 0 | AI34: 0.0003583733 | AJ34: 2.6450201e-06 | AK34: 115.9970402 | AL34: 1.868306697 | AM34: . | AN34: 0 | AO34: . | AP34: 0 | AQ34: . | AR34: 0 | AS34: 70.84808293 | AT34: 2.687379439 | AU34: 57.70822378 | AV34: 0.542093529 | AW34: 26.36280135 | AX34: 0.332125388 | AY34: 7.780967106 | AZ34: 0.0752008836 | BA34: 23.56445532 | BB34: 0.1347672574 | BC34: 0 | BD34: 0 | BE34: 164.8260983 | BF34: 2.577757676 | BG34: 0.002885781 | BH34: 0 | BI34: 0.8018444121 | BJ34: 0.0135887034 | BK34: 29.74074196 | BL34: 0.2629250838 | BM34: . | BN34: 0 | BO34: . | BP34: 0 | BQ34: 11.45184212 | BR34: 0.0151947964 | BS34: 11.79525886 | BT34: 0.0331360209 | BU34: . | BV34: 0 | BW34: . | BX34: 0 | BY34: . | BZ34: 0 | CA34: . | CB34: 0 | CC34: 0.0974516242 | CD34: 0.0015274472 | CE34: 0.1728502708 | CF34: 0.0017819135 | CG34: 2.851339638 | CH34: 0.0354094658 | CI34: 36.00693716 | CJ34: 0.9905028429 | CK34: . | CL34: 0 | CM34: . | CN34: 0 | CO34: 32.44475064 | CP34: 0.8563815037 | CQ34: 38.40333229 | CR34: 1.830997935 | CS34: 18.02639711 | CT34: 0.9582544792 | CU34: 146.7997012 | CV34: 1.619503197 | CW34: 0.0014575789 | CX34: 0.0025257855 | CY34: 0.0027911924 | CZ34: 0.0028326353 | DA34: 0.0028437639 | DB34: 0.0028493862 | DC34: 0.0028538306 | DD34: 0.0028567046 | DE34: 0.0028580082 | DF34: 0.0028586695 | DG34: 87.67916183 | DH34: 0.6959085398 | DI34: 45.46328978 | DJ34: 0.376682519 | DK34: 23.37028532 | DL34: 0.2028727653 | DM34: 12.08491993 | DN34: 0.111477977 | DO34: 6.445125612 | DP34: 0.0644759572 | DQ34: 3.591935852 | DR34: 0.0399369098 | DS34: 2.120850012 | DT34: 0.0267650893 | DU34: 1.328957515 | DV34: 0.0192794376 | DW34: 0.8855961711 | DX34: 0.0147489485 | DY34: 0.6216308182 | DZ34: 0.0117845457
A35: 3000 | B35: 10560 | C35: 1479.666772 | D35: 2949.010179 | E35: 67.31826539 | F35: 0.0925679481 | G35: 2.664528773 | H35: 0.0016164752 | I35: 166.2835262 | J35: 1.251877738 | K35: 91.9128736 | L35: 0.6651604049 | M35: 31.48128895 | N35: 0.2844795701 | O35: . | P35: 0 | Q35: 24.73664699 | R35: 0.0509038168 | S35: . | T35: 0 | U35: . | V35: 0 | W35: 0.2858992418 | X35: 0.0034654629 | Y35: 40.50274228 | Z35: 1.065952809 | AA35: . | AB35: 0 | AC35: 0.0004518322 | AD35: 3.2729899e-06 | AE35: . | AF35: 0 | AG35: . | AH35: 0 | AI35: 0.0004518322 | AJ35: 3.2729899e-06 | AK35: 118.3519458 | AL35: 1.887018484 | AM35: . | AN35: 0 | AO35: . | AP35: 0 | AQ35: . | AR35: 0 | AS35: 72.33609334 | AT35: 2.724307852 | AU35: 59.38532431 | AV35: 0.5537518687 | AW35: 27.0832451 | AX35: 0.3393813417 | AY35: 7.938941489 | AZ35: 0.0762758745 | BA35: 24.36313772 | BB35: 0.1380946525 | BC35: 0 | BD35: 0 | BE35: 169.8863918 | BF35: 2.626665529 | BG35: 0.0031953689 | BH35: 0 | BI35: 0.823639334 | BJ35: 0.0138857736 | BK35: 30.65764962 | BL35: 0.2705937965 | BM35: . | BN35: 0 | BO35: . | BP35: 0 | BQ35: 12.30956296 | BR35: 0.0161248751 | BS35: 12.42708403 | BT35: 0.0347789418 | BU35: . | BV35: 0 | BW35: . | BX35: 0 | BY35: . | BZ35: 0 | CA35: . | CB35: 0 | CC35: 0.1084459755 | CD35: 0.0016471648 | CE35: 0.1774532663 | CF35: 0.0018182981 | CG35: 3.046073743 | CH35: 0.0376397715 | CI35: 37.45666853 | CJ35: 1.028313037 | CK35: . | CL35: 0 | CM35: . | CN35: 0 | CO35: 33.20249255 | CP35: 0.8719280353 | CQ35: 39.13360079 | CR35: 1.852379817 | CS35: 19.27274056 | CT35: 0.9788721009 | CU35: 150.6136512 | CV35: 1.647793428 | CW35: 0.001610352 | CX35: 0.0027958604 | CY35: 0.003094339 | CZ35: 0.0031427074 | DA35: 0.0031537555 | DB35: 0.0031593308 | DC35: 0.0031637396 | DD35: 0.0031665879 | DE35: 0.0031678758 | DF35: 0.0031685304 | DG35: 88.81225758 | DH35: 0.7045009578 | DI35: 46.2691366 | DJ35: 0.3829844905 | DK35: 23.90671467 | DL35: 0.207211254 | DM35: 12.42536913 | DN35: 0.1143509439 | DO35: 6.656448243 | DP35: 0.0663612009 | DQ35: 3.724094632 | DR35: 0.0411948335 | DS35: 2.204079321 | DT35: 0.0276144755 | DU35: 1.383095841 | DV35: 0.0198808643 | DW35: 0.921948304 | DX35: 0.0151899821 | DY35: 0.646725651 | DZ35: 0.0121201765
A36: 3100 | B36: 10141 | C36: 1508.90203 | D36: 3049.805221 | E36: 69.5351265 | F36: 0.0943743253 | G36: 2.986078111 | H36: 0.0017728832 | I36: 167.6232376 | J36: 1.262385782 | K36: 93.52688809 | L36: 0.6771925704 | M36: 32.54615394 | N36: 0.2931164816 | O36: . | P36: 0 | Q36: 26.25871437 | R36: 0.0535821324 | S36: . | T36: 0 | U36: . | V36: 0 | W36: 0.3055658257 | X36: 0.0036503402 | Y36: 42.07430198 | Z36: 1.103848988 | AA36: . | AB36: 0 | AC36: 0.000447649 | AD36: 3.2426872e-06 | AE36: . | AF36: 0 | AG36: . | AH36: 0 | AI36: 0.000447649 | AJ36: 3.2426872e-06 | AK36: 120.6301914 | AL36: 1.904737679 | AM36: . | AN36: 0 | AO36: . | AP36: 0 | AQ36: . | AR36: 0 | AS36: 73.70565654 | AT36: 2.758892128 | AU36: 61.08410301 | AV36: 0.5648941558 | AW36: 27.83390421 | AX36: 0.3462208461 | AY36: 8.080462828 | AZ36: 0.0772850697 | BA36: 25.16973597 | BB36: 0.14138824 | BC36: 0 | BD36: 0 | BE36: 174.9402635 | BF36: 2.674365161 | BG36: 0.0035337998 | BH36: 0 | BI36: 0.8495676618 | BJ36: 0.0141478166 | BK36: 31.69658628 | BL36: 0.2789686651 | BM36: . | BN36: 0 | BO36: . | BP36: 0 | BQ36: 13.23486802 | BR36: 0.0171118027 | BS36: 13.02384635 | BT36: 0.0364703297 | BU36: . | BV36: 0 | BW36: . | BX36: 0 | BY36: . | BZ36: 0 | CA36: . | CB36: 0 | CC36: 0.1141622021 | CD36: 0.001696394 | CE36: 0.1914036236 | CF36: 0.0019539462 | CG36: 3.232817134 | CH36: 0.0397620967 | CI36: 38.84148484 | CJ36: 1.064086891 | CK36: . | CL36: 0 | CM36: . | CN36: 0 | CO36: 33.86910021 | CP36: 0.8865327513 | CQ36: 39.83655633 | CR36: 1.872359377 | CS36: 20.57879265 | CT36: 0.9994371583 | CU36: 154.3614708 | CV36: 1.674928003 | CW36: 0.0017656611 | CX36: 0.0030812036 | CY36: 0.003416136 | CZ36: 0.0034741638 | DA36: 0.003489044 | DB36: 0.0034957773 | DC36: 0.0035007303 | DD36: 0.0035041324 | DE36: 0.0035059836 | DF36: 0.0035072098 | DG36: 89.91671194 | DH36: 0.7133289043 | DI36: 47.07756283 | DJ36: 0.3897057973 | DK36: 24.46547146 | DL36: 0.2120927951 | DM36: 12.80254124 | DN36: 0.1178495748 | DO36: 6.908311317 | DP36: 0.0688807673 | DQ36: 3.893688345 | DR36: 0.0430489346 | DS36: 2.321635582 | DT36: 0.0290338295 | DU36: 1.467718021 | DV36: 0.0210110352 | DW36: 0.9847266505 | DX36: 0.0161174462 | DY36: 0.6949033676 | DZ36: 0.0129012222
A37: 3200 | B37: 9768 | C37: 1537.579027 | D37: 3149.441562 | E37: 71.8410544 | F37: 0.09620011 | G37: 3.268509635 | H37: 0.0019110863 | I37: 168.9722292 | J37: 1.272804902 | K37: 95.03864544 | L37: 0.6884875116 | M37: 33.55594118 | N37: 0.3022893753 | O37: . | P37: 0 | Q37: 27.85136853 | R37: 0.0562625608 | S37: . | T37: 0 | U37: . | V37: 0 | W37: 0.318582251 | X37: 0.0037991018 | Y37: 43.5822767 | Z37: 1.141034009 | AA37: . | AB37: 0 | AC37: 0.000443346 | AD37: 3.2115172e-06 | AE37: . | AF37: 0 | AG37: . | AH37: 0 | AI37: 0.000443346 | AJ37: 3.2115172e-06 | AK37: 122.8496207 | AL37: 1.922641409 | AM37: . | AN37: 0 | AO37: . | AP37: 0 | AQ37: . | AR37: 0 | AS37: 75.08393162 | AT37: 2.794002722 | AU37: 62.78267053 | AV37: 0.5761720726 | AW37: 28.56516891 | AX37: 0.353107569 | AY37: 8.249065888 | AZ37: 0.0784252387 | BA37: 25.96843572 | BB37: 0.1446392649 | BC37: 0 | BD37: 0 | BE37: 179.8392453 | BF37: 2.720464419 | BG37: 0.0038112305 | BH37: 0 | BI37: 0.8796941157 | BJ37: 0.0146123379 | BK37: 32.67624707 | BL37: 0.2876770374 | BM37: . | BN37: 0 | BO37: . | BP37: 0 | BQ37: 14.16849509 | BR37: 0.0180859806 | BS37: 13.68287344 | BT37: 0.0381765802 | BU37: . | BV37: 0 | BW37: . | BX37: 0 | BY37: . | BZ37: 0 | CA37: . | CB37: 0 | CC37: 0.1218215606 | CD37: 0.0017624691 | CE37: 0.1967606904 | CF37: 0.0020366327 | CG37: 3.449646446 | CH37: 0.0420193376 | CI37: 40.13263026 | CJ37: 1.099014671 | CK37: . | CL37: 0 | CM37: . | CN37: 0 | CO37: 34.53678642 | CP37: 0.9010174909 | CQ37: 40.5471452 | CR37: 1.892985231 | CS37: 21.90643951 | CT37: 1.019202041 | CU37: 157.9328058 | CV37: 1.701262377 | CW37: 0.001903927 | CX37: 0.0033302497 | CY37: 0.0036897814 | CZ37: 0.0037503811 | DA37: 0.0037663067 | DB37: 0.0037735585 | DC37: 0.0037784745 | DD37: 0.0037818486 | DE37: 0.0037836808 | DF37: 0.0037848961 | DG37: 91.02220235 | DH37: 0.7220855674 | DI37: 47.88903703 | DJ37: 0.3964069636 | DK37: 25.02372911 | DL37: 0.2169505933 | DM37: 13.17396426 | DN37: 0.1213106098 | DO37: 7.154674931 | DP37: 0.071370502 | DQ37: 4.061413553 | DR37: 0.0449040899 | DS37: 2.440304809 | DT37: 0.0304771517 | DU37: 1.554440604 | DV37: 0.0221770426 | DW37: 1.048068952 | DX37: 0.0170732802 | DY37: 0.7428850642 | DZ37: 0.013709995
A38: 3300 | B38: 9233 | C38: 1565.463932 | D38: 3249.873339 | E38: 73.93394863 | F38: 0.0978674879 | G38: 3.559725989 | H38: 0.0020489794 | I38: 170.2453405 | J38: 1.282593945 | K38: 96.50855733 | L38: 0.6996074436 | M38: 34.49538977 | N38: 0.3101878429 | O38: . | P38: 0 | Q38: 29.34729238 | R38: 0.0588345714 | S38: . | T38: 0 | U38: . | V38: 0 | W38: 0.3411405635 | X38: 0.0040151673 | Y38: 45.24014898 | Z38: 1.180882709 | AA38: . | AB38: 0 | AC38: 0.0004396844 | AD38: 3.1849932e-06 | AE38: . | AF38: 0 | AG38: . | AH38: 0 | AI38: 0.0004396844 | AJ38: 3.1849932e-06 | AK38: 125.0447104 | AL38: 1.939185978 | AM38: . | AN38: 0 | AO38: . | AP38: 0 | AQ38: . | AR38: 0 | AS38: 76.42033715 | AT38: 2.826182531 | AU38: 64.35186304 | AV38: 0.5865912068 | AW38: 29.21880719 | AX38: 0.3594851603 | AY38: 8.402095698 | AZ38: 0.0794233043 | BA38: 26.73096015 | BB38: 0.1476827422 | BC38: 0 | BD38: 0 | BE38: 184.6993236 | BF38: 2.76422519 | BG38: 0.0041035856 | BH38: 0 | BI38: 0.8992558307 | BJ38: 0.0149076824 | BK38: 33.59613394 | BL38: 0.2952801605 | BM38: . | BN38: 0 | BO38: . | BP38: 0 | BQ38: 15.03689909 | BR38: 0.0190015886 | BS38: 14.31039329 | BT38: 0.0398329827 | BU38: . | BV38: 0 | BW38: . | BX38: 0 | BY38: . | BZ38: 0 | CA38: . | CB38: 0 | CC38: 0.1314776665 | CD38: 0.0018522723 | CE38: 0.209662897 | CF38: 0.002162895 | CG38: 3.678069075 | CH38: 0.04426204 | CI38: 41.56207991 | CJ38: 1.136620669 | CK38: . | CL38: 0 | CM38: . | CN38: 0 | CO38: 35.18350982 | CP38: 0.9139118095 | CQ38: 41.23682734 | CR38: 1.912270721 | CS38: 23.22027371 | CT38: 1.037875874 | CU38: 161.4790499 | CV38: 1.726349316 | CW38: 0.0020413099 | CX38: 0.0035819664 | CY38: 0.0039742882 | CZ38: 0.0040432022 | DA38: 0.0040590212 | DB38: 0.0040662177 | DC38: 0.0040711003 | DD38: 0.0040744489 | DE38: 0.0040762635 | DF38: 0.0040774687 | DG38: 92.06197537 | DH38: 0.7302364657 | DI38: 48.65307868 | DJ38: 0.4025946706 | DK38: 25.55357342 | DL38: 0.2213997685 | DM38: 13.52999017 | DN38: 0.1244250908 | DO38: 7.391511965 | DP38: 0.0735530141 | DQ38: 4.221846546 | DR38: 0.0464738999 | DS38: 2.552317055 | DT38: 0.0316425163 | DU38: 1.634251166 | DV38: 0.0230698566 | DW38: 1.10827182 | DX38: 0.0177931847 | DY38: 0.7879194072 | DZ38: 0.0142912509
A39: 3400 | B39: 9039 | C39: 1592.896766 | D39: 3349.78129 | E39: 76.17458406 | F39: 0.0995516224 | G39: 3.891890973 | H39: 0.0022051119 | I39: 171.4403741 | J39: 1.291715256 | K39: 97.9800281 | L39: 0.7101106258 | M39: 35.42410493 | N39: 0.3178929519 | O39: . | P39: 0 | Q39: 30.91570828 | R39: 0.0614207531 | S39: . | T39: 0 | U39: . | V39: 0 | W39: 0.3518280519 | X39: 0.0041435951 | Y39: 46.84109022 | Z39: 1.219841215 | AA39: . | AB39: 0 | AC39: 0.0005066174 | AD39: 3.7245631e-06 | AE39: . | AF39: 0 | AG39: . | AH39: 0 | AI39: 0.0005066174 | AJ39: 3.7245631e-06 | AK39: 127.2272354 | AL39: 1.955704588 | AM39: . | AN39: 0 | AO39: . | AP39: 0 | AQ39: . | AR39: 0 | AS39: 77.78557856 | AT39: 2.859277685 | AU39: 65.92388765 | AV39: 0.5969333312 | AW39: 29.8888109 | AX39: 0.3658033814 | AY39: 8.543572749 | AZ39: 0.0804469038 | BA39: 27.491504 | BB39: 0.150683046 | BC39: 0 | BD39: 0 | BE39: 189.6133379 | BF39: 2.80848535 | BG39: 0.0044563554 | BH39: 0 | BI39: 0.9253949921 | BJ39: 0.0152837877 | BK39: 34.49870994 | BL39: 0.3026091642 | BM39: . | BN39: 0 | BO39: . | BP39: 0 | BQ39: 15.94388751 | BR39: 0.01991697 | BS39: 14.97182076 | BT39: 0.0415037831 | BU39: . | BV39: 0 | BW39: . | BX39: 0 | BY39: . | BZ39: 0 | CA39: . | CB39: 0 | CC39: 0.135608198 | CD39: 0.0019088682 | CE39: 0.2162198539 | CF39: 0.002234727 | CG39: 3.856476136 | CH39: 0.0460434105 | CI39: 42.98461408 | CJ39: 1.173797804 | CK39: . | CL39: 0 | CM39: . | CN39: 0 | CO39: 35.86175343 | CP39: 0.9273484238 | CQ39: 41.92382513 | CR39: 1.931929261 | CS39: 24.64682862 | CT39: 1.056919763 | CU39: 164.9665093 | CV39: 1.751565587 | CW39: 0.0021950289 | CX39: 0.0038697453 | CY39: 0.0042996941 | CZ39: 0.0043760888 | DA39: 0.00439431 | DB39: 0.0044039566 | DC39: 0.0044100834 | DD39: 0.004414684 | DE39: 0.0044177586 | DF39: 0.0044202305 | DG39: 93.04189544 | DH39: 0.737872328 | DI39: 49.36023592 | DJ39: 0.4083333483 | DK39: 26.03324358 | DL39: 0.2254962313 | DM39: 13.84246247 | DN39: 0.1272580478 | DO39: 7.596888267 | DP39: 0.0755605459 | DQ39: 4.360457566 | DR39: 0.0479403936 | DS39: 2.647539051 | DT39: 0.0327478035 | DU39: 1.698872248 | DV39: 0.0239035121 | DW39: 1.155246458 | DX39: 0.018460273 | DY39: 0.8227691208 | DZ39: 0.0148381314
A40: 3500 | B40: 8538 | C40: 1619.706688 | D40: 3449.4302 | E40: 78.34721181 | F40: 0.1011163132 | G40: 4.228300191 | H40: 0.002358996 | I40: 172.581122 | J40: 1.300578972 | K40: 99.33847202 | L40: 0.7203001207 | M40: 36.34906712 | N40: 0.3254102005 | O40: . | P40: 0 | Q40: 32.36525363 | R40: 0.0639334214 | S40: . | T40: 0 | U40: . | V40: 0 | W40: 0.3707336679 | X40: 0.0043215368 | Y40: 48.29710336 | Z40: 1.254688389 | AA40: . | AB40: 0 | AC40: 0.0005024847 | AD40: 3.6942141e-06 | AE40: . | AF40: 0 | AG40: . | AH40: 0 | AI40: 0.0005024847 | AJ40: 3.6942141e-06 | AK40: 129.2633979 | AL40: 1.970723499 | AM40: . | AN40: 0 | AO40: . | AP40: 0 | AQ40: . | AR40: 0 | AS40: 79.05555964 | AT40: 2.890749549 | AU40: 67.3790794 | AV40: 0.6066703232 | AW40: 30.52049203 | AX40: 0.3717381013 | AY40: 8.687373798 | AZ40: 0.0814015424 | BA40: 28.17121358 | BB40: 0.1535306795 | BC40: 0 | BD40: 0 | BE40: 194.5980489 | BF40: 2.84990173 | BG40: 0.0047960288 | BH40: 0 | BI40: 0.9433451188 | BJ40: 0.0154933529 | BK40: 35.405722 | BL40: 0.3099168476 | BM40: . | BN40: 0 | BO40: . | BP40: 0 | BQ40: 16.80480709 | BR40: 0.0208079018 | BS40: 15.56044654 | BT40: 0.0431255196 | BU40: . | BV40: 0 | BW40: . | BX40: 0 | BY40: . | BZ40: 0 | CA40: . | CB40: 0 | CC40: 0.1433879022 | CD40: 0.0019889395 | CE40: 0.2273457657 | CF40: 0.0023325973 | CG40: 4.043634282 | CH40: 0.0478116672 | CI40: 44.25346908 | CJ40: 1.206876722 | CK40: . | CL40: 0 | CM40: . | CN40: 0 | CO40: 36.47405223 | CP40: 0.9401785601 | CQ40: 42.58150741 | CR40: 1.950570989 | CS40: 26.11194795 | CT40: 1.075078837 | CU40: 168.486101 | CV40: 1.774822892 | CW40: 0.0023454335 | CX40: 0.004147261 | CY40: 0.0046137091 | CZ40: 0.0047000426 | DA40: 0.0047230647 | DB40: 0.004736999 | DC40: 0.0047454548 | DD40: 0.0047523919 | DE40: 0.0047578106 | DF40: 0.0047602558 | DG40: 93.98740344 | DH40: 0.7453472958 | DI40: 50.0572383 | DJ40: 0.4140654444 | DK40: 26.51440661 | DL40: 0.229663348 | DM40: 14.16897152 | DN40: 0.1302731267 | DO40: 7.817127769 | DP40: 0.0777648768 | DQ40: 4.513180438 | DR40: 0.0496145445 | DS40: 2.755929635 | DT40: 0.0340590384 | DU40: 1.778972297 | DV40: 0.0249719031 | DW40: 1.216129152 | DX40: 0.0193582628 | DY40: 0.8709504258 | DZ40: 0.0156149188
A41: 3600 | B41: 8476 | C41: 1645.978256 | D41: 3550.014915 | E41: 80.52166564 | F41: 0.1027351247 | G41: 4.657990494 | H41: 0.0025313289 | I41: 173.6863039 | J41: 1.30916842 | K41: 100.6966844 | L41: 0.7301881577 | M41: 37.35727072 | N41: 0.3337731899 | O41: . | P41: 0 | Q41: 33.90837946 | R41: 0.0665330966 | S41: . | T41: 0 | U41: . | V41: 0 | W41: 0.3925595081 | X41: 0.0045136643 | Y41: 49.83139358 | Z41: 1.291014511 | AA41: . | AB41: 0 | AC41: 0.0004984209 | AD41: 3.6643937e-06 | AE41: . | AF41: 0 | AG41: . | AH41: 0 | AI41: 0.0004984209 | AJ41: 3.6643937e-06 | AK41: 131.2179585 | AL41: 1.985487876 | AM41: . | AN41: 0 | AO41: . | AP41: 0 | AQ41: . | AR41: 0 | AS41: 80.3345192 | AT41: 2.922480829 | AU41: 68.92950606 | AV41: 0.6170202438 | AW41: 31.1728088 | AX41: 0.3779831461 | AY41: 8.82570811 | AZ41: 0.0823579353 | BA41: 28.93098915 | BB41: 0.1566791624 | BC41: 0 | BD41: 0 | BE41: 199.5460457 | BF41: 2.891299559 | BG41: 0.0051792468 | BH41: 0 | BI41: 0.9608975345 | BJ41: 0.015683372 | BK41: 36.39637319 | BL41: 0.3180898179 | BM41: . | BN41: 0 | BO41: . | BP41: 0 | BQ41: 17.76202747 | BR41: 0.0217946862 | BS41: 16.14635199 | BT41: 0.0447384104 | BU41: . | BV41: 0 | BW41: . | BX41: 0 | BY41: . | BZ41: 0 | CA41: . | CB41: 0 | CC41: 0.1538004259 | CD41: 0.0020691373 | CE41: 0.2387590821 | CF41: 0.002444527 | CG41: 4.214365862 | CH41: 0.049841886 | CI41: 45.61702772 | CJ41: 1.241172625 | CK41: . | CL41: 0 | CM41: . | CN41: 0 | CO41: 37.10868568 | CP41: 0.9529256948 | CQ41: 43.22583352 | CR41: 1.969555134 | CS41: 27.61137627 | CT41: 1.093844516 | CU41: 171.9346694 | CV41: 1.797455043 | CW41: 0.002517317 | CX41: 0.0044664055 | CY41: 0.0049806784 | CZ41: 0.0050840596 | DA41: 0.005106931 | DB41: 0.0051207622 | DC41: 0.0051291555 | DD41: 0.0051360373 | DE41: 0.0051414077 | DF41: 0.0051438263 | DG41: 94.90818997 | DH41: 0.7526138073 | DI41: 50.73607408 | DJ41: 0.4196197054 | DK41: 26.98112023 | DL41: 0.2336703028 | DM41: 14.48030237 | DN41: 0.1331018504 | DO41: 8.021486347 | DP41: 0.0797603981 | DQ41: 4.649446942 | DR41: 0.0510679677 | DS41: 2.850611782 | DT41: 0.0351578789 | DU41: 1.846150747 | DV41: 0.0258266526 | DW41: 1.265882671 | DX41: 0.0200486979 | DY41: 0.9087788804 | DZ41: 0.0161869791
A42: 3700 | B42: 7934 | C42: 1671.720207 | D42: 3650.296888 | E42: 82.6854186 | F42: 0.1042802441 | G42: 5.061435263 | H42: 0.0027002591 | I42: 174.7357204 | J42: 1.317329698 | K42: 102.0343637 | L42: 0.7405770388 | M42: 38.22254035 | N42: 0.3410821902 | O42: . | P42: 0 | Q42: 35.36678403 | R42: 0.0689484321 | S42: . | T42: 0 | U42: . | V42: 0 | W42: 0.4025729559 | X42: 0.0046183736 | Y42: 51.2784729 | Z42: 1.325681698 | AA42: . | AB42: 0 | AC42: 0.000494809 | AD42: 3.6378854e-06 | AE42: . | AF42: 0 | AG42: . | AH42: 0 | AI42: 0.000494809 | AJ42: 3.6378854e-06 | AK42: 133.0660174 | AL42: 1.999292824 | AM42: . | AN42: 0 | AO42: . | AP42: 0 | AQ42: . | AR42: 0 | AS42: 81.57025943 | AT42: 2.9526743 | AU42: 70.38896689 | AV42: 0.6268722484 | AW42: 31.77212017 | AX42: 0.3839755173 | AY42: 8.963742422 | AZ42: 0.0833506358 | BA42: 29.6531043 | BB42: 0.1595460953 | BC42: 0 | BD42: 0 | BE42: 204.3683936 | BF42: 2.931207507 | BG42: 0.0055557553 | BH42: 0 | BI42: 0.9854730947 | BJ42: 0.0161236713 | BK42: 37.23706726 | BL42: 0.3249585189 | BM42: . | BN42: 0 | BO42: . | BP42: 0 | BQ42: 18.63168559 | BR42: 0.0226669619 | BS42: 16.73509844 | BT42: 0.0462814702 | BU42: . | BV42: 0 | BW42: . | BX42: 0 | BY42: . | BZ42: 0 | CA42: . | CB42: 0 | CC42: 0.1601534078 | CD42: 0.0021340533 | CE42: 0.2424195481 | CF42: 0.0024843202 | CG42: 4.429524906 | CH42: 0.0520554077 | CI42: 46.84894799 | CJ42: 1.27362629 | CK42: . | CL42: 0 | CM42: . | CN42: 0 | CO42: 37.70398243 | CP42: 0.9654095544 | CQ42: 43.866277 | CR42: 1.987264745 | CS42: 29.17822037 | CT42: 1.112521935 | CU42: 175.1901732 | CV42: 1.818685572 | CW42: 0.0026844935 | CX42: 0.0047736634 | CY42: 0.005331319 | CZ42: 0.0054473593 | DA42: 0.0054722858 | DB42: 0.0054866424 | DC42: 0.0054955987 | DD42: 0.0055030496 | DE42: 0.0055089952 | DF42: 0.0055120072 | DG42: 95.7824315 | DH42: 0.759496438 | DI42: 51.38200476 | DJ42: 0.42488297 | DK42: 27.423746 | DL42: 0.2374567365 | DM42: 14.77312331 | DN42: 0.1357672334 | DO42: 8.21355119 | DP42: 0.0816490782 | DQ42: 4.77864801 | DR42: 0.0524538971 | DS42: 2.938751072 | DT42: 0.0362065853 | DU42: 1.909800731 | DV42: 0.0266619813 | DW42: 1.313418408 | DX42: 0.0207371719 | DY42: 0.9448933608 | DZ42: 0.0167670475
A43: 3800 | B43: 7842 | C43: 1696.922927 | D43: 3750.390916 | E43: 84.80267107 | F43: 0.105765959 | G43: 5.452448923 | H43: 0.002859471 | I43: 175.7529627 | J43: 1.324972632 | K43: 103.3324992 | L43: 0.7499167318 | M43: 39.19967532 | N43: 0.3489697836 | O43: . | P43: 0 | Q43: 36.96329855 | R43: 0.071578219 | S43: . | T43: 0 | U43: . | V43: 0 | W43: 0.4222241498 | X43: 0.0047667416 | Y43: 52.65548891 | Z43: 1.358527232 | AA43: . | AB43: 0 | AC43: 0.0004913297 | AD43: 3.6123064e-06 | AE43: . | AF43: 0 | AG43: . | AH43: 0 | AI43: 0.0004913297 | AJ43: 3.6123064e-06 | AK43: 134.9483722 | AL43: 2.012724346 | AM43: . | AN43: 0 | AO43: . | AP43: 0 | AQ43: . | AR43: 0 | AS43: 82.7912684 | AT43: 2.981089789 | AU43: 71.80194624 | AV43: 0.6362706791 | AW43: 32.33781286 | AX43: 0.3896191247 | AY43: 9.092502029 | AZ43: 0.0842281497 | BA43: 30.37163135 | BB43: 0.1624234047 | BC43: 0 | BD43: 0 | BE43: 209.2533606 | BF43: 2.970406164 | BG43: 0.0059045008 | BH43: 0 | BI43: 1.008375473 | BJ43: 0.0163932589 | BK43: 38.19129985 | BL43: 0.3325765247 | BM43: . | BN43: 0 | BO43: . | BP43: 0 | BQ43: 19.56497627 | BR43: 0.0235866158 | BS43: 17.39832227 | BT43: 0.0479916032 | BU43: . | BV43: 0 | BW43: . | BX43: 0 | BY43: . | BZ43: 0 | CA43: . | CB43: 0 | CC43: 0.1741756488 | CD43: 0.0022332492 | CE43: 0.2480485011 | CF43: 0.0025334924 | CG43: 4.611814974 | CH43: 0.0539136749 | CI43: 48.04367393 | CJ43: 1.304613557 | CK43: . | CL43: 0 | CM43: . | CN43: 0 | CO43: 38.29103971 | CP43: 0.9767346528 | CQ43: 44.5002287 | CR43: 2.004355136 | CS43: 30.73625634 | CT43: 1.129879108 | CU43: 178.5171042 | CV43: 1.840527056 | CW43: 0.002842504 | CX43: 0.0050648539 | CY43: 0.0056641188 | CZ43: 0.0057955182 | DA43: 0.0058216677 | DB43: 0.0058359282 | DC43: 0.0058448263 | DD43: 0.005852225 | DE43: 0.0058581244 | DF43: 0.0058611092 | DG43: 96.62622067 | DH43: 0.7659303422 | DI43: 52.00899885 | DJ43: 0.4297973578 | DK43: 27.86243851 | DL43: 0.2410181125 | DM43: 15.07546222 | DN43: 0.1383306513 | DO43: 8.417722293 | DP43: 0.0834710784 | DQ43: 4.914445699 | DR43: 0.0537489547 | DS43: 3.029130126 | DT43: 0.0371383194 | DU43: 1.970914189 | DV43: 0.0273491013 | DW43: 1.357105175 | DX43: 0.0212732647 | DY43: 0.9768318373 | DZ43: 0.0171972298
A44: 3900 | B44: 7351 | C44: 1721.490819 | D44: 3849.654635 | E44: 86.75394782 | F44: 0.1071211074 | G44: 5.861424202 | H44: 0.0030239425 | I44: 176.7240418 | J44: 1.332567398 | K44: 104.5463255 | L44: 0.7587448318 | M44: 40.10042519 | N44: 0.3564212595 | O44: . | P44: 0 | Q44: 38.48909073 | R44: 0.0740824111 | S44: . | T44: 0 | U44: . | V44: 0 | W44: 0.4475065446 | X44: 0.0050084891 | Y44: 54.01135372 | Z44: 1.39077258 | AA44: . | AB44: 0 | AC44: 0.0004877239 | AD44: 3.585859e-06 | AE44: . | AF44: 0 | AG44: . | AH44: 0 | AI44: 0.0004877239 | AJ44: 3.585859e-06 | AK44: 136.6388381 | AL44: 2.025214606 | AM44: . | AN44: 0 | AO44: . | AP44: 0 | AQ44: . | AR44: 0 | AS44: 83.99824571 | AT44: 3.009226786 | AU44: 73.19428326 | AV44: 0.645326848 | AW44: 32.90653742 | AX44: 0.3951051101 | AY44: 9.208449966 | AZ44: 0.0850428284 | BA44: 31.07929587 | BB44: 0.1651789095 | BC44: 0 | BD44: 0 | BE44: 214.1739781 | BF44: 3.00854021 | BG44: 0.0062770855 | BH44: 0 | BI44: 1.044029634 | BJ44: 0.0169263517 | BK44: 39.05639556 | BL44: 0.3394949078 | BM44: . | BN44: 0 | BO44: . | BP44: 0 | BQ44: 20.52246658 | BR44: 0.0245272635 | BS44: 17.96662415 | BT44: 0.0495551476 | BU44: . | BV44: 0 | BW44: . | BX44: 0 | BY44: . | BZ44: 0 | CA44: . | CB44: 0 | CC44: 0.1867607794 | CD44: 0.0023548953 | CE44: 0.2607457651 | CF44: 0.0026535938 | CG44: 4.810605989 | CH44: 0.0561760119 | CI44: 49.20074774 | CJ44: 1.334596568 | CK44: . | CL44: 0 | CM44: . | CN44: 0 | CO44: 38.87387113 | CP44: 0.9880205268 | CQ44: 45.12437458 | CR44: 2.021206259 | CS44: 32.36159638 | CT44: 1.147308895 | CU44: 181.8123817 | CV44: 1.861231315 | CW44: 0.0030060001 | CX44: 0.0053641145 | CY44: 0.0060143382 | CZ44: 0.0061651646 | DA44: 0.006193799 | DB44: 0.0062090591 | DC44: 0.0062179011 | DD44: 0.0062252496 | DE44: 0.0062311048 | DF44: 0.0062340626 | DG44: 97.44063141 | DH44: 0.7724030832 | DI44: 52.6239692 | DJ44: 0.434864466 | DK44: 28.29700633 | DL44: 0.2447883251 | DM44: 15.37331649 | DN44: 0.1410859955 | DO44: 8.623157397 | DP44: 0.0855148787 | DQ44: 5.056746825 | DR44: 0.0552941233 | DS44: 3.132006331 | DT44: 0.0383584474 | DU44: 2.045257233 | DV44: 0.0283241147 | DW44: 1.411779698 | DX44: 0.0220719287 | DY44: 1.017546702 | DZ44: 0.0178670924
A45: 4000 | B45: 7159 | C45: 1745.548671 | D45: 3949.607249 | E45: 88.6486855 | F45: 0.1084308826 | G45: 6.304450942 | H45: 0.0032008416 | I45: 177.6418342 | J45: 1.339568719 | K45: 105.7390805 | L45: 0.767556011 | M45: 40.94488597 | N45: 0.3633115293 | O45: . | P45: 0 | Q45: 39.87495652 | R45: 0.0763817942 | S45: . | T45: 0 | U45: . | V45: 0 | W45: 0.4706016942 | X45: 0.0052343659 | Y45: 55.44200377 | Z45: 1.424421615 | AA45: . | AB45: 0 | AC45: 0.0004844256 | AD45: 3.5616387e-06 | AE45: . | AF45: 0 | AG45: . | AH45: 0 | AI45: 0.0004844256 | AJ45: 3.5616387e-06 | AK45: 138.3723591 | AL45: 2.037359386 | AM45: . | AN45: 0 | AO45: . | AP45: 0 | AQ45: . | AR45: 0 | AS45: 85.13808521 | AT45: 3.035229295 | AU45: 74.51822247 | AV45: 0.6540201686 | AW45: 33.4735511 | AX45: 0.4004645459 | AY45: 9.324585788 | AZ45: 0.0858405855 | BA45: 31.72008558 | BB45: 0.1677150372 | BC45: 0 | BD45: 0 | BE45: 219.0434952 | BF45: 3.045779404 | BG45: 0.0066680115 | BH45: 0 | BI45: 1.056184317 | BJ45: 0.0170913406 | BK45: 39.88870166 | BL45: 0.3462201887 | BM45: . | BN45: 0 | BO45: . | BP45: 0 | BQ45: 21.40206146 | BR45: 0.0253869752 | BS45: 18.47289506 | BT45: 0.050994819 | BU45: . | BV45: 0 | BW45: . | BX45: 0 | BY45: . | BZ45: 0 | CA45: . | CB45: 0 | CC45: 0.1998509039 | CD45: 0.0024906226 | CE45: 0.2707507903 | CF45: 0.0027437433 | CG45: 5.008450503 | CH45: 0.0582663944 | CI45: 50.43355327 | CJ45: 1.366155221 | CK45: . | CL45: 0 | CM45: . | CN45: 0 | CO45: 39.43473893 | CP45: 0.9987713315 | CQ45: 45.70334627 | CR45: 2.036457964 | CS45: 33.98551556 | CT45: 1.164008997 | CU45: 185.0579797 | CV45: 1.881770406 | CW45: 0.0031813258 | CX45: 0.0056873328 | CY45: 0.0063857497 | CZ45: 0.006553418 | DA45: 0.0065842369 | DB45: 0.0065999484 | DC45: 0.0066092812 | DD45: 0.0066165845 | DE45: 0.0066223999 | DF45: 0.0066253317 | DG45: 98.20331463 | DH45: 0.7783174665 | DI45: 53.18568407 | DJ45: 0.4393799519 | DK45: 28.68256086 | DL45: 0.2480176568 | DM45: 15.63453661 | DN45: 0.143381837 | DO45: 8.796137485 | DP45: 0.0871336401 | DQ45: 5.174498025 | DR45: 0.0564753063 | DS45: 3.215684 | DT45: 0.0392599743 | DU45: 2.104508522 | DV45: 0.0290206136 | DW45: 1.455360182 | DX45: 0.0226309803 | DY45: 1.049776612 | DZ45: 0.0183228968
A46: 4100 | B46: 6919 | C46: 1769.328118 | D46: 4049.584278 | E46: 90.72603043 | F46: 0.1098245394 | G46: 6.666566429 | H46: 0.0033418992 | I46: 178.5502566 | J46: 1.346404072 | K46: 106.8832025 | L46: 0.7764474385 | M46: 41.75276263 | N46: 0.3697729125 | O46: . | P46: 0 | Q46: 41.37692335 | R46: 0.0787697998 | S46: . | T46: 0 | U46: . | V46: 0 | W46: 0.5008266973 | X46: 0.0056695908 | Y46: 56.84226534 | Z46: 1.456073928 | AA46: . | AB46: 0 | AC46: 0.0004815331 | AD46: 3.5404028e-06 | AE46: . | AF46: 0 | AG46: . | AH46: 0 | AI46: 0.0004815331 | AJ46: 3.5404028e-06 | AK46: 139.9636055 | AL46: 2.049166369 | AM46: . | AN46: 0 | AO46: . | AP46: 0 | AQ46: . | AR46: 0 | AS46: 86.24088075 | AT46: 3.061785352 | AU46: 75.81254812 | AV46: 0.6628379094 | AW46: 33.99188194 | AX46: 0.4058151316 | AY46: 9.440740731 | AZ46: 0.0866760793 | BA46: 32.37992545 | BB46: 0.1703466985 | BC46: 0 | BD46: 0 | BE46: 223.8457949 | BF46: 3.082922762 | BG46: 0.0070034568 | BH46: 0 | BI46: 1.071768681 | BJ46: 0.0173196153 | BK46: 40.68099395 | BL46: 0.3524532972 | BM46: . | BN46: 0 | BO46: . | BP46: 0 | BQ46: 22.35413291 | BR46: 0.0263031037 | BS46: 19.02279044 | BT46: 0.0524666961 | BU46: . | BV46: 0 | BW46: . | BX46: 0 | BY46: . | BZ46: 0 | CA46: . | CB46: 0 | CC46: 0.220396796 | CD46: 0.0028143308 | CE46: 0.2804299013 | CF46: 0.00285526 | CG46: 5.23218416 | CH46: 0.0604200416 | CI46: 51.61008118 | CJ46: 1.395653886 | CK46: . | CL46: 0 | CM46: . | CN46: 0 | CO46: 40.01300485 | CP46: 1.010327815 | CQ46: 46.2278759 | CR46: 2.051457537 | CS46: 35.6455452 | CT46: 1.181623295 | CU46: 188.2002497 | CV46: 1.901299467 | CW46: 0.003319526 | CX46: 0.005950561 | CY46: 0.0066925277 | CZ46: 0.006877219 | DA46: 0.0069120413 | DB46: 0.0069288352 | DC46: 0.006939286 | DD46: 0.0069477154 | DE46: 0.0069546618 | DF46: 0.0069587404 | DG46: 98.96629049 | DH46: 0.7841280627 | DI46: 53.7498982 | DJ46: 0.4438132268 | DK46: 29.08139713 | DL46: 0.2512603539 | DM46: 15.90353574 | DN46: 0.145667674 | DO46: 8.975288857 | DP46: 0.0887446203 | DQ46: 5.293106809 | DR46: 0.0576206135 | DS46: 3.296257059 | DT46: 0.040104841 | DU46: 2.160196229 | DV46: 0.0296685959 | DW46: 1.495973623 | DX46: 0.0231511046 | DY46: 1.080296945 | DZ46: 0.0187538485
A47: 4200 | B47: 6901 | C47: 1792.554556 | D47: 4149.362628 | E47: 92.67143261 | F47: 0.1110979026 | G47: 7.063628833 | H47: 0.0034894248 | I47: 179.4688592 | J47: 1.353547813 | K47: 108.0945811 | L47: 0.7851912105 | M47: 42.62028932 | N47: 0.3770548999 | O47: . | P47: 0 | Q47: 42.89478351 | R47: 0.0811807262 | S47: . | T47: 0 | U47: . | V47: 0 | W47: 0.51064552 | X47: 0.0057240208 | Y47: 58.32390222 | Z47: 1.490244835 | AA47: . | AB47: 0 | AC47: 0.0006036505 | AD47: 4.0555699e-06 | AE47: . | AF47: 0 | AG47: . | AH47: 0 | AI47: 0.0006036505 | AJ47: 4.0555699e-06 | AK47: 141.5654868 | AL47: 2.061022209 | AM47: . | AN47: 0 | AO47: . | AP47: 0 | AQ47: . | AR47: 0 | AS47: 87.39412113 | AT47: 3.087358467 | AU47: 77.1652744 | AV47: 0.6716093674 | AW47: 34.54199852 | AX47: 0.411176286 | AY47: 9.557767325 | AZ47: 0.0874560205 | BA47: 33.06550856 | BB47: 0.1729770609 | BC47: 0 | BD47: 0 | BE47: 228.8050839 | BF47: 3.120230769 | BG47: 0.0073363779 | BH47: 0 | BI47: 1.091851691 | BJ47: 0.0175442118 | BK47: 41.52843763 | BL47: 0.3595106881 | BM47: . | BN47: 0 | BO47: . | BP47: 0 | BQ47: 23.27283168 | BR47: 0.0271717821 | BS47: 19.62195183 | BT47: 0.0540089442 | BU47: . | BV47: 0 | BW47: . | BX47: 0 | BY47: . | BZ47: 0 | CA47: . | CB47: 0 | CC47: 0.2256171964 | CD47: 0.0028185821 | CE47: 0.2850283236 | CF47: 0.0029054387 | CG47: 5.45551701 | CH47: 0.0627807049 | CI47: 52.86838521 | CJ47: 1.42746413 | CK47: . | CL47: 0 | CM47: . | CN47: 0 | CO47: 40.59323758 | CP47: 1.020816336 | CQ47: 46.80088356 | CR47: 2.066542131 | CS47: 37.36012257 | CT47: 1.198669072 | CU47: 191.4449614 | CV47: 1.921561697 | CW47: 0.0034666286 | CX47: 0.0062224426 | CY47: 0.0070065642 | CZ47: 0.0072076664 | DA47: 0.0072444658 | DB47: 0.0072617181 | DC47: 0.0072726631 | DD47: 0.0072810364 | DE47: 0.0072879325 | DF47: 0.0072919764 | DG47: 99.73574741 | DH47: 0.7902001261 | DI47: 54.32735123 | DJ47: 0.4485321191 | DK47: 29.49510993 | DL47: 0.2547703842 | DM47: 16.18990597 | DN47: 0.1482249799 | DO47: 9.172563079 | DP47: 0.0906218601 | DQ47: 5.433189341 | DR47: 0.0590473066 | DS47: 3.397985657 | DT47: 0.0412196128 | DU47: 2.235680852 | DV47: 0.0305643453 | DW47: 1.554009895 | DX47: 0.0238933377 | DY47: 1.125513994 | DZ47: 0.019376733
A48: 4300 | B48: 6399 | C48: 1815.402085 | D48: 4249.523022 | E48: 94.66046696 | F48: 0.1123361916 | G48: 7.507808894 | H48: 0.0036505403 | I48: 180.2577418 | J48: 1.359675667 | K48: 109.186708 | L48: 0.7928309284 | M48: 43.35829602 | N48: 0.3829139847 | O48: . | P48: 0 | Q48: 44.15561959 | R48: 0.083161441 | S48: . | T48: 0 | U48: . | V48: 0 | W48: 0.5213097786 | X48: 0.0058093521 | Y48: 59.6964738 | Z48: 1.522271399 | AA48: . | AB48: 0 | AC48: 0.0007196237 | AD48: 4.5648738e-06 | AE48: . | AF48: 0 | AG48: . | AH48: 0 | AI48: 0.0007196237 | AJ48: 4.5648738e-06 | AK48: 143.0281163 | AL48: 2.071813149 | AM48: . | AN48: 0 | AO48: . | AP48: 0 | AQ48: . | AR48: 0 | AS48: 88.43585103 | AT48: 3.111023967 | AU48: 78.44298986 | AV48: 0.6796828849 | AW48: 35.01816134 | AX48: 0.4158989438 | AY48: 9.664256756 | AZ48: 0.0881865377 | BA48: 33.76057176 | BB48: 0.1755974034 | BC48: 0 | BD48: 0 | BE48: 233.6861349 | BF48: 3.155517515 | BG48: 0.0077448233 | BH48: 0 | BI48: 1.113962088 | BJ48: 0.0178056009 | BK48: 42.24433394 | BL48: 0.3651083838 | BM48: . | BN48: 0 | BO48: . | BP48: 0 | BQ48: 24.05654402 | BR48: 0.0279234916 | BS48: 20.09907557 | BT48: 0.0552379494 | BU48: . | BV48: 0 | BW48: . | BX48: 0 | BY48: . | BZ48: 0 | CA48: . | CB48: 0 | CC48: 0.229774428 | CD48: 0.002834803 | CE48: 0.2915353507 | CF48: 0.0029745491 | CG48: 5.660500152 | CH48: 0.0645667581 | CI48: 54.03597365 | CJ48: 1.457704641 | CK48: . | CL48: 0 | CM48: . | CN48: 0 | CO48: 41.11488387 | CP48: 1.030757236 | CQ48: 47.32096716 | CR48: 2.080266731 | CS48: 39.13368901 | CT48: 1.214981577 | CU48: 194.5524459 | CV48: 1.940535938 | CW48: 0.0036256589 | CX48: 0.0065200069 | CY48: 0.0073579816 | CZ48: 0.0075774679 | DA48: 0.0076181488 | DB48: 0.0076382515 | DC48: 0.0076520812 | DD48: 0.0076633511 | DE48: 0.0076731483 | DF48: 0.007680106 | DG48: 100.3939119 | DH48: 0.7954070002 | DI48: 54.81977957 | DJ48: 0.452570138 | DK48: 29.83878445 | DL48: 0.2577286983 | DM48: 16.42384375 | DN48: 0.150356471 | DO48: 9.329998715 | DP48: 0.0921570145 | DQ48: 5.537840259 | DR48: 0.0601573691 | DS48: 3.469039996 | DT48: 0.0420545847 | DU48: 2.285703465 | DV48: 0.0312193429 | DW48: 1.590567211 | DX48: 0.0244259574 | DY48: 1.153747014 | DZ48: 0.0198270913
A49: 4400 | B49: 6391 | C49: 1837.91667 | D49: 4349.477051 | E49: 96.72756719 | F49: 0.1136293283 | G49: 7.906053193 | H49: 0.0037927039 | I49: 181.0741185 | J49: 1.365772365 | K49: 110.200347 | L49: 0.8000724481 | M49: 44.15008071 | N49: 0.3893846953 | O49: . | P49: 0 | Q49: 45.6814662 | R49: 0.085508133 | S49: . | T49: 0 | U49: . | V49: 0 | W49: 0.5426008828 | X49: 0.0060675947 | Y49: 61.03900495 | Z49: 1.553285753 | AA49: . | AB49: 0 | AC49: 0.0007154503 | AD49: 4.5378655e-06 | AE49: . | AF49: 0 | AG49: . | AH49: 0 | AI49: 0.0007154503 | AJ49: 4.5378655e-06 | AK49: 144.5755661 | AL49: 2.082777726 | AM49: . | AN49: 0 | AO49: . | AP49: 0 | AQ49: . | AR49: 0 | AS49: 89.5306218 | AT49: 3.135627788 | AU49: 79.70434344 | AV49: 0.6876028495 | AW49: 35.5286442 | AX49: 0.4206425059 | AY49: 9.760530604 | AZ49: 0.088888901 | BA49: 34.41516863 | BB49: 0.1780714426 | BC49: 0 | BD49: 0 | BE49: 238.6006344 | BF49: 3.190291166 | BG49: 0.0080639653 | BH49: 0 | BI49: 1.142771609 | BJ49: 0.0180902328 | BK49: 43.0073091 | BL49: 0.3712944625 | BM49: . | BN49: 0 | BO49: . | BP49: 0 | BQ49: 25.04722071 | BR49: 0.028809852 | BS49: 20.63424548 | BT49: 0.056698281 | BU49: . | BV49: 0 | BW49: . | BX49: 0 | BY49: . | BZ49: 0 | CA49: . | CB49: 0 | CC49: 0.2421638341 | CD49: 0.0030044681 | CE49: 0.3004370488 | CF49: 0.0030631266 | CG49: 5.831968722 | CH49: 0.0660973663 | CI49: 55.20703623 | CJ49: 1.487188387 | CK49: . | CL49: 0 | CM49: . | CN49: 0 | CO49: 41.67037571 | CP49: 1.04126123 | CQ49: 47.86024609 | CR49: 2.094366559 | CS49: 40.93869242 | CT49: 1.231576723 | CU49: 197.661942 | CV49: 1.958714443 | CW49: 0.0037674335 | CX49: 0.006778706 | CY49: 0.0076607342 | CZ49: 0.0078950659 | DA49: 0.0079374331 | DB49: 0.00795802 | DC49: 0.0079717769 | DD49: 0.0079829859 | DE49: 0.0079927276 | DF49: 0.0079996422 | DG49: 101.0710967 | DH49: 0.8005645655 | DI49: 55.33413697 | DJ49: 0.4565861966 | DK49: 30.20744665 | DL49: 0.2606926157 | DM49: 16.67924771 | DN49: 0.1524868142 | DO49: 9.503532858 | DP49: 0.0936745541 | DQ49: 5.654513497 | DR49: 0.061240281 | DS49: 3.548485246 | DT49: 0.0428450228 | DU49: 2.340582907 | DV49: 0.031813038 | DW49: 1.629136946 | DX49: 0.0248848081 | DY49: 1.182852986 | DZ49: 0.0202020297
A50: 4500 | B50: 6198 | C50: 1859.967694 | D50: 4449.9652 | E50: 98.71774946 | F50: 0.1148844275 | G50: 8.308778032 | H50: 0.0039368382 | I50: 181.8732338 | J50: 1.371930246 | K50: 111.2835991 | L50: 0.808198374 | M50: 44.99458017 | N50: 0.3962884247 | O50: . | P50: 0 | Q50: 47.13538663 | R50: 0.0878024222 | S50: . | T50: 0 | U50: . | V50: 0 | W50: 0.563003883 | X50: 0.0063172027 | Y50: 62.40304185 | Z50: 1.584945297 | AA50: . | AB50: 0 | AC50: 0.0007115036 | AD50: 4.5124544e-06 | AE50: . | AF50: 0 | AG50: . | AH50: 0 | AI50: 0.0007115036 | AJ50: 4.5124544e-06 | AK50: 146.0128257 | AL50: 2.09307237 | AM50: . | AN50: 0 | AO50: . | AP50: 0 | AQ50: . | AR50: 0 | AS50: 90.56881028 | AT50: 3.159411067 | AU50: 80.92686426 | AV50: 0.6958192734 | AW50: 35.98801959 | AX50: 0.4254985349 | AY50: 9.86542172 | AZ50: 0.0896036818 | BA50: 35.07342296 | BB50: 0.1807170567 | BC50: 0 | BD50: 0 | BE50: 243.4939776 | BF50: 3.225035339 | BG50: 0.0084009645 | BH50: 0 | BI50: 1.160535969 | BJ50: 0.0183556659 | BK50: 43.8340442 | BL50: 0.3779327587 | BM50: . | BN50: 0 | BO50: . | BP50: 0 | BQ50: 25.98239167 | BR50: 0.0296841767 | BS50: 21.15299496 | BT50: 0.0581182455 | BU50: . | BV50: 0 | BW50: . | BX50: 0 | BY50: . | BZ50: 0 | CA50: . | CB50: 0 | CC50: 0.2526256624 | CD50: 0.0031649591 | CE50: 0.3103782205 | CF50: 0.0031522435 | CG50: 6.045411296 | CH50: 0.0681013616 | CI50: 56.35763055 | CJ50: 1.516843936 | CK50: . | CL50: 0 | CM50: . | CN50: 0 | CO50: 42.2125869 | CP50: 1.051989827 | CQ50: 48.35622338 | CR50: 2.10742124 | CS50: 42.75548597 | CT50: 1.248877982 | CU50: 200.7384916 | CV50: 1.976157358 | CW50: 0.0039089805 | CX50: 0.0070436858 | CY50: 0.0079713529 | CZ50: 0.0082224293 | DA50: 0.0082685008 | DB50: 0.008289718 | DC50: 0.0083041403 | DD50: 0.0083160262 | DE50: 0.0083264495 | DF50: 0.0083340605 | DG50: 101.7405874 | DH50: 0.8057969869 | DI50: 55.83424811 | DJ50: 0.4606085924 | DK50: 30.56611224 | DL50: 0.2636676242 | DM50: 16.92736667 | DN50: 0.1546214654 | DO50: 9.673107708 | DP50: 0.0952000212 | DQ50: 5.770424926 | DR50: 0.062341457 | DS50: 3.630521733 | DT50: 0.0436722437 | DU50: 2.40039905 | DV50: 0.0324554811 | DW50: 1.673611324 | DX50: 0.0253959259 | DY50: 1.216360386 | DZ50: 0.020615291
A51: 4600 | B51: 5816 | C51: 1881.476023 | D51: 4549.452267 | E51: 100.523835 | F51: 0.1160120525 | G51: 8.738986343 | H51: 0.0040826255 | I51: 182.6261139 | J51: 1.377719749 | K51: 112.2980838 | L51: 0.8155225808 | M51: 45.74095004 | N51: 0.4021421645 | O51: . | P51: 0 | Q51: 48.47888716 | R51: 0.0899957765 | S51: . | T51: 0 | U51: . | V51: 0 | W51: 0.5870658547 | X51: 0.0065225989 | Y51: 63.77195999 | Z51: 1.617530602 | AA51: . | AB51: 0 | AC51: 0.0007080086 | AD51: 4.4898198e-06 | AE51: . | AF51: 0 | AG51: . | AH51: 0 | AI51: 0.0007080086 | AJ51: 4.4898198e-06 | AK51: 147.4023713 | AL51: 2.102793751 | AM51: . | AN51: 0 | AO51: . | AP51: 0 | AQ51: . | AR51: 0 | AS51: 91.55629564 | AT51: 3.180833317 | AU51: 82.04050043 | AV51: 0.7031281291 | AW51: 36.42663487 | AX51: 0.4299090642 | AY51: 9.964121899 | AZ51: 0.0903151561 | BA51: 35.64974366 | BB51: 0.1829039088 | BC51: 0 | BD51: 0 | BE51: 248.2756553 | BF51: 3.257418953 | BG51: 0.0087211578 | BH51: 0 | BI51: 1.174908829 | BJ51: 0.0185861342 | BK51: 44.56604121 | BL51: 0.3835560303 | BM51: . | BN51: 0 | BO51: . | BP51: 0 | BQ51: 26.83189854 | BR51: 0.0304952138 | BS51: 21.64698862 | BT51: 0.0595005627 | BU51: . | BV51: 0 | BW51: . | BX51: 0 | BY51: . | BZ51: 0 | CA51: . | CB51: 0 | CC51: 0.2565407542 | CD51: 0.0032061418 | CE51: 0.3305251005 | CF51: 0.0033164571 | CG51: 6.239307548 | CH51: 0.0700578909 | CI51: 57.53265244 | CJ51: 1.547472711 | CK51: . | CL51: 0 | CM51: . | CN51: 0 | CO51: 42.70300518 | CP51: 1.061182886 | CQ51: 48.85329046 | CR51: 2.119650431 | CS51: 44.58346663 | CT51: 1.264230881 | CU51: 203.6921887 | CV51: 1.993188072 | CW51: 0.0040537922 | CX51: 0.0073062483 | CY51: 0.0082749275 | CZ51: 0.0085407258 | DA51: 0.0085882679 | DB51: 0.0086104734 | DC51: 0.0086248301 | DD51: 0.0086366607 | DE51: 0.008647033 | DF51: 0.0086546036 | DG51: 102.3720889 | DH51: 0.8107376782 | DI51: 56.3151108 | DJ51: 0.4644948388 | DK51: 30.90926527 | DL51: 0.2665644983 | DM51: 17.16582031 | DN51: 0.1567394352 | DO51: 9.836918685 | DP51: 0.096752909 | DQ51: 5.88630432 | DR51: 0.0635158184 | DS51: 3.713818755 | DT51: 0.0445874009 | DU51: 2.461948672 | DV51: 0.0331921729 | DW51: 1.720337167 | DX51: 0.0260074562 | DY51: 1.253358751 | DZ51: 0.0211387133
A52: 4700 | B52: 5795 | C52: 1902.682321 | D52: 4649.685359 | E52: 102.3989237 | F52: 0.1171647941 | G52: 9.159664331 | H52: 0.0042244512 | I52: 183.3492534 | J52: 1.383312054 | K52: 113.3262813 | L52: 0.8225752501 | M52: 46.44227839 | N52: 0.4080913872 | O52: . | P52: 0 | Q52: 49.87180055 | R52: 0.0921726615 | S52: . | T52: 0 | U52: . | V52: 0 | W52: 0.6204941886 | X52: 0.0067818238 | Y52: 65.09332249 | Z52: 1.648061223 | AA52: . | AB52: 0 | AC52: 0.0010288934 | AD52: 7.307128e-06 | AE52: . | AF52: 0 | AG52: . | AH52: 0 | AI52: 0.0010288934 | AJ52: 7.307128e-06 | AK52: 148.7949625 | AL52: 2.112548975 | AM52: . | AN52: 0 | AO52: . | AP52: 0 | AQ52: . | AR52: 0 | AS52: 92.52323873 | AT52: 3.202270547 | AU52: 83.17646982 | AV52: 0.7104430554 | AW52: 36.89959822 | AX52: 0.4344292867 | AY52: 10.05743578 | AZ52: 0.0909118411 | BA52: 36.21943582 | BB52: 0.1851019276 | BC52: 0 | BD52: 0 | BE52: 253.2602901 | BF52: 3.291683148 | BG52: 0.0090450938 | BH52: 0 | BI52: 1.200107461 | BJ52: 0.0189191001 | BK52: 45.24217093 | BL52: 0.389172287 | BM52: . | BN52: 0 | BO52: . | BP52: 0 | BQ52: 27.70327614 | BR52: 0.0312999352 | BS52: 22.16852441 | BT52: 0.0608727264 | BU52: . | BV52: 0 | BW52: . | BX52: 0 | BY52: . | BZ52: 0 | CA52: . | CB52: 0 | CC52: 0.267894497 | CD52: 0.0032657312 | CE52: 0.3525996916 | CF52: 0.0035160926 | CG52: 6.434631036 | CH52: 0.0717428889 | CI52: 58.65869146 | CJ52: 1.576318334 | CK52: . | CL52: 0 | CM52: . | CN52: 0 | CO52: 43.21350058 | CP52: 1.070682711 | CQ52: 49.30973814 | CR52: 2.131587837 | CS52: 46.47340183 | CT52: 1.280312466 | CU52: 206.7868883 | CV52: 2.011370682 | CW52: 0.0041938986 | CX52: 0.0075582511 | CY52: 0.0085754891 | CZ52: 0.0088597968 | DA52: 0.0089107801 | DB52: 0.0089335802 | DC52: 0.0089485707 | DD52: 0.0089610454 | DE52: 0.0089713666 | DF52: 0.0089788971 | DG52: 102.9886264 | DH52: 0.8155481058 | DI52: 56.78617516 | DJ52: 0.4682618507 | DK52: 31.2485075 | DL52: 0.2693776746 | DM52: 17.40084927 | DN52: 0.1587785222 | DO52: 9.994183718 | DP52: 0.0982017571 | DQ52: 5.990061944 | DR52: 0.0645535071 | DS52: 3.782839116 | DT52: 0.0453481528 | DU52: 2.509427516 | DV52: 0.0337726347 | DW52: 1.753778499 | DX52: 0.0264685633 | DY52: 1.277885677 | DZ52: 0.0215178142
A53: 4800 | B53: 5673 | C53: 1923.427332 | D53: 4750.042685 | E53: 104.15682 | F53: 0.1182658967 | G53: 9.552156836 | H53: 0.0043599767 | I53: 184.1222514 | J53: 1.38911407 | K53: 114.3476439 | L53: 0.8298860464 | M53: 47.1687282 | N53: 0.4140263979 | O53: . | P53: 0 | Q53: 51.29379282 | R53: 0.0943929605 | S53: . | T53: 0 | U53: . | V53: 0 | W53: 0.6403129549 | X53: 0.0070007578 | Y53: 66.34439289 | Z53: 1.677132375 | AA53: . | AB53: 0 | AC53: 0.0010243675 | AD53: 7.2745215e-06 | AE53: . | AF53: 0 | AG53: . | AH53: 0 | AI53: 0.0010243675 | AJ53: 7.2745215e-06 | AK53: 150.0642279 | AL53: 2.12230007 | AM53: . | AN53: 0 | AO53: . | AP53: 0 | AQ53: . | AR53: 0 | AS53: 93.56200713 | AT53: 3.224833228 | AU53: 84.3539947 | AV53: 0.7181248034 | AW53: 37.36165045 | AX53: 0.4390839438 | AY53: 10.16102198 | AZ53: 0.0916070168 | BA53: 36.83132228 | BB53: 0.1874338428 | BC53: 0 | BD53: 0 | BE53: 258.4511537 | BF53: 3.325761773 | BG53: 0.0093349917 | BH53: 0 | BI53: 1.227695346 | BJ53: 0.0192679322 | BK53: 45.94103286 | BL53: 0.3947584658 | BM53: . | BN53: 0 | BO53: . | BP53: 0 | BQ53: 28.62401184 | BR53: 0.0321464367 | BS53: 22.66978097 | BT53: 0.0622465238 | BU53: . | BV53: 0 | BW53: . | BX53: 0 | BY53: . | BZ53: 0 | CA53: . | CB53: 0 | CC53: 0.278443611 | CD53: 0.0034016384 | CE53: 0.3618693439 | CF53: 0.0035991194 | CG53: 6.653674476 | CH53: 0.0739694323 | CI53: 59.69071842 | CJ53: 1.603162943 | CK53: . | CL53: 0 | CM53: . | CN53: 0 | CO53: 43.74628199 | CP53: 1.080177461 | CQ53: 49.81572514 | CR53: 2.144655766 | CS53: 48.47013592 | CT53: 1.296513389 | CU53: 209.9810178 | CV53: 2.029248385 | CW53: 0.0043284624 | CX53: 0.007798475 | CY53: 0.0088541529 | CZ53: 0.0091493917 | DA53: 0.0092013158 | DB53: 0.0092240128 | DC53: 0.009238936 | DD53: 0.0092513534 | DE53: 0.0092616254 | DF53: 0.0092691171 | DG53: 103.6421819 | DH53: 0.8205142828 | DI53: 57.28568029 | DJ53: 0.4721447942 | DK53: 31.60349644 | DL53: 0.2722087298 | DM53: 17.64377343 | DN53: 0.1607765163 | DO53: 10.15699714 | DP53: 0.0995843904 | DQ53: 6.099121649 | DR53: 0.0655141514 | DS53: 3.857171582 | DT53: 0.0460331914 | DU53: 2.560800068 | DV53: 0.0342700282 | DW53: 1.791257964 | DX53: 0.0268517456 | DY53: 1.305790099 | DZ53: 0.0218200212
A54: 4900 | B54: 5429 | C54: 1943.728196 | D54: 4849.667051 | E54: 105.8073369 | F54: 0.1192495434 | G54: 9.907967696 | H54: 0.0044800168 | I54: 184.8256414 | J54: 1.394439247 | K54: 115.312825 | L54: 0.8367674733 | M54: 47.84728333 | N54: 0.4196678504 | O54: . | P54: 0 | Q54: 52.68449996 | R54: 0.0965289531 | S54: . | T54: 0 | U54: . | V54: 0 | W54: 0.6529257935 | X54: 0.007176379 | Y54: 67.67743567 | Z54: 1.706799117 | AA54: . | AB54: 0 | AC54: 0.001326116 | AD54: 8.336933e-06 | AE54: . | AF54: 0 | AG54: . | AH54: 0 | AI54: 0.001326116 | AJ54: 8.336933e-06 | AK54: 151.4214826 | AL54: 2.131922327 | AM54: . | AN54: 0 | AO54: . | AP54: 0 | AQ54: . | AR54: 0 | AS54: 94.58504859 | AT54: 3.247532277 | AU54: 85.49503597 | AV54: 0.7252810219 | AW54: 37.80760081 | AX54: 0.4433837075 | AY54: 10.25301517 | AZ54: 0.0922118304 | BA54: 37.43442 | BB54: 0.189685484 | BC54: 0 | BD54: 0 | BE54: 263.321359 | BF54: 3.357937172 | BG54: 0.0096127741 | BH54: 0 | BI54: 1.244840839 | BJ54: 0.0195301378 | BK54: 46.60244249 | BL54: 0.4001377125 | BM54: . | BN54: 0 | BO54: . | BP54: 0 | BQ54: 29.55206173 | BR54: 0.0329676109 | BS54: 23.13243823 | BT54: 0.0635613423 | BU54: . | BV54: 0 | BW54: . | BX54: 0 | BY54: . | BZ54: 0 | CA54: . | CB54: 0 | CC54: 0.2834070774 | CD54: 0.0034920469 | CE54: 0.3695187161 | CF54: 0.0036843321 | CG54: 6.861688995 | CH54: 0.0756949815 | CI54: 60.81574668 | CJ54: 1.631104135 | CK54: . | CL54: 0 | CM54: . | CN54: 0 | CO54: 44.27218031 | CP54: 1.089466761 | CQ54: 50.31286828 | CR54: 2.158065516 | CS54: 50.36388042 | CT54: 1.312394833 | CU54: 212.9574786 | CV54: 2.045542339 | CW54: 0.0044474865 | CX54: 0.0080160082 | CY54: 0.0091142941 | CZ54: 0.0094251076 | DA54: 0.0094796902 | DB54: 0.0095022907 | DC54: 0.0095171514 | DD54: 0.0095295155 | DE54: 0.0095397417 | DF54: 0.0095471978 | DG54: 104.2337301 | DH54: 0.8250647769 | DI54: 57.73189732 | DJ54: 0.4756672452 | DK54: 31.91763451 | DL54: 0.2747662649 | DM54: 17.85624304 | DN54: 0.1625695772 | DO54: 10.30054245 | DP54: 0.100850968 | DQ54: 6.193792907 | DR54: 0.0663973591 | DS54: 3.921514025 | DT54: 0.0466675659 | DU54: 2.604299609 | DV54: 0.0347336657 | DW54: 1.82121347 | DX54: 0.0272002896 | DY54: 1.32570051 | DZ54: 0.0220810986
A55: 5000 | B55: 5313 | C55: 1963.76278 | D55: 4949.04539 | E55: 107.5392889 | F55: 0.1203274218 | G55: 10.26319558 | H55: 0.0045969325 | I55: 185.5171572 | J55: 1.399632256 | K55: 116.3237679 | L55: 0.844007453 | M55: 48.54348639 | N55: 0.4254485586 | O55: . | P55: 0 | Q55: 54.03965435 | R55: 0.0986794013 | S55: . | T55: 0 | U55: . | V55: 0 | W55: 0.6670933016 | X55: 0.0073183171 | Y55: 68.85486385 | Z55: 1.733533449 | AA55: . | AB55: 0 | AC55: 0.0013206389 | AD55: 8.3019494e-06 | AE55: . | AF55: 0 | AG55: . | AH55: 0 | AI55: 0.0013206389 | AJ55: 8.3019494e-06 | AK55: 152.6753558 | AL55: 2.141183626 | AM55: . | AN55: 0 | AO55: . | AP55: 0 | AQ55: . | AR55: 0 | AS55: 95.61436189 | AT55: 3.270718602 | AU55: 86.65353907 | AV55: 0.732596515 | AW55: 38.23862021 | AX55: 0.4476913675 | AY55: 10.35072905 | AZ55: 0.0928852697 | BA55: 38.06418982 | BB55: 0.1920198778 | BC55: 0 | BD55: 0 | BE55: 268.4526889 | BF55: 3.391417198 | BG55: 0.0098848242 | BH55: 0 | BI55: 1.259518832 | BJ55: 0.0197471059 | BK55: 47.28396755 | BL55: 0.4057014527 | BM55: . | BN55: 0 | BO55: . | BP55: 0 | BQ55: 30.44338673 | BR55: 0.0337840456 | BS55: 23.59626762 | BT55: 0.0648953557 | BU55: . | BV55: 0 | BW55: . | BX55: 0 | BY55: . | BZ55: 0 | CA55: . | CB55: 0 | CC55: 0.2878343497 | CD55: 0.0035385857 | CE55: 0.3792589519 | CF55: 0.0037797314 | CG55: 7.022596229 | CH55: 0.0771776173 | CI55: 61.83226762 | CJ55: 1.656355832 | CK55: . | CL55: 0 | CM55: . | CN55: 0 | CO55: 44.80198285 | CP55: 1.0991143 | CQ55: 50.81237903 | CR55: 2.171604302 | CS55: 52.29957966 | CT55: 1.328499995 | CU55: 216.1531092 | CV55: 2.062917203 | CW55: 0.0045613422 | CX55: 0.0082220016 | CY55: 0.0093616539 | CZ55: 0.0096900799 | DA55: 0.0097484275 | DB55: 0.0097730948 | DC55: 0.0097887623 | DD55: 0.0098019428 | DE55: 0.0098121221 | DF55: 0.0098195427 | DG55: 104.8173985 | DH55: 0.8294880008 | DI55: 58.17218029 | DJ55: 0.4790925276 | DK55: 32.22977165 | DL55: 0.2772626739 | DM55: 18.07189635 | DN55: 0.1643527597 | DO55: 10.44672439 | DP55: 0.1021016919 | DQ55: 6.293688483 | DR55: 0.0672885391 | DS55: 3.990530189 | DT55: 0.0473131006 | DU55: 2.654622992 | DV55: 0.0352260545 | DW55: 1.859209783 | DX55: 0.0275891288 | DY55: 1.354745862 | DZ55: 0.0223921302
A56: 5100 | B56: 5019 | C56: 1983.374101 | D56: 5049.702663 | E56: 109.1567054 | F56: 0.1212762549 | G56: 10.63400193 | H56: 0.0047106896 | I56: 186.1374151 | J56: 1.404510157 | K56: 117.2172425 | L56: 0.850435 | M56: 49.1657873 | N56: 0.4305370882 | O56: . | P56: 0 | Q56: 55.30568065 | R56: 0.1006239949 | S56: . | T56: 0 | U56: . | V56: 0 | W56: 0.7053707754 | X56: 0.0076490564 | Y56: 70.10510129 | Z56: 1.761781241 | AA56: . | AB56: 0 | AC56: 0.0013156108 | AD56: 8.2698127e-06 | AE56: . | AF56: 0 | AG56: . | AH56: 0 | AI56: 0.0013156108 | AJ56: 8.2698127e-06 | AK56: 153.8726359 | AL56: 2.149916255 | AM56: . | AN56: 0 | AO56: . | AP56: 0 | AQ56: . | AR56: 0 | AS56: 96.58153461 | AT56: 3.292378441 | AU56: 87.74559098 | AV56: 0.7395610663 | AW56: 38.63401755 | AX56: 0.4518420057 | AY56: 10.4452857 | AZ56: 0.0934855401 | BA56: 38.66628772 | BB56: 0.1942335205 | BC56: 0 | BD56: 0 | BE56: 273.3752268 | BF56: 3.423138653 | BG56: 0.0101440253 | BH56: 0 | BI56: 1.281051698 | BJ56: 0.0199730971 | BK56: 47.8847356 | BL56: 0.4105639911 | BM56: . | BN56: 0 | BO56: . | BP56: 0 | BQ56: 31.21603965 | BR56: 0.0345041384 | BS56: 24.08964099 | BT56: 0.0661198565 | BU56: . | BV56: 0 | BW56: . | BX56: 0 | BY56: . | BZ56: 0 | CA56: . | CB56: 0 | CC56: 0.318707524 | CD56: 0.0037956528 | CE56: 0.3866632514 | CF56: 0.0038534036 | CG56: 7.198148561 | CH56: 0.0786686879 | CI56: 62.90695273 | CJ56: 1.683112553 | CK56: . | CL56: 0 | CM56: . | CN56: 0 | CO56: 45.29611367 | CP56: 1.107955379 | CQ56: 51.28542094 | CR56: 2.184423061 | CS56: 54.25792146 | CT56: 1.343986142 | CU56: 219.1173053 | CV56: 2.07915251 | CW56: 0.0046752393 | CX56: 0.0084303484 | CY56: 0.0096064565 | CZ56: 0.0099468432 | DA56: 0.0100065815 | DB56: 0.0100322351 | DC56: 0.0100483557 | DD56: 0.0100614825 | DE56: 0.0100716199 | DF56: 0.0100790089 | DG56: 105.3465947 | DH56: 0.8336738923 | DI56: 58.57436094 | DJ56: 0.4823529958 | DK56: 32.51768475 | DL56: 0.2796675269 | DM56: 18.26994261 | DN56: 0.1660703043 | DO56: 10.58142621 | DP56: 0.1033241257 | DQ56: 6.384386884 | DR56: 0.0681610862 | DS56: 4.052682878 | DT56: 0.0479525636 | DU56: 2.699013651 | DV56: 0.0357128119 | DW56: 1.891518029 | DX56: 0.0279683968 | DY56: 1.379148627 | DZ56: 0.0226977748
A57: 5200 | B57: 4878 | C57: 2002.847964 | D57: 5149.383345 | E57: 110.9677153 | F57: 0.1223715557 | G57: 10.98548037 | H57: 0.0048207935 | I57: 186.7709712 | J57: 1.409428732 | K57: 118.1114139 | L57: 0.8568093067 | M57: 49.84806124 | N57: 0.4361138746 | O57: . | P57: 0 | Q57: 56.59796538 | R57: 0.1026113423 | S57: . | T57: 0 | U57: . | V57: 0 | W57: 0.7193607604 | X57: 0.0077719727 | Y57: 71.36102743 | Z57: 1.789772604 | AA57: . | AB57: 0 | AC57: 0.0013107866 | AD57: 8.2386863e-06 | AE57: . | AF57: 0 | AG57: . | AH57: 0 | AI57: 0.0013107866 | AJ57: 8.2386863e-06 | AK57: 154.9158123 | AL57: 2.158069833 | AM57: . | AN57: 0 | AO57: . | AP57: 0 | AQ57: . | AR57: 0 | AS57: 97.53494416 | AT57: 3.312389845 | AU57: 88.74236737 | AV57: 0.7461402817 | AW57: 39.0161312 | AX57: 0.4557805317 | AY57: 10.53150876 | AZ57: 0.0940911786 | BA57: 39.19472741 | BB57: 0.1962685714 | BC57: 0 | BD57: 0 | BE57: 278.1413672 | BF57: 3.4533337 | BG57: 0.0104809111 | BH57: 0 | BI57: 1.295599163 | BJ57: 0.0201860953 | BK57: 48.55246207 | BL57: 0.4159277793 | BM57: . | BN57: 0 | BO57: . | BP57: 0 | BQ57: 32.05331346 | BR57: 0.0352555261 | BS57: 24.54465192 | BT57: 0.0673558162 | BU57: . | BV57: 0 | BW57: . | BX57: 0 | BY57: . | BZ57: 0 | CA57: . | CB57: 0 | CC57: 0.3214981127 | CD57: 0.0038102996 | CE57: 0.3978626477 | CF57: 0.0039616731 | CG57: 7.381096377 | CH57: 0.0805493405 | CI57: 63.97993105 | CJ57: 1.709223264 | CK57: . | CL57: 0 | CM57: . | CN57: 0 | CO57: 45.77259165 | CP57: 1.116717149 | CQ57: 51.76235251 | CR57: 2.195672695 | CS57: 56.22194978 | CT57: 1.359093422 | CU57: 221.9194174 | CV57: 2.094240279 | CW57: 0.0047820645 | CX57: 0.0086301195 | CY57: 0.0098470187 | CZ57: 0.0102046508 | DA57: 0.0102710568 | DB57: 0.0103024072 | DC57: 0.0103213117 | DD57: 0.0103372322 | DE57: 0.0103501747 | DF57: 0.0103603776 | DG57: 105.8931701 | DH57: 0.8379386062 | DI57: 59.00186813 | DJ57: 0.48575871 | DK57: 32.82660523 | DL57: 0.282210124 | DM57: 18.48389137 | DN57: 0.1678977024 | DO57: 10.72766162 | DP57: 0.1046237516 | DQ57: 6.483166642 | DR57: 0.069082252 | DS57: 4.121654288 | DT57: 0.0486301391 | DU57: 2.747619635 | DV57: 0.036222024 | DW57: 1.927129169 | DX57: 0.0283676197 | DY57: 1.406592977 | DZ57: 0.023025179
A58: 5300 | B58: 4863 | C58: 2021.964656 | D58: 5249.278483 | E58: 112.7205834 | F58: 0.1233809723 | G58: 11.2989218 | H58: 0.0049188035 | I58: 187.4296435 | J58: 1.414630286 | K58: 119.0338135 | L58: 0.8635702666 | M58: 50.48058546 | N58: 0.4412495039 | O58: . | P58: 0 | Q58: 57.88139934 | R58: 0.1046726094 | S58: . | T58: 0 | U58: . | V58: 0 | W58: 0.7336042348 | X58: 0.0079053306 | Y58: 72.66605686 | Z58: 1.819077257 | AA58: . | AB58: 0 | AC58: 0.001306397 | AD58: 8.2098002e-06 | AE58: . | AF58: 0 | AG58: . | AH58: 0 | AI58: 0.001306397 | AJ58: 8.2098002e-06 | AK58: 155.9972397 | AL58: 2.16630641 | AM58: . | AN58: 0 | AO58: . | AP58: 0 | AQ58: . | AR58: 0 | AS58: 98.47512462 | AT58: 3.333148345 | AU58: 89.77584105 | AV58: 0.7530074931 | AW58: 39.40105996 | AX58: 0.4598439914 | AY58: 10.62096856 | AZ58: 0.0947259612 | BA58: 39.75381252 | BB58: 0.1984375405 | BC58: 0 | BD58: 0 | BE58: 283.1177861 | BF58: 3.484553776 | BG58: 0.0106954066 | BH58: 0 | BI58: 1.306829156 | BJ58: 0.0203048685 | BK58: 49.17375631 | BL58: 0.4209446354 | BM58: . | BN58: 0 | BO58: . | BP58: 0 | BQ58: 32.89133168 | BR58: 0.0360452932 | BS58: 24.99006766 | BT58: 0.0686273162 | BU58: . | BV58: 0 | BW58: . | BX58: 0 | BY58: . | BZ58: 0 | CA58: . | CB58: 0 | CC58: 0.3260750406 | CD58: 0.0038422866 | CE58: 0.4075291942 | CF58: 0.004063044 | CG58: 7.553867245 | CH58: 0.0821655719 | CI58: 65.11218962 | CJ58: 1.736911685 | CK58: . | CL58: 0 | CM58: . | CN58: 0 | CO58: 46.22692811 | CP58: 1.125349486 | CQ58: 52.24819651 | CR58: 2.207798859 | CS58: 58.21081891 | CT58: 1.374412995 | CU58: 224.9069672 | CV58: 2.110140781 | CW58: 0.0048796438 | CX58: 0.0088069046 | CY58: 0.0100495512 | CZ58: 0.0104155329 | DA58: 0.0104844886 | DB58: 0.0105174648 | DC58: 0.0105363041 | DD58: 0.0105521684 | DE58: 0.0105650658 | DF58: 0.0105752329 | DG58: 106.4603392 | DH58: 0.8424676494 | DI58: 59.44266933 | DJ58: 0.4893677874 | DK58: 33.14878402 | DL58: 0.2849443621 | DM58: 18.70779284 | DN58: 0.1698881777 | DO58: 10.88036304 | DP58: 0.1060645251 | DQ58: 6.589569339 | DR58: 0.0701557357 | DS58: 4.195036395 | DT58: 0.0494377848 | DU58: 2.799227994 | DV58: 0.0368474792 | DW58: 1.963658515 | DX58: 0.0288630832 | DY58: 1.433279087 | DZ58: 0.0234329347
A59: 5400 | B59: 4583 | C59: 2040.698167 | D59: 5349.317499 | E59: 114.3735858 | F59: 0.1243248131 | G59: 11.59274828 | H59: 0.0050048939 | I59: 188.0391817 | J59: 1.419248127 | K59: 119.8977025 | L59: 0.86973182 | M59: 51.15815386 | N59: 0.4466739414 | O59: . | P59: 0 | Q59: 59.12600095 | R59: 0.1065998137 | S59: . | T59: 0 | U59: . | V59: 0 | W59: 0.7605330041 | X59: 0.0081613448 | Y59: 73.82543956 | Z59: 1.844938346 | AA59: . | AB59: 0 | AC59: 0.0013024692 | AD59: 8.1840858e-06 | AE59: . | AF59: 0 | AG59: . | AH59: 0 | AI59: 0.0013024692 | AJ59: 8.1840858e-06 | AK59: 156.9904462 | AL59: 2.173797332 | AM59: . | AN59: 0 | AO59: . | AP59: 0 | AQ59: . | AR59: 0 | AS59: 99.38201752 | AT59: 3.352034595 | AU59: 90.80626797 | AV59: 0.759436568 | AW59: 39.80156981 | AX59: 0.463664099 | AY59: 10.69848478 | AZ59: 0.0952914934 | BA59: 40.30621339 | BB59: 0.2004809756 | BC59: 0 | BD59: 0 | BE59: 288.061842 | BF59: 3.513523613 | BG59: 0.0109127052 | BH59: 0 | BI59: 1.337508382 | BJ59: 0.0206153658 | BK59: 49.82064548 | BL59: 0.4260585756 | BM59: . | BN59: 0 | BO59: . | BP59: 0 | BQ59: 33.69938007 | BR59: 0.0367843 | BS59: 25.42662088 | BT59: 0.0698155137 | BU59: . | BV59: 0 | BW59: . | BX59: 0 | BY59: . | BZ59: 0 | CA59: . | CB59: 0 | CC59: 0.3356961786 | CD59: 0.0039273326 | CE59: 0.4248368255 | CF59: 0.0042340122 | CG59: 7.725812591 | CH59: 0.083828343 | CI59: 66.09962696 | CJ59: 1.761110003 | CK59: . | CL59: 0 | CM59: . | CN59: 0 | CO59: 46.7066741 | CP59: 1.134010965 | CQ59: 52.67534341 | CR59: 2.21802363 | CS59: 60.25264545 | CT59: 1.389135434 | CU59: 227.8091966 | CV59: 2.124388179 | CW59: 0.004964109 | CX59: 0.008949371 | CY59: 0.0102274063 | CZ59: 0.0106082598 | DA59: 0.0106842671 | DB59: 0.0107202168 | DC59: 0.0107415139 | DD59: 0.0107591681 | DE59: 0.010773866 | DF59: 0.0107858429 | DG59: 106.9840319 | DH59: 0.8464633706 | DI59: 59.85279945 | DJ59: 0.4925635632 | DK59: 33.45114447 | DL59: 0.2873777779 | DM59: 18.92432098 | DN59: 0.1716911352 | DO59: 11.03513139 | DP59: 0.1073973191 | DQ59: 6.700143496 | DR59: 0.0711463472 | DS59: 4.277057703 | DT59: 0.0502063273 | DU59: 2.860011793 | DV59: 0.0374446806 | DW59: 2.009200824 | DX59: 0.0293378039 | DY59: 1.468657765 | DZ59: 0.0238255864
A60: 5500 | B60: 4329 | C60: 2059.095347 | D60: 5449.408526 | E60: 115.9585252 | F60: 0.1251802345 | G60: 11.95588622 | H60: 0.0051096162 | I60: 188.59681 | J60: 1.423642198 | K60: 120.6474326 | L60: 0.8750042093 | M60: 51.76801561 | N60: 0.4516808559 | O60: . | P60: 0 | Q60: 60.34314003 | R60: 0.1084753614 | S60: . | T60: 0 | U60: . | V60: 0 | W60: 0.7722527619 | X60: 0.0083250817 | Y60: 74.89652085 | Z60: 1.868708277 | AA60: . | AB60: 0 | AC60: 0.0013643006 | AD60: 8.7154734e-06 | AE60: . | AF60: 0 | AG60: . | AH60: 0 | AI60: 0.0013643006 | AJ60: 8.7154734e-06 | AK60: 157.9819605 | AL60: 2.180838986 | AM60: . | AN60: 0 | AO60: . | AP60: 0 | AQ60: . | AR60: 0 | AS60: 100.1871886 | AT60: 3.369314746 | AU60: 91.8451359 | AV60: 0.7659175729 | AW60: 40.19478621 | AX60: 0.4674236852 | AY60: 10.79653732 | AZ60: 0.0959532585 | BA60: 40.85381237 | BB60: 0.2025406292 | BC60: 0 | BD60: 0 | BE60: 292.6335208 | BF60: 3.541723598 | BG60: 0.0111649897 | BH60: 0 | BI60: 1.354313533 | BJ60: 0.0208754058 | BK60: 50.41370208 | BL60: 0.4308054501 | BM60: . | BN60: 0 | BO60: . | BP60: 0 | BQ60: 34.52771853 | BR60: 0.0375278597 | BS60: 25.8154215 | BT60: 0.0709475017 | BU60: . | BV60: 0 | BW60: . | BX60: 0 | BY60: . | BZ60: 0 | CA60: . | CB60: 0 | CC60: 0.3424812598 | CD60: 0.0040266224 | CE60: 0.4297715021 | CF60: 0.0042984593 | CG60: 7.916316967 | CH60: 0.0855232571 | CI60: 66.98020388 | CJ60: 1.783185019 | CK60: . | CL60: 0 | CM60: . | CN60: 0 | CO60: 47.13600578 | CP60: 1.141779498 | CQ60: 53.05118288 | CR60: 2.227535248 | CS60: 62.12272946 | CT60: 1.403112701 | CU60: 230.5107914 | CV60: 2.138610897 | CW60: 0.0050684566 | CX60: 0.0091372959 | CY60: 0.01045469 | CZ60: 0.0108512233 | DA60: 0.0109347447 | DB60: 0.0109730294 | DC60: 0.0109942628 | DD60: 0.0110118644 | DE60: 0.0110265192 | DF60: 0.0110384593 | DG60: 107.4696055 | DH60: 0.8503117609 | DI60: 60.23432017 | DJ60: 0.4956681703 | DK60: 33.73593216 | DL60: 0.2897626037 | DM60: 19.1293225 | DN60: 0.1734711696 | DO60: 11.1793989 | DP60: 0.1087118834 | DQ60: 6.802398695 | DR60: 0.0721312461 | DS60: 4.350808622 | DT60: 0.050963473 | DU60: 2.914970081 | DV60: 0.0380470183 | DW60: 2.050739015 | DX60: 0.0298269737 | DY60: 1.500848163 | DZ60: 0.0242316973
A61: 5600 | B61: 4427 | C61: 2077.322792 | D61: 5549.727301 | E61: 117.6575565 | F61: 0.1261269913 | G61: 12.25584638 | H61: 0.0051968899 | I61: 189.2465136 | J61: 1.428674936 | K61: 121.4850376 | L61: 0.8809703317 | M61: 52.40052851 | N61: 0.4567094117 | O61: . | P61: 0 | Q61: 61.58831568 | R61: 0.1104237996 | S61: . | T61: 0 | U61: . | V61: 0 | W61: 0.789391209 | X61: 0.008528692 | Y61: 76.06158057 | Z61: 1.894192222 | AA61: . | AB61: 0 | AC61: 0.001360206 | AD61: 8.688645e-06 | AE61: . | AF61: 0 | AG61: . | AH61: 0 | AI61: 0.001360206 | AJ61: 8.688645e-06 | AK61: 158.8791819 | AL61: 2.187923363 | AM61: . | AN61: 0 | AO61: . | AP61: 0 | AQ61: . | AR61: 0 | AS61: 101.034247 | AT61: 3.38762855 | AU61: 92.9085524 | AV61: 0.7726702409 | AW61: 40.60922409 | AX61: 0.4714638435 | AY61: 10.87671774 | AZ61: 0.096478393 | BA61: 41.42261057 | BB61: 0.2047280044 | BC61: 0 | BD61: 0 | BE61: 297.5624514 | BF61: 3.571152784 | BG61: 0.0113722465 | BH61: 0 | BI61: 1.376906595 | BJ61: 0.0212614002 | BK61: 51.02362192 | BL61: 0.4354480115 | BM61: . | BN61: 0 | BO61: . | BP61: 0 | BQ61: 35.35308861 | BR61: 0.03828094 | BS61: 26.23522707 | BT61: 0.0721428596 | BU61: . | BV61: 0 | BW61: . | BX61: 0 | BY61: . | BZ61: 0 | CA61: . | CB61: 0 | CC61: 0.3546467809 | CD61: 0.0041880229 | CE61: 0.4347444281 | CF61: 0.004340669 | CG61: 8.104982845 | CH61: 0.0870861236 | CI61: 67.95659773 | CJ61: 1.807106098 | CK61: . | CL61: 0 | CM61: . | CN61: 0 | CO61: 47.58227649 | CP61: 1.15003452 | CQ61: 53.45197046 | CR61: 2.23759403 | CS61: 64.17078423 | CT61: 1.417697145 | CU61: 233.3916672 | CV61: 2.153455639 | CW61: 0.0051536116 | CX61: 0.0092894601 | CY61: 0.0106430089 | CZ61: 0.0110550932 | DA61: 0.0111421412 | DB61: 0.0111808139 | DC61: 0.0112019818 | DD61: 0.0112195295 | DE61: 0.0112341399 | DF61: 0.0112460431 | DG61: 108.0293326 | DH61: 0.85473534 | DI61: 60.67536389 | DJ61: 0.4992615201 | DK61: 34.06454366 | DL61: 0.2925515167 | DM61: 19.36586862 | DN61: 0.1755827447 | DO61: 11.34802716 | DP61: 0.110310128 | DQ61: 6.923872187 | DR61: 0.0733570236 | DS61: 4.439393051 | DT61: 0.05192317 | DU61: 2.979062949 | DV61: 0.038799309 | DW61: 2.098801448 | DX61: 0.0304371806 | DY61: 1.537560957 | DZ61: 0.0247359511
A62: 5700 | B62: 4190 | C62: 2095.2611 | D62: 5650.468568 | E62: 119.3338276 | F62: 0.1271460095 | G62: 12.61290694 | H62: 0.0052927081 | I62: 189.8014343 | J62: 1.433063506 | K62: 122.2682621 | L62: 0.8865323537 | M62: 52.95612145 | N62: 0.4610844503 | O62: . | P62: 0 | Q62: 62.87723546 | R62: 0.1124049461 | S62: . | T62: 0 | U62: . | V62: 0 | W62: 0.8140238088 | X62: 0.008781842 | Y62: 77.16208042 | Z62: 1.918724251 | AA62: . | AB62: 0 | AC62: 0.0013565941 | AD62: 8.6647873e-06 | AE62: . | AF62: 0 | AG62: . | AH62: 0 | AI62: 0.0013565941 | AJ62: 8.6647873e-06 | AK62: 159.7873441 | AL62: 2.194953838 | AM62: . | AN62: 0 | AO62: . | AP62: 0 | AQ62: . | AR62: 0 | AS62: 101.8373235 | AT62: 3.405478698 | AU62: 93.90984638 | AV62: 0.7790392892 | AW62: 40.97303297 | AX62: 0.4751672464 | AY62: 10.97094356 | AZ62: 0.097057439 | BA62: 41.96586986 | BB62: 0.2068146038 | BC62: 0 | BD62: 0 | BE62: 302.3247088 | BF62: 3.599478438 | BG62: 0.0116261665 | BH62: 0 | BI62: 1.392197539 | BJ62: 0.0214739879 | BK62: 51.56392391 | BL62: 0.4396104623 | BM62: . | BN62: 0 | BO62: . | BP62: 0 | BQ62: 36.24940925 | BR62: 0.0390912412 | BS62: 26.62782621 | BT62: 0.073313705 | BU62: . | BV62: 0 | BW62: . | BX62: 0 | BY62: . | BZ62: 0 | CA62: . | CB62: 0 | CC62: 0.372202868 | CD62: 0.0043788094 | CE62: 0.4418209408 | CF62: 0.0044030326 | CG62: 8.301615546 | CH62: 0.0889720851 | CI62: 68.86046488 | CJ62: 1.829752166 | CK62: . | CL62: 0 | CM62: . | CN62: 0 | CO62: 48.0096855 | CP62: 1.158506531 | CQ62: 53.82763805 | CR62: 2.246972167 | CS62: 66.16052306 | CT62: 1.431833905 | CU62: 236.1641857 | CV62: 2.167644534 | CW62: 0.0052484887 | CX62: 0.0094600982 | CY62: 0.0108403484 | CZ62: 0.011267731 | DA62: 0.0113595067 | DB62: 0.0114008333 | DC62: 0.0114247064 | DD62: 0.011444462 | DE62: 0.0114612895 | DF62: 0.0114754173 | DG62: 108.509178 | DH62: 0.858543954 | DI62: 61.04690563 | DJ62: 0.5022884648 | DK62: 34.33102491 | DL62: 0.2948079476 | DM62: 19.55239496 | DN62: 0.17723812 | DO62: 11.47702264 | DP62: 0.1115227489 | DQ62: 7.014124401 | DR62: 0.0742582119 | DS62: 4.50400187 | DT62: 0.0526112832 | DU62: 3.026735825 | DV62: 0.0393447298 | DW62: 2.134737005 | DX62: 0.0308788399 | DY62: 1.56528135 | DZ62: 0.025103481
A63: 5800 | B63: 4220 | C63: 2112.877064 | D63: 5749.910904 | E63: 120.944272 | F63: 0.1279813754 | G63: 13.01316682 | H63: 0.0054019634 | I63: 190.3674093 | J63: 1.437443901 | K63: 123.0915713 | L63: 0.8924208614 | M63: 53.60500692 | N63: 0.4663103621 | O63: . | P63: 0 | Q63: 64.20199924 | R63: 0.1143931674 | S63: . | T63: 0 | U63: . | V63: 0 | W63: 0.8327733391 | X63: 0.0089760844 | Y63: 78.28717958 | Z63: 1.943807315 | AA63: . | AB63: 0 | AC63: 0.0013527659 | AD63: 8.6399788e-06 | AE63: . | AF63: 0 | AG63: . | AH63: 0 | AI63: 0.0013527659 | AJ63: 8.6399788e-06 | AK63: 160.6806528 | AL63: 2.202038141 | AM63: . | AN63: 0 | AO63: . | AP63: 0 | AQ63: . | AR63: 0 | AS63: 102.6035758 | AT63: 3.422788213 | AU63: 94.93217469 | AV63: 0.7853592076 | AW63: 41.37154958 | AX63: 0.4789034968 | AY63: 11.05807545 | AZ63: 0.0976693285 | BA63: 42.50254967 | BB63: 0.2087863823 | BC63: 0 | BD63: 0 | BE63: 307.1441018 | BF63: 3.62767893 | BG63: 0.0118537779 | BH63: 0 | BI63: 1.417641306 | BJ63: 0.021769641 | BK63: 52.18736562 | BL63: 0.4445407211 | BM63: . | BN63: 0 | BO63: . | BP63: 0 | BQ63: 37.08945938 | BR63: 0.0398368725 | BS63: 27.11253986 | BT63: 0.0745562949 | BU63: . | BV63: 0 | BW63: . | BX63: 0 | BY63: . | BZ63: 0 | CA63: . | CB63: 0 | CC63: 0.3816842382 | CD63: 0.0044839573 | CE63: 0.4510891009 | CF63: 0.0044921271 | CG63: 8.495652762 | CH63: 0.0909907981 | CI63: 69.79152682 | CJ63: 1.852816517 | CK63: . | CL63: 0 | CM63: . | CN63: 0 | CO63: 48.42039169 | CP63: 1.1662174 | CQ63: 54.18318406 | CR63: 2.256570814 | CS63: 68.18752962 | CT63: 1.44576002 | CU63: 238.9565722 | CV63: 2.181918911 | CW63: 0.0053562574 | CX63: 0.0096521701 | CY63: 0.0110600536 | CZ63: 0.0114952464 | DA63: 0.0115872761 | DB63: 0.0116289894 | DC63: 0.011652796 | DD63: 0.0116724968 | DE63: 0.0116892786 | DF63: 0.0117033683 | DG63: 109.001461 | DH63: 0.8623718683 | DI63: 61.43356118 | DJ63: 0.5053644176 | DK63: 34.61236582 | DL63: 0.2971145095 | DM63: 19.75307221 | DN63: 0.1789363935 | DO63: 11.61915624 | DP63: 0.1127682391 | DQ63: 7.113664094 | DR63: 0.0751664128 | DS63: 4.57387728 | DT63: 0.0532790683 | DU63: 3.076174715 | DV63: 0.0398439155 | DW63: 2.169472959 | DX63: 0.0312526207 | DY63: 1.589972144 | DZ63: 0.0253891732
A64: 5900 | B64: 3944 | C64: 2130.135156 | D64: 5850.233432 | E64: 122.4373709 | F64: 0.1287973932 | G64: 13.31560997 | H64: 0.0054813982 | I64: 190.9456132 | J64: 1.441841658 | K64: 123.8512973 | L64: 0.8978292116 | M64: 54.21660467 | N64: 0.4711982099 | O64: . | P64: 0 | Q64: 65.38098569 | R64: 0.116190883 | S64: . | T64: 0 | U64: . | V64: 0 | W64: 0.8592837093 | X64: 0.0092277125 | Y64: 79.32718088 | Z64: 1.967788034 | AA64: . | AB64: 0 | AC64: 0.001349273 | AD64: 8.6164771e-06 | AE64: . | AF64: 0 | AG64: . | AH64: 0 | AI64: 0.001349273 | AJ64: 8.6164771e-06 | AK64: 161.6005121 | AL64: 2.208810463 | AM64: . | AN64: 0 | AO64: . | AP64: 0 | AQ64: . | AR64: 0 | AS64: 103.4407104 | AT64: 3.440279237 | AU64: 95.78482312 | AV64: 0.7912919778 | AW64: 41.72102471 | AX64: 0.4825028495 | AY64: 11.13571943 | AZ64: 0.0981919903 | BA64: 42.92807898 | BB64: 0.210597138 | BC64: 0 | BD64: 0 | BE64: 311.8906212 | BF64: 3.655785447 | BG64: 0.0120537035 | BH64: 0 | BI64: 1.431701428 | BJ64: 0.0218742493 | BK64: 52.78490325 | BL64: 0.4493239606 | BM64: . | BN64: 0 | BO64: . | BP64: 0 | BQ64: 37.87573816 | BR64: 0.0405298115 | BS64: 27.50524753 | BT64: 0.0756610715 | BU64: . | BV64: 0 | BW64: . | BX64: 0 | BY64: . | BZ64: 0 | CA64: . | CB64: 0 | CC64: 0.3884410749 | CD64: 0.0045527813 | CE64: 0.4708426343 | CF64: 0.0046749312 | CG64: 8.650235486 | CH64: 0.0923572735 | CI64: 70.67694539 | CJ64: 1.875430761 | CK64: . | CL64: 0 | CM64: . | CN64: 0 | CO64: 48.87186571 | CP64: 1.174070043 | CQ64: 54.56884475 | CR64: 2.266209194 | CS64: 70.15852726 | CT64: 1.459561399 | CU64: 241.732094 | CV64: 2.196224048 | CW64: 0.0054340439 | CX64: 0.0097871117 | CY64: 0.0112223177 | CZ64: 0.0116736897 | DA64: 0.0117708983 | DB64: 0.0118145786 | DC64: 0.0118404008 | DD64: 0.0118616224 | DE64: 0.0118793797 | DF64: 0.0118944515 | DG64: 109.4971432 | DH64: 0.8661947704 | DI64: 61.81477678 | DJ64: 0.5083955573 | DK64: 34.89067436 | DL64: 0.2994155825 | DM64: 19.94880535 | DN64: 0.1806296872 | DO64: 11.75459856 | DP64: 0.1140045354 | DQ64: 7.208457896 | DR64: 0.076092534 | DS64: 4.642771537 | DT64: 0.0540015361 | DU64: 3.127096934 | DV64: 0.0404234691 | DW64: 2.20797374 | DX64: 0.0317272079 | DY64: 1.62032751 | DZ64: 0.0257907837
A65: 6000 | B65: 3797 | C65: 2147.175206 | D65: 5949.702887 | E65: 123.9577131 | F65: 0.1295920868 | G65: 13.71121409 | H65: 0.0055790066 | I65: 191.4770817 | J65: 1.445783906 | K65: 124.5548392 | L65: 0.9026171313 | M65: 54.76845106 | N65: 0.4755764607 | O65: . | P65: 0 | Q65: 66.55725765 | R65: 0.1179380803 | S65: . | T65: 0 | U65: . | V65: 0 | W65: 0.8805938276 | X65: 0.0094426151 | Y65: 80.32640269 | Z65: 1.989296341 | AA65: . | AB65: 0 | AC65: 0.0013457552 | AD65: 8.5926767e-06 | AE65: . | AF65: 0 | AG65: . | AH65: 0 | AI65: 0.0013457552 | AJ65: 8.5926767e-06 | AK65: 162.4556443 | AL65: 2.215175889 | AM65: . | AN65: 0 | AO65: . | AP65: 0 | AQ65: . | AR65: 0 | AS65: 104.2300513 | AT65: 3.456570816 | AU65: 96.67829371 | AV65: 0.797114974 | AW65: 42.07874305 | AX65: 0.4860098166 | AY65: 11.19822276 | AZ65: 0.0986703292 | BA65: 43.4013279 | BB65: 0.2124348282 | BC65: 0 | BD65: 0 | BE65: 316.4176785 | BF65: 3.681254761 | BG65: 0.012288044 | BH65: 0 | BI65: 1.446560465 | BJ65: 0.0219897404 | BK65: 53.3218906 | BL65: 0.4535867203 | BM65: . | BN65: 0 | BO65: . | BP65: 0 | BQ65: 38.62456532 | BR65: 0.041180825 | BS65: 27.93269234 | BT65: 0.0767572553 | BU65: . | BV65: 0 | BW65: . | BX65: 0 | BY65: . | BZ65: 0 | CA65: . | CB65: 0 | CC65: 0.3971199673 | CD65: 0.0046565494 | CE65: 0.4834738603 | CF65: 0.0047860657 | CG65: 8.841332617 | CH65: 0.0938898908 | CI65: 71.48507008 | CJ65: 1.89540645 | CK65: . | CL65: 0 | CM65: . | CN65: 0 | CO65: 49.28774183 | CP65: 1.181051263 | CQ65: 54.94230945 | CR65: 2.275519552 | CS65: 72.07294412 | CT65: 1.472097513 | CU65: 244.3447344 | CV65: 2.209157248 | CW65: 0.0055279504 | CX65: 0.0099519169 | CY65: 0.0114231446 | CZ65: 0.0118876015 | DA65: 0.0119898056 | DB65: 0.0120381036 | DC65: 0.0120674331 | DD65: 0.0120915114 | DE65: 0.0121121353 | DF65: 0.0121278297 | DG65: 109.9591433 | DH65: 0.8696675159 | DI65: 62.18228528 | DJ65: 0.5112377342 | DK65: 35.16954332 | DL65: 0.3016330016 | DM65: 20.14995529 | DN65: 0.1822845383 | DO65: 11.89973497 | DP65: 0.1152419129 | DQ65: 7.31362948 | DR65: 0.0770287442 | DS65: 4.719694637 | DT65: 0.0547194619 | DU65: 3.185130259 | DV65: 0.0409940356 | DW65: 2.252736382 | DX65: 0.0321946226 | DY65: 1.65559296 | DZ65: 0.0261859621
A66: 6100 | B66: 3754 | C66: 2164.04748 | D66: 6049.758874 | E66: 125.5528271 | F66: 0.1303703459 | G66: 14.09213687 | H66: 0.0056762325 | I66: 191.9842153 | J66: 1.449588817 | K66: 125.2905644 | L66: 0.9076294387 | M66: 55.27739864 | N66: 0.4798333142 | O66: . | P66: 0 | Q66: 67.72209396 | R66: 0.1197207641 | S66: . | T66: 0 | U66: . | V66: 0 | W66: 0.9004955335 | X66: 0.0096586796 | Y66: 81.35166889 | Z66: 2.011831471 | AA66: . | AB66: 0 | AC66: 0.00134225 | AD66: 8.5696664e-06 | AE66: . | AF66: 0 | AG66: . | AH66: 0 | AI66: 0.00134225 | AJ66: 8.5696664e-06 | AK66: 163.2672917 | AL66: 2.221374503 | AM66: . | AN66: 0 | AO66: . | AP66: 0 | AQ66: . | AR66: 0 | AS66: 104.9782724 | AT66: 3.472937788 | AU66: 97.56614324 | AV66: 0.8028293521 | AW66: 42.39682783 | AX66: 0.4893109421 | AY66: 11.27097235 | AZ66: 0.0992214144 | BA66: 43.89834306 | BB66: 0.2142969956 | BC66: 0 | BD66: 0 | BE66: 321.1295435 | BF66: 3.708494227 | BG66: 0.0125230452 | BH66: 0 | BI66: 1.463927924 | BJ66: 0.0221578178 | BK66: 53.81347072 | BL66: 0.4576754965 | BM66: . | BN66: 0 | BO66: . | BP66: 0 | BQ66: 39.40282118 | BR66: 0.041868662 | BS66: 28.31927278 | BT66: 0.0778521022 | BU66: . | BV66: 0 | BW66: . | BX66: 0 | BY66: . | BZ66: 0 | CA66: . | CB66: 0 | CC66: 0.4100228026 | CD66: 0.0047885408 | CE66: 0.4904727309 | CF66: 0.0048701389 | CG66: 9.013033484 | CH66: 0.0956997564 | CI66: 72.33863541 | CJ66: 1.916131714 | CK66: . | CL66: 0 | CM66: . | CN66: 0 | CO66: 49.68259345 | CP66: 1.188382387 | CQ66: 55.29567893 | CR66: 2.284555401 | CS66: 74.15366401 | CT66: 1.486430151 | CU66: 246.9758794 | CV66: 2.222064076 | CW66: 0.0056231128 | CX66: 0.0101244016 | CY66: 0.0116342665 | CZ66: 0.0121142851 | DA66: 0.0122212696 | DB66: 0.0122719818 | DC66: 0.012302067 | DD66: 0.012326915 | DE66: 0.0123474909 | DF66: 0.0123631465 | DG66: 110.3958785 | DH66: 0.8729649663 | DI66: 62.52401007 | DJ66: 0.5138570043 | DK66: 35.41507049 | DL66: 0.3035598638 | DM66: 20.31963583 | DN66: 0.1836546074 | DO66: 12.01608601 | DP66: 0.1162092268 | DQ66: 7.39368525 | DR66: 0.0777144189 | DS66: 4.774622036 | DT66: 0.0552055908 | DU66: 3.222620016 | DV66: 0.0413377452 | DW66: 2.279955824 | DX66: 0.0324518909 | DY66: 1.675243568 | DZ66: 0.0263793508
A67: 6200 | B67: 3657 | C67: 2180.718679 | D67: 6149.780702 | E67: 127.1825599 | F67: 0.1311919074 | G67: 14.40923152 | H67: 0.005751294 | I67: 192.4500692 | J67: 1.453325853 | K67: 125.996892 | L67: 0.9123163149 | M67: 55.84293783 | N67: 0.4844605256 | O67: . | P67: 0 | Q67: 68.87750014 | R67: 0.1215121415 | S67: . | T67: 0 | U67: . | V67: 0 | W67: 0.9333594754 | X67: 0.0098994299 | Y67: 82.38960746 | Z67: 2.034532977 | AA67: . | AB67: 0 | AC67: 0.0014053767 | AD67: 9.0545332e-06 | AE67: . | AF67: 0 | AG67: . | AH67: 0 | AI67: 0.0014053767 | AJ67: 9.0545332e-06 | AK67: 163.9953414 | AL67: 2.227253001 | AM67: . | AN67: 0 | AO67: . | AP67: 0 | AQ67: . | AR67: 0 | AS67: 105.6729866 | AT67: 3.488811534 | AU67: 98.53203976 | AV67: 0.8086019932 | AW67: 42.73237319 | AX67: 0.4926277592 | AY67: 11.351145 | AZ67: 0.0997387852 | BA67: 44.44852157 | BB67: 0.2162354488 | BC67: 0 | BD67: 0 | BE67: 325.7752622 | BF67: 3.735125319 | BG67: 0.0126855521 | BH67: 0 | BI67: 1.47656869 | BJ67: 0.0223265056 | BK67: 54.36636914 | BL67: 0.46213402 | BM67: . | BN67: 0 | BO67: . | BP67: 0 | BQ67: 40.1929879 | BR67: 0.0425778776 | BS67: 28.68451224 | BT67: 0.0789342639 | BU67: . | BV67: 0 | BW67: . | BX67: 0 | BY67: . | BZ67: 0 | CA67: . | CB67: 0 | CC67: 0.4221751109 | CD67: 0.0048548826 | CE67: 0.5111843645 | CF67: 0.0050445472 | CG67: 9.181425217 | CH67: 0.0972931675 | CI67: 73.20818224 | CJ67: 1.93723981 | CK67: . | CL67: 0 | CM67: . | CN67: 0 | CO67: 50.04403023 | CP67: 1.195016825 | CQ67: 55.62895636 | CR67: 2.293794708 | CS67: 76.20598713 | CT67: 1.499754512 | CU67: 249.5692751 | CV67: 2.235370807 | CW67: 0.0056972432 | CX67: 0.0102511098 | CY67: 0.0117832061 | CZ67: 0.0122721244 | DA67: 0.0123827802 | DB67: 0.0124350225 | DC67: 0.012465036 | DD67: 0.0124898246 | DE67: 0.0125103536 | DF67: 0.0125259713 | DG67: 110.7997638 | DH67: 0.8762364416 | DI67: 62.84126105 | DJ67: 0.5165087227 | DK67: 35.64879904 | DL67: 0.3055968071 | DM67: 20.48784252 | DN67: 0.1851926104 | DO67: 12.13405318 | DP67: 0.1173568458 | DQ67: 7.477289162 | DR67: 0.0785835036 | DS67: 4.834361704 | DT67: 0.0558803633 | DU67: 3.267518548 | DV67: 0.0418872945 | DW67: 2.314980068 | DX67: 0.0329150417 | DY67: 1.703388302 | DZ67: 0.0267801586
A68: 6300 | B68: 3554 | C68: 2196.965161 | D68: 6249.489603 | E68: 128.5841429 | F68: 0.1319262704 | G68: 14.7397855 | H68: 0.0058344689 | I68: 192.9237173 | J68: 1.456860156 | K68: 126.7063259 | L68: 0.9172102173 | M68: 56.39822872 | N68: 0.4887974905 | O68: . | P68: 0 | Q68: 69.99125053 | R68: 0.1231847677 | S68: . | T68: 0 | U68: . | V68: 0 | W68: 0.9399933296 | X68: 0.0100028419 | Y68: 83.34252184 | Z68: 2.055059087 | AA68: . | AB68: 0 | AC68: 0.0017065096 | AD68: 1.15419e-05 | AE68: . | AF68: 0 | AG68: . | AH68: 0 | AI68: 0.0017065096 | AJ68: 1.15419e-05 | AK68: 164.7272371 | AL68: 2.233277668 | AM68: . | AN68: 0 | AO68: . | AP68: 0 | AQ68: . | AR68: 0 | AS68: 106.4312953 | AT68: 3.504599686 | AU68: 99.37084387 | AV68: 0.8136590248 | AW68: 43.0316316 | AX68: 0.4955567017 | AY68: 11.43198511 | AZ68: 0.1002394705 | BA68: 44.90722717 | BB68: 0.2178628526 | BC68: 0 | BD68: 0 | BE68: 330.4303557 | BF68: 3.760658767 | BG68: 0.0128714083 | BH68: 0 | BI68: 1.491613574 | BJ68: 0.0224896726 | BK68: 54.90661515 | BL68: 0.466307818 | BM68: . | BN68: 0 | BO68: . | BP68: 0 | BQ68: 40.91975564 | BR68: 0.0432103001 | BS68: 29.0714949 | BT68: 0.0799744676 | BU68: . | BV68: 0 | BW68: . | BX68: 0 | BY68: . | BZ68: 0 | CA68: . | CB68: 0 | CC68: 0.4270167028 | CD68: 0.0049446371 | CE68: 0.5129766268 | CF68: 0.0050582048 | CG68: 9.353351854 | CH68: 0.0990396564 | CI68: 73.98916999 | CJ68: 1.95601943 | CK68: . | CL68: 0 | CM68: . | CN68: 0 | CO68: 50.42325246 | CP68: 1.201516002 | CQ68: 56.00804281 | CR68: 2.303083684 | CS68: 78.2475461 | CT68: 1.512709306 | CU68: 252.1828096 | CV68: 2.247949461 | CW68: 0.0057743168 | CX68: 0.0103869815 | CY68: 0.011946244 | CZ68: 0.0124499252 | DA68: 0.0125656822 | DB68: 0.0126195031 | DC68: 0.0126506432 | DD68: 0.0126760692 | DE68: 0.0126965538 | DF68: 0.0127121348 | DG68: 111.2122035 | DH68: 0.879336132 | DI68: 63.16579888 | DJ68: 0.5189890307 | DK68: 35.89418294 | DL68: 0.3075074893 | DM68: 20.66762334 | DN68: 0.186613235 | DO68: 12.26304481 | DP68: 0.1183949404 | DQ68: 7.57031449 | DR68: 0.0793437021 | DS68: 4.903071191 | DT68: 0.0564514949 | DU68: 3.318494941 | DV68: 0.0423203625 | DW68: 2.351948116 | DX68: 0.0332397945 | DY68: 1.730424962 | DZ68: 0.0270282386
A69: 6400 | B69: 3472 | C69: 2213.085532 | D69: 6349.83715 | E69: 130.0862747 | F69: 0.1327407815 | G69: 15.17040907 | H69: 0.0059434717 | I69: 193.3952935 | J69: 1.460434582 | K69: 127.3469848 | L69: 0.9219934648 | M69: 56.90433992 | N69: 0.4927406378 | O69: . | P69: 0 | Q69: 71.08147927 | R69: 0.1248677347 | S69: . | T69: 0 | U69: . | V69: 0 | W69: 0.9540595231 | X69: 0.0101455136 | Y69: 84.2768274 | Z69: 2.074746412 | AA69: . | AB69: 0 | AC69: 0.0017030542 | AD69: 1.15181e-05 | AE69: . | AF69: 0 | AG69: . | AH69: 0 | AI69: 0.0017030542 | AJ69: 1.15181e-05 | AK69: 165.4517736 | AL69: 2.238780277 | AM69: . | AN69: 0 | AO69: . | AP69: 0 | AQ69: . | AR69: 0 | AS69: 107.1197826 | AT69: 3.519267472 | AU69: 100.2389962 | AV69: 0.8191537092 | AW69: 43.34034772 | AX69: 0.4987699833 | AY69: 11.51154737 | AZ69: 0.1007827864 | BA69: 45.3871011 | BB69: 0.2196009395 | BC69: 0 | BD69: 0 | BE69: 335.1126185 | BF69: 3.785051908 | BG69: 0.0131202476 | BH69: 0 | BI69: 1.513708752 | BJ69: 0.0226814906 | BK69: 55.39063117 | BL69: 0.4700591472 | BM69: . | BN69: 0 | BO69: . | BP69: 0 | BQ69: 41.6081565 | BR69: 0.0438292708 | BS69: 29.47332277 | BT69: 0.0810384639 | BU69: . | BV69: 0 | BW69: . | BX69: 0 | BY69: . | BZ69: 0 | CA69: . | CB69: 0 | CC69: 0.429916405 | CD69: 0.0049872614 | CE69: 0.5241431181 | CF69: 0.0051582522 | CG69: 9.547678813 | CH69: 0.1006242369 | CI69: 74.72914859 | CJ69: 1.974122175 | CK69: . | CL69: 0 | CM69: . | CN69: 0 | CO69: 50.79724145 | CP69: 1.208095087 | CQ69: 56.32254114 | CR69: 2.311172385 | CS69: 80.34606907 | CT69: 1.525095523 | CU69: 254.7665495 | CV69: 2.259956385 | CW69: 0.0058791687 | CX69: 0.0105624271 | CY69: 0.0121546976 | CZ69: 0.0126741233 | DA69: 0.012798662 | DB69: 0.0128555058 | DC69: 0.0128887166 | DD69: 0.0129157327 | DE69: 0.0129378211 | DF69: 0.0129550134 | DG69: 111.6194878 | DH69: 0.8824450259 | DI69: 63.48619451 | DJ69: 0.5214856982 | DK69: 36.12982623 | DL69: 0.3093989653 | DM69: 20.83510371 | DN69: 0.1880088142 | DO69: 12.38148625 | DP69: 0.1194234289 | DQ69: 7.654245107 | DR69: 0.080108623 | DS69: 4.963304607 | DT69: 0.0570282671 | DU69: 3.361758042 | DV69: 0.0427618913 | DW69: 2.382958518 | DX69: 0.0335805161 | DY69: 1.753720282 | DZ69: 0.0273033144
A70: 6500 | B70: 3398 | C70: 2229.039043 | D70: 6450.386521 | E70: 131.6377168 | F70: 0.1335057948 | G70: 15.48657195 | H70: 0.0060187197 | I70: 193.8639901 | J70: 1.463935677 | K70: 128.0000466 | L70: 0.9266581406 | M70: 57.43167912 | N70: 0.4967445818 | O70: . | P70: 0 | Q70: 72.14212212 | R70: 0.1264345674 | S70: . | T70: 0 | U70: . | V70: 0 | W70: 0.9700815476 | X70: 0.0103576417 | Y70: 85.23092467 | Z70: 2.094803763 | AA70: . | AB70: 0 | AC70: 0.0017001171 | AD70: 1.14977e-05 | AE70: . | AF70: 0 | AG70: . | AH70: 0 | AI70: 0.0017001171 | AJ70: 1.14977e-05 | AK70: 166.1570102 | AL70: 2.244395801 | AM70: . | AN70: 0 | AO70: . | AP70: 0 | AQ70: . | AR70: 0 | AS70: 107.8101613 | AT70: 3.53416179 | AU70: 101.1245395 | AV70: 0.8244129588 | AW70: 43.67884968 | AX70: 0.5019124858 | AY70: 11.57915346 | AZ70: 0.1012079238 | BA70: =AU70-(AW70+AY70) -> 45.86653634 | BB70: 0.2212925492 | BC70: 0 | BD70: 0 | BE70: 339.7015961 | BF70: 3.809869393 | BG70: 0.0132891499 | BH70: 0 | BI70: 1.51429239 | BJ70: 0.0226949502 | BK70: 55.91738673 | BL70: 0.4740496316 | BM70: . | BN70: 0 | BO70: . | BP70: 0 | BQ70: 42.32184741 | BR70: 0.0444488454 | BS70: 29.8202747 | BT70: 0.0819857221 | BU70: . | BV70: 0 | BW70: . | BX70: 0 | BY70: . | BZ70: 0 | CA70: . | CB70: 0 | CC70: 0.4372151051 | CD70: 0.0051146838 | CE70: 0.5328664425 | CF70: 0.0052429579 | CG70: 9.729747537 | CH70: 0.1019918214 | CI70: 75.50117713 | CJ70: 1.992811941 | CK70: . | CL70: 0 | CM70: . | CN70: 0 | CO70: 51.17078248 | CP70: 1.2149604 | CQ70: 56.63937881 | CR70: 2.31920139 | CS70: 82.39172912 | CT70: 1.537659934 | CU70: 257.309867 | CV70: 2.272209459 | CW70: 0.0059529119 | CX70: 0.0106864327 | CY70: 0.0123032371 | CZ70: 0.0128343883 | DA70: 0.0129635226 | DB70: 0.0130239354 | DC70: 0.0130580615 | DD70: 0.0130850199 | DE70: 0.0131070639 | DF70: 0.0131242189 | DG70: 112.0274687 | DH70: 0.8855269073 | DI70: 63.81108035 | DJ70: 0.5239783301 | DK70: 36.37076178 | DL70: 0.311292442 | DM70: 21.00725634 | DN70: 0.1894031293 | DO70: 12.50107894 | DP70: 0.1204345774 | DQ70: 7.738240316 | DR70: 0.0808509307 | DS70: 5.023298271 | DT70: 0.0575857416 | DU70: 3.405743013 | DV70: 0.0431919647 | DW70: 2.416063122 | DX70: 0.0339212215 | DY70: 1.779645927 | DZ70: 0.0275849204
A71: 7500 | B71: 29837 | C71: 2376.273037 | D71: 6982.499316 | E71: 145.255945 | F71: 0.1401796376 | G71: 19.96310961 | H71: 0.0069468988 | I71: 197.8107261 | J71: 1.493811903 | K71: 134.0303115 | L71: 0.9685661245 | M71: 62.08251614 | N71: 0.5336740516 | O71: . | P71: 0 | Q71: 82.51414755 | R71: 0.1421185829 | S71: . | T71: 0 | U71: . | V71: 0 | W71: 1.165371266 | X71: 0.0121983004 | Y71: 94.26101991 | Z71: 2.290060137 | AA71: . | AB71: 0 | AC71: 0.0016750785 | AD71: 1.13254e-05 | AE71: . | AF71: 0 | AG71: . | AH71: 0 | AI71: 0.0016750785 | AJ71: 1.13254e-05 | AK71: 172.2939744 | AL71: 2.292668227 | AM71: . | AN71: 0 | AO71: . | AP71: 0 | AQ71: . | AR71: 0 | AS71: 114.3536058 | AT71: 3.673131112 | AU71: 109.2559755 | AV71: 0.8746529008 | AW71: 46.66438781 | AX71: 0.5317964202 | AY71: 12.2146313 | AZ71: 0.1053549574 | BA71: 50.37695637 | BB71: 0.2375015232 | BC71: 0.0026570728 | BD71: 2.1406145e-06 | BE71: 384.8136265 | BF71: 4.04195079 | BG71: 0.0153757593 | BH71: 1.84765e-05 | BI71: 1.681431568 | BJ71: 0.0245978422 | BK71: 60.40108458 | BL71: 0.5090762093 | BM71: . | BN71: 0 | BO71: . | BP71: 0 | BQ71: 49.192473 | BR71: 0.0504870224 | BS71: 33.32167455 | BT71: 0.0916315605 | BU71: . | BV71: 0 | BW71: . | BX71: 0 | BY71: . | BZ71: 0 | CA71: . | CB71: 0 | CC71: 0.5193534108 | CD71: 0.0058869375 | CE71: 0.6460178555 | CF71: 0.0063113629 | CG71: 11.33198756 | CH71: 0.1163919042 | CI71: 82.92903236 | CJ71: 2.173668233 | CK71: . | CL71: 0 | CM71: . | CN71: 0 | CO71: 54.66582113 | CP71: 1.276443138 | CQ71: 59.68778472 | CR71: 2.396687974 | CS71: 102.9169391 | CT71: 1.658278387 | CU71: 281.8966874 | CV71: 2.383672404 | CW71: 0.0068518017 | CX71: 0.0122052029 | CY71: 0.0141053594 | CZ71: 0.0147758046 | DA71: 0.0149567279 | DB71: 0.0150509939 | DC71: 0.0151085735 | DD71: 0.0151456849 | DE71: 0.0151754031 | DF71: 0.0151996242 | DG71: 115.4747258 | DH71: 0.9117555339 | DI71: 66.54558562 | DJ71: 0.5451485979 | DK71: 38.39822444 | DL71: 0.327390617 | DM71: 22.47039273 | DN71: 0.2013702624 | DO71: 13.5446285 | DP71: 0.129273188 | DQ71: 8.483169322 | DR71: 0.0874353869 | DS71: 5.556361715 | DT71: 0.0625440849 | DU71: 3.791351091 | DV71: 0.0469900633 | DW71: 2.701194631 | DX71: 0.0369057149 | DY71: 1.99376633 | DZ71: 0.0299807305
A72: 10000 | B72: 52863 | C72: 2673.123072 | D72: 8658.076498 | E72: 173.3201045 | F72: 0.152598112 | G72: 44.46240507 | H72: 0.0107297627 | I72: 204.5220199 | J72: 1.544290046 | K72: 144.5859912 | L72: 1.0398206 | M72: 69.80632313 | N72: 0.5939999253 | O72: . | P72: 0 | Q72: 102.4385277 | R72: 0.1713891761 | S72: . | T72: 0 | U72: . | V72: 0 | W72: 1.553836895 | X72: 0.0154980883 | Y72: 111.5868306 | Z72: 2.6417214 | AA72: . | AB72: 0 | AC72: 0.0020397817 | AD72: 1.20927e-05 | AE72: . | AF72: 0 | AG72: . | AH72: 0 | AI72: 0.0020397817 | AJ72: 1.20927e-05 | AK72: 181.9624679 | AL72: 2.378439358 | AM72: . | AN72: 0 | AO72: . | AP72: 0 | AQ72: . | AR72: 0 | AS72: 126.5801828 | AT72: 3.930613733 | AU72: 125.0749685 | AV72: 0.9709015863 | AW72: 52.38421592 | AX72: 0.5884384507 | AY72: 13.49259214 | AZ72: 0.113614991 | BA72: 59.19816046 | BB72: 0.2688481446 | BC72: 0.0094746555 | BD72: 5.5557761e-06 | BE72: 487.0539442 | BF72: 4.503507344 | BG72: 0.0240862152 | BH72: 4.39998e-05 | BI72: 2.055520755 | BJ72: 0.0275106993 | BK72: 67.75080238 | BL72: 0.566489226 | BM72: . | BN72: 0 | BO72: . | BP72: 0 | BQ72: 62.38116609 | BR72: 0.0616582141 | BS72: 40.05736158 | BT72: 0.1097309621 | BU72: . | BV72: 0 | BW72: . | BX72: 0 | BY72: . | BZ72: 0 | CA72: . | CB72: 0 | CC72: 0.7082717044 | CD72: 0.0073882567 | CE72: 0.8455651906 | CF72: 0.0081098316 | CG72: 14.66879783 | CH72: 0.1448738939 | CI72: 96.91803276 | CJ72: 2.496847506 | CK72: . | CL72: 0 | CM72: . | CN72: 0 | CO72: 61.38713102 | CP72: 1.394945832 | CQ72: 65.19305177 | CR72: 2.535667901 | CS72: 153.1760655 | CT72: 1.91147577 | CU72: 333.8778787 | CV72: 2.592031574 | CW72: 0.0105417529 | CX72: 0.0185821586 | CY72: 0.02151597 | CZ72: 0.0226290583 | DA72: 0.0230264407 | DB72: 0.0232662021 | DC72: 0.0234090812 | DD72: 0.0235091179 | DE72: 0.0235841929 | DF72: 0.0236465167 | DG72: 121.4209767 | DH72: 0.9564866368 | DI72: 71.34693379 | DJ72: 0.5817313984 | DK72: 42.05525235 | DL72: 0.3557295859 | DM72: 25.15480456 | DN72: 0.2225736231 | DO72: 15.48068934 | DP72: 0.1449175532 | DQ72: 9.874231297 | DR72: 0.0989887617 | DS72: 6.560252369 | DT72: 0.0711697144 | DU72: 4.522982546 | DV72: 0.0535273139 | DW72: 3.238217571 | DX72: 0.0419313462 | DY72: 2.391561909 | DZ72: 0.0339084895
A73: 15000 | B73: 60230 | C73: 3073.858679 | D73: 12217.39679 | E73: 210.800818 | F73: 0.1676638765 | G73: 130.9497809 | H73: 0.0206618143 | I73: 211.4717807 | J73: 1.59627708 | K73: 156.9472319 | L73: 1.121586123 | M73: 77.54775492 | N73: 0.6541093606 | O73: . | P73: 0 | Q73: 127.8936462 | R73: 0.2082711676 | S73: . | T73: 0 | U73: . | V73: 0 | W73: 2.027636381 | X73: 0.0195003677 | Y73: 133.2351565 | Z73: 3.054266123 | AA73: . | AB73: 0 | AC73: 0.0023692107 | AD73: 1.64946e-05 | AE73: . | AF73: 0 | AG73: . | AH73: 0 | AI73: 0.0023692107 | AJ73: 1.64946e-05 | AK73: 191.5291943 | AL73: 2.481828756 | AM73: . | AN73: 0 | AO73: . | AP73: 0 | AQ73: . | AR73: 0 | AS73: 141.8345392 | AT73: 4.256447957 | AU73: 146.8306082 | AV73: 1.098511207 | AW73: 59.86707678 | AX73: 0.660694838 | AY73: 15.71770221 | AZ73: 0.1276009898 | BA73: 71.24582925 | BB73: 0.3102153796 | BC73: 0.0387160529 | BD73: 1.44846e-05 | BE73: 642.2020816 | BF73: 5.101560227 | BG73: 0.0491404774 | BH73: 0.0001648257 | BI73: 2.618545861 | BJ73: 0.0318880545 | BK73: 74.92920906 | BL73: 0.6222213062 | BM73: . | BN73: 0 | BO73: . | BP73: 0 | BQ73: 79.75837458 | BR73: 0.0757788514 | BS73: 48.1352716 | BT73: 0.1324923162 | BU73: . | BV73: 0 | BW73: . | BX73: 0 | BY73: . | BZ73: 0 | CA73: . | CB73: 0 | CC73: 0.9732680244 | CD73: 0.0095509831 | CE73: 1.054368357 | CF73: 0.0099493846 | CG73: 19.98394307 | CH73: 0.1843571191 | CI73: 113.2512134 | CJ73: 2.869909004 | CK73: . | CL73: 0 | CM73: . | CN73: 0 | CO73: 70.14551383 | CP73: 1.546693044 | CQ73: 71.68902539 | CR73: 2.709754913 | CS73: 234.1865255 | CT73: 2.254796439 | CU73: 408.0155561 | CV73: 2.846763788 | CW73: 0.0201206975 | CX73: 0.0357833273 | CY73: 0.0423227462 | CZ73: 0.0448678117 | DA73: 0.0459891357 | DB73: 0.0466806754 | DC73: 0.0471269814 | DD73: 0.0474385011 | DE73: 0.0476684978 | DF73: 0.0478498427 | DG73: 127.6903486 | DH73: 1.00316774 | DI73: 76.53486017 | DJ73: 0.620701358 | DK73: 46.11326037 | DL73: 0.3865618751 | DM73: 28.22020604 | DN73: 0.2461510554 | DO73: 17.7547128 | DP73: 0.1626447463 | DQ73: 11.55143808 | DR73: 0.112267566 | DS73: 7.801229439 | DT73: 0.0811872043 | DU73: 5.444659783 | DV73: 0.0611277866 | DW73: 3.926744453 | DX73: 0.0477499024 | DY73: 2.911343862 | DZ73: 0.0384218552
A74: 20000 | B74: 31085 | C74: 3329.533101 | D74: 17250.90189 | E74: 233.3479529 | F74: 0.1764308444 | G74: 221.3976957 | H74: 0.0287023756 | I74: 215.2152985 | J74: 1.623829482 | K74: 163.6510341 | L74: 1.164574629 | M74: 81.34970089 | N74: 0.6834386356 | O74: . | P74: 0 | Q74: 142.4901164 | R74: 0.2290935188 | S74: . | T74: 0 | U74: . | V74: 0 | W74: 2.284690926 | X74: 0.021535783 | Y74: 146.7608806 | Z74: 3.289551526 | AA74: . | AB74: 0 | AC74: 0.0023518949 | AD74: 1.63684e-05 | AE74: . | AF74: 0 | AG74: . | AH74: 0 | AI74: 0.0023518949 | AJ74: 1.63684e-05 | AK74: 196.2685047 | AL74: 2.539221472 | AM74: . | AN74: 0 | AO74: . | AP74: 0 | AQ74: . | AR74: 0 | AS74: 151.1958725 | AT74: 4.452026038 | AU74: 161.314582 | AV74: 1.178627052 | AW74: 64.65182337 | AX74: 0.7049760511 | AY74: 17.30929513 | AZ74: 0.137457993 | BA74: 79.35346347 | BB74: 0.3361930078 | BC74: 0.0803494629 | BD74: 3.16117e-05 | BE74: 745.5217043 | BF74: 5.452929443 | BG74: 0.0722177045 | BH74: 0.0003342313 | BI74: 3.108306541 | BJ74: 0.0353541782 | BK74: 78.24139435 | BL74: 0.6480844574 | BM74: . | BN74: 0 | BO74: . | BP74: 0 | BQ74: 89.69241728 | BR74: 0.0836509758 | BS74: 52.79769916 | BT74: 0.145442543 | BU74: . | BV74: 0 | BW74: . | BX74: 0 | BY74: . | BZ74: 0 | CA74: . | CB74: 0 | CC74: 1.137758106 | CD74: 0.0107537158 | CE74: 1.14693282 | CF74: 0.0107820672 | CG74: 23.93182361 | CH74: 0.2110055419 | CI74: 122.829057 | CJ74: 3.078545984 | CK74: . | CL74: 0 | CM74: . | CN74: 0 | CO74: 75.54054007 | CP74: 1.636666528 | CQ74: 75.65533244 | CR74: 2.81535951 | CS74: 290.8134974 | CT74: 2.460314655 | CU74: 454.7082068 | CV74: 2.992614787 | CW74: 0.0276107369 | CX74: 0.0492256668 | CY74: 0.0594478099 | CZ74: 0.0637772207 | DA74: 0.0658286657 | DB74: 0.0671123768 | DC74: 0.0679494085 | DD74: 0.0685410137 | DE74: 0.0689834469 | DF74: 0.069337962 | DG74: 131.0965703 | DH74: 1.028244551 | DI74: 79.4021091 | DJ74: 0.6420491402 | DK74: 48.4080482 | DL74: 0.4038747758 | DM74: 30.00399953 | DN74: 0.2597762721 | DO74: 19.11054671 | DP74: 0.1731452252 | DQ74: 12.5784847 | DR74: 0.1203341279 | DS74: 8.577837849 | DT74: 0.0874009781 | DU74: 6.034232938 | DV74: 0.0659454534 | DW74: 4.374484219 | DX74: 0.0515082925 | DY74: 3.255744577 | DZ74: 0.0414103808
A75: 25000 | B75: 17381 | C75: 3508.749213 | D75: 22297.84089 | E75: 248.5474738 | F75: 0.1821149541 | G75: 298.5494245 | H75: 0.0344175002 | I75: 217.428253 | J75: 1.639760275 | K75: 168.0947599 | L75: 1.191436623 | M75: 83.73860753 | N75: 0.7010036992 | O75: . | P75: 0 | Q75: 151.7823696 | R75: 0.2423246976 | S75: . | T75: 0 | U75: . | V75: 0 | W75: 2.504233602 | X75: 0.0235598739 | Y75: 155.7843056 | Z75: 3.430413752 | AA75: . | AB75: 0 | AC75: 0.0023430729 | AD75: 1.63045e-05 | AE75: . | AF75: 0 | AG75: . | AH75: 0 | AI75: 0.0023430729 | AJ75: 1.63045e-05 | AK75: 198.9427175 | AL75: 2.572867108 | AM75: . | AN75: 0 | AO75: . | AP75: 0 | AQ75: . | AR75: 0 | AS75: 157.4611398 | AT75: 4.579665159 | AU75: 171.0020591 | AV75: 1.230913631 | AW75: 67.97684029 | AX75: 0.7346581833 | AY75: 18.20332416 | AZ75: 0.1431872929 | BA75: 84.82189466 | BB75: 0.3530681549 | BC75: 0.1601551443 | BD75: 4.9926e-05 | BE75: 815.8366418 | BF75: 5.674863789 | BG75: 0.0904614328 | BH75: 0.0005091793 | BI75: 3.443827001 | BJ75: 0.0372411274 | BK75: 80.29478053 | BL75: 0.6637625718 | BM75: . | BN75: 0 | BO75: . | BP75: 0 | BQ75: 96.23843867 | BR75: 0.0887443711 | BS75: 55.54393093 | BT75: 0.1535803265 | BU75: . | BV75: 0 | BW75: . | BX75: 0 | BY75: . | BZ75: 0 | CA75: . | CB75: 0 | CC75: 1.257107689 | CD75: 0.0118194256 | CE75: 1.247125912 | CF75: 0.0117404483 | CG75: 27.10693115 | CH75: 0.2296528975 | CI75: 128.6773745 | CJ75: 3.200760854 | CK75: . | CL75: 0 | CM75: . | CN75: 0 | CO75: 79.27628531 | CP75: 1.697738246 | CQ75: 78.18485444 | CR75: 2.881926913 | CS75: 330.8608756 | CT75: 2.591023239 | CU75: 484.9757662 | CV75: 3.08384055 | CW75: 0.0327268501 | CX75: 0.058379947 | CY75: 0.0714541237 | CZ75: 0.0775283088 | DA75: 0.0805985673 | DB75: 0.0825210332 | DC75: 0.0838109221 | DD75: 0.0847386045 | DE75: 0.085430792 | DF75: 0.0859785249 | DG75: 133.1207906 | DH75: 1.042804813 | DI75: 81.12125346 | DJ75: 0.6544876635 | DK75: 49.80034788 | DL75: 0.4140079135 | DM75: 31.09798463 | DN75: 0.2677796182 | DO75: 19.95019603 | DP75: 0.1793259557 | DQ75: 13.21784778 | DR75: 0.125063846 | DS75: 9.062013277 | DT75: 0.0910055707 | DU75: 6.403354562 | DV75: 0.0687052828 | DW75: 4.658334786 | DX75: 0.053639904 | DY75: 3.474256645 | DZ75: 0.0430637072
A76: 30000 | B76: 10849 | C76: 3642.699719 | D76: 27329.00372 | E76: 258.930206 | F76: 0.1858791884 | G76: 366.4962349 | H76: 0.0387661442 | I76: 219.072937 | J76: 1.65069064 | K76: 171.4549168 | L76: 1.209464136 | M76: 85.33150647 | N76: 0.7129406635 | O76: . | P76: 0 | Q76: 158.2744275 | R76: 0.2515511114 | S76: . | T76: 0 | U76: . | V76: 0 | W76: 2.677519315 | X76: 0.0248855729 | Y76: 161.5503996 | Z76: 3.513444005 | AA76: . | AB76: 0 | AC76: 0.0023364925 | AD76: 1.62567e-05 | AE76: . | AF76: 0 | AG76: . | AH76: 0 | AI76: 0.0023364925 | AJ76: 1.62567e-05 | AK76: 200.7156583 | AL76: 2.594650027 | AM76: . | AN76: 0 | AO76: . | AP76: 0 | AQ76: . | AR76: 0 | AS76: 161.8081832 | AT76: 4.667576123 | AU76: 178.1531402 | AV76: 1.267504223 | AW76: 70.4001163 | AX76: 0.7558907501 | AY76: 18.72512419 | AZ76: 0.1465389733 | BA76: 89.02789973 | BB76: 0.3650744995 | BC76: 0.2457687316 | BD76: 7.08895e-05 | BE76: 864.5235063 | BF76: 5.822974247 | BG76: 0.105143737 | BH76: 0.0007229454 | BI76: 3.684866712 | BJ76: 0.0387758398 | BK76: 81.64663976 | BL76: 0.6741648237 | BM76: . | BN76: 0 | BO76: . | BP76: 0 | BQ76: 100.7244439 | BR76: 0.0922294421 | BS76: 57.54998363 | BT76: 0.1593216693 | BU76: . | BV76: 0 | BW76: . | BX76: 0 | BY76: . | BZ76: 0 | CA76: . | CB76: 0 | CC76: 1.374765078 | CD76: 0.0126185961 | CE76: 1.302754236 | CF76: 0.0122669767 | CG76: 29.55884092 | CH76: 0.2452275167 | CI76: 131.9915587 | CJ76: 3.268216489 | CK76: . | CL76: 0 | CM76: . | CN76: 0 | CO76: 81.85477109 | CP76: 1.741561188 | CQ76: 79.95341215 | CR76: 2.926014935 | CS76: 358.7162768 | CT76: 2.679745212 | CU76: 505.8072295 | CV76: 3.143229034 | CW76: 0.036424136 | CX76: 0.0650223984 | CY76: 0.0802660437 | CZ76: 0.0877542638 | DA76: 0.0917373926 | DB76: 0.0942814284 | DC76: 0.0960247196 | DD76: 0.0972871877 | DE76: 0.0982334872 | DF76: 0.0989873162 | DG76: 134.6319381 | DH76: 1.05288364 | DI76: 82.41343616 | DJ76: 0.6631787124 | DK76: 50.84869547 | DL76: 0.4211146503 | DM76: 31.92807328 | DN76: 0.2734143641 | DO76: 20.59793324 | DP76: 0.1837299169 | DQ76: 13.71884648 | DR76: 0.128477332 | DS76: 9.44701775 | DT76: 0.0936394377 | DU76: 6.700336762 | DV76: 0.0707438836 | DW76: 4.889686698 | DX76: 0.0552358197 | DY76: 3.654959216 | DZ76: 0.0443175933
A77: 35000 | B77: 7283 | C77: 3748.067578 | D77: 32350.85852 | E77: 266.9889182 | F77: 0.18879629 | G77: 426.2327925 | H77: 0.0421978232 | I77: 220.2165215 | J77: 1.65852415 | K77: 173.760909 | L77: 1.222105716 | M77: 86.48918888 | N77: 0.7209202889 | O77: . | P77: 0 | Q77: 162.9332522 | R77: 0.2583203436 | S77: . | T77: 0 | U77: . | V77: 0 | W77: 2.843457383 | X77: 0.0261664464 | Y77: 165.718536 | Z77: 3.570369862 | AA77: . | AB77: 0 | AC77: 0.002332438 | AD77: 1.62268e-05 | AE77: . | AF77: 0 | AG77: . | AH77: 0 | AI77: 0.002332438 | AJ77: 1.62268e-05 | AK77: 201.8863665 | AL77: 2.609080707 | AM77: . | AN77: 0 | AO77: . | AP77: 0 | AQ77: . | AR77: 0 | AS77: 164.933557 | AT77: 4.730117175 | AU77: 183.8061346 | AV77: 1.295161271 | AW77: 72.42636316 | AX77: 0.7726798439 | AY77: 18.98702215 | AZ77: 0.1482856825 | BA77: 92.39274924 | BB77: 0.3741957442 | BC77: 0.4026434456 | BD77: 0.0001047874 | BE77: 902.8872757 | BF77: 5.933532442 | BG77: 0.1173411268 | BH77: 0.001158665 | BI77: 3.888131101 | BJ77: 0.03972393 | BK77: 82.60105778 | BL77: 0.6811963589 | BM77: . | BN77: 0 | BO77: . | BP77: 0 | BQ77: 104.0314475 | BR77: 0.0948211646 | BS77: 58.90180469 | BT77: 0.1634991791 | BU77: . | BV77: 0 | BW77: . | BX77: 0 | BY77: . | BZ77: 0 | CA77: . | CB77: 0 | CC77: 1.470945855 | CD77: 0.013245492 | CE77: 1.372511528 | CF77: 0.0129209543 | CG77: 31.34205008 | CH77: 0.2547644382 | CI77: 134.3764859 | CJ77: 3.315605424 | CK77: . | CL77: 0 | CM77: . | CN77: 0 | CO77: 83.67086828 | CP77: 1.772685307 | CQ77: 81.2626887 | CR77: 2.957431868 | CS77: 380.4966348 | CT77: 2.744692207 | CU77: 522.3906409 | CV77: 3.188840234 | CW77: 0.0391971037 | CX77: 0.0700720232 | CY77: 0.0870268876 | CZ77: 0.0956548796 | DA77: 0.1004321938 | DB77: 0.1035481274 | DC77: 0.1057249586 | DD77: 0.1073258608 | DE77: 0.1085250958 | DF77: 0.1094830272 | DG77: 135.6784766 | DH77: 1.060129633 | DI77: 83.30994891 | DJ77: 0.6694831728 | DK77: 51.58477715 | DL77: 0.4263326104 | DM77: 32.51460969 | DN77: 0.2776156197 | DO77: 21.05793065 | DP77: 0.1870636533 | DQ77: 14.07532427 | DR77: 0.1311037188 | DS77: 9.725308138 | DT77: 0.0957164625 | DU77: 6.919770824 | DV77: 0.0724058568 | DW77: 5.065643188 | DX77: 0.0565894572 | DY77: 3.797205959 | DZ77: 0.0454193301
A78: 40000 | B78: 5105 | C78: 3832.994703 | D78: 37391.3327 | E78: 272.594334 | F78: 0.1907755579 | G78: 477.7291841 | H78: 0.044817928 | I78: 221.1354709 | J78: 1.664266439 | K78: 175.5821643 | L78: 1.231399207 | M78: 87.19893515 | N78: 0.7261355853 | O78: . | P78: 0 | Q78: 166.4398491 | R78: 0.2634892381 | S78: . | T78: 0 | U78: . | V78: 0 | W78: 2.921752563 | X78: 0.0266728832 | Y78: 169.3257729 | Z78: 3.615849222 | AA78: . | AB78: 0 | AC78: 0.002329473 | AD78: 1.62058e-05 | AE78: . | AF78: 0 | AG78: . | AH78: 0 | AI78: 0.002329473 | AJ78: 1.62058e-05 | AK78: 202.7384475 | AL78: 2.619721798 | AM78: . | AN78: 0 | AO78: . | AP78: 0 | AQ78: . | AR78: 0 | AS78: 167.3239938 | AT78: 4.779913702 | AU78: 188.4475542 | AV78: 1.316439338 | AW78: 74.11402604 | AX78: 0.7856651851 | AY78: 19.16568451 | AZ78: 0.1495311877 | BA78: 95.16784369 | BB78: 0.3812429654 | BC78: 0.6348400993 | BD78: 0.0001621504 | BE78: 932.6559716 | BF78: 6.018643205 | BG78: 0.1267845443 | BH78: 0.0017861083 | BI78: 3.985692541 | BJ78: 0.0402143563 | BK78: 83.21324261 | BL78: 0.685921229 | BM78: . | BN78: 0 | BO78: . | BP78: 0 | BQ78: 106.4154401 | BR78: 0.096760054 | BS78: 60.02440901 | BT78: 0.1667291841 | BU78: . | BV78: 0 | BW78: . | BX78: 0 | BY78: . | BZ78: 0 | CA78: . | CB78: 0 | CC78: 1.53183573 | CD78: 0.0135928348 | CE78: 1.389916833 | CF78: 0.0130800484 | CG78: 33.18567093 | CH78: 0.2639532571 | CI78: 136.1401019 | CJ78: 3.351895965 | CK78: . | CL78: 0 | CM78: . | CN78: 0 | CO78: 85.17670933 | CP78: 1.798660588 | CQ78: 82.14728443 | CR78: 2.981253114 | CS78: 397.2418944 | CT78: 2.793090633 | CU78: 535.4140772 | CV78: 3.225552572 | CW78: 0.0412584176 | CX78: 0.0738458736 | CY78: 0.0921288579 | CZ78: 0.1016595499 | DA78: 0.1071005785 | DB78: 0.1107214055 | DC78: 0.1132819598 | DD78: 0.1151798889 | DE78: 0.1165998938 | DF78: 0.1177282528 | DG78: 136.5145745 | DH78: 1.065379974 | DI78: 84.02741424 | DJ78: 0.6740076761 | DK78: 52.1740907 | DL78: 0.4300429741 | DM78: 32.98594021 | DN78: 0.2805733331 | DO78: 21.42814036 | DP78: 0.1893842912 | DQ78: 14.36274411 | DR78: 0.132890167 | DS78: 9.948692152 | DT78: 0.0971005962 | DU78: 7.090919942 | DV78: 0.0734759732 | DW78: 5.194903419 | DX78: 0.0574109283 | DY78: 3.898196334 | DZ78: 0.046055763
A79: 45000 | B79: 3987 | C79: 3903.259388 | D79: 42416.3074 | E79: 276.89984 | F79: 0.1922180594 | G79: 526.1822325 | H79: 0.0470457473 | I79: 221.8539347 | J79: 1.668864662 | K79: 177.2901866 | L79: 1.239308967 | M79: 87.65505271 | N79: 0.7294102486 | O79: . | P79: 0 | Q79: 169.502385 | R79: 0.2678920074 | S79: . | T79: 0 | U79: . | V79: 0 | W79: 2.993619409 | X79: 0.0272818102 | Y79: 171.8816205 | Z79: 3.647240831 | AA79: . | AB79: 0 | AC79: 0.00232725 | AD79: 1.61898e-05 | AE79: . | AF79: 0 | AG79: . | AH79: 0 | AI79: 0.00232725 | AJ79: 1.61898e-05 | AK79: 203.455892 | AL79: 2.628121626 | AM79: . | AN79: 0 | AO79: . | AP79: 0 | AQ79: . | AR79: 0 | AS79: 169.2892848 | AT79: 4.819009041 | AU79: 192.6199261 | AV79: 1.334151764 | AW79: 75.66001215 | AX79: 0.7966241983 | AY79: 19.26380492 | AZ79: 0.150217523 | BA79: 97.69610902 | BB79: 0.3873100424 | BC79: 1.008337522 | BD79: 0.0002285965 | BE79: 958.3576347 | BF79: 6.08872004 | BG79: 0.1354798329 | BH79: 0.002457981 | BI79: 4.087082066 | BJ79: 0.0407746762 | BK79: 83.56797064 | BL79: 0.6886355724 | BM79: . | BN79: 0 | BO79: . | BP79: 0 | BQ79: 108.5047445 | BR79: 0.0983801481 | BS79: 60.99764049 | BT79: 0.1695118593 | BU79: . | BV79: 0 | BW79: . | BX79: 0 | BY79: . | BZ79: 0 | CA79: . | CB79: 0 | CC79: 1.590342585 | CD79: 0.0140784678 | CE79: 1.403276824 | CF79: 0.0132033424 | CG79: 34.53458267 | CH79: 0.2710537117 | CI79: 137.3470378 | CJ79: 3.376187119 | CK79: . | CL79: 0 | CM79: . | CN79: 0 | CO79: 86.35126011 | CP79: 1.818827332 | CQ79: 82.9380247 | CR79: 3.000181709 | CS79: 411.7390793 | CT79: 2.833246791 | CU79: 546.6185554 | CV79: 3.25547325 | CW79: 0.0429332467 | CX79: 0.0769831706 | CY79: 0.0964352547 | CZ79: 0.106752603 | DA79: 0.1128079066 | DB79: 0.1169149695 | DC79: 0.1198526096 | DD79: 0.1220396613 | DE79: 0.1236922812 | DF79: 0.1250127543 | DG79: 137.1762457 | DH79: 1.069647774 | DI79: 84.60301352 | DJ79: 0.6777439319 | DK79: 52.65731105 | DL79: 0.433185229 | DM79: 33.38413626 | DN79: 0.2831594057 | DO79: 21.75328895 | DP79: 0.1914925558 | DQ79: 14.62393429 | DR79: 0.1345777229 | DS79: 10.15755786 | DT79: 0.0984475034 | DU79: 7.257815887 | DV79: 0.0745465539 | DW79: 5.328410554 | DX79: 0.058256255 | DY79: 4.005225503 | DZ79: 0.0467219929
A80: 50000 | B80: 3028 | C80: 3962.088086 | D80: 47398.89898 | E80: 280.3334163 | F80: 0.1934527897 | G80: 569.5629697 | H80: 0.0489456522 | I80: 222.3384016 | J80: 1.672152717 | K80: 178.7949193 | L80: 1.245570077 | M80: 88.1047843 | N80: 0.7324737125 | O80: . | P80: 0 | Q80: 172.1051361 | R80: 0.2717054801 | S80: . | T80: 0 | U80: . | V80: 0 | W80: 3.019506939 | X80: 0.02756678 | Y80: 173.9911206 | Z80: 3.672656037 | AA80: . | AB80: 0 | AC80: 0.0023254989 | AD80: 1.61769e-05 | AE80: . | AF80: 0 | AG80: . | AH80: 0 | AI80: 0.0023254989 | AJ80: 1.61769e-05 | AK80: 203.9971285 | AL80: 2.634236976 | AM80: . | AN80: 0 | AO80: . | AP80: 0 | AQ80: . | AR80: 0 | AS80: 170.9053845 | AT80: 4.852798089 | AU80: 196.3015434 | AV80: 1.349061017 | AW80: 77.05348608 | AX80: 0.8057308039 | AY80: 19.36698273 | AZ80: 0.15085224 | BA80: 99.88107454 | BB80: 0.3924779729 | BC80: 1.428415374 | BD80: 0.0003054619 | BE80: 980.0509569 | BF80: 6.145622784 | BG80: 0.1434601442 | BH80: 0.0032086535 | BI80: 4.177389429 | BJ80: 0.0412005779 | BK80: 83.92739487 | BL80: 0.6912731346 | BM80: . | BN80: 0 | BO80: . | BP80: 0 | BQ80: 110.3243419 | BR80: 0.0998206226 | BS80: 61.78079419 | BT80: 0.1718848575 | BU80: . | BV80: 0 | BW80: . | BX80: 0 | BY80: . | BZ80: 0 | CA80: . | CB80: 0 | CC80: 1.610457937 | CD80: 0.0143123141 | CE80: 1.409049002 | CF80: 0.0132544659 | CG80: 35.61917814 | CH80: 0.276453704 | CI80: 138.3719424 | CJ80: 3.396202333 | CK80: . | CL80: 0 | CM80: . | CN80: 0 | CO80: 87.37719711 | CP80: 1.836348389 | CQ80: 83.52818738 | CR80: 3.016449701 | CS80: 423.9553649 | CT80: 2.866996188 | CU80: 556.0955921 | CV80: 3.278626596 | CW80: 0.0442711925 | CX80: 0.0795252563 | CY80: 0.0999724847 | CZ80: 0.1110164552 | DA80: 0.1176414436 | DB80: 0.12220688 | DC80: 0.1255200866 | DD80: 0.12800303 | DE80: 0.1299049796 | DF80: 0.13141853 | DG80: 137.6200775 | DH80: 1.072679503 | DI80: 84.98505399 | DJ80: 0.680378066 | DK80: 52.97096119 | DL80: 0.4353702654 | DM80: 33.63402189 | DN80: 0.2849170921 | DO80: 21.94945389 | DP80: 0.1928856461 | DQ80: 14.77796018 | DR80: 0.1356869626 | DS80: 10.27770343 | DT80: 0.0993262512 | DU80: 7.35285943 | DV80: 0.0752511078 | DW80: 5.405336375 | DX80: 0.0588287441 | DY80: 4.067602425 | DZ80: 0.0471871868
A81: 100000 | B81: 11594 | C81: 4262.709985 | D81: 67906.98934 | E81: 295.2847162 | F81: 0.1986069731 | G81: 809.0641735 | H81: 0.0575946545 | I81: 225.0305599 | J81: 1.686479948 | K81: 186.4635828 | L81: 1.273643541 | M81: 90.16090847 | N81: 0.7451736245 | O81: . | P81: 0 | Q81: 186.3478851 | R81: 0.292445373 | S81: . | T81: 0 | U81: . | V81: 0 | W81: 3.309980045 | X81: 0.0298451244 | Y81: 181.6016317 | Z81: 3.753369269 | AA81: . | AB81: 0 | AC81: 0.0023176769 | AD81: 1.61194e-05 | AE81: . | AF81: 0 | AG81: . | AH81: 0 | AI81: 0.0023176769 | AJ81: 1.61194e-05 | AK81: 206.0369101 | AL81: 2.660259105 | AM81: . | AN81: 0 | AO81: . | AP81: 0 | AQ81: . | AR81: 0 | AS81: 178.7808665 | AT81: 5.013277053 | AU81: 224.5440248 | AV81: 1.43166058 | AW81: 86.93884513 | AX81: 0.8536857331 | AY81: 19.64807176 | AZ81: 0.1526876181 | BA81: 117.9571079 | BB81: 0.4252872287 | BC81: 3.374630821 | BD81: 0.0006080981 | BE81: 1103.050176 | BF81: 6.455472156 | BG81: 0.1882062519 | BH81: 0.0069860296 | BI81: 4.920588034 | BJ81: 0.0441771 | BK81: 85.24032044 | BL81: 0.7009965244 | BM81: . | BN81: 0 | BO81: . | BP81: 0 | BQ81: 120.2081623 | BR81: 0.1076783431 | BS81: 66.13972282 | BT81: 0.1847670299 | BU81: . | BV81: 0 | BW81: . | BX81: 0 | BY81: . | BZ81: 0 | CA81: . | CB81: 0 | CC81: 1.805679605 | CD81: 0.0158535554 | CE81: 1.504300441 | CF81: 0.013991569 | CG81: 40.0692601 | CH81: 0.300121025 | CI81: 141.5323716 | CJ81: 3.453248244 | CK81: . | CL81: 0 | CM81: . | CN81: 0 | CO81: 92.49598689 | CP81: 1.92380406 | CQ81: 86.28487965 | CR81: 3.089472993 | CS81: 494.1891808 | CT81: 3.05105937 | CU81: 608.8609948 | CV81: 3.404412787 | CW81: 0.0493690413 | CX81: 0.0893615169 | CY81: 0.114032055 | CZ81: 0.1286089104 | DA81: 0.1381850744 | DB81: 0.145298097 | DC81: 0.1507943382 | DD81: 0.1551634569 | DE81: 0.1586920813 | DF81: 0.1616278976 | DG81: 140.1139412 | DH81: 1.086061202 | DI81: 87.18100952 | DJ81: 0.6921819544 | DK81: 54.83890377 | DL81: 0.4453643625 | DM81: 35.18304714 | DN81: 0.2931292591 | DO81: 23.21925952 | DP81: 0.19952714 | DQ81: 15.80704056 | DR81: 0.1409844274 | DS81: 11.10335637 | DT81: 0.1035097563 | DU81: 8.011879412 | DV81: 0.0785536941 | DW81: 5.928577033 | DX81: 0.061438887 | DY81: 4.481315048 | DZ81: 0.0492661859
A82: 200000 | B82: 3834 | C82: 4440.60857 | D82: 135457.3565 | E82: 302.0304655 | F82: 0.2008816652 | G82: 965.5792584 | H82: 0.0617977024 | I82: 226.7693211 | J82: 1.692142608 | K82: 192.2177025 | L82: 1.286385034 | M82: 90.61226458 | N82: 0.7481560103 | O82: . | P82: 0 | Q82: 196.2831701 | R82: 0.3061651007 | S82: . | T82: 0 | U82: . | V82: 0 | W82: 3.462639865 | X82: 0.0309243666 | Y82: 183.5858055 | Z82: 3.768384858 | AA82: . | AB82: 0 | AC82: 0.002492721 | AD82: 1.74935e-05 | AE82: . | AF82: 0 | AG82: . | AH82: 0 | AI82: 0.002492721 | AJ82: 1.74935e-05 | AK82: 206.8822244 | AL82: 2.672175537 | AM82: . | AN82: 0 | AO82: . | AP82: 0 | AQ82: . | AR82: 0 | AS82: 183.9388745 | AT82: 5.121753696 | AU82: 244.010293 | AV82: 1.474431585 | AW82: 92.35389382 | AX82: 0.8760618196 | AY82: 19.78514817 | AZ82: 0.1535253207 | BA82: 131.871251 | BB82: 0.4448444449 | BC82: 4.979493927 | BD82: 0.0007963357 | BE82: 1197.360304 | BF82: 6.669817627 | BG82: 0.2190207589 | BH82: 0.0100704737 | BI82: 5.082181246 | BJ82: 0.0449698437 | BK82: 85.53008334 | BL82: 0.7031861666 | BM82: . | BN82: 0 | BO82: . | BP82: 0 | BQ82: 127.4552472 | BR82: 0.1132296701 | BS82: 68.82792285 | BT82: 0.1929354306 | BU82: . | BV82: 0 | BW82: . | BX82: 0 | BY82: . | BZ82: 0 | CA82: . | CB82: 0 | CC82: 1.947398845 | CD82: 0.0168381414 | CE82: 1.51524102 | CF82: 0.0140862252 | CG82: 41.53825988 | CH82: 0.307662339 | CI82: 142.0475456 | CJ82: 3.460722519 | CK82: . | CL82: 0 | CM82: . | CN82: 0 | CO82: 95.9916363 | CP82: 1.986961004 | CQ82: 87.9472382 | CR82: 3.134792692 | CS82: 550.1671524 | CT82: 3.181406362 | CU82: 647.1931519 | CV82: 3.488411265 | CW82: 0.0511182647 | CX82: 0.0928222738 | CY82: 0.1191463458 | CZ82: 0.1352898122 | DA82: 0.1463250571 | DB82: 0.1548012383 | DC82: 0.1615563176 | DD82: 0.1671059017 | DE82: 0.171737062 | DF82: 0.175699608 | DG82: 141.7375766 | DH82: 1.091460044 | DI82: 88.66334313 | DJ82: 0.6971089114 | DK82: 56.16940562 | DL82: 0.4497097363 | DM82: 36.36104995 | DN82: 0.2968664536 | DO82: 24.25491951 | DP82: 0.2026954757 | DQ82: 16.71184541 | DR82: 0.1436407615 | DS82: 11.8944887 | DT82: 0.1057428913 | DU82: 8.699871719 | DV82: 0.0804187769 | DW82: 6.524082505 | DX82: 0.0629922259 | DY82: 4.9979372 | DZ82: 0.0505531861
A83: 300000 | B83: 853 | C83: 4501.620958 | D83: 241021.4134 | E83: 304.1816056 | F83: 0.2016386109 | G83: 1030.059444 | H83: 0.0631766777 | I83: 227.4680147 | J83: 1.693523998 | K83: 194.5458143 | L83: 1.289900919 | M83: 90.67326592 | N83: 0.7485038617 | O83: . | P83: 0 | Q83: 199.4477243 | R83: 0.3104120609 | S83: . | T83: 0 | U83: . | V83: 0 | W83: 3.521738558 | X83: 0.031311397 | Y83: 184.0928707 | Z83: 3.770786922 | AA83: . | AB83: 0 | AC83: 0.0025268514 | AD83: 1.79525e-05 | AE83: . | AF83: 0 | AG83: . | AH83: 0 | AI83: 0.0025268514 | AJ83: 1.79525e-05 | AK83: 207.1074507 | AL83: 2.675951933 | AM83: . | AN83: 0 | AO83: . | AP83: 0 | AQ83: . | AR83: 0 | AS83: 185.9615764 | AT83: 5.161819934 | AU83: 249.2381941 | AV83: 1.484710699 | AW83: 93.6771666 | AX83: 0.8812294191 | AY83: 19.80606878 | AZ83: 0.1536387582 | BA83: 135.7549587 | BB83: 0.4498425221 | BC83: 5.863901636 | BD83: 0.0009096395 | BE83: 1238.852593 | BF83: 6.745115788 | BG83: 0.2316535537 | BH83: 0.0135178384 | BI83: 5.102000617 | BJ83: 0.0450530576 | BK83: 85.5712653 | BL83: 0.7034508041 | BM83: . | BN83: 0 | BO83: . | BP83: 0 | BQ83: 129.8191683 | BR83: 0.1149758365 | BS83: 69.628556 | BT83: 0.1954362244 | BU83: . | BV83: 0 | BW83: . | BX83: 0 | BY83: . | BZ83: 0 | CA83: . | CB83: 0 | CC83: 2.005027193 | CD83: 0.0172073893 | CE83: 1.516711365 | CF83: 0.0141040077 | CG83: 41.98067309 | CH83: 0.3094733695 | CI83: 142.1121976 | CJ83: 3.461313553 | CK83: . | CL83: 0 | CM83: . | CN83: 0 | CO83: 97.53039736 | CP83: 2.012050822 | CQ83: 88.43117902 | CR83: 3.149769112 | CS83: 576.9555357 | CT83: 3.230243013 | CU83: 661.8970575 | CV83: 3.514872775 | CW83: 0.0515173542 | CX83: 0.0936190685 | CY83: 0.1203342565 | CZ83: 0.1368622294 | DA83: 0.1482682529 | DB83: 0.1571077942 | DC83: 0.1642179289 | DD83: 0.1701089666 | DE83: 0.1750746714 | DF83: 0.1793600412 | DG83: 142.4000833 | DH83: 1.092785326 | DI83: 89.28339267 | DJ83: 0.6983391262 | DK83: 56.74498201 | DL83: 0.4508253398 | DM83: 36.89802708 | DN83: 0.2978574763 | DO83: 24.75358929 | DP83: 0.2035614999 | DQ83: 17.17343731 | DR83: 0.1443904104 | DS83: 12.32418696 | DT83: 0.1063967468 | DU83: 9.099636514 | DV83: 0.0809904194 | DW83: 6.89507947 | DX83: 0.0634889643 | DY83: 5.341376034 | DZ83: 0.0509828959
A84: 400000 | B84: 303 | C84: 4528.607296 | D84: 339252.0632 | E84: 305.0374921 | F84: 0.2018594836 | G84: 1065.165933 | H84: 0.0638209826 | I84: 227.6037253 | J84: 1.693945347 | K84: 194.9941315 | L84: 1.29118769 | M84: 90.67990253 | N84: 0.7485725203 | O84: . | P84: 0 | Q84: 200.8737837 | R84: 0.3122927458 | S84: . | T84: 0 | U84: . | V84: 0 | W84: 3.534242777 | X84: 0.0314208071 | Y84: 184.2182383 | Z84: 3.771797264 | AA84: . | AB84: 0 | AC84: 0.0025262772 | AD84: 1.79483e-05 | AE84: . | AF84: 0 | AG84: . | AH84: 0 | AI84: 0.0025262772 | AJ84: 1.79483e-05 | AK84: 207.2203641 | AL84: 2.677420295 | AM84: . | AN84: 0 | AO84: . | AP84: 0 | AQ84: . | AR84: 0 | AS84: 186.914574 | AT84: 5.177316601 | AU84: 251.8064125 | AV84: 1.488785704 | AW84: 94.14206268 | AX84: 0.8832283977 | AY84: 19.80840484 | AZ84: 0.1536601898 | BA84: 137.855945 | BB84: 0.4518971165 | BC84: 6.389508619 | BD84: 0.000967751 | BE84: 1260.014849 | BF84: 6.779570998 | BG84: 0.2378145345 | BH84: 0.0149174486 | BI84: 5.102060227 | BJ84: 0.0450692372 | BK84: 85.57784231 | BL84: 0.7035032831 | BM84: . | BN84: 0 | BO84: . | BP84: 0 | BQ84: 130.9249394 | BR84: 0.1157566865 | BS84: 69.94884432 | BT84: 0.1965360593 | BU84: . | BV84: 0 | BW84: . | BX84: 0 | BY84: . | BZ84: 0 | CA84: . | CB84: 0 | CC84: 2.01782041 | CD84: 0.0173194883 | CE84: 1.516422367 | CF84: 0.0141013187 | CG84: 42.08427367 | CH84: 0.3103498215 | CI84: 142.1339647 | CJ84: 3.461447443 | CK84: . | CL84: 0 | CM84: . | CN84: 0 | CO84: 98.26520895 | CP84: 2.02167901 | CQ84: 88.64936509 | CR84: 3.15563759 | CS84: 591.5856453 | CT84: 3.254321168 | CU84: 668.4292039 | CV84: 3.52524983 | CW84: 0.0516625381 | CX84: 0.093908558 | CY84: 0.1207686955 | CZ84: 0.1374414586 | DA84: 0.1489884483 | DB84: 0.1579667786 | DC84: 0.1652134662 | DD84: 0.1712381009 | DE84: 0.1763349128 | DF84: 0.1807505751 | DG84: 142.527305 | DH84: 1.093194082 | DI84: 89.39966642 | DJ84: 0.6987181949 | DK84: 56.85139746 | DL84: 0.4511680171 | DM84: 36.99410136 | DN84: 0.2981581537 | DO84: 24.84026689 | DP84: 0.2038243758 | DQ84: 17.25118783 | DR84: 0.1446177302 | DS84: 12.39396307 | DT84: 0.1065935683 | DU84: 9.162050357 | DV84: 0.08116208 | DW84: 6.950314022 | DX84: 0.0636362367 | DY84: 5.3897494 | DZ84: 0.0511078484
A85: 500000 | B85: 129 | C85: 4543.310365 | D85: 446299.0918 | E85: 305.442511 | F85: 0.2019910835 | G85: 1086.209658 | H85: 0.0641279063 | I85: 227.6274648 | J85: 1.694093794 | K85: 195.1184207 | L85: 1.291754654 | M85: 90.69469083 | N85: 0.7486942622 | O85: . | P85: 0 | Q85: 201.2894453 | R85: 0.3128909839 | S85: . | T85: 0 | U85: . | V85: 0 | W85: 3.5911661 | X85: 0.0315052839 | Y85: 184.2670688 | Z85: 3.771946202 | AA85: . | AB85: 0 | AC85: 0.0025256993 | AD85: 1.79442e-05 | AE85: . | AF85: 0 | AG85: . | AH85: 0 | AI85: 0.0025256993 | AJ85: 1.79442e-05 | AK85: 207.2564982 | AL85: 2.678320263 | AM85: . | AN85: 0 | AO85: . | AP85: 0 | AQ85: . | AR85: 0 | AS85: 187.3866571 | AT85: 5.186826014 | AU85: 252.3209548 | AV85: 1.490101892 | AW85: 94.27582167 | AX85: 0.8839939783 | AY85: 19.81265811 | AZ85: 0.1536737682 | BA85: 138.232475 | BB85: 0.4524341455 | BC85: 6.722100338 | BD85: 0.0010126278 | BE85: 1271.736517 | BF85: 6.797675443 | BG85: 0.2419451761 | BH85: 0.0160745715 | BI85: 5.102766667 | BJ85: 0.0450743601 | BK85: 85.59192417 | BL85: 0.7036199021 | BM85: . | BN85: 0 | BO85: . | BP85: 0 | BQ85: 131.2418726 | BR85: 0.1159796215 | BS85: 70.04757271 | BT85: 0.1969113623 | BU85: . | BV85: 0 | BW85: . | BX85: 0 | BY85: . | BZ85: 0 | CA85: . | CB85: 0 | CC85: 2.074990081 | CD85: 0.017406264 | CE85: 1.516176019 | CF85: 0.0140990199 | CG85: 42.13515001 | CH85: 0.3106856641 | CI85: 142.1319188 | CJ85: 3.461260538 | CK85: . | CL85: 0 | CM85: . | CN85: 0 | CO85: 98.61913705 | CP85: 2.027229389 | CQ85: 88.7675201 | CR85: 3.159596625 | CS85: 599.7195606 | CT85: 3.265929076 | CU85: 672.0169565 | CV85: 3.531746367 | CW85: 0.051728673 | CX85: 0.09404176 | CY85: 0.1209682866 | CZ85: 0.1377058022 | DA85: 0.149316664 | DB85: 0.1583580814 | DC85: 0.1656680312 | DD85: 0.1717547153 | DE85: 0.1769123936 | DF85: 0.1813889939 | DG85: 142.5498626 | DH85: 1.093337119 | DI85: 89.42018565 | DJ85: 0.6988491288 | DK85: 56.86948689 | DL85: 0.4512837652 | DM85: 37.01013602 | DN85: 0.2982598741 | DO85: 24.85378866 | DP85: 0.2039087738 | DQ85: 17.26233839 | DR85: 0.1446866883 | DS85: 12.40283599 | DT85: 0.1066477475 | DU85: 9.169180446 | DV85: 0.0812048664 | DW85: 6.955862488 | DX85: 0.0636684833 | DY85: 5.393927682 | DZ85: 0.0511311918
A86: 1000000 | B86: 134 | C86: 4563.199593 | D86: 628996.0734 | E86: 305.7452414 | F86: 0.2020756783 | G86: 1119.873835 | H86: 0.0644775189 | I86: 227.6856662 | J86: 1.69428016 | K86: 195.2549801 | L86: 1.292363462 | M86: 90.69878655 | N86: 0.748730146 | O86: . | P86: 0 | Q86: 201.9192233 | R86: 0.3135787057 | S86: . | T86: 0 | U86: . | V86: 0 | W86: 3.639381878 | X86: 0.0317047129 | Y86: 184.7746846 | Z86: 3.772507234 | AA86: . | AB86: 0 | AC86: 0.0025249903 | AD86: 1.79391e-05 | AE86: . | AF86: 0 | AG86: . | AH86: 0 | AI86: 0.0025249903 | AJ86: 1.79391e-05 | AK86: 207.3095226 | AL86: 2.679200331 | AM86: . | AN86: 0 | AO86: . | AP86: 0 | AQ86: . | AR86: 0 | AS86: 188.0541703 | AT86: 5.195187869 | AU86: 253.2856175 | AV86: 1.491899349 | AW86: 94.45006024 | AX86: 0.8848805666 | AY86: 19.8171718 | AZ86: 0.153716837 | BA86: 139.0183854 | BB86: 0.4533019453 | BC86: 7.099885366 | BD86: 0.0010430289 | BE86: 1290.853828 | BF86: 6.812360548 | BG86: 0.2474459443 | BH86: 0.0168893182 | BI86: 5.102689504 | BJ86: 0.0450786484 | BK86: 85.59609705 | BL86: 0.7036514976 | BM86: . | BN86: 0 | BO86: . | BP86: 0 | BQ86: 131.753608 | BR86: 0.1162768595 | BS86: 70.16561528 | BT86: 0.1973018462 | BU86: . | BV86: 0 | BW86: . | BX86: 0 | BY86: . | BZ86: 0 | CA86: . | CB86: 0 | CC86: 2.123521281 | CD86: 0.0176086411 | CE86: 1.515860596 | CF86: 0.0140960718 | CG86: 42.62713924 | CH86: 0.3110646802 | CI86: 142.1475454 | CJ86: 3.461442554 | CK86: . | CL86: 0 | CM86: . | CN86: 0 | CO86: 99.05813025 | CP86: 2.032625837 | CQ86: 88.99604008 | CR86: 3.162562032 | CS86: 611.3390034 | CT86: 3.275322509 | CU86: 679.5148248 | CV86: 3.53703804 | CW86: 0.0517985791 | CX86: 0.0941813629 | CY86: 0.1211776701 | CZ86: 0.1379860291 | DA86: 0.1496667948 | DB86: 0.1587783716 | DC86: 0.1661586615 | DD86: 0.1723147186 | DE86: 0.1775418666 | DF86: 0.1820868173 | DG86: 142.6034232 | DH86: 1.093518096 | DI86: 89.46749339 | DJ86: 0.6990133691 | DK86: 56.91102178 | DL86: 0.4514301513 | DM86: 37.04646925 | DN86: 0.2983916371 | DO86: 24.88471489 | DP86: 0.2040241213 | DQ86: 17.28830555 | DR86: 0.1447870665 | DS86: 12.42453359 | DT86: 0.1067369642 | DU86: 9.186639032 | DV86: 0.0812826005 | DW86: 6.969266223 | DX86: 0.0637364155 | DY86: 5.403365052 | DZ86: 0.0511901218
A87: 2000000 | B87: 23 | C87: 4567.125818 | D87: 1186325.193 | E87: 305.7970814 | F87: 0.2020868338 | G87: 1132.783589 | H87: 0.0645698468 | I87: 227.6893531 | J87: 1.694292943 | K87: 195.2663026 | L87: 1.292427671 | M87: 90.69845256 | N87: 0.7487240696 | O87: . | P87: 0 | Q87: 201.9816049 | R87: 0.3136389477 | S87: . | T87: 0 | U87: . | V87: 0 | W87: 3.639248208 | X87: 0.0317035127 | Y87: 184.7728815 | Z87: 3.772468748 | AA87: . | AB87: 0 | AC87: 0.0025248318 | AD87: 1.79381e-05 | AE87: . | AF87: 0 | AG87: . | AH87: 0 | AI87: 0.0025248318 | AJ87: 1.79381e-05 | AK87: 207.3182193 | AL87: 2.679315729 | AM87: . | AN87: 0 | AO87: . | AP87: 0 | AQ87: . | AR87: 0 | AS87: 188.1308483 | AT87: 5.196324908 | AU87: 253.3024798 | AV87: 1.492011421 | AW87: 94.45744165 | AX87: 0.8849513389 | AY87: 19.817554 | AZ87: 0.1537190104 | BA87: 139.0274842 | BB87: 0.4533410717 | BC87: 7.165334944 | BD87: 0.0010543034 | BE87: 1294.907972 | BF87: 6.81386337 | BG87: 0.2490595975 | BH87: 0.0170846398 | BI87: 5.102631329 | BJ87: 0.0450781003 | BK87: 85.59582124 | BL87: 0.7036459693 | BM87: . | BN87: 0 | BO87: . | BP87: 0 | BQ87: 131.7905589 | BR87: 0.1162961265 | BS87: 70.19104604 | BT87: 0.1973428212 | BU87: . | BV87: 0 | BW87: . | BX87: 0 | BY87: . | BZ87: 0 | CA87: . | CB87: 0 | CC87: 2.123450207 | CD87: 0.0176080268 | CE87: 1.515798001 | CF87: 0.0140954859 | CG87: 42.62667613 | CH87: 0.3110615882 | CI87: 142.1462053 | CJ87: 3.46140716 | CK87: . | CL87: 0 | CM87: . | CN87: 0 | CO87: 99.09522053 | CP87: 2.033197655 | CQ87: 89.03562778 | CR87: 3.163127252 | CS87: 612.5465891 | CT87: 3.276236678 | CU87: 682.3613829 | CV87: 3.537626692 | CW87: 0.051810674 | CX87: 0.0942057233 | CY87: 0.1212141377 | CZ87: 0.1380348003 | DA87: 0.1497272227 | DB87: 0.1588504981 | DC87: 0.1662425155 | DD87: 0.1724103209 | DE87: 0.1776492326 | DF87: 0.1822059584 | DG87: 142.6068577 | DH87: 1.09353146 | DI87: 89.47061669 | DJ87: 0.699026489 | DK87: 56.91375515 | DL87: 0.451442674 | DM87: 37.04894747 | DN87: 0.2984034985 | DO87: 24.88702328 | DP87: 0.2040354254 | DQ87: 17.29036393 | DR87: 0.1447971879 | DS87: 12.42637488 | DT87: 0.1067459797 | DU87: 9.188233136 | DV87: 0.0812902712 | DW87: 6.970593767 | DX87: 0.063742588 | DY87: 5.404413582 | DZ87: 0.0511946983
A88: Unlimited | B88: 2 | C88: 4567.429479 | D88: 2265021.579 | E88: 305.8039304 | F88: 0.202088753 | G88: 1135.167716 | H88: 0.0645806796 | I88: 227.6890563 | J88: 1.694290737 | K88: 195.2666352 | L88: 1.292429558 | M88: 90.69834989 | N88: 0.7487232105 | O88: . | P88: 0 | Q88: 201.9828807 | R88: 0.3136404543 | S88: . | T88: 0 | U88: . | V88: 0 | W88: 3.639245783 | X88: 0.0317034975 | Y88: 184.772621 | Z88: 3.772463382 | AA88: . | AB88: 0 | AC88: 0.0025248318 | AD88: 1.79381e-05 | AE88: . | AF88: 0 | AG88: . | AH88: 0 | AI88: 0.0025248318 | AJ88: 1.79381e-05 | AK88: 207.3216464 | AL88: 2.67935374 | AM88: . | AN88: 0 | AO88: . | AP88: 0 | AQ88: . | AR88: 0 | AS88: 188.1651384 | AT88: 5.196883012 | AU88: 253.3089489 | AV88: 1.492026388 | AW88: 94.45857292 | AX88: 0.8849588118 | AY88: 19.81750735 | AZ88: 0.153718696 | BA88: 139.0328686 | BB88: 0.4533488805 | BC88: 7.165317596 | BD88: 0.0010543011 | BE88: 1295.045468 | BF88: 6.814053073 | BG88: 0.2491964989 | BH88: 0.0170846052 | BI88: 5.102625397 | BJ88: 0.0450780487 | BK88: 85.5957245 | BL88: 0.7036451618 | BM88: . | BN88: 0 | BO88: . | BP88: 0 | BQ88: 131.7918157 | BR88: 0.116296944 | BS88: 70.19106503 | BT88: 0.1973435103 | BU88: . | BV88: 0 | BW88: . | BX88: 0 | BY88: . | BZ88: 0 | CA88: . | CB88: 0 | CC88: 2.123447929 | CD88: 0.0176080131 | CE88: 1.515797854 | CF88: 0.0140954844 | CG88: 42.62661364 | CH88: 0.3110611222 | CI88: 142.1460073 | CJ88: 3.46140226 | CK88: . | CL88: 0 | CM88: . | CN88: 0 | CO88: 99.12691469 | CP88: 2.033732523 | CQ88: 89.03822372 | CR88: 3.163150489 | CS88: 612.6446307 | CT88: 3.276383137 | CU88: 682.4008372 | CV88: 3.537669936 | CW88: 0.0518117139 | CX88: 0.0942078188 | CY88: 0.12121732 | CZ88: 0.1380390918 | DA88: 0.1497326342 | DB88: 0.1588570347 | DC88: 0.1662501806 | DD88: 0.1724191168 | DE88: 0.1776591613 | DF88: 0.182217021 | DG88: 142.6066655 | DH88: 1.093530002 | DI88: 89.47049465 | DJ88: 0.6990255518 | DK88: 56.91367745 | DL88: 0.4514420722 | DM88: 37.04889705 | DN88: 0.2984031047 | DO88: 24.88698936 | DP88: 0.2040351581 | DQ88: 17.29034023 | DR88: 0.144796999 | DS88: 12.42635768 | DT88: 0.1067458403 | DU88: 9.188220266 | DV88: 0.0812901648 | DW88: 6.970583877 | DX88: 0.0637425042 | DY88: 5.404405812 | DZ88: 0.0511946305

Sheet Gold Cont. Table - Medical
A1: Gold Plans, Medical Only
A2: Continuance Table
A4: Up To | B4: Number of Enrollees | C4: Avg. Cost per Enrollee (Max'd) | D4: Avg. Cost per Enrollee (Bucket) | E4: ER | F4: Avg. ER Freq | G4: IP | H4: Avg. IP Freq | I4: Primary Care | J4: Avg. Primary Care Freq | K4: Specialist | L4: Avg. Specialist Freq | M4: Mental Health and Sub. Abuse | N4: Mental Health and Sub. Abuse Freq. | O4: - | P4: - | Q4: Imaging | R4: Avg. Imaging Freq | S4: - | T4: - | U4: - | V4: - | W4: Speech Therapy | X4: Avg. Speech Therapy Freq | Y4: Occ. + Physical Therapy | Z4: Occ. + Physical Therapy Freq | AA4: - | AB4: - | AC4: Well Baby (Combined) | AD4: Avg. Well Baby Freq (Combined) | AE4: - | AF4: - | AG4: - | AH4: - | AI4: Well Baby (Unclass.) | AJ4: Avg. Well Baby Freq (Unclass.) | AK4: Preventive (Combined) | AL4: Avg. Prev. Freq (Combined) | AM4: - | AN4: - | AO4: - | AP4: - | AQ4: - | AR4: - | AS4: Laboratory | AT4: Avg. Laboratory Freq | AU4: X-rays (Combined) | AV4: Avg. X-ray Freq (Combined) | AW4: X-rays (Specialist) | AX4: Avg. X-rays Freq (Specialist) | AY4: X-rays (Primary) | AZ4: Avg. X-rays Freq (Primary) | BA4: X-rays (Unclass.) | BB4: Avg. X-rays Freq (Unclass.) | BC4: SNF | BD4: Avg. SNF Freq. | BE4: Unclassified | BF4: Avg. Unclassified Freq | BG4: Avg. IP Days | BH4: Avg. SNF Days | BI4: Mental Health - OP Facility | BJ4: Avg. Mental Health - OP Facility Freq | BK4: Mental Health - OP Prof. | BL4: Avg. Mental Health - OP Prof. Freq | BM4: Sub. Abuse - OP Facility | BN4: Avg. Sub. Abuse - OP Facility Freq | BO4: Sub. Abuse - OP Prof. | BP4: Avg. Sub. Abuse - OP Prof. Freq | BQ4: Imaging - OP Facility | BR4: Avg. Imaging - OP Facility Freq | BS4: Imaging - OP Prof. | BT4: Avg. Imaging - OP Prof. Freq | BU4: - | BV4: - | BW4: - | BX4: - | BY4: - | BZ4: - | CA4: - | CB4: - | CC4: Speech Therapy - OP Facility | CD4: Avg. Speech Therapy - OP Facility Freq | CE4: Speech Therapy - OP Prof. | CF4: Avg. Speech Therapy - OP Prof. Freq | CG4: Occupational Therapy - OP Facility | CH4: Avg. Occ. Therapy - OP Facility Freq | CI4: Occupational Therapy - OP Prof. | CJ4: Avg. Occ. Therapy - OP Prof. Freq | CK4: - | CL4: - | CM4: - | CN4: - | CO4: Laboratory - OP Facility | CP4: Avg. Lab - OP Facility Freq | CQ4: Laboratory - OP Prof. | CR4: Avg. Lab - OP Prof. Freq | CS4: Unclassified - OP Facility | CT4: Avg. Unclass. - OP Facility Freq | CU4: Unclassified - OP Prof | CV4: Avg. Unclass. - OP Prof Freq | CW4: IP Max Days - 1 | CX4: IP Max Days - 2 | CY4: IP Max Days - 3 | CZ4: IP Max Days - 4 | DA4: IP Max Days - 5 | DB4: IP Max Days - 6 | DC4: IP Max Days - 7 | DD4: IP Max Days - 8 | DE4: IP Max Days - 9 | DF4: IP Max Days - 10 | DG4: Primary Care >1 Visit | DH4: Primary Care >1 Visit Freq. | DI4: Primary Care >2 Visits | DJ4: Primary Care >2 Visits Freq. | DK4: Primary Care >3 Visits | DL4: Primary Care >3 Visits Freq. | DM4: Primary Care >4 Visits | DN4: Primary Care >4 Visits Freq. | DO4: Primary Care >5 Visits | DP4: Primary Care >5 Visits Freq. | DQ4: Primary Care >6 Visits | DR4: Primary Care >6 Visits Freq. | DS4: Primary Care >7 Visits | DT4: Primary Care >7 Visits Freq. | DU4: Primary Care >8 Visits | DV4: Primary Care >8 Visits Freq. | DW4: Primary Care >9 Visits | DX4: Primary Care >9 Visits Freq. | DY4: Primary Care >10 Visits | DZ4: Primary Care >10 Visits Freq.
A5: 0 | B5: 582370 | C5: 0 | D5: 0 | E5: 0 | F5: 3.39152e-05 | G5: 0 | H5: 3.1199376e-06 | I5: 0 | J5: 8.53924e-05 | K5: 0 | L5: 8.85437e-05 | M5: 0 | N5: 3.77394e-05 | O5: . | P5: 0 | Q5: 0 | R5: 2.29945e-05 | S5: . | T5: 0 | U5: . | V5: 0 | W5: 0 | X5: 0 | Y5: 0 | Z5: 5.68038e-05 | AA5: . | AB5: 0 | AC5: 0 | AD5: 0 | AE5: . | AF5: 0 | AG5: . | AH5: 0 | AI5: 0 | AJ5: 0 | AK5: 0 | AL5: 0.0001322509 | AM5: . | AN5: 0 | AO5: . | AP5: 0 | AQ5: . | AR5: 0 | AS5: 0 | AT5: 0.0003418759 | AU5: 0 | AV5: 0.0001539753 | AW5: 0 | AX5: 0.0001094785 | AY5: 0 | AZ5: 1.6934e-05 | BA5: =AU5-(AW5+AY5) -> 0 | BB5: =AV5-(AX5+AZ5) -> 2.75628e-05 | BC5: 0 | BD5: 0 | BE5: 0 | BF5: 0.0007590584 | BG5: 1.24798e-05 | BH5: 0 | BI5: 0 | BJ5: 1.14142e-05 | BK5: 0 | BL5: 2.63252e-05 | BM5: . | BN5: 0 | BO5: . | BP5: 0 | BQ5: 0 | BR5: 8.1407638e-06 | BS5: 0 | BT5: 1.48538e-05 | BU5: . | BV5: 0 | BW5: . | BX5: 0 | BY5: . | BZ5: 0 | CA5: . | CB5: 0 | CC5: 0 | CD5: 0 | CE5: 0 | CF5: 0 | CG5: 0 | CH5: 0 | CI5: 0 | CJ5: 5.68038e-05 | CK5: . | CL5: 0 | CM5: . | CN5: 0 | CO5: 0 | CP5: 5.86144e-05 | CQ5: 0 | CR5: 0.0002832615 | CS5: 0 | CT5: 0.0002788302 | CU5: 0 | CV5: 0.0004802282 | CW5: 3.1199376e-06 | CX5: 6.2398752e-06 | CY5: 9.3598128e-06 | CZ5: 1.24798e-05 | DA5: 1.24798e-05 | DB5: 1.24798e-05 | DC5: 1.24798e-05 | DD5: 1.24798e-05 | DE5: 1.24798e-05 | DF5: 1.24798e-05 | DG5: 0 | DH5: 1.88996e-05 | DI5: 0 | DJ5: 1.36126e-05 | DK5: 0 | DL5: 9.6222934e-06 | DM5: 0 | DN5: 5.6319788e-06 | DO5: 0 | DP5: 1.6416643e-06 | DQ5: 0 | DR5: 0 | DS5: 0 | DT5: 0 | DU5: 0 | DV5: 0 | DW5: 0 | DX5: 0 | DY5: 0 | DZ5: 0
A6: 100 | B6: 110044 | C6: 82.70739987 | D6: 70.85739135 | E6: 0.0134870629 | F6: 0.0002536847 | G6: 2.52261e-05 | H6: 3.785489e-06 | I6: 4.175616529 | J6: 0.0525550331 | K6: 1.302442931 | L6: 0.0162426143 | M6: 0.2640701985 | N6: 0.0035807253 | O6: . | P6: 0 | Q6: 0.0031597342 | R6: 9.49609e-05 | S6: . | T6: 0 | U6: . | V6: 0 | W6: 3.32753e-05 | X6: 4.9408423e-06 | Y6: 0.0987617964 | Z6: 0.0039679628 | AA6: . | AB6: 0 | AC6: 0 | AD6: 0 | AE6: . | AF6: 0 | AG6: . | AH6: 0 | AI6: 0 | AJ6: 0 | AK6: 2.282540783 | AL6: 0.0514594536 | AM6: . | AN6: 0 | AO6: . | AP6: 0 | AQ6: . | AR6: 0 | AS6: 0.4896134498 | AT6: 0.0385635109 | AU6: 0.1230802866 | AV6: 0.0037714079 | AW6: 0.0897229152 | AX6: 0.003020569 | AY6: 0.0108759807 | AZ6: 0.0002845093 | BA6: =AU6-(AW6+AY6) -> 0.0224813907 | BB6: 0.0004663296 | BC6: 0 | BD6: 0 | BE6: 2.148096553 | BF6: 0.067287128 | BG6: 1.38801e-05 | BH6: 0 | BI6: 0.001191636 | BJ6: 4.9076e-05 | BK6: 0.2628785625 | BL6: 0.0035316493 | BM6: . | BN6: 0 | BO6: . | BP6: 0 | BQ6: 0.0006209432 | BR6: 2.88292e-05 | BS6: 0.0025387909 | BT6: 6.61317e-05 | BU6: . | BV6: 0 | BW6: . | BX6: 0 | BY6: . | BZ6: 0 | CA6: . | CB6: 0 | CC6: 0 | CD6: 0 | CE6: 3.32753e-05 | CF6: 4.9408423e-06 | CG6: 0.0006437895 | CH6: 3.6722e-05 | CI6: 0.0981180069 | CJ6: 0.0039312408 | CK6: . | CL6: 0 | CM6: . | CN6: 0 | CO6: 0.0774432589 | CP6: 0.0041285397 | CQ6: 0.4121701908 | CR6: 0.0344349712 | CS6: 0.041517258 | CT6: 0.0084367217 | CU6: 2.106579295 | CV6: 0.0588504063 | CW6: 3.785489e-06 | CX6: 7.5709779e-06 | CY6: 1.13565e-05 | CZ6: 1.38801e-05 | DA6: 1.38801e-05 | DB6: 1.38801e-05 | DC6: 1.38801e-05 | DD6: 1.38801e-05 | DE6: 1.38801e-05 | DF6: 1.38801e-05 | DG6: 0.0290577014 | DH6: 0.001385916 | DI6: 0.0059909796 | DJ6: 0.000351239 | DK6: 0.0010321352 | DL6: 7.94619e-05 | DM6: 0.0002141787 | DN6: 2.03598e-05 | DO6: 0 | DP6: 1.3418471e-06 | DQ6: 0 | DR6: 0 | DS6: 0 | DT6: 0 | DU6: 0 | DV6: 0 | DW6: 0 | DX6: 0 | DY6: 0 | DZ6: 0
A7: 200 | B7: 222049 | C7: 160.6647963 | D7: 151.133836 | E7: 0.1818706506 | F7: 0.0013405407 | G7: 0.0003085046 | H7: 6.3791792e-06 | I7: 18.18214916 | J7: 0.1729184227 | K7: 6.422018858 | L7: 0.0588298971 | M7: 1.026210506 | N7: 0.0116903506 | O7: . | P7: 0 | Q7: 0.0206679341 | R7: 0.0002872369 | S7: . | T7: 0 | U7: . | V7: 0 | W7: 0.0007090931 | X7: 1.36884e-05 | Y7: 0.4215774719 | Z7: 0.0138018739 | AA7: . | AB7: 0 | AC7: 0 | AD7: 0 | AE7: . | AF7: 0 | AG7: . | AH7: 0 | AI7: 0 | AJ7: 0 | AK7: 6.697876279 | AL7: 0.1479389112 | AM7: . | AN7: 0 | AO7: . | AP7: 0 | AQ7: . | AR7: 0 | AS7: 2.388516117 | AT7: 0.1696602618 | AU7: 0.7662958673 | AV7: 0.0167402009 | AW7: 0.4329549179 | AX7: 0.0108951844 | AY7: 0.2046305945 | AZ7: 0.0039765421 | BA7: 0.1287103549 | BB7: 0.0018684744 | BC7: 0 | BD7: 0 | BE7: 7.432550602 | BF7: 0.1559056864 | BG7: 1.71603e-05 | BH7: 0 | BI7: 0.0093092248 | BJ7: 0.0002159974 | BK7: 1.016901281 | BL7: 0.0114743533 | BM7: . | BN7: 0 | BO7: . | BP7: 0 | BQ7: 0.0023460318 | BR7: 7.43526e-05 | BS7: 0.0183219023 | BT7: 0.0002128844 | BU7: . | BV7: 0 | BW7: . | BX7: 0 | BY7: . | BZ7: 0 | CA7: . | CB7: 0 | CC7: 0.0001936515 | CD7: 4.3445342e-06 | CE7: 0.0005154415 | CF7: 9.3439145e-06 | CG7: 0.0030289004 | CH7: 0.0001257669 | CI7: 0.4185485715 | CJ7: 0.013676107 | CK7: . | CL7: 0 | CM7: . | CN7: 0 | CO7: 0.3328313874 | CP7: 0.0144954257 | CQ7: 2.05568473 | CR7: 0.1551648361 | CS7: 0.2060846121 | CT7: 0.0265256958 | CU7: 7.22646599 | CV7: 0.1293799906 | CW7: 6.3791792e-06 | CX7: 1.18936e-05 | CY7: 1.54307e-05 | CZ7: 1.71603e-05 | DA7: 1.71603e-05 | DB7: 1.71603e-05 | DC7: 1.71603e-05 | DD7: 1.71603e-05 | DE7: 1.71603e-05 | DF7: 1.71603e-05 | DG7: 1.134876239 | DH7: 0.0152229521 | DI7: 0.0293825457 | DJ7: 0.0010053888 | DK7: 0.0066061911 | DL7: 0.0002904159 | DM7: 0.0018268015 | DN7: 8.78664e-05 | DO7: 0.0004752922 | DP7: 2.25448e-05 | DQ7: 9.65019e-05 | DR7: 5.0008773e-06 | DS7: 0 | DT7: 0 | DU7: 0 | DV7: 0 | DW7: 0 | DX7: 0 | DY7: 0 | DZ7: 0
A8: 300 | B8: 208283 | C8: 233.3616076 | D8: 249.1899881 | E8: 0.7113566146 | F8: 0.0035394746 | G8: 0.0007424942 | H8: 9.8931279e-06 | I8: 32.5933481 | J8: 0.2862970346 | K8: 11.89627533 | L8: 0.0998571889 | M8: 1.871353334 | N8: 0.0207863484 | O8: . | P8: 0 | Q8: 0.0422878855 | R8: 0.0004698445 | S8: . | T8: 0 | U8: . | V8: 0 | W8: 0.0015437558 | X8: 2.42605e-05 | Y8: 0.9144437136 | Z8: 0.0283125578 | AA8: . | AB8: 0 | AC8: 0 | AD8: 0 | AE8: . | AF8: 0 | AG8: . | AH8: 0 | AI8: 0 | AJ8: 0 | AK8: 12.19265707 | AL8: 0.2777059496 | AM8: . | AN8: 0 | AO8: . | AP8: 0 | AQ8: . | AR8: 0 | AS8: 5.359851786 | AT8: 0.3517877871 | AU8: 1.852309107 | AV8: 0.0353844233 | AW8: 0.9700201347 | AX8: 0.0218577454 | AY8: 0.5331293876 | AZ8: 0.0093273463 | BA8: 0.3491595849 | BB8: 0.0041993316 | BC8: 0 | BD8: 0 | BE8: 13.31373702 | BF8: 0.2574702445 | BG8: 2.44618e-05 | BH8: 0 | BI8: 0.0190626056 | BJ8: 0.0003960671 | BK8: 1.852290729 | BL8: 0.0203902814 | BM8: . | BN8: 0 | BO8: . | BP8: 0 | BQ8: 0.0044045461 | BR8: 0.0001077359 | BS8: 0.0378833394 | BT8: 0.0003621086 | BU8: . | BV8: 0 | BW8: . | BX8: 0 | BY8: . | BZ8: 0 | CA8: . | CB8: 0 | CC8: 0.0002823971 | CD8: 6.8158882e-06 | CE8: 0.0012613587 | CF8: 1.74446e-05 | CG8: 0.0106806403 | CH8: 0.000259404 | CI8: 0.9037630733 | CJ8: 0.0280531538 | CK8: . | CL8: 0 | CM8: . | CN8: 0 | CO8: 0.8142210898 | CP8: 0.032107863 | CQ8: 4.545630696 | CR8: 0.3196799241 | CS8: 0.4501295578 | CT8: 0.0540422513 | CU8: 12.86360746 | CV8: 0.2034279932 | CW8: 9.8931279e-06 | CX8: 1.91371e-05 | CY8: 2.31635e-05 | CZ8: 2.44618e-05 | DA8: 2.44618e-05 | DB8: 2.44618e-05 | DC8: 2.44618e-05 | DD8: 2.44618e-05 | DE8: 2.44618e-05 | DF8: 2.44618e-05 | DG8: 5.01728944 | DH8: 0.053601544 | DI8: 0.4107858549 | DJ8: 0.005836234 | DK8: 0.0244059155 | DL8: 0.0006613514 | DM8: 0.0047525337 | DN8: 0.0001947129 | DO8: 0.0017958396 | DP8: 8.17486e-05 | DQ8: 0.0008530919 | DR8: 4.225e-05 | DS8: 0.0004696416 | DT8: 2.61626e-05 | DU8: 0.0003640135 | DV8: 2.05889e-05 | DW8: 0.0002683845 | DX8: 1.54039e-05 | DY8: 0.0001809914 | DZ8: 1.06075e-05
A9: 400 | B9: 189219 | C9: 301.3640922 | D9: 349.2892078 | E9: 1.563861928 | F9: 0.0062585579 | G9: 0.0020942701 | H9: 1.41012e-05 | I9: 46.44585 | J9: 0.3912838039 | K9: 17.07475646 | L9: 0.1378603532 | M9: 2.788791761 | N9: 0.0303253428 | O9: . | P9: 0 | Q9: 0.0743345812 | R9: 0.0006907563 | S9: . | T9: 0 | U9: . | V9: 0 | W9: 0.0030422984 | X9: 8.12332e-05 | Y9: 1.471171846 | Z9: 0.0440001276 | AA9: . | AB9: 0 | AC9: 0 | AD9: 0 | AE9: . | AF9: 0 | AG9: . | AH9: 0 | AI9: 0 | AJ9: 0 | AK9: 18.24321583 | AL9: 0.4151275629 | AM9: . | AN9: 0 | AO9: . | AP9: 0 | AQ9: . | AR9: 0 | AS9: 8.947590196 | AT9: 0.5506647476 | AU9: 3.197952326 | AV9: 0.0558086556 | AW9: 1.596265476 | AX9: 0.0337231797 | AY9: 0.8769995978 | AZ9: 0.0146317926 | BA9: 0.7246872517 | BB9: 0.0074536833 | BC9: 0 | BD9: 0 | BE9: 19.11237566 | BF9: 0.3592536853 | BG9: 3.52153e-05 | BH9: 0 | BI9: 0.0301329875 | BJ9: 0.0006205949 | BK9: 2.758658773 | BL9: 0.0297047478 | BM9: . | BN9: 0 | BO9: . | BP9: 0 | BQ9: 0.0078701623 | BR9: 0.000138376 | BS9: 0.0664644189 | BT9: 0.0005523804 | BU9: . | BV9: 0 | BW9: . | BX9: 0 | BY9: . | BZ9: 0 | CA9: . | CB9: 0 | CC9: 0.0008462074 | CD9: 5.22448e-05 | CE9: 0.002196091 | CF9: 2.89884e-05 | CG9: 0.0218704731 | CH9: 0.0004799534 | CI9: 1.449301373 | CJ9: 0.0435201742 | CK9: . | CL9: 0 | CM9: . | CN9: 0 | CO9: 1.494684748 | CP9: 0.0541555266 | CQ9: 7.452905448 | CR9: 0.496509221 | CS9: 0.7740825813 | CT9: 0.0856938594 | CU9: 18.33829307 | CV9: 0.2735598259 | CW9: 1.41012e-05 | CX9: 2.76851e-05 | CY9: 3.41808e-05 | CZ9: 3.52153e-05 | DA9: 3.52153e-05 | DB9: 3.52153e-05 | DC9: 3.52153e-05 | DD9: 3.52153e-05 | DE9: 3.52153e-05 | DF9: 3.52153e-05 | DG9: 10.48377671 | DH9: 0.1023853149 | DI9: 1.64855049 | DJ9: 0.018938887 | DK9: 0.1818028156 | DL9: 0.0027070992 | DM9: 0.0178639279 | DN9: 0.0004692893 | DO9: 0.0044961736 | DP9: 0.0001831879 | DQ9: 0.0023649814 | DR9: 0.0001066645 | DS9: 0.0013907093 | DT9: 6.79269e-05 | DU9: 0.0010292636 | DV9: 5.12788e-05 | DW9: 0.0007557611 | DX9: 3.82763e-05 | DY9: 0.0005338996 | DZ9: 2.76012e-05
A10: 500 | B10: 171888 | C10: 365.2001725 | D10: 449.0581623 | E10: 2.763066947 | F10: 0.0095071146 | G10: 0.0044001707 | H10: 2.38194e-05 | I10: 59.06327325 | J10: 0.4835696647 | K10: 22.01171253 | L10: 0.1732130503 | M10: 3.772809856 | N10: 0.0404283477 | O10: . | P10: 0 | Q10: 0.1236552434 | R10: 0.0010119117 | S10: . | T10: 0 | U10: . | V10: 0 | W10: 0.0053691359 | X10: 0.0001069069 | Y10: 2.14843838 | Z10: 0.062951486 | AA10: . | AB10: 0 | AC10: 0 | AD10: 0 | AE10: . | AF10: 0 | AG10: . | AH10: 0 | AI10: 0 | AJ10: 0 | AK10: 24.48113847 | AL10: 0.5490846017 | AM10: . | AN10: 0 | AO10: . | AP10: 0 | AQ10: . | AR10: 0 | AS10: 12.70125337 | AT10: 0.741295758 | AU10: 4.819132172 | AV10: 0.0778194984 | AW10: 2.338264655 | AX10: 0.0463195482 | AY10: 1.271764243 | AZ10: 0.020260136 | BA10: 1.209103274 | BB10: 0.0112398142 | BC10: 0 | BD10: 0 | BE10: 24.87093568 | BF10: 0.4596945289 | BG10: 5.19706e-05 | BH10: 0 | BI10: 0.0430840793 | BJ10: 0.0008868717 | BK10: 3.729725777 | BL10: 0.039541476 | BM10: . | BN10: 0 | BO10: . | BP10: 0 | BQ10: 0.0124302653 | BR10: 0.0001763104 | BS10: 0.111224978 | BT10: 0.0008356012 | BU10: . | BV10: 0 | BW10: . | BX10: 0 | BY10: . | BZ10: 0 | CA10: . | CB10: 0 | CC10: 0.0015260159 | CD10: 5.87979e-05 | CE10: 0.00384312 | CF10: 4.8109e-05 | CG10: 0.0428465875 | CH10: 0.000834534 | CI10: 2.105591792 | CJ10: 0.062116952 | CK10: . | CL10: 0 | CM10: . | CN10: 0 | CO10: 2.337227427 | CP10: 0.0784419886 | CQ10: 10.36402594 | CR10: 0.6628537695 | CS10: 1.116460577 | CT10: 0.1184879823 | CU10: 23.7544751 | CV10: 0.3412065466 | CW10: 2.38194e-05 | CX10: 4.30943e-05 | CY10: 5.02544e-05 | CZ10: 5.15416e-05 | DA10: 5.19706e-05 | DB10: 5.19706e-05 | DC10: 5.19706e-05 | DD10: 5.19706e-05 | DE10: 5.19706e-05 | DF10: 5.19706e-05 | DG10: 16.54862967 | DH10: 0.1531281625 | DI10: 3.64530302 | DJ10: 0.0379588193 | DK10: 0.6178969534 | DL10: 0.0075182994 | DM10: 0.0832344408 | DN10: 0.0013394537 | DO10: 0.0129822006 | DP10: 0.0003452786 | DQ10: 0.0043328751 | DR10: 0.0001609062 | DS10: 0.0022479271 | DT10: 9.46473e-05 | DU10: 0.0015344641 | DV10: 6.64016e-05 | DW10: 0.0010001491 | DX10: 4.56622e-05 | DY10: 0.0005609568 | DZ10: 2.82979e-05
A11: 600 | B11: 152940 | C11: 425.2993418 | D11: 548.9894425 | E11: 4.23169163 | F11: 0.0129594481 | G11: 0.007157979 | H11: 3.0493e-05 | I11: 70.18216321 | J11: 0.5636798455 | K11: 26.70745409 | L11: 0.2061468835 | M11: 4.732600477 | N11: 0.0500500881 | O11: . | P11: 0 | Q11: 0.2073775492 | R11: 0.0014055443 | S11: . | T11: 0 | U11: . | V11: 0 | W11: 0.0086219706 | X11: 0.000152524 | Y11: 2.883552601 | Z11: 0.0835027415 | AA11: . | AB11: 0 | AC11: 0 | AD11: 0 | AE11: . | AF11: 0 | AG11: . | AH11: 0 | AI11: 0 | AJ11: 0 | AK11: 30.73689416 | AL11: 0.6750777767 | AM11: . | AN11: 0 | AO11: . | AP11: 0 | AQ11: . | AR11: 0 | AS11: 16.39938339 | AT11: 0.9179200837 | AU11: 6.630297968 | AV11: 0.1002233438 | AW11: 3.174422455 | AX11: 0.0593587606 | AY11: 1.672775614 | AZ11: 0.0254876704 | BA11: 1.783099899 | BB11: 0.0153769128 | BC11: 0 | BD11: 0 | BE11: 30.53070347 | BF11: 0.5568862059 | BG11: 6.48893e-05 | BH11: 0 | BI11: 0.0580787232 | BJ11: 0.0012049093 | BK11: 4.674521754 | BL11: 0.0488451788 | BM11: . | BN11: 0 | BO11: . | BP11: 0 | BQ11: 0.0277103143 | BR11: 0.0002438959 | BS11: 0.1796672349 | BT11: 0.0011616484 | BU11: . | BV11: 0 | BW11: . | BX11: 0 | BY11: . | BZ11: 0 | CA11: . | CB11: 0 | CC11: 0.0027204128 | CD11: 7.92844e-05 | CE11: 0.0059015578 | CF11: 7.32396e-05 | CG11: 0.0682237536 | CH11: 0.0012515398 | CI11: 2.815328848 | CJ11: 0.0822512017 | CK11: . | CL11: 0 | CM11: . | CN11: 0 | CO11: 3.23620348 | CP11: 0.1024123578 | CQ11: 13.16317991 | CR11: 0.8155077259 | CS11: 1.481519252 | CT11: 0.1513115534 | CU11: 29.04918422 | CV11: 0.4055746526 | CW11: 3.0493e-05 | CX11: 5.35242e-05 | CY11: 6.2676e-05 | CZ11: 6.45204e-05 | DA11: 6.48893e-05 | DB11: 6.48893e-05 | DC11: 6.48893e-05 | DD11: 6.48893e-05 | DE11: 6.48893e-05 | DF11: 6.48893e-05 | DG11: 22.5625582 | DH11: 0.2015207887 | DI11: 6.078215005 | DJ11: 0.0597878757 | DK11: 1.351552469 | DL11: 0.0148870926 | DM11: 0.244913801 | DN11: 0.0032064892 | DO11: 0.0413687463 | DP11: 0.0007542906 | DQ11: 0.0091755052 | DR11: 0.0002727337 | DS11: 0.0038248094 | DT11: 0.0001516395 | DU11: 0.0024947036 | DV11: 0.0001052554 | DW11: 0.0016584146 | DX11: 7.33044e-05 | DY11: 0.0010209829 | DZ11: 4.82025e-05
A12: 700 | B12: 135608 | C12: 482.1127662 | D12: 649.0097514 | E12: 5.957712941 | F12: 0.0165775446 | G12: 0.0118151101 | H12: 3.941e-05 | I12: 79.8840341 | J12: 0.633283589 | K12: 31.04616431 | L12: 0.2364413492 | M12: 5.705261007 | N12: 0.0596062005 | O12: . | P12: 0 | Q12: 0.3354215041 | R12: 0.0018715862 | S12: . | T12: 0 | U12: . | V12: 0 | W12: 0.0123229883 | X12: 0.0002006495 | Y12: 3.68830438 | Z12: 0.1057727072 | AA12: . | AB12: 0 | AC12: 0 | AD12: 0 | AE12: . | AF12: 0 | AG12: . | AH12: 0 | AI12: 0 | AJ12: 0 | AK12: 36.77311985 | AL12: 0.7903153399 | AM12: . | AN12: 0 | AO12: . | AP12: 0 | AQ12: . | AR12: 0 | AS12: 19.98185871 | AT12: 1.079378836 | AU12: 8.636002611 | AV12: 0.123349981 | AW12: 4.114185625 | AX12: 0.0730558297 | AY12: 2.070241136 | AZ12: 0.0303737415 | BA12: 2.451575849 | BB12: 0.0199204098 | BC12: 0.0001109182 | BD12: 3.6313549e-07 | BE12: 36.06760059 | BF12: 0.6494152634 | BG12: 7.97477e-05 | BH12: 3.6313549e-07 | BI12: 0.0735904855 | BJ12: 0.0015063715 | BK12: 5.631670522 | BL12: 0.058099829 | BM12: . | BN12: 0 | BO12: . | BP12: 0 | BQ12: 0.0528465401 | BR12: 0.0003228134 | BS12: 0.282574964 | BT12: 0.0015487727 | BU12: . | BV12: 0 | BW12: . | BX12: 0 | BY12: . | BZ12: 0 | CA12: . | CB12: 0 | CC12: 0.0037220265 | CD12: 9.17546e-05 | CE12: 0.0086009618 | CF12: 0.0001088948 | CG12: 0.1010390538 | CH12: 0.0017586987 | CI12: 3.587265327 | CJ12: 0.1040140085 | CK12: . | CL12: 0 | CM12: . | CN12: 0 | CO12: 4.190741634 | CP12: 0.1264436501 | CQ12: 15.79111707 | CR12: 0.9529351859 | CS12: 1.865199993 | CT12: 0.183307263 | CU12: 34.20240059 | CV12: 0.4661080004 | CW12: 3.90833e-05 | CX12: 6.73693e-05 | CY12: 7.68077e-05 | CZ12: 7.87677e-05 | DA12: 7.9421e-05 | DB12: 7.97477e-05 | DC12: 7.97477e-05 | DD12: 7.97477e-05 | DE12: 7.97477e-05 | DF12: 7.97477e-05 | DG12: 28.31165032 | DH12: 0.2466015324 | DI12: 8.742474598 | DJ12: 0.0826468509 | DK12: 2.332754792 | DL12: 0.0241436374 | DM12: 0.5334248937 | DN12: 0.0062376422 | DO12: 0.1111808207 | DP12: 0.0016062141 | DQ12: 0.0242449715 | DR12: 0.0005088873 | DS12: 0.0074926434 | DT12: 0.0002409794 | DU12: 0.0040414991 | DV12: 0.0001582965 | DW12: 0.0026157413 | DX12: 0.0001113386 | DY12: 0.0016984979 | DZ12: 7.71651e-05
A13: 800 | B13: 119480 | C13: 536.0029963 | D13: 748.966462 | E13: 7.890644636 | F13: 0.0202548929 | G13: 0.0187660873 | H13: 5.2232e-05 | I13: 88.39948692 | J13: 0.6947279186 | K13: 35.18075564 | L13: 0.2654102154 | M13: 6.644920727 | N13: 0.0688109357 | O13: . | P13: 0 | Q13: 0.5368305596 | R13: 0.0025264289 | S13: . | T13: 0 | U13: . | V13: 0 | W13: 0.0166051857 | X13: 0.0002466246 | Y13: 4.566777368 | Z13: 0.1304023131 | AA13: . | AB13: 0 | AC13: 0 | AD13: 0 | AE13: . | AF13: 0 | AG13: . | AH13: 0 | AI13: 0 | AJ13: 0 | AK13: 42.31202035 | AL13: 0.8935089978 | AM13: . | AN13: 0 | AO13: . | AP13: 0 | AQ13: . | AR13: 0 | AS13: 23.45009417 | AT13: 1.226722245 | AU13: 10.71006157 | AV13: 0.1459455524 | AW13: 5.077321005 | AX13: 0.0864922096 | AY13: 2.488636673 | AZ13: 0.0351047656 | BA13: 3.144103886 | BB13: 0.0243485772 | BC13: 0.0001006399 | BD13: 3.2948555e-07 | BE13: 41.44072139 | BF13: 0.7365202595 | BG13: 0.0001022771 | BH13: 3.2948555e-07 | BI13: 0.0942378159 | BJ13: 0.0019133706 | BK13: 6.550682911 | BL13: 0.0668975651 | BM13: . | BN13: 0 | BO13: . | BP13: 0 | BQ13: 0.0921626288 | BR13: 0.0004402009 | BS13: 0.4446679308 | BT13: 0.0020862281 | BU13: . | BV13: 0 | BW13: . | BX13: 0 | BY13: . | BZ13: 0 | CA13: . | CB13: 0 | CC13: 0.0047995809 | CD13: 9.86655e-05 | CE13: 0.0118056048 | CF13: 0.0001479591 | CG13: 0.1320149011 | CH13: 0.0023578626 | CI13: 4.434762466 | CJ13: 0.1280444505 | CK13: . | CL13: 0 | CM13: . | CN13: 0 | CO13: 5.180785962 | CP13: 0.1495991127 | CQ13: 18.26930821 | CR13: 1.077123132 | CS13: 2.284325468 | CT13: 0.2139893908 | CU13: 39.15639593 | CV13: 0.5225308687 | CW13: 5.13411e-05 | CX13: 8.57858e-05 | CY13: 9.74932e-05 | CZ13: 0.0001001984 | DA13: 0.0001013862 | DB13: 0.0001022771 | DC13: 0.0001022771 | DD13: 0.0001022771 | DE13: 0.0001022771 | DF13: 0.0001022771 | DG13: 33.73303785 | DH13: 0.288595212 | DI13: 11.52087675 | DJ13: 0.1058845292 | DK13: 3.517210268 | DL13: 0.0348888613 | DM13: 0.9464047847 | DN13: 0.0103788207 | DO13: 0.2382861698 | DP13: 0.0030610797 | DQ13: 0.0606026831 | DR13: 0.0010176042 | DS13: 0.0190705847 | DT13: 0.0004566602 | DU13: 0.0084067457 | DV13: 0.0002721374 | DW13: 0.0047533672 | DX13: 0.0001837287 | DY13: 0.0029578066 | DZ13: 0.0001262891
A14: 900 | B14: 106194 | C14: 587.3253514 | D14: 848.9307663 | E14: 10.03899907 | F14: 0.0240234621 | G14: 0.0270107118 | H14: 6.32443e-05 | I14: 95.84441061 | J14: 0.7482213658 | K14: 39.09680152 | L14: 0.2924695292 | M14: 7.565975929 | N14: 0.0777654752 | O14: . | P14: 0 | Q14: 0.8188498653 | R14: 0.0033610182 | S14: . | T14: 0 | U14: . | V14: 0 | W14: 0.0210872313 | X14: 0.0003007934 | Y14: 5.519352358 | Z14: 0.1569828319 | AA14: . | AB14: 0 | AC14: 0 | AD14: 0 | AE14: . | AF14: 0 | AG14: . | AH14: 0 | AI14: 0 | AJ14: 0 | AK14: 47.32422731 | AL14: 0.9857029679 | AM14: . | AN14: 0 | AO14: . | AP14: 0 | AQ14: . | AR14: 0 | AS14: 26.81604177 | AT14: 1.362313142 | AU14: 12.90814623 | AV14: 0.1684877624 | AW14: 6.103331959 | AX14: 0.1000744333 | AY14: 2.911691988 | AZ14: 0.0395215085 | BA14: 3.893122282 | BB14: 0.0288918206 | BC14: 9.30806e-05 | BD14: 3.0473709e-07 | BE14: 46.69871217 | BF14: 0.8185012763 | BG14: 0.0001229817 | BH14: 3.0473709e-07 | BI14: 0.1120681648 | BJ14: 0.0022777093 | BK14: 7.453907764 | BL14: 0.0754877659 | BM14: . | BN14: 0 | BO14: . | BP14: 0 | BQ14: 0.1458334983 | BR14: 0.0005797414 | BS14: 0.6730163671 | BT14: 0.0027812768 | BU14: . | BV14: 0 | BW14: . | BX14: 0 | BY14: . | BZ14: 0 | CA14: . | CB14: 0 | CC14: 0.0054785061 | CD14: 0.0001092015 | CE14: 0.0156087252 | CF14: 0.0001915919 | CG14: 0.1773183783 | CH14: 0.003107803 | CI14: 5.34203398 | CJ14: 0.1538750289 | CK14: . | CL14: 0 | CM14: . | CN14: 0 | CO14: 6.191370689 | CP14: 0.171867212 | CQ14: 20.62467108 | CR14: 1.19044593 | CS14: 2.68466298 | CT14: 0.2423373665 | CU14: 44.01404919 | CV14: 0.5761639098 | CW14: 6.24198e-05 | CX14: 0.0001049948 | CY14: 0.00011828 | CZ14: 0.000121058 | DA14: 0.0001221573 | DB14: 0.0001229817 | DC14: 0.0001229817 | DD14: 0.0001229817 | DE14: 0.0001229817 | DF14: 0.0001229817 | DG14: 38.69262552 | DH14: 0.3265019604 | DI14: 14.23846373 | DJ14: 0.1280525918 | DK14: 4.771036139 | DL14: 0.0458509256 | DM14: 1.439211129 | DN14: 0.0150594364 | DO14: 0.4115126222 | DP14: 0.0048877423 | DQ14: 0.1160615313 | DR14: 0.0017097667 | DS14: 0.0376256878 | DT14: 0.0007593146 | DU14: 0.0157390745 | DV14: 0.000440526 | DW14: 0.008516317 | DX14: 0.0003003983 | DY14: 0.0054935315 | DZ14: 0.000218832
A15: 1000 | B15: 93816 | C15: 636.4006117 | D15: 948.9776639 | E15: 12.42390999 | F15: 0.0278833294 | G15: 0.037464064 | H15: 7.65118e-05 | I15: 102.317384 | J15: 0.7947782873 | K15: 42.74360004 | L15: 0.3176262634 | M15: 8.492925135 | N15: 0.0865885337 | O15: . | P15: 0 | Q15: 1.213292465 | R15: 0.0044080911 | S15: . | T15: 0 | U15: . | V15: 0 | W15: 0.0287314336 | X15: 0.0003956637 | Y15: 6.527972146 | Z15: 0.184702349 | AA15: . | AB15: 0 | AC15: 0 | AD15: 0 | AE15: . | AF15: 0 | AG15: . | AH15: 0 | AI15: 0 | AJ15: 0 | AK15: 51.77879888 | AL15: 1.065420209 | AM15: . | AN15: 0 | AO15: . | AP15: 0 | AQ15: . | AR15: 0 | AS15: 29.94701201 | AT15: 1.482429645 | AU15: 15.1943136 | AV15: 0.1907532172 | AW15: 7.175504882 | AX15: 0.1135054481 | AY15: 3.323106371 | AZ15: 0.0437273828 | BA15: 4.695702348 | BB15: 0.0335203863 | BC15: 8.73761e-05 | BD15: 2.8606094e-07 | BE15: 51.7191796 | BF15: 0.8941190519 | BG15: 0.0001453376 | BH15: 2.8606094e-07 | BI15: 0.129977329 | BJ15: 0.0026000151 | BK15: 8.362947806 | BL15: 0.0839885186 | BM15: . | BN15: 0 | BO15: . | BP15: 0 | BQ15: 0.2222799154 | BR15: 0.0007583156 | BS15: 0.99101255 | BT15: 0.0036497755 | BU15: . | BV15: 0 | BW15: . | BX15: 0 | BY15: . | BZ15: 0 | CA15: . | CB15: 0 | CC15: 0.0080734564 | CD15: 0.0001436697 | CE15: 0.0206579772 | CF15: 0.000251994 | CG15: 0.2242270545 | CH15: 0.0038630313 | CI15: 6.303745091 | CJ15: 0.1808393177 | CK15: . | CL15: 0 | CM15: . | CN15: 0 | CO15: 7.174152543 | CP15: 0.1927476158 | CQ15: 22.77285947 | CR15: 1.289682029 | CS15: 3.108553106 | CT15: 0.2691816452 | CU15: 48.61062649 | CV15: 0.6249374067 | CW15: 7.54515e-05 | CX15: 0.0001263149 | CY15: 0.0001406362 | CZ15: 0.000143531 | DA15: 0.0001445634 | DB15: 0.0001453376 | DC15: 0.0001453376 | DD15: 0.0001453376 | DE15: 0.0001453376 | DF15: 0.0001453376 | DG15: 43.16852284 | DH15: 0.3605218225 | DI15: 16.82451309 | DJ15: 0.1489311434 | DK15: 6.066252119 | DL15: 0.0570056685 | DM15: 2.006656003 | DN15: 0.0203545904 | DO15: 0.6377833146 | DP15: 0.0072380361 | DQ15: 0.201088584 | DR15: 0.0027452854 | DS15: 0.0694170534 | DT15: 0.0012566433 | DU15: 0.0293481951 | DV15: 0.00073107 | DW15: 0.0156716049 | DX15: 0.0005051801 | DY15: 0.0101989266 | DZ15: 0.0003818942
A16: 1100 | B16: 84097 | C16: 683.3690273 | D16: 1048.928289 | E16: 14.90386494 | F16: 0.0316548807 | G16: 0.0496178437 | H16: 9.10154e-05 | I16: 108.067076 | J16: 0.8361318292 | K16: 46.18190842 | L16: 0.3414934346 | M16: 9.394946235 | N16: 0.0949449919 | O16: . | P16: 0 | Q16: 1.695636505 | R16: 0.005663617 | S16: . | T16: 0 | U16: . | V16: 0 | W16: 0.0341244651 | X16: 0.0004631044 | Y16: 7.572786108 | Z16: 0.2131145313 | AA16: . | AB16: 0 | AC16: 0 | AD16: 0 | AE16: . | AF16: 0 | AG16: . | AH16: 0 | AI16: 0 | AJ16: 0 | AK16: 55.80561865 | AL16: 1.136140648 | AM16: . | AN16: 0 | AO16: . | AP16: 0 | AQ16: . | AR16: 0 | AS16: 32.89414005 | AT16: 1.591948844 | AU16: 17.49127805 | AV16: 0.2122816015 | AW16: 8.235228982 | AX16: 0.1265386896 | AY16: 3.726726377 | AZ16: 0.0476250179 | BA16: 5.52932269 | BB16: 0.038117894 | BC16: 8.28114e-05 | BD16: 2.7111672e-07 | BE16: 56.64667768 | BF16: 0.9656881076 | BG16: 0.0001707033 | BH16: 2.7111672e-07 | BI16: 0.1480183197 | BJ16: 0.0029000723 | BK16: 9.246927916 | BL16: 0.0920449196 | BM16: . | BN16: 0 | BO16: . | BP16: 0 | BQ16: 0.33891549 | BR16: 0.0009994956 | BS16: 1.356721015 | BT16: 0.0046641214 | BU16: . | BV16: 0 | BW16: . | BX16: 0 | BY16: . | BZ16: 0 | CA16: . | CB16: 0 | CC16: 0.0103048545 | CD16: 0.0001719104 | CE16: 0.0238196106 | CF16: 0.000291194 | CG16: 0.2833547305 | CH16: 0.0047951532 | CI16: 7.289431377 | CJ16: 0.2083193781 | CK16: . | CL16: 0 | CM16: . | CN16: 0 | CO16: 8.098604814 | CP16: 0.2122717254 | CQ16: 24.79553524 | CR16: 1.379677119 | CS16: 3.534854407 | CT16: 0.2941144406 | CU16: 53.11182327 | CV16: 0.671573667 | CW16: 9.00095e-05 | CX16: 0.0001487079 | CY16: 0.000165429 | CZ16: 0.0001684467 | DA16: 0.0001696975 | DB16: 0.0001707033 | DC16: 0.0001707033 | DD16: 0.0001707033 | DE16: 0.0001707033 | DF16: 0.0001707033 | DG16: 47.26267725 | DH16: 0.3914784276 | DI16: 19.30169077 | DJ16: 0.1687175156 | DK16: 7.376972232 | DL16: 0.0681020678 | DM16: 2.632664854 | DN16: 0.0260221203 | DO16: 0.9134761275 | DP16: 0.0099428099 | DQ16: 0.3154980744 | DR16: 0.0040030993 | DS16: 0.116045142 | DT16: 0.0018566455 | DU16: 0.051147417 | DV16: 0.0010638947 | DW16: 0.0271118536 | DX16: 0.0007131621 | DY16: 0.017094798 | DZ16: 0.000526441
A17: 1200 | B17: 75765 | C17: 728.428219 | D17: 1149.136422 | E17: 17.44962276 | F17: 0.0353453094 | G17: 0.071241915 | H17: 0.0001152011 | I17: 113.1123749 | J17: 0.8721185894 | K17: 49.46236691 | L17: 0.3640454546 | M17: 10.29535577 | N17: 0.1031153996 | O17: . | P17: 0 | Q17: 2.270772319 | R17: 0.0070648753 | S17: . | T17: 0 | U17: . | V17: 0 | W17: 0.0403748232 | X17: 0.000557376 | Y17: 8.651640257 | Z17: 0.2421812995 | AA17: . | AB17: 0 | AC17: 0 | AD17: 0 | AE17: . | AF17: 0 | AG17: . | AH17: 0 | AI17: 0 | AJ17: 0 | AK17: 59.48713423 | AL17: 1.198401615 | AM17: . | AN17: 0 | AO17: . | AP17: 0 | AQ17: . | AR17: 0 | AS17: 35.66676602 | AT17: 1.691442425 | AU17: 19.80432858 | AV17: 0.2333457633 | AW17: 9.315639115 | AX17: 0.1394251829 | AY17: 4.105372162 | AZ17: 0.0512426654 | BA17: 6.383317302 | BB17: 0.042677915 | BC17: 9.90486e-05 | BD17: 5.1789414e-07 | BE17: 61.51548356 | BF17: 1.033569886 | BG17: 0.0002144562 | BH17: 5.1789414e-07 | BI17: 0.1612669647 | BJ17: 0.0031200278 | BK17: 10.1340888 | BL17: 0.0999953718 | BM17: . | BN17: 0 | BO17: . | BP17: 0 | BQ17: 0.4949193127 | BR17: 0.0012983913 | BS17: 1.775853006 | BT17: 0.005766484 | BU17: . | BV17: 0 | BW17: . | BX17: 0 | BY17: . | BZ17: 0 | CA17: . | CB17: 0 | CC17: 0.0107613393 | CD17: 0.000182613 | CE17: 0.0296134839 | CF17: 0.000374763 | CG17: 0.3460951044 | CH17: 0.0057258177 | CI17: 8.305545153 | CJ17: 0.2364554818 | CK17: . | CL17: 0 | CM17: . | CN17: 0 | CO17: 8.990094831 | CP17: 0.2306412086 | CQ17: 26.67667119 | CR17: 1.460801216 | CS17: 3.98201884 | CT17: 0.317666558 | CU17: 57.53346473 | CV17: 0.7159033283 | CW17: 0.0001142386 | CX17: 0.0001869122 | CY17: 0.0002063659 | CZ17: 0.0002104242 | DA17: 0.0002125575 | DB17: 0.0002144562 | DC17: 0.0002144562 | DD17: 0.0002144562 | DE17: 0.0002144562 | DF17: 0.0002144562 | DG17: 50.91918223 | DH17: 0.4188425517 | DI17: 21.57190529 | DJ17: 0.1866142795 | DK17: 8.637860507 | DL17: 0.0785813669 | DM17: 3.268377677 | DN17: 0.0316391111 | DO17: 1.210718124 | DP17: 0.0127823317 | DQ17: 0.4489534294 | DR17: 0.0054176565 | DS17: 0.1735184862 | DT17: 0.0025642002 | DU17: 0.0768296496 | DV17: 0.0014513139 | DW17: 0.0397880691 | DX17: 0.000954014 | DY17: 0.0244944712 | DZ17: 0.0006966933
A18: 1300 | B18: 68549 | C18: 771.6878011 | D18: 1249.156728 | E18: 19.9774202 | F18: 0.0387979177 | G18: 0.0992193197 | H18: 0.0001436896 | I18: 117.5944296 | J18: 0.9045188722 | K18: 52.57578632 | L18: 0.3856779361 | M18: 11.16769828 | N18: 0.1110086474 | O18: . | P18: 0 | Q18: 2.970907719 | R18: 0.0087343299 | S18: . | T18: 0 | U18: . | V18: 0 | W18: 0.0487141898 | X18: 0.0006470253 | Y18: 9.789772937 | Z18: 0.2731637453 | AA18: . | AB18: 0 | AC18: 0 | AD18: 0 | AE18: . | AF18: 0 | AG18: . | AH18: 0 | AI18: 0 | AJ18: 0 | AK18: 62.86733003 | AL18: 1.254822418 | AM18: . | AN18: 0 | AO18: . | AP18: 0 | AQ18: . | AR18: 0 | AS18: 38.30099842 | AT18: 1.783483496 | AU18: 22.12330843 | AV18: 0.2532838107 | AW18: 10.41349673 | AX18: 0.1517450185 | AY18: 4.474218324 | AZ18: 0.054528662 | BA18: 7.235593377 | BB18: 0.0470101302 | BC18: 9.50673e-05 | BD18: 4.9707753e-07 | BE18: 66.24396513 | BF18: 1.097737148 | BG18: 0.0002630626 | BH18: 4.9707753e-07 | BI18: 0.1777970339 | BJ18: 0.0033921744 | BK18: 10.98990124 | BL18: 0.107616473 | BM18: . | BN18: 0 | BO18: . | BP18: 0 | BQ18: 0.6952788729 | BR18: 0.0016657991 | BS18: 2.275628846 | BT18: 0.0070685308 | BU18: . | BV18: 0 | BW18: . | BX18: 0 | BY18: . | BZ18: 0 | CA18: . | CB18: 0 | CC18: 0.0123594587 | CD18: 0.0001945091 | CE18: 0.0363547311 | CF18: 0.0004525161 | CG18: 0.4184808995 | CH18: 0.0067581263 | CI18: 9.371292037 | CJ18: 0.2664056191 | CK18: . | CL18: 0 | CM18: . | CN18: 0 | CO18: 9.859932449 | CP18: 0.2480170896 | CQ18: 28.44106598 | CR18: 1.535466406 | CS18: 4.443364318 | CT18: 0.3396361288 | CU18: 61.80060081 | CV18: 0.7581010195 | CW18: 0.0001427637 | CX18: 0.0002326692 | CY18: 0.0002552344 | CZ18: 0.0002591537 | DA18: 0.000261221 | DB18: 0.0002630626 | DC18: 0.0002630626 | DD18: 0.0002630626 | DE18: 0.0002630626 | DF18: 0.0002630626 | DG18: 54.23371632 | DH18: 0.4438544053 | DI18: 23.68372545 | DJ18: 0.2033744954 | DK18: 9.852521395 | DL18: 0.0887369961 | DM18: 3.914057985 | DN18: 0.0373727974 | DO18: 1.530466548 | DP18: 0.0158530336 | DQ18: 0.6049861874 | DR18: 0.0070748409 | DS18: 0.2497790423 | DT18: 0.0034884794 | DU18: 0.1151584617 | DV18: 0.0020013484 | DW18: 0.0608139185 | DX18: 0.0013146006 | DY18: 0.0370088629 | DZ18: 0.0009527347
A19: 1400 | B19: 62214 | C19: 813.4206654 | D19: 1348.976239 | E19: 22.61333638 | F19: 0.0421634315 | G19: 0.1369133469 | H19: 0.0001785924 | I19: 121.5952934 | J19: 0.9331455197 | K19: 55.4846201 | L19: 0.4054486029 | M19: 12.01304638 | N19: 0.1184845039 | O19: . | P19: 0 | Q19: 3.736503718 | R19: 0.0105164086 | S19: . | T19: 0 | U19: . | V19: 0 | W19: 0.0584795617 | X19: 0.0007665471 | Y19: 10.9762295 | Z19: 0.3047635915 | AA19: . | AB19: 0 | AC19: 0 | AD19: 0 | AE19: . | AF19: 0 | AG19: . | AH19: 0 | AI19: 0 | AJ19: 0 | AK19: 66.00229636 | AL19: 1.304653142 | AM19: . | AN19: 0 | AO19: . | AP19: 0 | AQ19: . | AR19: 0 | AS19: 40.75306752 | AT19: 1.866472595 | AU19: 24.3593073 | AV19: 0.2721664562 | AW19: 11.46624618 | AX19: 0.1633994585 | AY19: 4.818240096 | AZ19: 0.0575751169 | BA19: 8.074821024 | BB19: 0.0511918808 | BC19: 9.17961e-05 | BD19: 4.7997352e-07 | BE19: 70.80204784 | BF19: 1.15727526 | BG19: 0.0003227062 | BH19: 4.7997352e-07 | BI19: 0.1954792793 | BJ19: 0.0036635245 | BK19: 11.81756711 | BL19: 0.1148209794 | BM19: . | BN19: 0 | BO19: . | BP19: 0 | BQ19: 0.9407871376 | BR19: 0.0020794072 | BS19: 2.795716581 | BT19: 0.0084370014 | BU19: . | BV19: 0 | BW19: . | BX19: 0 | BY19: . | BZ19: 0 | CA19: . | CB19: 0 | CC19: 0.0160591893 | CD19: 0.0002439966 | CE19: 0.0424203724 | CF19: 0.0005225505 | CG19: 0.4998940128 | CH19: 0.0079224252 | CI19: 10.47633548 | CJ19: 0.2968411663 | CK19: . | CL19: 0 | CM19: . | CN19: 0 | CO19: 10.70025342 | CP19: 0.2643090567 | CQ19: 30.0528141 | CR19: 1.602163538 | CS19: 4.907516698 | CT19: 0.360062572 | CU19: 65.89453114 | CV19: 0.7972126882 | CW19: 0.0001776982 | CX19: 0.0002883466 | CY19: 0.000314625 | CZ19: 0.0003189037 | DA19: 0.000320914 | DB19: 0.0003227062 | DC19: 0.0003227062 | DD19: 0.0003227062 | DE19: 0.0003227062 | DF19: 0.0003227062 | DG19: 57.23551824 | DH19: 0.4662280875 | DI19: 25.64310468 | DJ19: 0.2186986492 | DK19: 11.01362034 | DL19: 0.0982835145 | DM19: 4.552738914 | DN19: 0.042931606 | DO19: 1.865645169 | DP19: 0.0189723991 | DQ19: 0.775905705 | DR19: 0.008802188 | DS19: 0.3369468297 | DT19: 0.0044699677 | DU19: 0.16142352 | DV19: 0.0025926629 | DW19: 0.0859234057 | DX19: 0.0016891512 | DY19: 0.0510199767 | DZ19: 0.0012041759
A20: 1500 | B20: 56380 | C20: 853.6624056 | D20: 1449.302075 | E20: 25.21942916 | F20: 0.0453973232 | G20: 0.1783485134 | H20: 0.0002149456 | I20: 125.244025 | J20: 0.9595328359 | K20: 58.19959315 | L20: 0.424239854 | M20: 12.86321588 | N20: 0.1260443638 | O20: . | P20: 0 | Q20: 4.589624457 | R20: 0.0124143181 | S20: . | T20: 0 | U20: . | V20: 0 | W20: 0.0695818772 | X20: 0.000900983 | Y20: 12.11992339 | Z20: 0.3350712418 | AA20: . | AB20: 0 | AC20: 2.13315e-05 | AD20: 2.3290554e-07 | AE20: . | AF20: 0 | AG20: . | AH20: 0 | AI20: 2.13315e-05 | AJ20: 2.3290554e-07 | AK20: 68.87196494 | AL20: 1.349141836 | AM20: . | AN20: 0 | AO20: . | AP20: 0 | AQ20: . | AR20: 0 | AS20: 43.05890767 | AT20: 1.942503278 | AU20: 26.57020689 | AV20: 0.2901620889 | AW20: 12.48811589 | AX20: 0.1744876978 | AY20: 5.162198611 | AZ20: 0.0605218667 | BA20: 8.919892386 | BB20: 0.0551525244 | BC20: 8.90875e-05 | BD20: 4.6581107e-07 | BE20: 75.24284683 | BF20: 1.214015721 | BG20: 0.0003914098 | BH20: 4.6581107e-07 | BI20: 0.2106871899 | BJ20: 0.0039291048 | BK20: 12.65252869 | BL20: 0.1221152591 | BM20: . | BN20: 0 | BO20: . | BP20: 0 | BQ20: 1.217795134 | BR20: 0.0025197801 | BS20: 3.371829323 | BT20: 0.009894538 | BU20: . | BV20: 0 | BW20: . | BX20: 0 | BY20: . | BZ20: 0 | CA20: . | CB20: 0 | CC20: 0.0178035364 | CD20: 0.0002703353 | CE20: 0.0517783408 | CF20: 0.0006306477 | CG20: 0.5813811219 | CH20: 0.0091056712 | CI20: 11.53854226 | CJ20: 0.3259655706 | CK20: . | CL20: 0 | CM20: . | CN20: 0 | CO20: 11.49266355 | CP20: 0.2793365339 | CQ20: 31.56624412 | CR20: 1.663166744 | CS20: 5.397271749 | CT20: 0.3794177599 | CU20: 69.84557508 | CV20: 0.8345979609 | CW20: 0.0002140779 | CX20: 0.0003483138 | CY20: 0.0003801279 | CZ20: 0.0003867558 | DA20: 0.0003896583 | DB20: 0.0003914098 | DC20: 0.0003914098 | DD20: 0.0003914098 | DE20: 0.0003914098 | DF20: 0.0003914098 | DG20: 60.00746553 | DH20: 0.4870098435 | DI20: 27.47898315 | DJ20: 0.2330959359 | DK20: 12.12586895 | DL20: 0.1074328548 | DM20: 5.181993899 | DN20: 0.0484017939 | DO20: 2.205041508 | DP20: 0.0221345968 | DQ20: 0.9531806812 | DR20: 0.0106144792 | DS20: 0.4308142866 | DT20: 0.0055489778 | DU20: 0.2127217641 | DV20: 0.0032696382 | DW20: 0.1155202235 | DX20: 0.0021452063 | DY20: 0.0690103329 | DZ20: 0.0015309084
A21: 1600 | B21: 52355 | C21: 892.5802503 | D21: 1549.078255 | E21: 27.86077347 | F21: 0.0485013131 | G21: 0.239562243 | H21: 0.0002657709 | I21: 128.4757584 | J21: 0.9828283009 | K21: 60.83304541 | L21: 0.4424610643 | M21: 13.6658995 | N21: 0.1331917714 | O21: . | P21: 0 | Q21: 5.567794936 | R21: 0.0145678098 | S21: . | T21: 0 | U21: . | V21: 0 | W21: 0.0823325596 | X21: 0.0010585987 | Y21: 13.36607205 | Z21: 0.3673749459 | AA21: . | AB21: 0 | AC21: 2.07397e-05 | AD21: 2.2644397e-07 | AE21: . | AF21: 0 | AG21: . | AH21: 0 | AI21: 2.07397e-05 | AJ21: 2.2644397e-07 | AK21: 71.62536833 | AL21: 1.389238959 | AM21: . | AN21: 0 | AO21: . | AP21: 0 | AQ21: . | AR21: 0 | AS21: 45.25348916 | AT21: 2.013717285 | AU21: 28.79725819 | AV21: 0.3077581536 | AW21: 13.53650846 | AX21: 0.1855179694 | AY21: 5.482262455 | AZ21: 0.0631952323 | BA21: 9.778487278 | BB21: 0.0590449519 | BC21: 8.6616e-05 | BD21: 4.5288794e-07 | BE21: 79.60761325 | BF21: 1.267825629 | BG21: 0.000484615 | BH21: 4.5288794e-07 | BI21: 0.228555966 | BJ21: 0.0042492786 | BK21: 13.43734353 | BL21: 0.1289424928 | BM21: . | BN21: 0 | BO21: . | BP21: 0 | BQ21: 1.564575906 | BR21: 0.0030679582 | BS21: 4.00321903 | BT21: 0.0114998516 | BU21: . | BV21: 0 | BW21: . | BX21: 0 | BY21: . | BZ21: 0 | CA21: . | CB21: 0 | CC21: 0.0207477453 | CD21: 0.000309996 | CE21: 0.0615848143 | CF21: 0.0007486026 | CG21: 0.6766533903 | CH21: 0.0104251877 | CI21: 12.68941866 | CJ21: 0.3569497581 | CK21: . | CL21: 0 | CM21: . | CN21: 0 | CO21: 12.26471657 | CP21: 0.2936572791 | CQ21: 32.98877259 | CR21: 1.720060006 | CS21: 5.915919687 | CT21: 0.397959601 | CU21: 73.69169356 | CV21: 0.8698660278 | CW21: 0.0002649262 | CX21: 0.0004323218 | CY21: 0.0004717186 | CZ21: 0.000479458 | DA21: 0.0004827069 | DB21: 0.000484615 | DC21: 0.000484615 | DD21: 0.000484615 | DE21: 0.000484615 | DF21: 0.000484615 | DG21: 62.48611134 | DH21: 0.5055010392 | DI21: 29.15359737 | DJ21: 0.246091503 | DK21: 13.16247693 | DL21: 0.1158114264 | DM21: 5.774807822 | DN21: 0.0534393223 | DO21: 2.5340318 | DP21: 0.0250945725 | DQ21: 1.130263712 | DR21: 0.0123269371 | DS21: 0.5265583925 | DT21: 0.0065645007 | DU21: 0.265413366 | DV21: 0.0038961471 | DW21: 0.1463944725 | DX21: 0.002558751 | DY21: 0.0872400228 | DZ21: 0.0018126871
A22: 1700 | B22: 48277 | C22: 930.2363697 | D22: 1649.103067 | E22: 30.49197115 | F22: 0.0514252968 | G22: 0.3056158847 | H22: 0.0003178492 | I22: 131.4567385 | J22: 1.004373987 | K22: 63.27228705 | L22: 0.4595260545 | M22: 14.50873464 | N22: 0.1406944969 | O22: . | P22: 0 | Q22: 6.563979902 | R22: 0.0166587114 | S22: . | T22: 0 | U22: . | V22: 0 | W22: 0.0961538663 | X22: 0.0012426087 | Y22: 14.57469165 | Z22: 0.3994816827 | AA22: . | AB22: 0 | AC22: 2.02276e-05 | AD22: 2.208531e-07 | AE22: . | AF22: 0 | AG22: . | AH22: 0 | AI22: 2.02276e-05 | AJ22: 2.208531e-07 | AK22: 74.25607854 | AL22: 1.426134955 | AM22: . | AN22: 0 | AO22: . | AP22: 0 | AQ22: . | AR22: 0 | AS22: 47.34327498 | AT22: 2.079271236 | AU22: 30.92451917 | AV22: 0.3244607229 | AW22: 14.51897607 | AX22: 0.1958840142 | AY22: 5.799028142 | AZ22: 0.065728471 | BA22: 10.60651496 | BB22: 0.0628482377 | BC22: 8.44774e-05 | BD22: 4.417062e-07 | BE22: 84.00304116 | BF22: 1.31966413 | BG22: 0.0005817443 | BH22: 4.417062e-07 | BI22: 0.246449563 | BJ22: 0.0045348632 | BK22: 14.26228507 | BL22: 0.1361596337 | BM22: . | BN22: 0 | BO22: . | BP22: 0 | BQ22: 1.926453 | BR22: 0.003585886 | BS22: 4.637526902 | BT22: 0.0130728255 | BU22: . | BV22: 0 | BW22: . | BX22: 0 | BY22: . | BZ22: 0 | CA22: . | CB22: 0 | CC22: 0.026009363 | CD22: 0.000391576 | CE22: 0.0701445033 | CF22: 0.0008510327 | CG22: 0.7619350852 | CH22: 0.0116320429 | CI22: 13.81275656 | CJ22: 0.3878496398 | CK22: . | CL22: 0 | CM22: . | CN22: 0 | CO22: 12.99299742 | CP22: 0.3066389026 | CQ22: 34.35027756 | CR22: 1.772632333 | CS22: 6.447576817 | CT22: 0.4154823661 | CU22: 77.55546434 | CV22: 0.9041817634 | CW22: 0.0003165829 | CX22: 0.0005186292 | CY22: 0.000566233 | CZ22: 0.0005755367 | DA22: 0.000579392 | DB22: 0.0005817443 | DC22: 0.0005817443 | DD22: 0.0005817443 | DE22: 0.0005817443 | DF22: 0.0005817443 | DG22: 64.80271854 | DH22: 0.5228058634 | DI22: 30.74200209 | DJ22: 0.2584455725 | DK22: 14.1583749 | DL22: 0.1239204245 | DM22: 6.357935262 | DN22: 0.0584534011 | DO22: 2.863554532 | DP22: 0.0281317339 | DQ22: 1.316839032 | DR22: 0.0141935572 | DS22: 0.6311980396 | DT22: 0.0077290292 | DU22: 0.3260994236 | DV22: 0.0046617414 | DW22: 0.1832452901 | DX22: 0.0030923233 | DY22: 0.1099093107 | DZ22: 0.002197567
A23: 1800 | B23: 44820 | C23: 966.7770803 | D23: 1749.401089 | E23: 33.1744776 | F23: 0.0542666132 | G23: 0.372669267 | H23: 0.0003684926 | I23: 134.0887405 | J23: 1.023379156 | K23: 65.61399846 | L23: 0.4760471255 | M23: 15.33328635 | N23: 0.1479151262 | O23: . | P23: 0 | Q23: 7.639608122 | R23: 0.0189397859 | S23: . | T23: 0 | U23: . | V23: 0 | W23: 0.1120409055 | X23: 0.001426212 | Y23: 15.87933843 | Z23: 0.4332764063 | AA23: . | AB23: 0 | AC23: 2.67209e-05 | AD23: 4.3186573e-07 | AE23: . | AF23: 0 | AG23: . | AH23: 0 | AI23: 2.67209e-05 | AJ23: 4.3186573e-07 | AK23: 76.83814667 | AL23: 1.4595484 | AM23: . | AN23: 0 | AO23: . | AP23: 0 | AQ23: . | AR23: 0 | AS23: 49.31114013 | AT23: 2.138698672 | AU23: 32.9679134 | AV23: 0.339916231 | AW23: 15.47816743 | AX23: 0.2055861798 | AY23: 6.083872834 | AZ23: 0.0679717554 | BA23: 11.40587314 | BB23: 0.0663582958 | BC23: 8.25954e-05 | BD23: 4.3186573e-07 | BE23: 88.27727082 | BF23: 1.368396499 | BG23: 0.0006676421 | BH23: 4.3186573e-07 | BI23: 0.2651989292 | BJ23: 0.0048384439 | BK23: 15.06808742 | BL23: 0.1430766823 | BM23: . | BN23: 0 | BO23: . | BP23: 0 | BQ23: 2.350250058 | BR23: 0.0041939229 | BS23: 5.289358063 | BT23: 0.0147458629 | BU23: . | BV23: 0 | BW23: . | BX23: 0 | BY23: . | BZ23: 0 | CA23: . | CB23: 0 | CC23: 0.0313201905 | CD23: 0.0004490372 | CE23: 0.0807207149 | CF23: 0.0009771747 | CG23: 0.8729164338 | CH23: 0.0130680971 | CI23: 15.00642199 | CJ23: 0.4202083092 | CK23: . | CL23: 0 | CM23: . | CN23: 0 | CO23: 13.69501064 | CP23: 0.3190740068 | CQ23: 35.61612949 | CR23: 1.819624665 | CS23: 7.021365772 | CT23: 0.4324404896 | CU23: 81.25590505 | CV23: 0.9359560095 | CW23: 0.000366661 | CX23: 0.0005980818 | CY23: 0.000650422 | CZ23: 0.0006607616 | DA23: 0.0006651423 | DB23: 0.0006676421 | DC23: 0.0006676421 | DD23: 0.0006676421 | DE23: 0.0006676421 | DF23: 0.0006676421 | DG23: 66.85543013 | DH23: 0.5380949661 | DI23: 32.15679265 | DJ23: 0.2694217411 | DK23: 15.06079085 | DL23: 0.1312159837 | DM23: 6.901985584 | DN23: 0.0630722075 | DO23: 3.178722868 | DP23: 0.0309727996 | DQ23: 1.495757319 | DR23: 0.0159351094 | DS23: 0.7326965819 | DT23: 0.0088216193 | DU23: 0.3844957315 | DV23: 0.0053706033 | DW23: 0.2176688785 | DX23: 0.0035749846 | DY23: 0.1317253074 | DZ23: 0.0025508002
A24: 1900 | B24: 42070 | C24: 1002.175249 | D24: 1849.37643 | E24: 35.79106365 | F24: 0.0569999198 | G24: 0.4699183704 | H24: 0.0004407187 | I24: 136.5272651 | J24: 1.041398431 | K24: 67.84135862 | L24: 0.4917570833 | M24: 16.1091622 | N24: 0.1547947357 | O24: . | P24: 0 | Q24: 8.792201518 | R24: 0.0212825601 | S24: . | T24: 0 | U24: . | V24: 0 | W24: 0.1264392602 | X24: 0.0015974948 | Y24: 17.14251047 | Z24: 0.4668818592 | AA24: . | AB24: 0 | AC24: 2.61657e-05 | AD24: 4.2289156e-07 | AE24: . | AF24: 0 | AG24: . | AH24: 0 | AI24: 2.61657e-05 | AJ24: 4.2289156e-07 | AK24: 79.39233028 | AL24: 1.490706523 | AM24: . | AN24: 0 | AO24: . | AP24: 0 | AQ24: . | AR24: 0 | AS24: 51.17971391 | AT24: 2.194944296 | AU24: 35.02830501 | AV24: 0.3551112819 | AW24: 16.44293048 | AX24: 0.2150857511 | AY24: 6.365765846 | AZ24: 0.0701348016 | BA24: 12.21960869 | BB24: 0.0698907292 | BC24: 8.08791e-05 | BD24: 4.2289156e-07 | BE24: 92.50721092 | BF24: 1.415942843 | BG24: 0.0008116736 | BH24: 4.2289156e-07 | BI24: 0.2857605633 | BJ24: 0.0051514458 | BK24: 15.82340163 | BL24: 0.1496432899 | BM24: . | BN24: 0 | BO24: . | BP24: 0 | BQ24: 2.81973193 | BR24: 0.0048400368 | BS24: 5.972469588 | BT24: 0.0164425233 | BU24: . | BV24: 0 | BW24: . | BX24: 0 | BY24: . | BZ24: 0 | CA24: . | CB24: 0 | CC24: 0.0343792759 | CD24: 0.000483895 | CE24: 0.0920599843 | CF24: 0.0011135999 | CG24: 0.9826028079 | CH24: 0.0146652981 | CI24: 16.15990766 | CJ24: 0.4522165612 | CK24: . | CL24: 0 | CM24: . | CN24: 0 | CO24: 14.35886526 | CP24: 0.3308243418 | CQ24: 36.82084866 | CR24: 1.864119955 | CS24: 7.626151149 | CT24: 0.4491891789 | CU24: 84.88105977 | CV24: 0.966753664 | CW24: 0.0004368641 | CX24: 0.0007121391 | CY24: 0.0007756963 | CZ24: 0.0007873887 | DA24: 0.0007918761 | DB24: 0.0007945232 | DC24: 0.0007947096 | DD24: 0.0007948961 | DE24: 0.0007950825 | DF24: 0.0007952689 | DG24: 68.76052231 | DH24: 0.5526398402 | DI24: 33.48356601 | DJ24: 0.2799833479 | DK24: 15.91992361 | DL24: 0.13838214 | DM24: 7.428462901 | DN24: 0.0677261849 | DO24: 3.491664819 | DP24: 0.0339494797 | DQ24: 1.680796855 | DR24: 0.0178665764 | DS24: 0.8435744218 | DT24: 0.0101224795 | DU24: 0.4516889656 | DV24: 0.0062821883 | DW24: 0.2599833897 | DX24: 0.0042475004 | DY24: 0.1599548372 | DZ24: 0.0030779965
A25: 2000 | B25: 39408 | C25: 1036.599367 | D25: 1949.511864 | E25: 38.45499863 | F25: 0.0596335266 | G25: 0.5814365528 | H25: 0.0005159584 | I25: 138.8043212 | J25: 1.058049793 | K25: 69.97921637 | L25: 0.5067514415 | M25: 16.88628234 | N25: 0.1616630552 | O25: . | P25: 0 | Q25: 9.953552089 | R25: 0.0236109326 | S25: . | T25: 0 | U25: . | V25: 0 | W25: 0.1442789028 | X25: 0.001818103 | Y25: 18.45969664 | Z25: 0.5010994368 | AA25: . | AB25: 0 | AC25: 2.56677e-05 | AD25: 4.1484279e-07 | AE25: . | AF25: 0 | AG25: . | AH25: 0 | AI25: 2.56677e-05 | AJ25: 4.1484279e-07 | AK25: 81.8885132 | AL25: 1.519119378 | AM25: . | AN25: 0 | AO25: . | AP25: 0 | AQ25: . | AR25: 0 | AS25: 52.99615382 | AT25: 2.247523596 | AU25: 36.98467394 | AV25: 0.3691697219 | AW25: 17.36424665 | AX25: 0.2239104084 | AY25: 6.627960107 | AZ25: 0.0721358395 | BA25: 12.99246718 | BB25: 0.073123474 | BC25: 0.0010974316 | BD25: 1.0397777e-06 | BE25: 96.6613418 | BF25: 1.461045203 | BG25: 0.0009664735 | BH25: 2.2896475e-06 | BI25: 0.3030092484 | BJ25: 0.0054307714 | BK25: 16.58327309 | BL25: 0.1562322839 | BM25: . | BN25: 0 | BO25: . | BP25: 0 | BQ25: 3.325947791 | BR25: 0.0055159301 | BS25: 6.627604298 | BT25: 0.0180950024 | BU25: . | BV25: 0 | BW25: . | BX25: 0 | BY25: . | BZ25: 0 | CA25: . | CB25: 0 | CC25: 0.0383472945 | CD25: 0.000528067 | CE25: 0.1059316082 | CF25: 0.001290036 | CG25: 1.097537015 | CH25: 0.0161536797 | CI25: 17.36215963 | CJ25: 0.4849457571 | CK25: . | CL25: 0 | CM25: . | CN25: 0 | CO25: 15.01916222 | CP25: 0.3425352316 | CQ25: 37.9769916 | CR25: 1.904988365 | CS25: 8.258935098 | CT25: 0.4655071897 | CU25: 88.4024067 | CV25: 0.9955380138 | CW25: 0.0005119715 | CX25: 0.0008433158 | CY25: 0.0009184688 | CZ25: 0.0009319023 | DA25: 0.0009372659 | DB25: 0.0009404435 | DC25: 0.0009408127 | DD25: 0.0009411819 | DE25: 0.0009415511 | DF25: 0.0009419204 | DG25: 70.5593734 | DH25: 0.566194786 | DI25: 34.75191361 | DJ25: 0.2899081669 | DK25: 16.75327828 | DL25: 0.1451886706 | DM25: 7.951317879 | DN25: 0.072208459 | DO25: 3.807223138 | DP25: 0.0368341481 | DQ25: 1.869188327 | DR25: 0.0197329569 | DS25: 0.9578722481 | DT25: 0.0113671013 | DU25: 0.522158729 | DV25: 0.0071441642 | DW25: 0.3043010157 | DX25: 0.0048671957 | DY25: 0.1890464802 | DZ25: 0.0035456232
A26: 2100 | B26: 37188 | C26: 1069.960852 | D26: 2049.299484 | E26: 40.99962814 | F26: 0.0620873165 | G26: 0.707930338 | H26: 0.000597657 | I26: 140.928086 | J26: 1.073589903 | K26: 71.98672495 | L26: 0.5207524349 | M26: 17.68008659 | N26: 0.1684221416 | O26: . | P26: 0 | Q26: 11.16042922 | R26: 0.025953741 | S26: . | T26: 0 | U26: . | V26: 0 | W26: 0.1608298275 | X26: 0.0019973106 | Y26: 19.74714475 | Z26: 0.5346826855 | AA26: . | AB26: 0 | AC26: 5.69853e-05 | AD26: 5.9361256e-07 | AE26: . | AF26: 0 | AG26: . | AH26: 0 | AI26: 5.69853e-05 | AJ26: 5.9361256e-07 | AK26: 84.40062468 | AL26: 1.545935196 | AM26: . | AN26: 0 | AO26: . | AP26: 0 | AQ26: . | AR26: 0 | AS26: 54.6916679 | AT26: 2.297286336 | AU26: 38.93664882 | AV26: 0.3829118185 | AW26: 18.2924207 | AX26: 0.232606916 | AY26: 6.893350777 | AZ26: 0.0740768558 | BA26: 13.75087734 | BB26: 0.0762280467 | BC26: 0.0017704692 | BD26: 1.386985e-06 | BE26: 100.8489789 | BF26: 1.504513734 | BG26: 0.0011252884 | BH26: 2.6059707e-06 | BI26: 0.321602937 | BJ26: 0.0056886798 | BK26: 17.35848366 | BL26: 0.1627334618 | BM26: . | BN26: 0 | BO26: . | BP26: 0 | BQ26: 3.84481272 | BR26: 0.0061847915 | BS26: 7.315616498 | BT26: 0.0197689495 | BU26: . | BV26: 0 | BW26: . | BX26: 0 | BY26: . | BZ26: 0 | CA26: . | CB26: 0 | CC26: 0.0432177099 | CD26: 0.0005816589 | CE26: 0.1176121177 | CF26: 0.0014156517 | CG26: 1.209591784 | CH26: 0.0178047228 | CI26: 18.53755296 | CJ26: 0.5168779627 | CK26: . | CL26: 0 | CM26: . | CN26: 0 | CO26: 15.62478265 | CP26: 0.353158565 | CQ26: 39.06688525 | CR26: 1.94412777 | CS26: 8.920302167 | CT26: 0.4808727543 | CU26: 91.92867676 | CV26: 1.02364098 | CW26: 0.00059202 | CX26: 0.0009818422 | CY26: 0.0010686454 | CZ26: 0.0010848167 | DA26: 0.0010910506 | DB26: 0.0010949327 | DC26: 0.0010960462 | DD26: 0.0010969559 | DE26: 0.0010978656 | DF26: 0.0010987753 | DG26: 72.23565764 | DH26: 0.5788597557 | DI26: 35.94507549 | DJ26: 0.299257944 | DK26: 17.54286762 | DL26: 0.1516376361 | DM26: 8.453632341 | DN26: 0.0765133699 | DO26: 4.122616481 | DP26: 0.0396920387 | DQ26: 2.067430503 | DR26: 0.021647238 | DS26: 1.0809378 | DT26: 0.0126560798 | DU26: 0.5995708235 | DV26: 0.0080395725 | DW26: 0.3537946846 | DX26: 0.005510572 | DY26: 0.2210592161 | DZ26: 0.004022645
A27: 2200 | B27: 35124 | C27: 1102.484571 | D27: 2149.469368 | E27: 43.61736801 | F27: 0.0645301254 | G27: 0.8616626339 | H27: 0.0006928277 | I27: 142.8541987 | J27: 1.087590819 | K27: 73.89577961 | L27: 0.5344179104 | M27: 18.4141986 | N27: 0.1748928 | O27: . | P27: 0 | Q27: 12.40584174 | R27: 0.0283321093 | S27: . | T27: 0 | U27: . | V27: 0 | W27: 0.1783028165 | X27: 0.0022143665 | Y27: 21.07515514 | Z27: 0.5684778469 | AA27: . | AB27: 0 | AC27: 5.60579e-05 | AD27: 5.838196e-07 | AE27: . | AF27: 0 | AG27: . | AH27: 0 | AI27: 5.60579e-05 | AJ27: 5.838196e-07 | AK27: 86.87567652 | AL27: 1.570992086 | AM27: . | AN27: 0 | AO27: . | AP27: 0 | AQ27: . | AR27: 0 | AS27: 56.31842343 | AT27: 2.343756101 | AU27: 40.85713233 | AV27: 0.396014554 | AW27: 19.21042524 | AX27: 0.2408779193 | AY27: 7.15121971 | AZ27: 0.0758904338 | BA27: 14.49548738 | BB27: 0.0792462009 | BC27: 0.0030148273 | BD27: 1.95791e-06 | BE27: 105.0052948 | BF27: 1.546653942 | BG27: 0.0013140532 | BH27: 5.5322196e-06 | BI27: 0.3411375687 | BJ27: 0.0059785503 | BK27: 18.07306103 | BL27: 0.1689142497 | BM27: . | BN27: 0 | BO27: . | BP27: 0 | BQ27: 4.417851056 | BR27: 0.0068815132 | BS27: 7.987990687 | BT27: 0.0214505961 | BU27: . | BV27: 0 | BW27: . | BX27: 0 | BY27: . | BZ27: 0 | CA27: . | CB27: 0 | CC27: 0.0481918779 | CD27: 0.0006534582 | CE27: 0.1301109386 | CF27: 0.0015609083 | CG27: 1.324571132 | CH27: 0.0194286374 | CI27: 19.75058401 | CJ27: 0.5490492095 | CK27: . | CL27: 0 | CM27: . | CN27: 0 | CO27: 16.22496721 | CP27: 0.3636632241 | CQ27: 40.09345622 | CR27: 1.980092877 | CS27: 9.61699636 | CT27: 0.4963085621 | CU27: 95.38829849 | CV27: 1.05034538 | CW27: 0.0006870717 | CX27: 0.0011481839 | CY27: 0.0012533349 | CZ27: 0.0012717821 | DA27: 0.0012782957 | DB27: 0.0012824953 | DC27: 0.0012837795 | DD27: 0.0012848633 | DE27: 0.0012859471 | DF27: 0.0012870309 | DG27: 73.75487266 | DH27: 0.5902552888 | DI27: 37.02098743 | DJ27: 0.3076454016 | DK27: 18.24824698 | DL27: 0.1573785444 | DM27: 8.899905671 | DN27: 0.0803288665 | DO27: 4.398031164 | DP27: 0.0421917901 | DQ27: 2.235752112 | DR27: 0.0232943221 | DS27: 1.185319093 | DT27: 0.0137732731 | DU27: 0.6649497775 | DV27: 0.008821408 | DW27: 0.3944238097 | DX27: 0.0060693735 | DY27: 0.2473109907 | DZ27: 0.0044442082
A28: 2300 | B28: 33020 | C28: 1134.119783 | D28: 2249.452959 | E28: 46.19530591 | F28: 0.0667997345 | G28: 1.022446652 | H28: 0.0007903067 | I28: 144.6837103 | J28: 1.101080469 | K28: 75.73870785 | L28: 0.5475405652 | M28: 19.16160143 | N28: 0.1813674669 | O28: . | P28: 0 | Q28: 13.67535398 | R28: 0.030708065 | S28: . | T28: 0 | U28: . | V28: 0 | W28: 0.1997554751 | X28: 0.0024831965 | Y28: 22.32187185 | Z28: 0.6001030553 | AA28: . | AB28: 0 | AC28: 5.52158e-05 | AD28: 5.7498995e-07 | AE28: . | AF28: 0 | AG28: . | AH28: 0 | AI28: 5.52158e-05 | AJ28: 5.7498995e-07 | AK28: 89.28655495 | AL28: 1.594085907 | AM28: . | AN28: 0 | AO28: . | AP28: 0 | AQ28: . | AR28: 0 | AS28: 57.86770929 | AT28: 2.387743132 | AU28: 42.74500118 | AV28: 0.408606882 | AW28: 20.11598684 | AX28: 0.2488786315 | AY28: 7.399320406 | AZ28: 0.0776461771 | BA28: 15.22969393 | BB28: 0.0820820734 | BC28: 0.0029586648 | BD28: 1.9226425e-06 | BE28: 109.1375672 | BF28: 1.587120495 | BG28: 0.0015001107 | BH28: 5.421121e-06 | BI28: 0.3537605509 | BJ28: 0.0061935907 | BK28: 18.80784088 | BL28: 0.1751738763 | BM28: . | BN28: 0 | BO28: . | BP28: 0 | BQ28: 5.003192133 | BR28: 0.0075683467 | BS28: 8.672161852 | BT28: 0.0231397183 | BU28: . | BV28: 0 | BW28: . | BX28: 0 | BY28: . | BZ28: 0 | CA28: . | CB28: 0 | CC28: 0.0551495862 | CD28: 0.0007576705 | CE28: 0.1446058889 | CF28: 0.001725526 | CG28: 1.434219631 | CH28: 0.0210102815 | CI28: 20.88765222 | CJ28: 0.5790927738 | CK28: . | CL28: 0 | CM28: . | CN28: 0 | CO28: 16.79262818 | CP28: 0.3736990416 | CQ28: 41.07508111 | CR28: 2.01404409 | CS28: 10.3671189 | CT28: 0.5110111688 | CU28: 98.77044827 | CV28: 1.076109326 | CW28: 0.0007834445 | CX28: 0.0013138933 | CY28: 0.0014353185 | CZ28: 0.00145727 | DA28: 0.0014640801 | DB28: 0.0014686103 | DC28: 0.0014700636 | DD28: 0.0014711392 | DE28: 0.0014722148 | DF28: 0.0014732905 | DG28: 75.20896243 | DH28: 0.6012728563 | DI28: 38.06142814 | DJ28: 0.3158107194 | DK28: 18.94892101 | DL28: 0.1631033622 | DM28: 9.354529228 | DN28: 0.0842231302 | DO28: 4.68870556 | DP28: 0.0448274511 | DQ28: 2.420428955 | DR28: 0.0250957754 | DS28: 1.303871364 | DT28: 0.0150369616 | DU28: 0.742521974 | DV28: 0.0097399118 | DW28: 0.4457756484 | DX28: 0.0067584924 | DY28: 0.282488503 | DZ28: 0.0049826697
A29: 2400 | B29: 31277 | C29: 1164.924397 | D29: 2349.615629 | E29: 48.74556544 | F29: 0.0689814787 | G29: 1.199719886 | H29: 0.0008948569 | I29: 146.3788063 | J29: 1.113649917 | K29: 77.49560732 | L29: 0.560234397 | M29: 19.86682408 | N29: 0.1875493011 | O29: . | P29: 0 | Q29: 14.92819133 | R29: 0.033037094 | S29: . | T29: 0 | U29: . | V29: 0 | W29: 0.2180058614 | X29: 0.0026941321 | Y29: 23.64288595 | Z29: 0.6332660061 | AA29: . | AB29: 0 | AC29: 8.48381e-05 | AD29: 7.4498564e-07 | AE29: . | AF29: 0 | AG29: . | AH29: 0 | AI29: 8.48381e-05 | AJ29: 7.4498564e-07 | AK29: 91.72826388 | AL29: 1.616665397 | AM29: . | AN29: 0 | AO29: . | AP29: 0 | AQ29: . | AR29: 0 | AS29: 59.44269786 | AT29: 2.431227732 | AU29: 44.57659398 | AV29: 0.4208261703 | AW29: 20.9821504 | AX29: 0.256602181 | AY29: 7.626541369 | AZ29: 0.0792904115 | BA29: 15.96790221 | BB29: 0.0849335778 | BC29: 0.0029058402 | BD29: 1.8896163e-06 | BE29: 113.2431062 | BF29: 1.627498055 | BG29: 0.001700708 | BH29: 5.316454e-06 | BI29: 0.3697025431 | BJ29: 0.0064897241 | BK29: 19.49712153 | BL29: 0.181059577 | BM29: . | BN29: 0 | BO29: . | BP29: 0 | BQ29: 5.603834933 | BR29: 0.0082722931 | BS29: 9.324356393 | BT29: 0.0247648008 | BU29: . | BV29: 0 | BW29: . | BX29: 0 | BY29: . | BZ29: 0 | CA29: . | CB29: 0 | CC29: 0.0608117125 | CD29: 0.0008246888 | CE29: 0.1571941489 | CF29: 0.0018694433 | CG29: 1.554385913 | CH29: 0.0225532506 | CI29: 22.08850003 | CJ29: 0.6107127556 | CK29: . | CL29: 0 | CM29: . | CN29: 0 | CO29: 17.39222175 | CP29: 0.3839257576 | CQ29: 42.05047611 | CR29: 2.047301974 | CS29: 11.14688882 | CT29: 0.5264361998 | CU29: 102.0962174 | CV29: 1.101061855 | CW29: 0.0008861579 | CX29: 0.0014904775 | CY29: 0.0016310714 | CZ29: 0.0016574434 | DA29: 0.0016649399 | DB29: 0.0016694223 | DC29: 0.001670863 | DD29: 0.0016719312 | DE29: 0.0016729994 | DF29: 0.0016740677 | DG29: 76.55375386 | DH29: 0.6115503629 | DI29: 39.02025469 | DJ29: 0.3234344369 | DK29: 19.59592004 | DL29: 0.1684574868 | DM29: 9.775675939 | DN29: 0.0878793598 | DO29: 4.957180046 | DP29: 0.0472979947 | DQ29: 2.589526066 | DR29: 0.0267704288 | DS29: 1.409323228 | DT29: 0.016183838 | DU29: 0.8094772673 | DV29: 0.0105554414 | DW29: 0.4898769241 | DX29: 0.0073669963 | DY29: 0.3120261574 | DZ29: 0.0054520389
A30: 2500 | B30: 29862 | C30: 1194.950236 | D30: 2449.65464 | E30: 51.28335123 | F30: 0.0711092949 | G30: 1.397622711 | H30: 0.0010053397 | I30: 148.0218001 | J30: 1.125630972 | K30: 79.20421453 | L30: 0.5727955082 | M30: 20.57016494 | N30: 0.1936157521 | O30: . | P30: 0 | Q30: 16.23975676 | R30: 0.0354591337 | S30: . | T30: 0 | U30: . | V30: 0 | W30: 0.2363508753 | X30: 0.002922912 | Y30: 24.9069879 | Z30: 0.6644031571 | AA30: . | AB30: 0 | AC30: 8.37625e-05 | AD30: 7.3538526e-07 | AE30: . | AF30: 0 | AG30: . | AH30: 0 | AI30: 8.37625e-05 | AJ30: 7.3538526e-07 | AK30: 94.10491502 | AL30: 1.637446036 | AM30: . | AN30: 0 | AO30: . | AP30: 0 | AQ30: . | AR30: 0 | AS30: 60.92361344 | AT30: 2.471510961 | AU30: 46.34963295 | AV30: 0.4324046414 | AW30: 21.83673384 | AX30: 0.2640606782 | AY30: 7.854561536 | AZ30: 0.0808097128 | BA30: 16.65833758 | BB30: 0.0875342504 | BC30: 0.0028634906 | BD30: 2.2574336e-06 | BE30: 117.3577634 | BF30: 1.666159 | BG30: 0.0019385647 | BH30: 5.6179348e-06 | BI30: 0.3896149418 | BJ30: 0.0067729476 | BK30: 20.18055 | BL30: 0.1868428045 | BM30: . | BN30: 0 | BO30: . | BP30: 0 | BQ30: 6.247110968 | BR30: 0.0090126296 | BS30: 9.992645795 | BT30: 0.026446504 | BU30: . | BV30: 0 | BW30: . | BX30: 0 | BY30: . | BZ30: 0 | CA30: . | CB30: 0 | CC30: 0.0653952013 | CD30: 0.0008957265 | CE30: 0.170955674 | CF30: 0.0020271855 | CG30: 1.697541749 | CH30: 0.0243609461 | CI30: 23.20944615 | CJ30: 0.640042211 | CK30: . | CL30: 0 | CM30: . | CN30: 0 | CO30: 17.9353274 | CP30: 0.3933641886 | CQ30: 42.98828604 | CR30: 2.078146773 | CS30: 11.95914791 | CT30: 0.5410964999 | CU30: 105.3986155 | CV30: 1.1250625 | CW30: 0.0009965505 | CX30: 0.0016853364 | CY30: 0.0018494526 | CZ30: 0.0018791765 | DA30: 0.0018874778 | DB30: 0.0018923877 | DC30: 0.0018942884 | DD30: 0.0018958214 | DE30: 0.0018973545 | DF30: 0.0018988875 | DG30: 77.86302229 | DH30: 0.6213555709 | DI30: 39.96892657 | DJ30: 0.3307662173 | DK30: 20.2406841 | DL30: 0.1736167089 | DM30: 10.19460601 | DN30: 0.0913797454 | DO30: 5.222391677 | DP30: 0.0496309 | DQ30: 2.75850903 | DR30: 0.0283549492 | DS30: 1.518255819 | DT30: 0.017285465 | DU30: 0.8803152617 | DV30: 0.0113431322 | DW30: 0.536466964 | DX30: 0.0079459992 | DY30: 0.3435458327 | DZ30: 0.0058943212
A31: 2600 | B31: 28349 | C31: 1224.226052 | D31: 2549.568195 | E31: 53.80188485 | F31: 0.0731623096 | G31: 1.585787001 | H31: 0.0011084627 | I31: 149.5619936 | J31: 1.137115826 | K31: 80.83099628 | L31: 0.5846451511 | M31: 21.25333827 | N31: 0.1995353548 | O31: . | P31: 0 | Q31: 17.59504942 | R31: 0.0378469394 | S31: . | T31: 0 | U31: . | V31: 0 | W31: 0.2539466722 | X31: 0.0031328565 | Y31: 26.18049712 | Z31: 0.6955852167 | AA31: . | AB31: 0 | AC31: 0.0001084961 | AD31: 9.1605543e-07 | AE31: . | AF31: 0 | AG31: . | AH31: 0 | AI31: 0.0001084961 | AJ31: 9.1605543e-07 | AK31: 96.46226271 | AL31: 1.657408596 | AM31: . | AN31: 0 | AO31: . | AP31: 0 | AQ31: . | AR31: 0 | AS31: 62.34688253 | AT31: 2.51022557 | AU31: 48.0789267 | AV31: 0.4435458957 | AW31: 22.65759741 | AX31: 0.2712483429 | AY31: 8.063739253 | AZ31: 0.0821807068 | BA31: 17.35759003 | BB31: 0.090116846 | BC31: 0.0028176176 | BD31: 2.225148e-06 | BE31: 121.4541515 | BF31: 1.703869061 | BG31: 0.0021398776 | BH31: 5.5237581e-06 | BI31: 0.4055170292 | BJ31: 0.0070229968 | BK31: 20.84782124 | BL31: 0.192512358 | BM31: . | BN31: 0 | BO31: . | BP31: 0 | BQ31: 6.88346136 | BR31: 0.0097151165 | BS31: 10.71158806 | BT31: 0.028131823 | BU31: . | BV31: 0 | BW31: . | BX31: 0 | BY31: . | BZ31: 0 | CA31: . | CB31: 0 | CC31: 0.0701556445 | CD31: 0.0009610245 | CE31: 0.1837910277 | CF31: 0.002171832 | CG31: 1.830006171 | CH31: 0.0260573105 | CI31: 24.35049095 | CJ31: 0.6695279063 | CK31: . | CL31: 0 | CM31: . | CN31: 0 | CO31: 18.46344376 | CP31: 0.402516627 | CQ31: 43.88343877 | CR31: 2.107708943 | CS31: 12.83302068 | CT31: 0.5557464213 | CU31: 108.6211309 | CV31: 1.14812264 | CW31: 0.0010989965 | CX31: 0.0018627669 | CY31: 0.0020475969 | CZ31: 0.0020803086 | DA31: 0.0020888653 | DB31: 0.0020939016 | DC31: 0.0020959592 | DD31: 0.0020974799 | DE31: 0.0020990006 | DF31: 0.0021005213 | DG31: 79.09836521 | DH31: 0.6308159337 | DI31: 40.86178026 | DJ31: 0.3378450617 | DK31: 20.85181952 | DL31: 0.1786497757 | DM31: 10.597515 | DN31: 0.0948568214 | DO31: 5.483266786 | DP31: 0.0520199158 | DQ31: 2.927415601 | DR31: 0.0300185165 | DS31: 1.629859299 | DT31: 0.0184801969 | DU31: 0.9548680814 | DV31: 0.0122207562 | DW31: 0.5874401468 | DX31: 0.0086146232 | DY31: 0.3792661455 | DZ31: 0.0064229096
A32: 2700 | B32: 26782 | C32: 1252.712675 | D32: 2649.761452 | E32: 56.21072236 | F32: 0.0750674652 | G32: 1.781668652 | H32: 0.0012168764 | I32: 150.9825882 | J32: 1.147554622 | K32: 82.38843955 | L32: 0.5959250577 | M32: 21.94545553 | N32: 0.2053784965 | O32: . | P32: 0 | Q32: 18.96975896 | R32: 0.0402673577 | S32: . | T32: 0 | U32: . | V32: 0 | W32: 0.2766226482 | X32: 0.003435707 | Y32: 27.41902267 | Z32: 0.7261528795 | AA32: . | AB32: 0 | AC32: 0.0001073096 | AD32: 9.0599699e-07 | AE32: . | AF32: 0 | AG32: . | AH32: 0 | AI32: 0.0001073096 | AJ32: 9.0599699e-07 | AK32: 98.81976427 | AL32: 1.6758988 | AM32: . | AN32: 0 | AO32: . | AP32: 0 | AQ32: . | AR32: 0 | AS32: 63.75872631 | AT32: 2.54675242 | AU32: 49.72696734 | AV32: 0.4540628519 | AW32: 23.43717053 | AX32: 0.2780076732 | AY32: 8.272688485 | AZ32: 0.083526897 | BA32: 18.01710832 | BB32: 0.0925282817 | BC32: 0.0027765737 | BD32: 2.1962722e-06 | BE32: 125.5121807 | BF32: 1.739732673 | BG32: 0.0023545931 | BH32: 5.4398624e-06 | BI32: 0.423011514 | BJ32: 0.00723994 | BK32: 21.52244402 | BL32: 0.1981385564 | BM32: . | BN32: 0 | BO32: . | BP32: 0 | BQ32: 7.572977435 | BR32: 0.0104619316 | BS32: 11.39678152 | BT32: 0.0298054261 | BU32: . | BV32: 0 | BW32: . | BX32: 0 | BY32: . | BZ32: 0 | CA32: . | CB32: 0 | CC32: 0.0779693308 | CD32: 0.0011060443 | CE32: 0.1986533174 | CF32: 0.0023296627 | CG32: 1.953407382 | CH32: 0.0275390393 | CI32: 25.46561529 | CJ32: 0.6986138401 | CK32: . | CL32: 0 | CM32: . | CN32: 0 | CO32: 18.987856 | CP32: 0.4111046924 | CQ32: 44.77087031 | CR32: 2.135647727 | CS32: 13.72531882 | CT32: 0.5700423966 | CU32: 111.7868618 | CV32: 1.169690276 | CW32: 0.0012062004 | CX32: 0.0020521737 | CY32: 0.0022587508 | CZ32: 0.0022948131 | DA32: 0.0023038136 | DB32: 0.0023089765 | DC32: 0.0023110164 | DD32: 0.0023125253 | DE32: 0.0023140343 | DF32: 0.0023155432 | DG32: 80.23514545 | DH32: 0.639380414 | DI32: 41.68073023 | DJ32: 0.3442144906 | DK32: 21.40500502 | DL32: 0.1831142378 | DM32: 10.96005145 | DN32: 0.0979053788 | DO32: 5.716896751 | DP32: 0.0540814937 | DQ32: 3.078614528 | DR32: 0.0314311708 | DS32: 1.726801869 | DT32: 0.0194587009 | DU32: 1.01863753 | DV32: 0.0129232592 | DW32: 0.6302919296 | DX32: 0.0091362141 | DY32: 0.4088834908 | DZ32: 0.0068228025
A33: 2800 | B33: 25071 | C33: 1280.514021 | D33: 2749.670013 | E33: 58.58782763 | F33: 0.0768945727 | G33: 1.972071101 | H33: 0.0013181209 | I33: 152.3415399 | J33: 1.157703101 | K33: 83.90297452 | L33: 0.6069306987 | M33: 22.65665387 | N33: 0.2114905212 | O33: . | P33: 0 | Q33: 20.32551164 | R33: 0.0426670446 | S33: . | T33: 0 | U33: . | V33: 0 | W33: 0.2929931572 | X33: 0.0036244943 | Y33: 28.65612123 | Z33: 0.7562351117 | AA33: . | AB33: 0 | AC33: 0.0002201192 | AD33: 1.4228083e-06 | AE33: . | AF33: 0 | AG33: . | AH33: 0 | AI33: 0.0002201192 | AJ33: 1.4228083e-06 | AK33: 101.010467 | AL33: 1.693407149 | AM33: . | AN33: 0 | AO33: . | AP33: 0 | AQ33: . | AR33: 0 | AS33: 65.10042761 | AT33: 2.581807187 | AU33: 51.33405718 | AV33: 0.4642442724 | AW33: 24.20342416 | AX33: 0.2845122538 | AY33: 8.469390576 | AZ33: 0.0848492362 | BA33: 18.66124245 | BB33: 0.0948827824 | BC33: 0.0027379519 | BD33: 2.1693424e-06 | BE33: 129.5000098 | BF33: 1.7745116 | BG33: 0.0025582957 | BH33: 5.3612916e-06 | BI33: 0.4445413028 | BJ33: 0.0075222007 | BK33: 22.21211257 | BL33: 0.2039683205 | BM33: . | BN33: 0 | BO33: . | BP33: 0 | BQ33: 8.274757538 | BR33: 0.0112171212 | BS33: 12.0507541 | BT33: 0.0314499234 | BU33: . | BV33: 0 | BW33: . | BX33: 0 | BY33: . | BZ33: 0 | CA33: . | CB33: 0 | CC33: 0.0837838467 | CD33: 0.0011730476 | CE33: 0.2092093105 | CF33: 0.0024514467 | CG33: 2.09552801 | CH33: 0.0292929429 | CI33: 26.56059322 | CJ33: 0.7269421687 | CK33: . | CL33: 0 | CM33: . | CN33: 0 | CO33: 19.48309857 | CP33: 0.4196505779 | CQ33: 45.61732904 | CR33: 2.16215661 | CS33: 14.64957585 | CT33: 0.5840345215 | CU33: 114.8504339 | CV33: 1.190477079 | CW33: 0.001305968 | CX33: 0.0022278838 | CY33: 0.0024576718 | CZ33: 0.002498041 | DA33: 0.0025077218 | DB33: 0.002513012 | DC33: 0.0025150357 | DD33: 0.0025165336 | DE33: 0.0025180315 | DF33: 0.0025195294 | DG33: 81.32983078 | DH33: 0.6477619328 | DI33: 42.47723677 | DJ33: 0.3505278758 | DK33: 21.95364277 | DL33: 0.1876284875 | DM33: 11.32407002 | DN33: 0.101038517 | DO33: 5.955843018 | DP33: 0.0562559931 | DQ33: 3.233873749 | DR33: 0.0329455567 | DS33: 1.830216247 | DT33: 0.0205538519 | DU33: 1.089492733 | DV33: 0.0137469772 | DW33: 0.680019338 | DX33: 0.0097730783 | DY33: 0.4444186584 | DZ33: 0.0073283312
A34: 2900 | B34: 24065 | C34: 1307.6582 | D34: 2849.4595 | E34: 60.92668752 | F34: 0.0786732533 | G34: 2.208116579 | H34: 0.0014413765 | I34: 153.6244454 | J34: 1.167186138 | K34: 85.31896833 | L34: 0.6173280771 | M34: 23.31025294 | N34: 0.2171803792 | O34: . | P34: 0 | Q34: 21.70851451 | R34: 0.0450373278 | S34: . | T34: 0 | U34: . | V34: 0 | W34: 0.3104263051 | X34: 0.003853389 | Y34: 29.82997565 | Z34: 0.7850625451 | AA34: . | AB34: 0 | AC34: 0.0002179717 | AD34: 1.4088583e-06 | AE34: . | AF34: 0 | AG34: . | AH34: 0 | AI34: 0.0002179717 | AJ34: 1.4088583e-06 | AK34: 103.1677488 | AL34: 1.710113882 | AM34: . | AN34: 0 | AO34: . | AP34: 0 | AQ34: . | AR34: 0 | AS34: 66.41982394 | AT34: 2.615665637 | AU34: 52.90832946 | AV34: 0.4742456942 | AW34: 24.93486469 | AX34: 0.29085745 | AY34: 8.654719814 | AZ34: 0.086061658 | BA34: 19.31874496 | BB34: 0.0973265862 | BC34: 0.0027028618 | BD34: 2.1443314e-06 | BE34: 133.5514081 | BF34: 1.808474003 | BG34: 0.0028027698 | BH34: 5.2895693e-06 | BI34: 0.45812563 | BJ34: 0.007731142 | BK34: 22.85212731 | BL34: 0.2094492372 | BM34: . | BN34: 0 | BO34: . | BP34: 0 | BQ34: 8.996446175 | BR34: 0.011966209 | BS34: 12.71206833 | BT34: 0.0330711188 | BU34: . | BV34: 0 | BW34: . | BX34: 0 | BY34: . | BZ34: 0 | CA34: . | CB34: 0 | CC34: 0.0884941995 | CD34: 0.0012621311 | CE34: 0.2219321056 | CF34: 0.002591258 | CG34: 2.219101561 | CH34: 0.0308858276 | CI34: 27.61087409 | CJ34: 0.7541767175 | CK34: . | CL34: 0 | CM34: . | CN34: 0 | CO34: 19.97767862 | CP34: 0.4280485602 | CQ34: 46.44214531 | CR34: 2.187617077 | CS34: 15.68444796 | CT34: 0.598392749 | CU34: 117.8669601 | CV34: 1.210081254 | CW34: 0.0014272241 | CX34: 0.0024413538 | CY34: 0.0026949673 | CZ34: 0.0027390486 | DA34: 0.0027495892 | DB34: 0.002755429 | DC34: 0.0027580294 | DD34: 0.0027601092 | DE34: 0.0027621889 | DF34: 0.0027642687 | DG34: 82.36535041 | DH34: 0.6556105226 | DI34: 43.23373296 | DJ34: 0.3564562758 | DK34: 22.46949085 | DL34: 0.1918470806 | DM34: 11.66310162 | DN34: 0.1039620721 | DO34: 6.175508747 | DP34: 0.0582738708 | DQ34: 3.376734295 | DR34: 0.03435784 | DS34: 1.926237818 | DT34: 0.0215828033 | DU34: 1.15609171 | DV34: 0.0145252798 | DW34: 0.7279273488 | DX34: 0.0103869768 | DY34: 0.4792846237 | DZ34: 0.007823404
A35: 3000 | B35: 23380 | C35: 1334.254663 | D35: 2949.454011 | E35: 63.32764929 | F35: 0.0804459722 | G35: 2.432729294 | H35: 0.0015592532 | I35: 154.8726586 | J35: 1.176494672 | K35: 86.76668987 | L35: 0.6277604626 | M35: 23.95160206 | N35: 0.222549901 | O35: . | P35: 0 | Q35: 23.09943139 | R35: 0.0474427112 | S35: . | T35: 0 | U35: . | V35: 0 | W35: 0.3332552606 | X35: 0.0041304223 | Y35: 31.0632897 | Z35: 0.8152371542 | AA35: . | AB35: 0 | AC35: 0.0002620961 | AD35: 1.5630085e-06 | AE35: . | AF35: 0 | AG35: . | AH35: 0 | AI35: 0.0002620961 | AJ35: 1.5630085e-06 | AK35: 105.3188306 | AL35: 1.726481665 | AM35: . | AN35: 0 | AO35: . | AP35: 0 | AQ35: . | AR35: 0 | AS35: 67.74169729 | AT35: 2.648829454 | AU35: 54.48254933 | AV35: 0.484077446 | AW35: 25.67205927 | AX35: 0.2971183244 | AY35: 8.829591663 | AZ35: 0.0872669021 | BA35: 19.9808984 | BB35: 0.0996922195 | BC35: 0.0026681598 | BD35: 2.1199517e-06 | BE35: 137.5929474 | BF35: 1.842515659 | BG35: 0.0030382913 | BH35: 5.2185417e-06 | BI35: 0.4721666143 | BJ35: 0.0079273856 | BK35: 23.47943545 | BL35: 0.2146225154 | BM35: . | BN35: 0 | BO35: . | BP35: 0 | BQ35: 9.716990406 | BR35: 0.0127185138 | BS35: 13.38244098 | BT35: 0.0347241974 | BU35: . | BV35: 0 | BW35: . | BX35: 0 | BY35: . | BZ35: 0 | CA35: . | CB35: 0 | CC35: 0.096399024 | CD35: 0.0013777101 | CE35: 0.2368562367 | CF35: 0.0027527122 | CG35: 2.348108695 | CH35: 0.0324237808 | CI35: 28.715181 | CJ35: 0.7828133735 | CK35: . | CL35: 0 | CM35: . | CN35: 0 | CO35: 20.48501839 | CP35: 0.4363755632 | CQ35: 47.2566789 | CR35: 2.212453891 | CS35: 16.70195375 | CT35: 0.6126498761 | CU35: 120.8909937 | CV35: 1.229865783 | CW35: 0.0015441533 | CX35: 0.0026469425 | CY35: 0.0029253633 | CZ35: 0.0029742717 | DA35: 0.0029850909 | DB35: 0.0029912527 | DC35: 0.0029938365 | DD35: 0.0029959042 | DE35: 0.002997972 | DF35: 0.0030000398 | DG35: 83.37769115 | DH35: 0.663329027 | DI35: 43.97289638 | DJ35: 0.3622679674 | DK35: 22.97802945 | DL35: 0.1959907692 | DM35: 12.00000485 | DN35: 0.106827366 | DO35: 6.391870193 | DP35: 0.0602229406 | DQ35: 3.516546083 | DR35: 0.035714863 | DS35: 2.018307469 | DT35: 0.0225572258 | DU35: 1.218484582 | DV35: 0.0152543705 | DW35: 0.7716973194 | DX35: 0.010955187 | DY35: 0.5103667322 | DZ35: 0.0082777755
A36: 3100 | B36: 22128 | C36: 1360.204061 | D36: 3049.59 | E36: 65.64874708 | F36: 0.082098432 | G36: 2.669594689 | H36: 0.0016758642 | I36: 156.03947 | J36: 1.185188642 | K36: 88.15884647 | L36: 0.6379592424 | M36: 24.59850879 | N36: 0.2279877097 | O36: . | P36: 0 | Q36: 24.46714648 | R36: 0.0497413081 | S36: . | T36: 0 | U36: . | V36: 0 | W36: 0.3523580969 | X36: 0.0043312325 | Y36: 32.21959985 | Z36: 0.8423898204 | AA36: . | AB36: 0 | AC36: 0.0002599732 | AD36: 1.5502889e-06 | AE36: . | AF36: 0 | AG36: . | AH36: 0 | AI36: 0.0002599732 | AJ36: 1.5502889e-06 | AK36: 107.3820252 | AL36: 1.742091565 | AM36: . | AN36: 0 | AO36: . | AP36: 0 | AQ36: . | AR36: 0 | AS36: 69.03085812 | AT36: 2.681055315 | AU36: 56.03366346 | AV36: 0.4936341373 | AW36: 26.38838547 | AX36: 0.3030722712 | AY36: 9.011467515 | AZ36: 0.0884812033 | BA36: 20.63381048 | BB36: 0.1020806628 | BC36: 0.0026352802 | BD36: 2.0972821e-06 | BE36: 141.6989844 | BF36: 1.875991711 | BG36: 0.0032784375 | BH36: 5.1518021e-06 | BI36: 0.4904554941 | BJ36: 0.0081596009 | BK36: 24.10805329 | BL36: 0.2198281088 | BM36: . | BN36: 0 | BO36: . | BP36: 0 | BQ36: 10.43776499 | BR36: 0.0134463566 | BS36: 14.02938149 | BT36: 0.0362949515 | BU36: . | BV36: 0 | BW36: . | BX36: 0 | BY36: . | BZ36: 0 | CA36: . | CB36: 0 | CC36: 0.1033744527 | CD36: 0.0014570091 | CE36: 0.2489836442 | CF36: 0.0028742234 | CG36: 2.482605042 | CH36: 0.0340063296 | CI36: 29.7369948 | CJ36: 0.8083834907 | CK36: . | CL36: 0 | CM36: . | CN36: 0 | CO36: 20.96254254 | CP36: 0.4442171667 | CQ36: 48.06831559 | CR36: 2.236838149 | CS36: 17.8073455 | CT36: 0.6268750534 | CU36: 123.8916389 | CV36: 1.249116658 | CW36: 0.00165934 | CX36: 0.0028511357 | CY36: 0.0031522309 | CZ36: 0.0032059747 | DA36: 0.0032179076 | DB36: 0.0032252227 | DC36: 0.0032288205 | DD36: 0.0032319064 | DE36: 0.0032348118 | DF36: 0.0032377173 | DG36: 84.32486957 | DH36: 0.6705498364 | DI36: 44.66728951 | DJ36: 0.3677300912 | DK36: 23.45896627 | DL36: 0.1999024501 | DM36: 12.32708845 | DN36: 0.1095854296 | DO36: 6.609923954 | DP36: 0.0621530846 | DQ36: 3.663742383 | DR36: 0.037093178 | DS36: 2.117819653 | DT36: 0.0235542751 | DU36: 1.286482877 | DV36: 0.0159895118 | DW36: 0.8184617988 | DX36: 0.0115097317 | DY36: 0.5434437021 | DZ36: 0.0087119054
A37: 3200 | B37: 21206 | C37: 1385.59691 | D37: 3149.852042 | E37: 67.96193607 | F37: 0.0837361762 | G37: 2.934236157 | H37: 0.0018044482 | I37: 157.1738266 | J37: 1.193687489 | K37: 89.4539069 | L37: 0.6472976563 | M37: 25.22344463 | N37: 0.2332091779 | O37: . | P37: 0 | Q37: 25.81860825 | R37: 0.0520575898 | S37: . | T37: 0 | U37: . | V37: 0 | W37: 0.374807181 | X37: 0.0046195918 | Y37: 33.36794781 | Z37: 0.8704317102 | AA37: . | AB37: 0 | AC37: 0.000328518 | AD37: 2.2542181e-06 | AE37: . | AF37: 0 | AG37: . | AH37: 0 | AI37: 0.000328518 | AJ37: 2.2542181e-06 | AK37: 109.3901568 | AL37: 1.756895174 | AM37: . | AN37: 0 | AO37: . | AP37: 0 | AQ37: . | AR37: 0 | AS37: 70.26466748 | AT37: 2.711613665 | AU37: 57.51372428 | AV37: 0.5028896615 | AW37: 27.07689003 | AX37: 0.3088925628 | AY37: 9.186776964 | AZ37: 0.0896547918 | BA37: 21.25005728 | BB37: 0.1043423069 | BC37: 0.002605277 | BD37: 2.0763238e-06 | BE37: 145.8092007 | BF37: 1.908494827 | BG37: 0.0035424465 | BH37: 5.0908469e-06 | BI37: 0.5042814436 | BJ37: 0.0083579525 | BK37: 24.71916319 | BL37: 0.2248512254 | BM37: . | BN37: 0 | BO37: . | BP37: 0 | BQ37: 11.14633086 | BR37: 0.0141792859 | BS37: 14.67227739 | BT37: 0.0378783039 | BU37: . | BV37: 0 | BW37: . | BX37: 0 | BY37: . | BZ37: 0 | CA37: . | CB37: 0 | CC37: 0.1111229794 | CD37: 0.0015648881 | CE37: 0.2636842015 | CF37: 0.0030547037 | CG37: 2.614135806 | CH37: 0.0357031062 | CI37: 30.753812 | CJ37: 0.834728604 | CK37: . | CL37: 0 | CM37: . | CN37: 0 | CO37: 21.43331108 | CP37: 0.4518780087 | CQ37: 48.83135639 | CR37: 2.259735657 | CS37: 18.93104547 | CT37: 0.6410279561 | CU37: 126.8781552 | CV37: 1.267466871 | CW37: 0.0017859124 | CX37: 0.00307606 | CY37: 0.0034057542 | CZ37: 0.0034651802 | DA37: 0.0034780508 | DB37: 0.0034863407 | DC37: 0.003490939 | DD37: 0.0034944439 | DE37: 0.0034977697 | DF37: 0.0035010956 | DG37: 85.25167834 | DH37: 0.6776336204 | DI37: 45.35279077 | DJ37: 0.3731205006 | DK37: 23.93302081 | DL37: 0.2037642778 | DM37: 12.64174937 | DN37: 0.1122595018 | DO37: 6.818953594 | DP37: 0.0640145283 | DQ37: 3.804087166 | DR37: 0.0384159787 | DS37: 2.213309021 | DT37: 0.0245149855 | DU37: 1.352737898 | DV37: 0.0167070727 | DW37: 0.8659242101 | DX37: 0.012065565 | DY37: 0.5787619721 | DZ37: 0.0091590686
A38: 3300 | B38: 20211 | C38: 1410.369518 | D38: 3249.88361 | E38: 70.17002632 | F38: 0.0852664325 | G38: 3.188944734 | H38: 0.0019280075 | I38: 158.2530855 | J38: 1.20183752 | K38: 90.70995392 | L38: 0.6562357603 | M38: 25.82412615 | N38: 0.2383569988 | O38: . | P38: 0 | Q38: 27.17977118 | R38: 0.0542986997 | S38: . | T38: 0 | U38: . | V38: 0 | W38: 0.3922670196 | X38: 0.00480037 | Y38: 34.5393898 | Z38: 0.8981510299 | AA38: . | AB38: 0 | AC38: 0.000412539 | AD38: 2.5931138e-06 | AE38: . | AF38: 0 | AG38: . | AH38: 0 | AI38: 0.000412539 | AJ38: 2.5931138e-06 | AK38: 111.326458 | AL38: 1.771098211 | AM38: . | AN38: 0 | AO38: . | AP38: 0 | AQ38: . | AR38: 0 | AS38: 71.44460996 | AT38: 2.74040281 | AU38: 58.94572898 | AV38: 0.5118090464 | AW38: 27.71588675 | AX38: 0.3144765384 | AY38: 9.353748399 | AZ38: 0.090744811 | BA38: 21.87609383 | BB38: 0.106587697 | BC38: 0.0025763134 | BD38: 2.0565026e-06 | BE38: 150.0256406 | BF38: 1.940516873 | BG38: 0.0037886694 | BH38: 5.0320166e-06 | BI38: 0.5223596746 | BJ38: 0.008598052 | BK38: 25.30176648 | BL38: 0.2297589468 | BM38: . | BN38: 0 | BO38: . | BP38: 0 | BQ38: 11.88197727 | BR38: 0.014897176 | BS38: 15.29779391 | BT38: 0.0394015237 | BU38: . | BV38: 0 | BW38: . | BX38: 0 | BY38: . | BZ38: 0 | CA38: . | CB38: 0 | CC38: 0.1179502474 | CD38: 0.0016266253 | CE38: 0.2743167722 | CF38: 0.0031737447 | CG38: 2.761075312 | CH38: 0.0374665996 | CI38: 31.77831449 | CJ38: 0.8606844303 | CK38: . | CL38: 0 | CM38: . | CN38: 0 | CO38: 21.87569808 | CP38: 0.4589933716 | CQ38: 49.56891188 | CR38: 2.281409438 | CS38: 20.12240912 | CT38: 0.6548139229 | CU38: 129.9032315 | CV38: 1.28570295 | CW38: 0.0019078413 | CX38: 0.0032890349 | CY38: 0.0036412848 | CZ38: 0.0037060707 | DA38: 0.0037200849 | DB38: 0.0037292332 | DC38: 0.0037343733 | DD38: 0.0037384254 | DE38: 0.0037422999 | DF38: 0.0037459967 | DG38: 86.13522703 | DH38: 0.6844478 | DI38: 46.00832337 | DJ38: 0.3783394143 | DK38: 24.38855757 | DL38: 0.2075327972 | DM38: 12.94946117 | DN38: 0.1149260517 | DO38: 7.022908013 | DP38: 0.065884811 | DQ38: 3.940468889 | DR38: 0.0397523743 | DS38: 2.306259045 | DT38: 0.0254982329 | DU38: 1.417060275 | DV38: 0.0174523964 | DW38: 0.9107587824 | DX38: 0.0126445466 | DY38: 0.6109040791 | DZ38: 0.0096238566
A39: 3400 | B39: 19390 | C39: 1434.623609 | D39: 3349.396372 | E39: 72.36444577 | F39: 0.0867821258 | G39: 3.447008597 | H39: 0.0020506395 | I39: 159.2937007 | J39: 1.209608587 | K39: 91.95684608 | L39: 0.6653906467 | M39: 26.4269238 | N39: 0.2433733622 | O39: . | P39: 0 | Q39: 28.58518525 | R39: 0.056635187 | S39: . | T39: 0 | U39: . | V39: 0 | W39: 0.4094176206 | X39: 0.0049869932 | Y39: 35.6841724 | Z39: 0.924856604 | AA39: . | AB39: 0 | AC39: 0.0005134309 | AD39: 2.9137211e-06 | AE39: . | AF39: 0 | AG39: . | AH39: 0 | AI39: 0.0005134309 | AJ39: 2.9137211e-06 | AK39: 113.2084862 | AL39: 1.784550811 | AM39: . | AN39: 0 | AO39: . | AP39: 0 | AQ39: . | AR39: 0 | AS39: 72.60211972 | AT39: 2.769146453 | AU39: 60.35948294 | AV39: 0.52049883 | AW39: 28.36363836 | AX39: 0.3199549284 | AY39: 9.51282812 | AZ39: 0.0917775355 | BA39: 22.48301646 | BB39: 0.1087663661 | BC39: 0.0025496367 | BD39: 2.0379409e-06 | BE39: 154.081498 | BF39: 1.972042538 | BG39: 0.0040412806 | BH39: 4.9778563e-06 | BI39: 0.5377082586 | BJ39: 0.008818061 | BK39: 25.88921554 | BL39: 0.2345553013 | BM39: . | BN39: 0 | BO39: . | BP39: 0 | BQ39: 12.63856774 | BR39: 0.0156437834 | BS39: 15.94661751 | BT39: 0.0409914036 | BU39: . | BV39: 0 | BW39: . | BX39: 0 | BY39: . | BZ39: 0 | CA39: . | CB39: 0 | CC39: 0.124564766 | CD39: 0.0016994295 | CE39: 0.2848528547 | CF39: 0.0032875637 | CG39: 2.902024217 | CH39: 0.0390965 | CI39: 32.78214818 | CJ39: 0.8857601039 | CK39: . | CL39: 0 | CM39: . | CN39: 0 | CO39: 22.30722844 | CP39: 0.4661872107 | CQ39: 50.29489128 | CR39: 2.302959242 | CS39: 21.2545463 | CT39: 0.6681011807 | CU39: 132.8269517 | CV39: 1.303941357 | CW39: 0.0020299377 | CX39: 0.0035070225 | CY39: 0.0038841399 | CZ39: 0.0039551862 | DA39: 0.0039713866 | DB39: 0.0039813174 | DC39: 0.0039869404 | DD39: 0.0039913097 | DE39: 0.0039951627 | DF39: 0.0039988393 | DG39: 86.98453084 | DH39: 0.6909394919 | DI39: 46.63834808 | DJ39: 0.383313741 | DK39: 24.83005093 | DL39: 0.2111506015 | DM39: 13.24901229 | DN39: 0.1175055285 | DO39: 7.224076125 | DP39: 0.0677207346 | DQ39: 4.07477989 | DR39: 0.041073754 | DS39: 2.397945347 | DT39: 0.0264809862 | DU39: 1.48059995 | DV39: 0.0182074579 | DW39: 0.9554784401 | DX39: 0.0132418897 | DY39: 0.6436966723 | DZ39: 0.0101149508
A40: 3500 | B40: 18433 | C40: 1458.330658 | D40: 3449.66084 | E40: 74.48287288 | F40: 0.0881709637 | G40: 3.695476855 | H40: 0.002170639 | I40: 160.2756193 | J40: 1.216993078 | K40: 93.12822084 | L40: 0.6738308072 | M40: 26.98299243 | N40: 0.2480419871 | O40: . | P40: 0 | Q40: 29.90501514 | R40: 0.0587676054 | S40: . | T40: 0 | U40: . | V40: 0 | W40: 0.4297834311 | X40: 0.0052170802 | Y40: 36.78811833 | Z40: 0.9504419778 | AA40: . | AB40: 0 | AC40: 0.0005101398 | AD40: 2.8948987e-06 | AE40: . | AF40: 0 | AG40: . | AH40: 0 | AI40: 0.0005101398 | AJ40: 2.8948987e-06 | AK40: 115.0133908 | AL40: 1.797610577 | AM40: . | AN40: 0 | AO40: . | AP40: 0 | AQ40: . | AR40: 0 | AS40: 73.7447546 | AT40: 2.796664472 | AU40: 61.72057752 | AV40: 0.5288700346 | AW40: 28.97927631 | AX40: 0.3252609398 | AY40: 9.666066051 | AZ40: 0.0927476958 | BA40: 23.07523515 | BB40: 0.110861399 | BC40: 0.0025241433 | BD40: 2.020504e-06 | BE40: 158.2548553 | BF40: 2.003158468 | BG40: 0.0042896705 | BH40: 4.9262782e-06 | BI40: 0.5591486537 | BJ40: 0.0090990811 | BK40: 26.42384377 | BL40: 0.238942906 | BM40: . | BN40: 0 | BO40: . | BP40: 0 | BQ40: 13.37246211 | BR40: 0.0163381353 | BS40: 16.53255303 | BT40: 0.0424294701 | BU40: . | BV40: 0 | BW40: . | BX40: 0 | BY40: . | BZ40: 0 | CA40: . | CB40: 0 | CC40: 0.1336674172 | CD40: 0.001812558 | CE40: 0.2961160139 | CF40: 0.0034045222 | CG40: 3.046006888 | CH40: 0.0408177882 | CI40: 33.74211144 | CJ40: 0.9096241896 | CK40: . | CL40: 0 | CM40: . | CN40: 0 | CO40: 22.73807002 | CP40: 0.4734630625 | CQ40: 51.00668458 | CR40: 2.323201409 | CS40: 22.48923437 | CT40: 0.68171087 | CU40: 135.765621 | CV40: 1.321447598 | CW40: 0.0021476944 | CX40: 0.0037191369 | CY40: 0.0041226092 | CZ40: 0.0042008204 | DA40: 0.0042180066 | DB40: 0.0042285381 | DC40: 0.0042344645 | DD40: 0.0042391424 | DE40: 0.0042433069 | DF40: 0.0042471258 | DG40: 87.78481056 | DH40: 0.6971134679 | DI40: 47.22956846 | DJ40: 0.3880506026 | DK40: 25.23830548 | DL40: 0.2145825767 | DM40: 13.52448032 | DN40: 0.1199560313 | DO40: 7.408751329 | DP40: 0.0694813663 | DQ40: 4.199475657 | DR40: 0.0423622312 | DS40: 2.483712002 | DT40: 0.0274537248 | DU40: 1.541611523 | DV40: 0.0189711567 | DW40: 0.9993238276 | DX40: 0.0138548768 | DY40: 0.6765396821 | DZ40: 0.0106250821
A41: 3600 | B41: 17786 | C41: 1481.576919 | D41: 3549.813217 | E41: 76.60109574 | F41: 0.0895667432 | G41: 3.965950029 | H41: 0.0022909231 | I41: 161.1981502 | J41: 1.224061582 | K41: 94.27074029 | L41: 0.6820758026 | M41: 27.5638793 | N41: 0.2529260847 | O41: . | P41: 0 | Q41: 31.25234982 | R41: 0.0609318214 | S41: . | T41: 0 | U41: . | V41: 0 | W41: 0.4555546436 | X41: 0.0055138726 | Y41: 37.84011635 | Z41: 0.974907021 | AA41: . | AB41: 0 | AC41: 0.0005305832 | AD41: 3.0500721e-06 | AE41: . | AF41: 0 | AG41: . | AH41: 0 | AI41: 0.0005305832 | AJ41: 3.0500721e-06 | AK41: 116.7416056 | AL41: 1.80996278 | AM41: . | AN41: 0 | AO41: . | AP41: 0 | AQ41: . | AR41: 0 | AS41: 74.90114415 | AT41: 2.823992516 | AU41: 63.07229667 | AV41: 0.5370613691 | AW41: 29.5734753 | AX41: 0.3303541005 | AY41: 9.825991033 | AZ41: 0.0937578007 | BA41: 23.67283034 | BB41: 0.1129494679 | BC41: 0.0025004055 | BD41: 2.0038389e-06 | BE41: 162.4194608 | BF41: 2.032974484 | BG41: 0.0045467619 | BH41: 4.878033e-06 | BI41: 0.5783351099 | BJ41: 0.0093047346 | BK41: 26.98554419 | BL41: 0.2436213501 | BM41: . | BN41: 0 | BO41: . | BP41: 0 | BQ41: 14.1361315 | BR41: 0.0170505165 | BS41: 17.11621832 | BT41: 0.0438813049 | BU41: . | BV41: 0 | BW41: . | BX41: 0 | BY41: . | BZ41: 0 | CA41: . | CB41: 0 | CC41: 0.1434702564 | CD41: 0.0019366223 | CE41: 0.3120843871 | CF41: 0.0035772503 | CG41: 3.175798484 | CH41: 0.0423935602 | CI41: 34.66431786 | CJ41: 0.9325134608 | CK41: . | CL41: 0 | CM41: . | CN41: 0 | CO41: 23.17638592 | CP41: 0.4805787993 | CQ41: 51.72475824 | CR41: 2.343413716 | CS41: 23.78460023 | CT41: 0.6953170985 | CU41: 138.6348606 | CV41: 1.337657386 | CW41: 0.0022679474 | CX41: 0.0039377594 | CY41: 0.0043710406 | CZ41: 0.0044565257 | DA41: 0.0044747872 | DB41: 0.004485927 | DC41: 0.0044918249 | DD41: 0.0044964795 | DE41: 0.0045006232 | DF41: 0.0045044233 | DG41: 88.54427838 | DH41: 0.7030598189 | DI41: 47.79398461 | DJ41: 0.3926266996 | DK41: 25.631251 | DL41: 0.2179101889 | DM41: 13.79024297 | DN41: 0.1223326663 | DO41: 7.58898132 | DP41: 0.0711999123 | DQ41: 4.322658503 | DR41: 0.0436308971 | DS41: 2.569527233 | DT41: 0.0284213393 | DU41: 1.603889202 | DV41: 0.0197426257 | DW41: 1.044820824 | DX41: 0.0144838599 | DY41: 0.7113260806 | DZ41: 0.0111570053
